Workbook

Sheet LOGIKA ALL-1
A2: N | B2: 0.01
A3: ANCHO EXC | B3: =0.5+N23 -> 0.7320714852 | C3: m
A4: DS | B4: 0.1 | C4: m | G4: BODEGA TIPO | H4: 158
A5: RECUBRIMIENTO | B5: 1 | C5: m | G5: SERV. ELECTRICOS | H5: =10+4+2+1 -> 17 | AO5: =0.5/5 -> 0.1
A6: C0 | B6: 1 | G6: PORTERIA 2 INLCUYE OF ADMON | H6: =10+3*4+4*1 -> 26 | AL6: 0.5
A7: ANCHO COMPACTADOR | B7: 0.25 | C7: m | G7: SERVICIOS BOMBAS | H7: =1+30+3+(145) -> 179 | AK7: 80 | AL7: =+AL6/100 -> 0.005 | AM7: =+AK7*AL7 -> 0.4 | AN7: =+AK7-AM7 -> 79.6
B8: Costos | G8: PORTERIA 1 | H8: =1+10 -> 11
A9: EXCAVACIÓN | B9: $/m3 | C9: 18000
A10: POZO | B10: $/m | C10: 697981 | G10: BASURAS Y CONDUCTORES | H10: =5+70+7+20 -> 102
G11: MANTENIMIENTO | H11: 3 | L11: =48.7-47.62 -> 1.08
A12: VEL MIN | B12: 0.75 | G12: BLOQUE 1 CROS DOCKING | H12: =150+16+3+80 -> 249
A13: Q/Qo MIN | B13: 0.999 | G13: BLOQUE 2 CROS DOCKING | H13: =40+4+1+20 -> 65
A14: T | B14: 0.3
A16: CUADRO 8. PROGRAMACIÓN DINAMICA PARA EL CÁLCULO LA RED DE ALCANTARILLADO AGUAS LLUVIAS- ITERACIÓN 1
A18: 1 | B18: 2 | C18: 3 | D18: 4 | E18: 5 | F18: 6 | G18: 7 | H18: 8 | I18: 9 | J18: 10 | K18: 11 | L18: 12 | M18: 13 | N18: 14 | O18: 15 | P18: 16 | Q18: 17 | R18: 18 | S18: 19 | T18: 16 | U18: 17 | V18: 18 | W18: 19 | X18: 20 | Y18: 21 | Z18: 22 | AA18: 23 | AB18: 24 | AC18: 25 | AD18: 26 | AE18: 27 | AF18: 28 | AG18: 29 | AH18: 30 | AI18: 31 | AJ18: 32 | AK18: 33 | AL18: 34 | AM18: 35 | AN18: 36 | AO18: 37 | AP18: 38 | AQ18: 39 | AR18: 40
A20: Etapa | B20: Pozo Aguas Arriba | C20: Pozo Aguas Abajo | D20: Cota del terreno | E20: Sub - etapa Aguas arriba | F20: clave | G20: Sub - etapa Aguas abajo | H20: clave | I20: Longitud receptor | J20: Pendiente | K20: Area de Drenaje (m2) | L20: Q Diseño | M20: Q Diseño | N20: Diámetro | O20: Diámetro | P20: Diámetro Comercial | Q20: Diámetro Comercial | R20: Qo | S20: Q/Qo | T20: Diámetro Comercial | U20: Diámetro Comercial | V20: Qo | W20: Q/Qo | X20: Vo | Y20: V/Vo | Z20: V | AA20: T | AB20: Rev. | AC20: Rev. | AD20: Rev. | AE20: ANALISIS CUMPLIMIENTO PARAMETROS ALCANTARILLADO | AI20: Ancho excavación | AJ20: COSTOS | AM20: Total | AN20: Aguas Arriba | AO20: Total | AP20: Mínimo | AQ20: Etapas optimas
R21: Lt/sg | V21: Lt/sg | X21: mt/sg | Z21: mt/sg | AA21: kg/m2 | AJ21: Tubería | AK21: Excavación | AL21: Aguas Arriba | AM21: r() | AN21: f() | AO21: f() | AP21: f() | AQ21: Aguas | AR21: Aguas
E22: K | F22: (m) | G22: K | H22: (m) | I22: (m) | J22: (m/m) | L22: (L/s) | M22: (m3/s) | N22: (m) | O22: (in) | P22: (in) | Q22: (m) | R22: (m3/s) | T22: (in) | U22: (m) | V22: (m3/s) | X22: m/s | Z22: m/s | AA22: kg/m2 | AB22: q/Q | AC22: V | AD22: T | AE22: q/Q | AF22: V | AG22: T | AH22: TOTAL | AI22: (m) | AJ22: ($) | AK22: ($) | AL22: ($) | AM22: ($) | AN22: ($) | AO22: ($) | AQ22: arriba | AR22: abajo
A23: 1 | B23: 1 | C23: 2 | D23: 48.7 | E23: 1 | F23: =+$D$23-$B$5 -> 47.7 | G23: 1 | H23: =+$D$48-$B$5-$B$4 -> 47.6 | I23: 10 | J23: =+(F23-H23)/I23 -> 0.01 | K23: 1921 | L23: =0.033*K23 -> 63.393 | M23: =+L23/1000 -> 0.063393 | N23: =+IF(J23>0,((M23*$B$2*(4^(5/3))/((J23^0.5)*PI()*$B$6))^(3/8)),0) -> 0.2320714852 | O23: =+N23*(100/2.54) -> 9.136672645 | P23: =IF(O23<0.1,0,IF(O23<4,6,EVEN(O23))) -> 10 | Q23: =IF(O23>0,VLOOKUP(P23,'$ alcantarillado'!$I$11:$L$28,4),"0") -> 0.227 | R23: =IF(P23>0,PI()*((Q23)^(8/3))*((J23)^0.5)/($B$2*4^(5/3)),"") -> 0.05976572236 | S23: =IF(P23>0,+M23/R23,0) -> 1.060691605 | T23: =+IF(S23>$B$13,VLOOKUP(P23,'$ alcantarillado'!$I$12:$N$28,5),P23) -> 12 | U23: =IF(O23>0,VLOOKUP(T23,'$ alcantarillado'!$I$11:$L$28,4),"0") -> 0.284 | V23: =IF(T23>0,PI()*((U23)^(8/3))*((J23)^0.5)/($B$2*4^(5/3)),"") -> 0.1086172477 | W23: =IF(P23>0,M23/V23,0) -> 0.5836365893 | X23: =IF(T23>0,4*V23/(PI()*(U23)^2),"") -> 1.714637163 | Y23: =IF(T23>0,(VLOOKUP($W23,Relaciones!$A$3:$D$107,2)),"") -> 0.89 | Z23: =IF(T23>0,Y23*X23,"") -> 1.526027075 | AA23: =IF(T23>0,250*U23*J23,"") -> 0.71 | AB23: =IF(T23>0,IF(W23<=$B$13,"OK","No Cumple"),"") -> OK | AC23: =IF(T23>0,IF(Z23>=$B$12,"OK","No Cumple"),"") -> OK | AD23: =IF(T23>0,IF(AA23>=$B$14,"OK","No Cumple"),"") -> OK | AE23: =+IF(AB23="OK",1,0) -> 1 | AF23: =+IF(AC23="OK",1,0) -> 1 | AG23: =+IF(AD23="OK",1,0) -> 1 | AH23: =SUM(AE23:AG23) -> 3 | AI23: =IF(AH23=3,2*$B$7+U23,0) -> 0.784 | AJ23: =IF(AI23>0,I23*VLOOKUP(T23,'$ alcantarillado'!$I$12:$K$28,3),0) -> 704866.6667 | AK23: =IF(N23>0,((($D$23-F23)+(U23))+(($D$48-H23)+(U23))/2)*AI23*I23*$C$9,0) -> 278853.12 | AL23: =IF(AI23>0,(($D$23-F23)+U23)*$C$10,0) -> 896207.604 | AM23: =IF(AJ23>0,AJ23+AK23+AL23,0) -> 1879927.391 | AN23: 0 | AO23: =IF((AM23+AN23)>0,(AM23+AN23),"") -> 1879927.391 | AP23: =+MIN(AO23:AO27) -> 1879927.391
E24: 2 | F24: =+F23-$B$4 -> 47.6 | G24: 1 | H24: =+H23 -> 47.6 | I24: =+I23 -> 10 | J24: =+(F24-H24)/I24 -> 0 | K24: =+K23 -> 1921 | L24: =0.033*K24 -> 63.393 | M24: =+L24/1000 -> 0.063393 | N24: 0 | O24: 0 | P24: =IF(O24<0.1,0,IF(O24<4,6,EVEN(O24))) -> 0 | Q24: =IF(O24>0,VLOOKUP(P24,'$ alcantarillado'!$I$11:$L$28,4),"0") -> 0 | S24: 0 | T24: =+IF(S24>$B$13,VLOOKUP(P24,'$ alcantarillado'!$I$12:$N$28,5),P24) -> 0 | U24: =IF(O24>0,VLOOKUP(T24,'$ alcantarillado'!$I$11:$L$28,4),"0") -> 0 | W24: 0 | X24: =IF(T24>0,4*V24/(PI()*(U24)^2),"") ->  | Y24: =IF(T24>0,(VLOOKUP($W24,Relaciones!$A$3:$D$107,2)),"") ->  | Z24: =IF(T24>0,Y24*X24,"") ->  | AB24: =IF(T24>0,IF(W24<=$B$13,"OK","No Cumple"),"") ->  | AC24: =IF(T24>0,IF(Z24>=$B$12,"OK","No Cumple"),"") ->  | AD24: =IF(T24>0,IF(AA24>=$B$14,"OK","No Cumple"),"") ->  | AE24: =+IF(AB24="OK",1,0) -> 0 | AF24: =+IF(AC24="OK",1,0) -> 0 | AG24: =+IF(AD24="OK",1,0) -> 0 | AH24: =SUM(AE24:AG24) -> 0 | AI24: =IF(AH24=3,2*$B$7+U24,0) -> 0 | AJ24: =IF(AI24>0,I24*VLOOKUP(T24,'$ alcantarillado'!$I$12:$K$28,3),0) -> 0 | AK24: =IF(N24>0,((($D$23-F24)+(U24))+(($D$48-H24)+(U24))/2)*AI24*I24*$C$9,0) -> 0 | AL24: =IF(AI24>0,(($D$23-F24)+U24)*$C$10,0) -> 0 | AM24: =IF(AJ24>0,AJ24+AK24+AL24,0) -> 0 | AN24: 0 | AQ24: 1 | AR24: 1
E25: 3 | F25: =+F24-$B$4 -> 47.5 | G25: 1 | H25: =+H24 -> 47.6 | I25: =+I24 -> 10 | J25: -0.01 | K25: 1921 | L25: 63.393 | M25: 0.063393 | N25: 0 | O25: 0 | P25: 0 | Q25: =IF(O25>0,VLOOKUP(P25,'$ alcantarillado'!$I$11:$L$28,4),"0") -> 0 | S25: 0 | T25: =IF(S25>$B$13,VLOOKUP(P25,'$ alcantarillado'!$I$12:$N$28,5),P25) -> 0 | U25: =IF(O25>0,VLOOKUP(T25,'$ alcantarillado'!$I$11:$L$28,4),"0") -> 0 | W25: 0 | Y25: =IF(T25>0,(VLOOKUP($W25,Relaciones!$A$3:$D$107,2)),"") ->  | AD25: =IF(T25>0,IF(AA25>=$B$14,"OK","No Cumple"),"") ->  | AE25: =+IF(AB25="OK",1,0) -> 0 | AF25: =+IF(AC25="OK",1,0) -> 0 | AG25: =+IF(AD25="OK",1,0) -> 0 | AH25: =SUM(AE25:AG25) -> 0 | AI25: 0 | AJ25: =IF(AI25>0,I25*VLOOKUP(T25,'$ alcantarillado'!$I$12:$K$28,3),0) -> 0 | AK25: 0 | AL25: 0 | AM25: 0 | AN25: 0
E26: 4 | F26: 47.4 | G26: 1 | H26: 47.6 | I26: 10 | J26: =+(F26-H26)/I26 -> -0.02 | K26: 1921 | L26: 63.393 | M26: 0.063393 | N26: 0 | O26: 0 | P26: 0 | Q26: =IF(O26>0,VLOOKUP(P26,'$ alcantarillado'!$I$11:$L$28,4),"0") -> 0 | S26: 0 | T26: =IF(S26>$B$13,VLOOKUP(P26,'$ alcantarillado'!$I$12:$N$28,5),P26) -> 0 | U26: =IF(O26>0,VLOOKUP(T26,'$ alcantarillado'!$I$11:$L$28,4),"0") -> 0 | W26: 0 | Y26: =IF(T26>0,(VLOOKUP($W26,Relaciones!$A$3:$D$107,2)),"") ->  | AE26: 0 | AF26: 0 | AG26: 0 | AH26: 0 | AI26: 0 | AJ26: =IF(AI26>0,I26*VLOOKUP(T26,'$ alcantarillado'!$I$12:$K$28,3),0) -> 0 | AK26: 0 | AL26: 0 | AM26: 0 | AN26: 0
E27: 5 | F27: 47.3 | G27: 1 | H27: =+H26 -> 47.6 | I27: =+I26 -> 10 | J27: -0.03 | K27: =+K26 -> 1921 | L27: 63.393 | M27: 0.063393 | N27: 0 | O27: 0 | P27: 0 | Q27: =IF(O27>0,VLOOKUP(P27,'$ alcantarillado'!$I$11:$L$28,4),"0") -> 0 | S27: 0 | T27: =IF(S27>$B$13,VLOOKUP(P27,'$ alcantarillado'!$I$12:$N$28,5),P27) -> 0 | U27: =IF(O27>0,VLOOKUP(T27,'$ alcantarillado'!$I$11:$L$28,4),"0") -> 0 | W27: 0 | Y27: =IF(T27>0,(VLOOKUP($W27,Relaciones!$A$3:$D$107,2)),"") ->  | AE27: 0 | AF27: 0 | AG27: 0 | AH27: 0 | AI27: =IF(AH27=3,2*$B$7+U27,0) -> 0 | AJ27: =IF(AI27>0,I27*VLOOKUP(T27,'$ alcantarillado'!$I$12:$K$28,3),0) -> 0 | AK27: 0 | AL27: 0 | AM27: 0 | AN27: 0
E28: 1 | F28: =+$D$23-$B$5 -> 47.7 | G28: 2 | H28: =+H23-$B$4 -> 47.5 | I28: =+I27 -> 10 | J28: =+(F28-H28)/I28 -> 0.02 | K28: =+K27 -> 1921 | L28: =0.033*K28 -> 63.393 | M28: =+L28/1000 -> 0.063393 | N28: =+IF(J28>0,((M28*$B$2*(4^(5/3))/((J28^0.5)*PI()*$B$6))^(3/8)),0) -> 0.2037880236 | O28: 8.023150535 | P28: 10 | Q28: =IF(O28>0,VLOOKUP(P28,'$ alcantarillado'!$I$11:$L$28,4),"0") -> 0.227 | R28: 0.08452149513 | S28: 0.7500222269 | T28: =+IF(S28>$B$13,VLOOKUP(P28,'$ alcantarillado'!$I$12:$N$28,5),P28) -> 10 | U28: =IF(O28>0,VLOOKUP(T28,'$ alcantarillado'!$I$11:$L$28,4),"0") -> 0.227 | V28: =IF(T28>0,PI()*((U28)^(8/3))*((J28)^0.5)/($B$2*4^(5/3)),"") -> 0.08452149513 | W28: =IF(P28>0,M28/V28,0) -> 0.7500222269 | X28: =IF(T28>0,4*V28/(PI()*(U28)^2),"") -> 2.088457179 | Y28: =IF(T28>0,(VLOOKUP($W28,Relaciones!$A$3:$D$107,2)),"") -> 0.965 | Z28: =IF(T28>0,Y28*X28,"") -> 2.015361178 | AA28: =IF(T28>0,250*U28*J28,"") -> 1.135 | AB28: =IF(T28>0,IF(W28<=$B$13,"OK","No Cumple"),"") -> OK | AC28: =IF(T28>0,IF(Z28>=$B$12,"OK","No Cumple"),"") -> OK | AD28: =IF(T28>0,IF(AA28>=$B$14,"OK","No Cumple"),"") -> OK | AE28: =+IF(AB28="OK",1,0) -> 1 | AF28: =+IF(AC28="OK",1,0) -> 1 | AG28: =+IF(AD28="OK",1,0) -> 1 | AH28: =SUM(AE28:AG28) -> 3 | AI28: =IF(AH28=3,2*$B$7+U28,0) -> 0.727 | AJ28: =IF(AI28>0,I28*VLOOKUP(T28,'$ alcantarillado'!$I$12:$K$28,3),0) -> 476816.6667 | AK28: =IF(N28>0,((($D$23-F28)+(U28))+(($D$48-H28)+(U28))/2)*AI28*I28*$C$9,0) -> 253933.83 | AL28: =IF(AI28>0,(($D$23-F28)+U28)*$C$10,0) -> 856422.687 | AM28: =IF(AJ28>0,AJ28+AK28+AL28,0) -> 1587173.184 | AN28: 0 | AO28: =IF((AM28+AN28)>0,(AM28+AN28),"") -> 1587173.184 | AP28: =+MIN(AO28:AO32) -> 1587173.184
E29: 2 | F29: =+F28-$B$4 -> 47.6 | G29: 2 | H29: =+H28 -> 47.5 | I29: =+I28 -> 10 | J29: 0.01 | K29: =+K28 -> 1921 | L29: 63.393 | M29: 0.063393 | N29: 0.2320714852 | O29: 9.136672645 | P29: 10 | Q29: =IF(O29>0,VLOOKUP(P29,'$ alcantarillado'!$I$11:$L$28,4),"0") -> 0.227 | R29: 0.05976572236 | S29: 1.060691605 | T29: =+IF(S29>$B$13,VLOOKUP(P29,'$ alcantarillado'!$I$12:$N$28,5),P29) -> 12 | U29: =IF(O29>0,VLOOKUP(T29,'$ alcantarillado'!$I$11:$L$28,4),"0") -> 0.284 | V29: 0.1086172477 | W29: 0.5836365893 | X29: =IF(T29>0,4*V29/(PI()*(U29)^2),"") -> 1.714637163 | Y29: =IF(T29>0,(VLOOKUP($W29,Relaciones!$A$3:$D$107,2)),"") -> 0.89 | Z29: =IF(T29>0,Y29*X29,"") -> 1.526027075 | AA29: 0.71 | AB29: =IF(T29>0,IF(W29<=$B$13,"OK","No Cumple"),"") -> OK | AC29: =IF(T29>0,IF(Z29>=$B$12,"OK","No Cumple"),"") -> OK | AD29: =IF(T29>0,IF(AA29>=$B$14,"OK","No Cumple"),"") -> OK | AE29: =+IF(AB29="OK",1,0) -> 1 | AF29: =+IF(AC29="OK",1,0) -> 1 | AG29: =+IF(AD29="OK",1,0) -> 1 | AH29: =SUM(AE29:AG29) -> 3 | AI29: =IF(AH29=3,2*$B$7+U29,0) -> 0.784 | AJ29: =IF(AI29>0,I29*VLOOKUP(T29,'$ alcantarillado'!$I$12:$K$28,3),0) -> 704866.6667 | AK29: 300021.12 | AL29: 966005.704 | AM29: 1970893.491 | AN29: 0 | AO29: 1970893.491 | AQ29: 1 | AR29: 2
E30: 3 | F30: =+F29-$B$4 -> 47.5 | G30: 2 | H30: =+H29 -> 47.5 | I30: 10 | J30: 0 | K30: =+K29 -> 1921 | L30: 63.393 | M30: 0.063393 | N30: 0 | O30: 0 | P30: 0 | Q30: =IF(O30>0,VLOOKUP(P30,'$ alcantarillado'!$I$11:$L$28,4),"0") -> 0 | S30: 0 | T30: =IF(S30>$B$13,VLOOKUP(P30,'$ alcantarillado'!$I$12:$N$28,5),P30) -> 0 | U30: =IF(O30>0,VLOOKUP(T30,'$ alcantarillado'!$I$11:$L$28,4),"0") -> 0 | W30: 0 | Y30: =IF(T30>0,(VLOOKUP($W30,Relaciones!$A$3:$D$107,2)),"") ->  | AD30: =IF(T30>0,IF(AA30>=$B$14,"OK","No Cumple"),"") ->  | AE30: 0 | AF30: 0 | AG30: 0 | AH30: 0 | AI30: 0 | AJ30: =IF(AI30>0,I30*VLOOKUP(T30,'$ alcantarillado'!$I$12:$K$28,3),0) -> 0 | AK30: 0 | AL30: 0 | AM30: 0 | AN30: 0
E31: 4 | F31: 47.4 | G31: 2 | H31: 47.5 | I31: 10 | J31: =+(F31-H31)/I31 -> -0.01 | K31: 1921 | L31: 63.393 | M31: 0.063393 | N31: 0 | O31: 0 | P31: 0 | Q31: =IF(O31>0,VLOOKUP(P31,'$ alcantarillado'!$I$11:$L$28,4),"0") -> 0 | S31: 0 | T31: =IF(S31>$B$13,VLOOKUP(P31,'$ alcantarillado'!$I$12:$N$28,5),P31) -> 0 | U31: =IF(O31>0,VLOOKUP(T31,'$ alcantarillado'!$I$11:$L$28,4),"0") -> 0 | W31: 0 | Y31: =IF(T31>0,(VLOOKUP($W31,Relaciones!$A$3:$D$107,2)),"") ->  | AE31: 0 | AF31: 0 | AG31: 0 | AH31: 0 | AI31: 0 | AJ31: =IF(AI31>0,I31*VLOOKUP(T31,'$ alcantarillado'!$I$12:$K$28,3),0) -> 0 | AK31: 0 | AL31: 0 | AM31: 0 | AN31: 0
E32: 5 | F32: 47.3 | G32: 2 | H32: =+H31 -> 47.5 | I32: =+I31 -> 10 | J32: -0.02 | K32: =+K31 -> 1921 | L32: 63.393 | M32: 0.063393 | N32: 0 | O32: 0 | P32: 0 | Q32: =IF(O32>0,VLOOKUP(P32,'$ alcantarillado'!$I$11:$L$28,4),"0") -> 0 | S32: 0 | T32: =IF(S32>$B$13,VLOOKUP(P32,'$ alcantarillado'!$I$12:$N$28,5),P32) -> 0 | U32: =IF(O32>0,VLOOKUP(T32,'$ alcantarillado'!$I$11:$L$28,4),"0") -> 0 | W32: 0 | Y32: =IF(T32>0,(VLOOKUP($W32,Relaciones!$A$3:$D$107,2)),"") ->  | AE32: 0 | AF32: 0 | AG32: 0 | AH32: 0 | AI32: 0 | AJ32: =IF(AI32>0,I32*VLOOKUP(T32,'$ alcantarillado'!$I$12:$K$28,3),0) -> 0 | AK32: 0 | AL32: 0 | AM32: 0 | AN32: 0
E33: 1 | F33: =+$D$23-$B$5 -> 47.7 | G33: 3 | H33: =+H28-$B$4 -> 47.4 | I33: =+I32 -> 10 | J33: =+(F33-H33)/I33 -> 0.03 | K33: 1921 | L33: =0.033*K33 -> 63.393 | M33: =+L33/1000 -> 0.063393 | N33: 0.1888693764 | O33: 7.43580222 | P33: 8 | Q33: =IF(O33>0,VLOOKUP(P33,'$ alcantarillado'!$I$11:$L$28,4),"0") -> 0.182 | R33: 0.05742939165 | S33: 1.103842443 | T33: =+IF(S33>$B$13,VLOOKUP(P33,'$ alcantarillado'!$I$12:$N$28,5),P33) -> 10 | U33: =IF(O33>0,VLOOKUP(T33,'$ alcantarillado'!$I$11:$L$28,4),"0") -> 0.227 | V33: 0.1035172677 | W33: 0.6123905839 | X33: =IF(T33>0,4*V33/(PI()*(U33)^2),"") -> 2.557827219 | Y33: =IF(T33>0,(VLOOKUP($W33,Relaciones!$A$3:$D$107,2)),"") -> 0.903 | Z33: =IF(T33>0,Y33*X33,"") -> 2.309717979 | AA33: 1.7025 | AB33: =IF(T33>0,IF(W33<=$B$13,"OK","No Cumple"),"") -> OK | AC33: =IF(T33>0,IF(Z33>=$B$12,"OK","No Cumple"),"") -> OK | AD33: =IF(T33>0,IF(AA33>=$B$14,"OK","No Cumple"),"") -> OK | AE33: =+IF(AB33="OK",1,0) -> 1 | AF33: =+IF(AC33="OK",1,0) -> 1 | AG33: =+IF(AD33="OK",1,0) -> 1 | AH33: =SUM(AE33:AG33) -> 3 | AI33: =IF(AH33=3,2*$B$7+U33,0) -> 0.727 | AJ33: =IF(AI33>0,I33*VLOOKUP(T33,'$ alcantarillado'!$I$12:$K$28,3),0) -> 476816.6667 | AK33: =IF(N33>0,((($D$23-F33)+(U33))+(($D$48-H33)+(U33))/2)*AI33*I33*$C$9,0) -> 260476.83 | AL33: =IF(AI33>0,(($D$23-F33)+U33)*$C$10,0) -> 856422.687 | AM33: =IF(AJ33>0,AJ33+AK33+AL33,0) -> 1593716.184 | AN33: 0 | AO33: 1593716.184 | AP33: =+MIN(AO33:AO37) -> 1593716.184
E34: 2 | F34: =+F33-$B$4 -> 47.6 | G34: 3 | H34: =+H33 -> 47.4 | I34: =+I33 -> 10 | J34: 0.02 | K34: =+K33 -> 1921 | L34: 63.393 | M34: 0.063393 | N34: 0.2037880236 | O34: 8.023150535 | P34: 10 | Q34: =IF(O34>0,VLOOKUP(P34,'$ alcantarillado'!$I$11:$L$28,4),"0") -> 0.227 | R34: 0.08452149513 | S34: 0.7500222269 | T34: =+IF(S34>$B$13,VLOOKUP(P34,'$ alcantarillado'!$I$12:$N$28,5),P34) -> 10 | U34: =IF(O34>0,VLOOKUP(T34,'$ alcantarillado'!$I$11:$L$28,4),"0") -> 0.227 | V34: 0.08452149513 | W34: 0.7500222269 | X34: =IF(T34>0,4*V34/(PI()*(U34)^2),"") -> 2.088457179 | Y34: =IF(T34>0,(VLOOKUP($W34,Relaciones!$A$3:$D$107,2)),"") -> 0.965 | Z34: =IF(T34>0,Y34*X34,"") -> 2.015361178 | AA34: 1.135 | AB34: =IF(T34>0,IF(W34<=$B$13,"OK","No Cumple"),"") -> OK | AC34: =IF(T34>0,IF(Z34>=$B$12,"OK","No Cumple"),"") -> OK | AD34: =IF(T34>0,IF(AA34>=$B$14,"OK","No Cumple"),"") -> OK | AE34: =+IF(AB34="OK",1,0) -> 1 | AF34: =+IF(AC34="OK",1,0) -> 1 | AG34: =+IF(AD34="OK",1,0) -> 1 | AH34: =SUM(AE34:AG34) -> 3 | AI34: =IF(AH34=3,2*$B$7+U34,0) -> 0.727 | AJ34: =IF(AI34>0,I34*VLOOKUP(T34,'$ alcantarillado'!$I$12:$K$28,3),0) -> 476816.6667 | AK34: 273562.83 | AL34: 926220.787 | AM34: 1676600.284 | AN34: 0 | AO34: 1676600.284
E35: 3 | F35: =+F34-$B$4 -> 47.5 | G35: 3 | H35: =+H34 -> 47.4 | I35: 10 | J35: 0.01 | K35: =+K34 -> 1921 | L35: 63.393 | M35: 0.063393 | N35: 0.2320714852 | O35: 9.136672645 | P35: 10 | Q35: =IF(O35>0,VLOOKUP(P35,'$ alcantarillado'!$I$11:$L$28,4),"0") -> 0.227 | R35: 0.05976572236 | S35: 1.060691605 | T35: =IF(S35>$B$13,VLOOKUP(P35,'$ alcantarillado'!$I$12:$N$28,5),P35) -> 12 | U35: =IF(O35>0,VLOOKUP(T35,'$ alcantarillado'!$I$11:$L$28,4),"0") -> 0.284 | V35: 0.1086172477 | W35: 0.5836365893 | X35: 1.714637163 | Y35: =IF(T35>0,(VLOOKUP($W35,Relaciones!$A$3:$D$107,2)),"") -> 0.89 | Z35: 1.526027075 | AA35: 0.71 | AB35: OK | AC35: OK | AD35: =IF(T35>0,IF(AA35>=$B$14,"OK","No Cumple"),"") -> OK | AE35: 1 | AF35: 1 | AG35: 1 | AH35: 3 | AI35: 0.784 | AJ35: =IF(AI35>0,I35*VLOOKUP(T35,'$ alcantarillado'!$I$12:$K$28,3),0) -> 704866.6667 | AK35: 321189.12 | AL35: 1035803.804 | AM35: 2061859.591 | AN35: 0 | AO35: 2061859.591
E36: 4 | F36: 47.4 | G36: 3 | H36: 47.4 | I36: 10 | J36: =+(F36-H36)/I36 -> 0 | K36: 1921 | L36: 63.393 | M36: 0.063393 | N36: 0 | O36: 0 | P36: 0 | Q36: =IF(O36>0,VLOOKUP(P36,'$ alcantarillado'!$I$11:$L$28,4),"0") -> 0 | S36: 0 | T36: =IF(S36>$B$13,VLOOKUP(P36,'$ alcantarillado'!$I$12:$N$28,5),P36) -> 0 | U36: =IF(O36>0,VLOOKUP(T36,'$ alcantarillado'!$I$11:$L$28,4),"0") -> 0 | W36: 0 | Y36: =IF(T36>0,(VLOOKUP($W36,Relaciones!$A$3:$D$107,2)),"") ->  | AE36: 0 | AF36: 0 | AG36: 0 | AH36: 0 | AI36: 0 | AJ36: =IF(AI36>0,I36*VLOOKUP(T36,'$ alcantarillado'!$I$12:$K$28,3),0) -> 0 | AK36: 0 | AL36: 0 | AM36: 0 | AN36: 0 | AQ36: 1 | AR36: 3
E37: 5 | F37: 47.3 | G37: 3 | H37: =+H36 -> 47.4 | I37: =+I36 -> 10 | J37: -0.01 | K37: =+K36 -> 1921 | L37: 63.393 | M37: 0.063393 | N37: 0 | O37: 0 | P37: 0 | Q37: =IF(O37>0,VLOOKUP(P37,'$ alcantarillado'!$I$11:$L$28,4),"0") -> 0 | S37: 0 | T37: =IF(S37>$B$13,VLOOKUP(P37,'$ alcantarillado'!$I$12:$N$28,5),P37) -> 0 | U37: =IF(O37>0,VLOOKUP(T37,'$ alcantarillado'!$I$11:$L$28,4),"0") -> 0 | W37: 0 | Y37: =IF(T37>0,(VLOOKUP($W37,Relaciones!$A$3:$D$107,2)),"") ->  | AE37: 0 | AF37: 0 | AG37: 0 | AH37: 0 | AI37: 0 | AJ37: =IF(AI37>0,I37*VLOOKUP(T37,'$ alcantarillado'!$I$12:$K$28,3),0) -> 0 | AK37: 0 | AL37: 0 | AM37: 0 | AN37: 0
E38: 1 | F38: =+$D$23-$B$5 -> 47.7 | G38: 4 | H38: =+H33-$B$4 -> 47.3 | I38: =+I33 -> 10 | J38: =+(F38-H38)/I38 -> 0.04 | K38: =+K33 -> 1921 | L38: =0.033*K38 -> 63.393 | M38: =+L38/1000 -> 0.063393 | N38: 0.1789515784 | O38: 7.04533773 | P38: 8 | Q38: =IF(O38>0,VLOOKUP(P38,'$ alcantarillado'!$I$11:$L$28,4),"0") -> 0.182 | R38: 0.06631374945 | S38: 0.9559555978 | T38: =+IF(S38>$B$13,VLOOKUP(P38,'$ alcantarillado'!$I$12:$N$28,5),P38) -> 8 | U38: =IF(O38>0,VLOOKUP(T38,'$ alcantarillado'!$I$11:$L$28,4),"0") -> 0.182 | V38: 0.06631374945 | W38: 0.9559555978 | X38: =IF(T38>0,4*V38/(PI()*(U38)^2),"") -> 2.549006405 | Y38: =IF(T38>0,(VLOOKUP($W38,Relaciones!$A$3:$D$107,2)),"") -> 1.033 | Z38: =IF(T38>0,Y38*X38,"") -> 2.633123617 | AA38: 1.82 | AB38: =IF(T38>0,IF(W38<=$B$13,"OK","No Cumple"),"") -> OK | AC38: =IF(T38>0,IF(Z38>=$B$12,"OK","No Cumple"),"") -> OK | AD38: =IF(T38>0,IF(AA38>=$B$14,"OK","No Cumple"),"") -> OK | AE38: =+IF(AB38="OK",1,0) -> 1 | AF38: =+IF(AC38="OK",1,0) -> 1 | AG38: =+IF(AD38="OK",1,0) -> 1 | AH38: =SUM(AE38:AG38) -> 3 | AI38: =IF(AH38=3,2*$B$7+U38,0) -> 0.682 | AJ38: =IF(AI38>0,I38*VLOOKUP(T38,'$ alcantarillado'!$I$12:$K$28,3),0) -> 331823.3333 | AK38: =IF(N38>0,((($D$23-F38)+(U38))+(($D$48-H38)+(U38))/2)*AI38*I38*$C$9,0) -> 242205.48 | AL38: =IF(AI38>0,(($D$23-F38)+U38)*$C$10,0) -> 825013.542 | AM38: =IF(AJ38>0,AJ38+AK38+AL38,0) -> 1399042.355 | AN38: 0 | AO38: 1399042.355 | AP38: =+MIN(AO38:AO42) -> 1399042.355
E39: 2 | F39: =+F38-$B$4 -> 47.6 | G39: 4 | H39: =+H38 -> 47.3 | I39: =+I38 -> 10 | J39: 0.03 | K39: =+K38 -> 1921 | L39: 63.393 | M39: 0.063393 | N39: 0.1888693764 | O39: 7.43580222 | P39: 8 | Q39: =IF(O39>0,VLOOKUP(P39,'$ alcantarillado'!$I$11:$L$28,4),"0") -> 0.182 | R39: 0.05742939165 | S39: 1.103842443 | T39: =+IF(S39>$B$13,VLOOKUP(P39,'$ alcantarillado'!$I$12:$N$28,5),P39) -> 10 | U39: =IF(O39>0,VLOOKUP(T39,'$ alcantarillado'!$I$11:$L$28,4),"0") -> 0.227 | V39: 0.1035172677 | W39: 0.6123905839 | X39: =IF(T39>0,4*V39/(PI()*(U39)^2),"") -> 2.557827219 | Y39: =IF(T39>0,(VLOOKUP($W39,Relaciones!$A$3:$D$107,2)),"") -> 0.903 | Z39: =IF(T39>0,Y39*X39,"") -> 2.309717979 | AA39: 1.7025 | AB39: =IF(T39>0,IF(W39<=$B$13,"OK","No Cumple"),"") -> OK | AC39: =IF(T39>0,IF(Z39>=$B$12,"OK","No Cumple"),"") -> OK | AD39: =IF(T39>0,IF(AA39>=$B$14,"OK","No Cumple"),"") -> OK | AE39: =+IF(AB39="OK",1,0) -> 1 | AF39: =+IF(AC39="OK",1,0) -> 1 | AG39: =+IF(AD39="OK",1,0) -> 1 | AH39: =SUM(AE39:AG39) -> 3 | AI39: =IF(AH39=3,2*$B$7+U39,0) -> 0.727 | AJ39: =IF(AI39>0,I39*VLOOKUP(T39,'$ alcantarillado'!$I$12:$K$28,3),0) -> 476816.6667 | AK39: 280105.83 | AL39: 926220.787 | AM39: 1683143.284 | AN39: 0 | AO39: 1683143.284
E40: 3 | F40: =+F39-$B$4 -> 47.5 | G40: 4 | H40: =+H39 -> 47.3 | I40: 10 | J40: 0.02 | K40: =+K39 -> 1921 | L40: 63.393 | M40: 0.063393 | N40: 0.2037880236 | O40: 8.023150535 | P40: 10 | Q40: =IF(O40>0,VLOOKUP(P40,'$ alcantarillado'!$I$11:$L$28,4),"0") -> 0.227 | R40: 0.08452149513 | S40: 0.7500222269 | T40: =IF(S40>$B$13,VLOOKUP(P40,'$ alcantarillado'!$I$12:$N$28,5),P40) -> 10 | U40: =IF(O40>0,VLOOKUP(T40,'$ alcantarillado'!$I$11:$L$28,4),"0") -> 0.227 | V40: 0.08452149513 | W40: 0.7500222269 | X40: 2.088457179 | Y40: =IF(T40>0,(VLOOKUP($W40,Relaciones!$A$3:$D$107,2)),"") -> 0.965 | Z40: 2.015361178 | AA40: 1.135 | AB40: OK | AC40: OK | AD40: =IF(T40>0,IF(AA40>=$B$14,"OK","No Cumple"),"") -> OK | AE40: 1 | AF40: 1 | AG40: 1 | AH40: 3 | AI40: 0.727 | AJ40: =IF(AI40>0,I40*VLOOKUP(T40,'$ alcantarillado'!$I$12:$K$28,3),0) -> 476816.6667 | AK40: 293191.83 | AL40: 996018.887 | AM40: 1766027.384 | AN40: 0 | AO40: 1766027.384 | AQ40: 1 | AR40: 4
E41: 4 | F41: 47.4 | G41: 4 | H41: 47.3 | I41: 10 | J41: =+(F41-H41)/I41 -> 0.01 | K41: 1921 | L41: 63.393 | M41: 0.063393 | N41: 0.2320714852 | O41: 9.136672645 | P41: 10 | Q41: =IF(O41>0,VLOOKUP(P41,'$ alcantarillado'!$I$11:$L$28,4),"0") -> 0.227 | R41: 0.05976572236 | S41: 1.060691605 | T41: =IF(S41>$B$13,VLOOKUP(P41,'$ alcantarillado'!$I$12:$N$28,5),P41) -> 12 | U41: =IF(O41>0,VLOOKUP(T41,'$ alcantarillado'!$I$11:$L$28,4),"0") -> 0.284 | V41: 0.1086172477 | W41: 0.5836365893 | X41: 1.714637163 | Y41: =IF(T41>0,(VLOOKUP($W41,Relaciones!$A$3:$D$107,2)),"") -> 0.89 | Z41: 1.526027075 | AA41: 0.71 | AB41: OK | AC41: OK | AD41: OK | AE41: 1 | AF41: 1 | AG41: 1 | AH41: 3 | AI41: 0.784 | AJ41: =IF(AI41>0,I41*VLOOKUP(T41,'$ alcantarillado'!$I$12:$K$28,3),0) -> 704866.6667 | AK41: 342357.12 | AL41: 1105601.904 | AM41: 2152825.691 | AN41: 0 | AO41: 2152825.691
E42: 5 | F42: 47.3 | G42: 4 | H42: =+H41 -> 47.3 | I42: =+I41 -> 10 | J42: 0 | K42: =+K41 -> 1921 | L42: 63.393 | M42: 0.063393 | N42: 0 | O42: 0 | P42: 0 | Q42: =IF(O42>0,VLOOKUP(P42,'$ alcantarillado'!$I$11:$L$28,4),"0") -> 0 | S42: 0 | T42: =IF(S42>$B$13,VLOOKUP(P42,'$ alcantarillado'!$I$12:$N$28,5),P42) -> 0 | U42: =IF(O42>0,VLOOKUP(T42,'$ alcantarillado'!$I$11:$L$28,4),"0") -> 0 | W42: 0 | Y42: =IF(T42>0,(VLOOKUP($W42,Relaciones!$A$3:$D$107,2)),"") ->  | AE42: 0 | AF42: 0 | AG42: 0 | AH42: 0 | AI42: 0 | AJ42: =IF(AI42>0,I42*VLOOKUP(T42,'$ alcantarillado'!$I$12:$K$28,3),0) -> 0 | AK42: 0 | AL42: 0 | AM42: 0 | AN42: 0
E43: 1 | F43: =+$D$23-$B$5 -> 47.7 | G43: 5 | H43: =+H38-$B$4 -> 47.2 | I43: =+I38 -> 10 | J43: =+(F43-H43)/I43 -> 0.05 | K43: =+K38 -> 1921 | L43: =0.033*K43 -> 63.393 | M43: =+L43/1000 -> 0.063393 | N43: 0.1716188177 | O43: 6.756646367 | P43: 8 | Q43: =IF(O43>0,VLOOKUP(P43,'$ alcantarillado'!$I$11:$L$28,4),"0") -> 0.182 | R43: 0.07414102581 | S43: 0.85503268 | T43: =+IF(S43>$B$13,VLOOKUP(P43,'$ alcantarillado'!$I$12:$N$28,5),P43) -> 8 | U43: =IF(O43>0,VLOOKUP(T43,'$ alcantarillado'!$I$11:$L$28,4),"0") -> 0.182 | V43: 0.07414102581 | W43: 0.85503268 | X43: =IF(T43>0,4*V43/(PI()*(U43)^2),"") -> 2.849875799 | Y43: =IF(T43>0,(VLOOKUP($W43,Relaciones!$A$3:$D$107,2)),"") -> 1.001 | Z43: =IF(T43>0,Y43*X43,"") -> 2.852725674 | AA43: 2.275 | AB43: =IF(T43>0,IF(W43<=$B$13,"OK","No Cumple"),"") -> OK | AC43: =IF(T43>0,IF(Z43>=$B$12,"OK","No Cumple"),"") -> OK | AD43: =IF(T43>0,IF(AA43>=$B$14,"OK","No Cumple"),"") -> OK | AE43: =+IF(AB43="OK",1,0) -> 1 | AF43: =+IF(AC43="OK",1,0) -> 1 | AG43: =+IF(AD43="OK",1,0) -> 1 | AH43: =SUM(AE43:AG43) -> 3 | AI43: =IF(AH43=3,2*$B$7+U43,0) -> 0.682 | AJ43: =IF(AI43>0,I43*VLOOKUP(T43,'$ alcantarillado'!$I$12:$K$28,3),0) -> 331823.3333 | AK43: =IF(N43>0,((($D$23-F43)+(U43))+(($D$48-H43)+(U43))/2)*AI43*I43*$C$9,0) -> 248343.48 | AL43: =IF(AI43>0,(($D$23-F43)+U43)*$C$10,0) -> 825013.542 | AM43: =IF(AJ43>0,AJ43+AK43+AL43,0) -> 1405180.355 | AN43: 0 | AO43: 1405180.355 | AP43: =+MIN(AO43:AO47) -> 1405180.355
E44: 2 | F44: =+F43-$B$4 -> 47.6 | G44: 5 | H44: =+H43 -> 47.2 | I44: =+I43 -> 10 | J44: 0.04 | K44: =+K43 -> 1921 | L44: 63.393 | M44: 0.063393 | N44: 0.1789515784 | O44: 7.04533773 | P44: 8 | Q44: =IF(O44>0,VLOOKUP(P44,'$ alcantarillado'!$I$11:$L$28,4),"0") -> 0.182 | R44: 0.06631374945 | S44: 0.9559555978 | T44: =+IF(S44>$B$13,VLOOKUP(P44,'$ alcantarillado'!$I$12:$N$28,5),P44) -> 8 | U44: =IF(O44>0,VLOOKUP(T44,'$ alcantarillado'!$I$11:$L$28,4),"0") -> 0.182 | V44: 0.06631374945 | W44: 0.9559555978 | X44: =IF(T44>0,4*V44/(PI()*(U44)^2),"") -> 2.549006405 | Y44: =IF(T44>0,(VLOOKUP($W44,Relaciones!$A$3:$D$107,2)),"") -> 1.033 | Z44: =IF(T44>0,Y44*X44,"") -> 2.633123617 | AA44: 1.82 | AB44: =IF(T44>0,IF(W44<=$B$13,"OK","No Cumple"),"") -> OK | AC44: =IF(T44>0,IF(Z44>=$B$12,"OK","No Cumple"),"") -> OK | AD44: =IF(T44>0,IF(AA44>=$B$14,"OK","No Cumple"),"") -> OK | AE44: =+IF(AB44="OK",1,0) -> 1 | AF44: =+IF(AC44="OK",1,0) -> 1 | AG44: =+IF(AD44="OK",1,0) -> 1 | AH44: =SUM(AE44:AG44) -> 3 | AI44: =IF(AH44=3,2*$B$7+U44,0) -> 0.682 | AJ44: =IF(AI44>0,I44*VLOOKUP(T44,'$ alcantarillado'!$I$12:$K$28,3),0) -> 331823.3333 | AK44: 260619.48 | AL44: 894811.642 | AM44: 1487254.455 | AN44: 0 | AO44: 1487254.455
E45: 3 | F45: =+F44-$B$4 -> 47.5 | G45: 5 | H45: =+H44 -> 47.2 | I45: 10 | J45: 0.03 | K45: =+K44 -> 1921 | L45: 63.393 | M45: 0.063393 | N45: 0.1888693764 | O45: 7.43580222 | P45: 8 | Q45: =IF(O45>0,VLOOKUP(P45,'$ alcantarillado'!$I$11:$L$28,4),"0") -> 0.182 | R45: 0.05742939165 | S45: 1.103842443 | T45: =IF(S45>$B$13,VLOOKUP(P45,'$ alcantarillado'!$I$12:$N$28,5),P45) -> 10 | U45: =IF(O45>0,VLOOKUP(T45,'$ alcantarillado'!$I$11:$L$28,4),"0") -> 0.227 | V45: 0.1035172677 | W45: 0.6123905839 | X45: 2.557827219 | Y45: =IF(T45>0,(VLOOKUP($W45,Relaciones!$A$3:$D$107,2)),"") -> 0.903 | Z45: 2.309717979 | AA45: 1.7025 | AB45: OK | AC45: OK | AD45: =IF(T45>0,IF(AA45>=$B$14,"OK","No Cumple"),"") -> OK | AE45: 1 | AF45: 1 | AG45: 1 | AH45: 3 | AI45: 0.727 | AJ45: =IF(AI45>0,I45*VLOOKUP(T45,'$ alcantarillado'!$I$12:$K$28,3),0) -> 476816.6667 | AK45: 299734.83 | AL45: 996018.887 | AM45: 1772570.384 | AN45: 0 | AO45: 1772570.384 | AQ45: 1 | AR45: 5
E46: 4 | F46: 47.4 | G46: 5 | H46: 47.2 | I46: 10 | J46: =+(F46-H46)/I46 -> 0.02 | K46: 1921 | L46: 63.393 | M46: 0.063393 | N46: 0.2037880236 | O46: 8.023150535 | P46: 10 | Q46: =IF(O46>0,VLOOKUP(P46,'$ alcantarillado'!$I$11:$L$28,4),"0") -> 0.227 | R46: 0.08452149513 | S46: 0.7500222269 | T46: =IF(S46>$B$13,VLOOKUP(P46,'$ alcantarillado'!$I$12:$N$28,5),P46) -> 10 | U46: =IF(O46>0,VLOOKUP(T46,'$ alcantarillado'!$I$11:$L$28,4),"0") -> 0.227 | V46: 0.08452149513 | W46: 0.7500222269 | X46: 2.088457179 | Y46: =IF(T46>0,(VLOOKUP($W46,Relaciones!$A$3:$D$107,2)),"") -> 0.965 | Z46: 2.015361178 | AA46: 1.135 | AB46: OK | AC46: OK | AD46: OK | AE46: 1 | AF46: 1 | AG46: 1 | AH46: 3 | AI46: 0.727 | AJ46: =IF(AI46>0,I46*VLOOKUP(T46,'$ alcantarillado'!$I$12:$K$28,3),0) -> 476816.6667 | AK46: 312820.83 | AL46: 1065816.987 | AM46: 1855454.484 | AN46: 0 | AO46: 1855454.484
E47: 5 | F47: 47.3 | G47: 5 | H47: =+H46 -> 47.2 | I47: =+I46 -> 10 | J47: 0.01 | K47: =+K46 -> 1921 | L47: 63.393 | M47: 0.063393 | N47: 0.2320714852 | O47: 9.136672645 | P47: 10 | Q47: =IF(O47>0,VLOOKUP(P47,'$ alcantarillado'!$I$11:$L$28,4),"0") -> 0.227 | R47: 0.05976572236 | S47: 1.060691605 | T47: =IF(S47>$B$13,VLOOKUP(P47,'$ alcantarillado'!$I$12:$N$28,5),P47) -> 12 | U47: =IF(O47>0,VLOOKUP(T47,'$ alcantarillado'!$I$11:$L$28,4),"0") -> 0.284 | V47: 0.1086172477 | W47: 0.5836365893 | X47: 1.714637163 | Y47: =IF(T47>0,(VLOOKUP($W47,Relaciones!$A$3:$D$107,2)),"") -> 0.89 | Z47: 1.526027075 | AA47: 0.71 | AB47: OK | AC47: OK | AD47: OK | AE47: 1 | AF47: 1 | AG47: 1 | AH47: 3 | AI47: 0.784 | AJ47: =IF(AI47>0,I47*VLOOKUP(T47,'$ alcantarillado'!$I$12:$K$28,3),0) -> 704866.6667 | AK47: 363525.12 | AL47: 1175400.004 | AM47: 2243791.791 | AN47: 0 | AO47: 2243791.791
A48: 2 | B48: 2 | C48: 3 | D48: 48.7 | E48: 1 | F48: =+H23 -> 47.6 | G48: 1 | H48: =+$D$73-$B$5-$B$4 -> 47.6 | I48: 28 | J48: =+(F48-H48)/I48 -> 0 | K48: =+K23+2150 -> 4071 | L48: =0.033*K48 -> 134.343 | M48: =+L48/1000 -> 0.134343 | N48: 0 | O48: 0 | P48: 0 | Q48: =IF(O48>0,VLOOKUP(P48,'$ alcantarillado'!$I$11:$L$28,4),"0") -> 0 | S48: 0 | T48: =+IF(S48>$B$13,VLOOKUP(P48,'$ alcantarillado'!$I$12:$N$28,5),P48) -> 0 | U48: =IF(O48>0,VLOOKUP(T48,'$ alcantarillado'!$I$11:$L$28,4),"0") -> 0 | W48: 0 | X48: =IF(T48>0,4*V48/(PI()*(U48)^2),"") ->  | Y48: =IF(T48>0,(VLOOKUP($W48,Relaciones!$A$3:$D$107,2)),"") ->  | Z48: =IF(T48>0,Y48*X48,"") ->  | AB48: =IF(T48>0,IF(W48<=$B$13,"OK","No Cumple"),"") ->  | AC48: =IF(T48>0,IF(Z48>=$B$12,"OK","No Cumple"),"") ->  | AD48: =IF(T48>0,IF(AA48>=$B$14,"OK","No Cumple"),"") ->  | AE48: =+IF(AB48="OK",1,0) -> 0 | AF48: =+IF(AC48="OK",1,0) -> 0 | AG48: =+IF(AD48="OK",1,0) -> 0 | AH48: =SUM(AE48:AG48) -> 0 | AI48: =IF(AH48=3,2*$B$7+U48,0) -> 0 | AJ48: =IF(AI48>0,I48*VLOOKUP(T48,'$ alcantarillado'!$I$12:$K$28,3),0) -> 0 | AK48: =IF(N48>0,((($D$48-F48)+(U48))+(($D$73-H48)+(U48))/2)*AI48*I48*$C$9,0) -> 0 | AL48: =IF(AI48>0,(($D$48-F48)+U48)*$C$10,0) -> 0 | AM48: =IF(AJ48>0,AJ48+AK48+AL48,0) -> 0 | AN48: =+AP23 -> 1879927.391 | AO48: =IF((AM48)>0,IF(AN48>0,AM48+AN48,""),"") ->  | AP48: =+MIN(AO48:AO52) -> 0
E49: 2 | F49: =+H28 -> 47.5 | G49: 1 | H49: =+H48 -> 47.6 | I49: =+I48 -> 28 | J49: -0.003571428571 | K49: =+K48 -> 4071 | L49: 134.343 | M49: =+L49/1000 -> 0.134343 | N49: 0 | O49: 0 | P49: 0 | Q49: =IF(O49>0,VLOOKUP(P49,'$ alcantarillado'!$I$11:$L$28,4),"0") -> 0 | S49: 0 | T49: =+IF(S49>$B$13,VLOOKUP(P49,'$ alcantarillado'!$I$12:$N$28,5),P49) -> 0 | U49: =IF(O49>0,VLOOKUP(T49,'$ alcantarillado'!$I$11:$L$28,4),"0") -> 0 | W49: 0 | X49: =IF(T49>0,4*V49/(PI()*(U49)^2),"") ->  | Y49: =IF(T49>0,(VLOOKUP($W49,Relaciones!$A$3:$D$107,2)),"") ->  | Z49: =IF(T49>0,Y49*X49,"") ->  | AB49: =IF(T49>0,IF(W49<=$B$13,"OK","No Cumple"),"") ->  | AC49: =IF(T49>0,IF(Z49>=$B$12,"OK","No Cumple"),"") ->  | AD49: =IF(T49>0,IF(AA49>=$B$14,"OK","No Cumple"),"") ->  | AE49: =+IF(AB49="OK",1,0) -> 0 | AF49: =+IF(AC49="OK",1,0) -> 0 | AG49: =+IF(AD49="OK",1,0) -> 0 | AH49: =SUM(AE49:AG49) -> 0 | AI49: =IF(AH49=3,2*$B$7+U49,0) -> 0 | AJ49: =IF(AI49>0,I49*VLOOKUP(T49,'$ alcantarillado'!$I$12:$K$28,3),0) -> 0 | AK49: =IF(N49>0,((($D$48-F49)+(U49))+(($D$73-H49)+(U49))/2)*AI49*I49*$C$9,0) -> 0 | AL49: =IF(AI49>0,(($D$48-F49)+U49)*$C$10,0) -> 0 | AM49: 0 | AN49: =+AP28 -> 1587173.184 | AO49: =IF((AM49)>0,IF(AN49>0,AM49+AN49,""),"") -> 
E50: 3 | F50: =+H33 -> 47.4 | G50: 1 | H50: =+H49 -> 47.6 | I50: 28 | J50: -0.007142857143 | K50: =+K49 -> 4071 | L50: 134.343 | M50: 0.134343 | N50: 0 | O50: 0 | P50: 0 | Q50: =IF(O50>0,VLOOKUP(P50,'$ alcantarillado'!$I$11:$L$28,4),"0") -> 0 | S50: 0 | T50: =IF(S50>$B$13,VLOOKUP(P50,'$ alcantarillado'!$I$12:$N$28,5),P50) -> 0 | U50: =IF(O50>0,VLOOKUP(T50,'$ alcantarillado'!$I$11:$L$28,4),"0") -> 0 | W50: 0 | Y50: =IF(T50>0,(VLOOKUP($W50,Relaciones!$A$3:$D$107,2)),"") ->  | AD50: =IF(T50>0,IF(AA50>=$B$14,"OK","No Cumple"),"") ->  | AE50: 0 | AF50: 0 | AG50: 0 | AH50: 0 | AI50: 0 | AJ50: =IF(AI50>0,I50*VLOOKUP(T50,'$ alcantarillado'!$I$12:$K$28,3),0) -> 0 | AK50: 0 | AL50: 0 | AM50: 0 | AN50: =+AP33 -> 1593716.184
E51: 4 | F51: =+H38 -> 47.3 | G51: 1 | H51: 47.6 | I51: 28 | J51: =+(F51-H51)/I51 -> -0.01071428571 | K51: =+K50 -> 4071 | L51: 134.343 | M51: 0.134343 | N51: 0 | O51: 0 | P51: 0 | Q51: =IF(O51>0,VLOOKUP(P51,'$ alcantarillado'!$I$11:$L$28,4),"0") -> 0 | S51: 0 | T51: =IF(S51>$B$13,VLOOKUP(P51,'$ alcantarillado'!$I$12:$N$28,5),P51) -> 0 | U51: =IF(O51>0,VLOOKUP(T51,'$ alcantarillado'!$I$11:$L$28,4),"0") -> 0 | W51: 0 | Y51: =IF(T51>0,(VLOOKUP($W51,Relaciones!$A$3:$D$107,2)),"") ->  | AE51: 0 | AF51: 0 | AG51: 0 | AH51: 0 | AI51: 0 | AJ51: =IF(AI51>0,I51*VLOOKUP(T51,'$ alcantarillado'!$I$12:$K$28,3),0) -> 0 | AK51: 0 | AL51: 0 | AM51: 0 | AN51: =+AP38 -> 1399042.355
E52: 5 | F52: =+H43 -> 47.2 | G52: 1 | H52: 47.6 | I52: =+I51 -> 28 | J52: -0.01428571429 | K52: =+K51 -> 4071 | L52: 134.343 | M52: 0.134343 | N52: 0 | O52: 0 | P52: 0 | Q52: =IF(O52>0,VLOOKUP(P52,'$ alcantarillado'!$I$11:$L$28,4),"0") -> 0 | S52: 0 | T52: =IF(S52>$B$13,VLOOKUP(P52,'$ alcantarillado'!$I$12:$N$28,5),P52) -> 0 | U52: =IF(O52>0,VLOOKUP(T52,'$ alcantarillado'!$I$11:$L$28,4),"0") -> 0 | W52: 0 | Y52: =IF(T52>0,(VLOOKUP($W52,Relaciones!$A$3:$D$107,2)),"") ->  | AE52: 0 | AF52: 0 | AG52: 0 | AH52: 0 | AI52: 0 | AJ52: =IF(AI52>0,I52*VLOOKUP(T52,'$ alcantarillado'!$I$12:$K$28,3),0) -> 0 | AK52: 0 | AL52: 0 | AM52: 0 | AN52: =+AP43 -> 1405180.355
E53: 1 | F53: =+H23 -> 47.6 | G53: 2 | H53: =+H48-$B$4 -> 47.5 | I53: =+I52 -> 28 | J53: =+(F53-H53)/I53 -> 0.003571428571 | K53: =+K52 -> 4071 | L53: =0.033*K53 -> 134.343 | M53: =+L53/1000 -> 0.134343 | N53: =+IF(J53>0,((M53*$B$2*(4^(5/3))/((J53^0.5)*PI()*$B$6))^(3/8)),0) -> 0.3730603248 | O53: 14.68741436 | P53: 16 | Q53: =IF(O53>0,VLOOKUP(P53,'$ alcantarillado'!$I$11:$L$28,4),"0") -> 0.362 | R53: 0.123982501 | S53: 1.083564204 | T53: =+IF(S53>$B$13,VLOOKUP(P53,'$ alcantarillado'!$I$12:$N$28,5),P53) -> 18 | U53: =IF(O53>0,VLOOKUP(T53,'$ alcantarillado'!$I$11:$L$28,4),"0") -> 0.407 | V53: 0.1694556145 | W53: 0.7927916722 | X53: =IF(T53>0,4*V53/(PI()*(U53)^2),"") -> 1.302498593 | Y53: =IF(T53>0,(VLOOKUP($W53,Relaciones!$A$3:$D$107,2)),"") -> 0.98 | Z53: =IF(T53>0,Y53*X53,"") -> 1.276448621 | AA53: 0.3633928571 | AB53: =IF(T53>0,IF(W53<=$B$13,"OK","No Cumple"),"") -> OK | AC53: =IF(T53>0,IF(Z53>=$B$12,"OK","No Cumple"),"") -> OK | AD53: =IF(T53>0,IF(AA53>=$B$14,"OK","No Cumple"),"") -> OK | AE53: =+IF(AB53="OK",1,0) -> 1 | AF53: =+IF(AC53="OK",1,0) -> 1 | AG53: =+IF(AD53="OK",1,0) -> 1 | AH53: =SUM(AE53:AG53) -> 3 | AI53: =IF(AH53=3,2*$B$7+U53,0) -> 0.907 | AJ53: =IF(AI53>0,I53*VLOOKUP(T53,'$ alcantarillado'!$I$12:$K$28,3),0) -> 4284947.333 | AK53: 1056194.244 | AL53: =IF(AI53>0,(($D$48-F53)+U53)*$C$10,0) -> 1051857.367 | AM53: =IF(AJ53>0,AJ53+AK53+AL53,0) -> 6392998.944 | AN53: =IF(AP23>0,+AP23,0) -> 1879927.391 | AO53: =IF((AM53)>0,IF(AN53>0,AM53+AN53,""),"") -> 8272926.335 | AP53: =+MIN(AO53:AO57) -> 8272926.335
E54: 2 | F54: =+H28 -> 47.5 | G54: 2 | H54: =+H53 -> 47.5 | I54: =+I53 -> 28 | J54: 0 | K54: =+K53 -> 4071 | L54: 134.343 | M54: =+L54/1000 -> 0.134343 | N54: 0 | O54: 0 | P54: 0 | Q54: =IF(O54>0,VLOOKUP(P54,'$ alcantarillado'!$I$11:$L$28,4),"0") -> 0 | S54: 0 | T54: =+IF(S54>$B$13,VLOOKUP(P54,'$ alcantarillado'!$I$12:$N$28,5),P54) -> 0 | U54: =IF(O54>0,VLOOKUP(T54,'$ alcantarillado'!$I$11:$L$28,4),"0") -> 0 | W54: 0 | X54: =IF(T54>0,4*V54/(PI()*(U54)^2),"") ->  | Y54: =IF(T54>0,(VLOOKUP($W54,Relaciones!$A$3:$D$107,2)),"") ->  | Z54: =IF(T54>0,Y54*X54,"") ->  | AB54: =IF(T54>0,IF(W54<=$B$13,"OK","No Cumple"),"") ->  | AC54: =IF(T54>0,IF(Z54>=$B$12,"OK","No Cumple"),"") ->  | AD54: =IF(T54>0,IF(AA54>=$B$14,"OK","No Cumple"),"") ->  | AE54: =+IF(AB54="OK",1,0) -> 0 | AF54: =+IF(AC54="OK",1,0) -> 0 | AG54: =+IF(AD54="OK",1,0) -> 0 | AH54: =SUM(AE54:AG54) -> 0 | AI54: =IF(AH54=3,2*$B$7+U54,0) -> 0 | AJ54: =IF(AI54>0,I54*VLOOKUP(T54,'$ alcantarillado'!$I$12:$K$28,3),0) -> 0 | AK54: 0 | AL54: 0 | AM54: 0 | AN54: =+AP28 -> 1587173.184 | AQ54: 1 | AR54: 2
E55: 3 | F55: =+H33 -> 47.4 | G55: 2 | H55: =+H54 -> 47.5 | I55: 28 | J55: -0.003571428571 | K55: =+K54 -> 4071 | L55: 134.343 | M55: 0.134343 | N55: 0 | O55: =+N55*(100/2.54) -> 0 | P55: 0 | Q55: =IF(O55>0,VLOOKUP(P55,'$ alcantarillado'!$I$11:$L$28,4),"0") -> 0 | R55: =IF(P55>0,PI()*((Q55)^(8/3))*((J55)^0.5)/($B$2*4^(5/3)),"") ->  | S55: =IF(P55>0,+M55/R55,0) -> 0 | T55: =IF(S55>$B$13,VLOOKUP(P55,'$ alcantarillado'!$I$12:$N$28,5),P55) -> 0 | U55: =IF(O55>0,VLOOKUP(T55,'$ alcantarillado'!$I$11:$L$28,4),"0") -> 0 | W55: 0 | Y55: =IF(T55>0,(VLOOKUP($W55,Relaciones!$A$3:$D$107,2)),"") ->  | AD55: =IF(T55>0,IF(AA55>=$B$14,"OK","No Cumple"),"") ->  | AE55: 0 | AF55: 0 | AG55: 0 | AH55: 0 | AI55: 0 | AJ55: =IF(AI55>0,I55*VLOOKUP(T55,'$ alcantarillado'!$I$12:$K$28,3),0) -> 0 | AK55: 0 | AL55: 0 | AM55: 0 | AN55: =+AP33 -> 1593716.184
E56: 4 | F56: =+H38 -> 47.3 | G56: 2 | H56: =+H55 -> 47.5 | I56: 28 | J56: =+(F56-H56)/I56 -> -0.007142857143 | K56: 4071 | L56: 134.343 | M56: 0.134343 | N56: 0 | O56: 0 | P56: 0 | Q56: =IF(O56>0,VLOOKUP(P56,'$ alcantarillado'!$I$11:$L$28,4),"0") -> 0 | S56: 0 | T56: =IF(S56>$B$13,VLOOKUP(P56,'$ alcantarillado'!$I$12:$N$28,5),P56) -> 0 | U56: =IF(O56>0,VLOOKUP(T56,'$ alcantarillado'!$I$11:$L$28,4),"0") -> 0 | W56: 0 | Y56: =IF(T56>0,(VLOOKUP($W56,Relaciones!$A$3:$D$107,2)),"") ->  | AE56: 0 | AF56: 0 | AG56: 0 | AH56: 0 | AI56: 0 | AJ56: =IF(AI56>0,I56*VLOOKUP(T56,'$ alcantarillado'!$I$12:$K$28,3),0) -> 0 | AK56: 0 | AL56: 0 | AM56: 0 | AN56: =+AP38 -> 1399042.355
E57: 5 | F57: =+H43 -> 47.2 | G57: 2 | H57: =+H56 -> 47.5 | I57: =+I56 -> 28 | J57: -0.01071428571 | K57: =+K56 -> 4071 | L57: 134.343 | M57: 0.134343 | N57: 0 | O57: 0 | P57: 0 | Q57: =IF(O57>0,VLOOKUP(P57,'$ alcantarillado'!$I$11:$L$28,4),"0") -> 0 | S57: 0 | T57: =IF(S57>$B$13,VLOOKUP(P57,'$ alcantarillado'!$I$12:$N$28,5),P57) -> 0 | U57: =IF(O57>0,VLOOKUP(T57,'$ alcantarillado'!$I$11:$L$28,4),"0") -> 0 | W57: 0 | Y57: =IF(T57>0,(VLOOKUP($W57,Relaciones!$A$3:$D$107,2)),"") ->  | AE57: 0 | AF57: 0 | AG57: 0 | AH57: 0 | AI57: 0 | AJ57: =IF(AI57>0,I57*VLOOKUP(T57,'$ alcantarillado'!$I$12:$K$28,3),0) -> 0 | AK57: 0 | AL57: 0 | AM57: 0 | AN57: =+AP43 -> 1405180.355
E58: 1 | F58: =+H23 -> 47.6 | G58: 3 | H58: =+H53-$B$4 -> 47.4 | I58: =+I57 -> 28 | J58: =+(F58-H58)/I58 -> 0.007142857143 | K58: =+K57 -> 4071 | L58: =0.033*K58 -> 134.343 | M58: =+L58/1000 -> 0.134343 | N58: 0.3275940007 | O58: 12.8974016 | P58: 14 | Q58: =IF(O58>0,VLOOKUP(P58,'$ alcantarillado'!$I$11:$L$28,4),"0") -> 0.327 | R58: 0.1336943979 | S58: 1.004851378 | T58: =+IF(S58>$B$13,VLOOKUP(P58,'$ alcantarillado'!$I$12:$N$28,5),P58) -> 16 | U58: =IF(O58>0,VLOOKUP(T58,'$ alcantarillado'!$I$11:$L$28,4),"0") -> 0.362 | V58: 0.1753377345 | W58: 0.7661955963 | X58: =IF(T58>0,4*V58/(PI()*(U58)^2),"") -> 1.703602891 | Y58: =IF(T58>0,(VLOOKUP($W58,Relaciones!$A$3:$D$107,2)),"") -> 0.969 | Z58: =IF(T58>0,Y58*X58,"") -> 1.650791201 | AA58: 0.6464285714 | AB58: =IF(T58>0,IF(W58<=$B$13,"OK","No Cumple"),"") -> OK | AC58: =IF(T58>0,IF(Z58>=$B$12,"OK","No Cumple"),"") -> OK | AD58: =IF(T58>0,IF(AA58>=$B$14,"OK","No Cumple"),"") -> OK | AE58: =+IF(AB58="OK",1,0) -> 1 | AF58: =+IF(AC58="OK",1,0) -> 1 | AG58: =+IF(AD58="OK",1,0) -> 1 | AH58: =SUM(AE58:AG58) -> 3 | AI58: =IF(AH58=3,2*$B$7+U58,0) -> 0.862 | AJ58: =IF(AI58>0,I58*VLOOKUP(T58,'$ alcantarillado'!$I$12:$K$28,3),0) -> 3229240 | AK58: 996189.264 | AL58: =IF(AI58>0,(($D$48-F58)+U58)*$C$10,0) -> 1020448.222 | AM58: =IF(AJ58>0,AJ58+AK58+AL58,0) -> 5245877.486 | AN58: =IF(AP23>0,+AP23,0) -> 1879927.391 | AO58: =IF((AM58)>0,IF(AN58>0,AM58+AN58,""),"") -> 7125804.877 | AP58: =+MIN(AO58:AO62) -> 7125804.877
E59: 2 | F59: =+H28 -> 47.5 | G59: 3 | H59: =+H58 -> 47.4 | I59: =+I58 -> 28 | J59: 0.003571428571 | K59: =+K58 -> 4071 | L59: 134.343 | M59: =+L59/1000 -> 0.134343 | N59: 0.3730603248 | O59: 14.68741436 | P59: 16 | Q59: =IF(O59>0,VLOOKUP(P59,'$ alcantarillado'!$I$11:$L$28,4),"0") -> 0.362 | R59: 0.123982501 | S59: 1.083564204 | T59: =+IF(S59>$B$13,VLOOKUP(P59,'$ alcantarillado'!$I$12:$N$28,5),P59) -> 18 | U59: =IF(O59>0,VLOOKUP(T59,'$ alcantarillado'!$I$11:$L$28,4),"0") -> 0.407 | V59: 0.1694556145 | W59: 0.7927916722 | X59: =IF(T59>0,4*V59/(PI()*(U59)^2),"") -> 1.302498593 | Y59: =IF(T59>0,(VLOOKUP($W59,Relaciones!$A$3:$D$107,2)),"") -> 0.98 | Z59: =IF(T59>0,Y59*X59,"") -> 1.276448621 | AA59: 0.3633928571 | AB59: =IF(T59>0,IF(W59<=$B$13,"OK","No Cumple"),"") -> OK | AC59: =IF(T59>0,IF(Z59>=$B$12,"OK","No Cumple"),"") -> OK | AD59: =IF(T59>0,IF(AA59>=$B$14,"OK","No Cumple"),"") -> OK | AE59: =+IF(AB59="OK",1,0) -> 1 | AF59: =+IF(AC59="OK",1,0) -> 1 | AG59: =+IF(AD59="OK",1,0) -> 1 | AH59: =SUM(AE59:AG59) -> 3 | AI59: =IF(AH59=3,2*$B$7+U59,0) -> 0.907 | AJ59: =IF(AI59>0,I59*VLOOKUP(T59,'$ alcantarillado'!$I$12:$K$28,3),0) -> 4284947.333 | AK59: 1124763.444 | AL59: 1121655.467 | AM59: 6531366.244 | AN59: =+AP28 -> 1587173.184 | AO59: 8118539.428
E60: 3 | F60: =+H33 -> 47.4 | G60: 3 | H60: =+H59 -> 47.4 | I60: 28 | J60: 0 | K60: =+K59 -> 4071 | L60: 134.343 | M60: 0.134343 | N60: 0 | O60: 0 | P60: 0 | Q60: =IF(O60>0,VLOOKUP(P60,'$ alcantarillado'!$I$11:$L$28,4),"0") -> 0 | S60: 0 | T60: =IF(S60>$B$13,VLOOKUP(P60,'$ alcantarillado'!$I$12:$N$28,5),P60) -> 0 | U60: =IF(O60>0,VLOOKUP(T60,'$ alcantarillado'!$I$11:$L$28,4),"0") -> 0 | W60: 0 | Y60: =IF(T60>0,(VLOOKUP($W60,Relaciones!$A$3:$D$107,2)),"") ->  | AD60: =IF(T60>0,IF(AA60>=$B$14,"OK","No Cumple"),"") ->  | AE60: 0 | AF60: 0 | AG60: 0 | AH60: 0 | AI60: 0 | AJ60: =IF(AI60>0,I60*VLOOKUP(T60,'$ alcantarillado'!$I$12:$K$28,3),0) -> 0 | AK60: 0 | AL60: 0 | AM60: 0 | AN60: =+AP33 -> 1593716.184
E61: 4 | F61: =+H38 -> 47.3 | G61: 3 | H61: =+H60 -> 47.4 | I61: 28 | J61: =+(F61-H61)/I61 -> -0.003571428571 | K61: 4071 | L61: 134.343 | M61: 0.134343 | N61: 0 | O61: 0 | P61: 0 | Q61: =IF(O61>0,VLOOKUP(P61,'$ alcantarillado'!$I$11:$L$28,4),"0") -> 0 | S61: 0 | T61: =IF(S61>$B$13,VLOOKUP(P61,'$ alcantarillado'!$I$12:$N$28,5),P61) -> 0 | U61: =IF(O61>0,VLOOKUP(T61,'$ alcantarillado'!$I$11:$L$28,4),"0") -> 0 | W61: 0 | Y61: =IF(T61>0,(VLOOKUP($W61,Relaciones!$A$3:$D$107,2)),"") ->  | AE61: 0 | AF61: 0 | AG61: 0 | AH61: 0 | AI61: 0 | AJ61: =IF(AI61>0,I61*VLOOKUP(T61,'$ alcantarillado'!$I$12:$K$28,3),0) -> 0 | AK61: 0 | AL61: 0 | AM61: 0 | AN61: =+AP38 -> 1399042.355 | AQ61: 1 | AR61: 3
E62: 5 | F62: =+H43 -> 47.2 | G62: 3 | H62: =+H61 -> 47.4 | I62: =+I61 -> 28 | J62: -0.007142857143 | K62: =+K61 -> 4071 | L62: 134.343 | M62: 0.134343 | N62: 0 | O62: 0 | P62: 0 | Q62: =IF(O62>0,VLOOKUP(P62,'$ alcantarillado'!$I$11:$L$28,4),"0") -> 0 | S62: 0 | T62: =IF(S62>$B$13,VLOOKUP(P62,'$ alcantarillado'!$I$12:$N$28,5),P62) -> 0 | U62: =IF(O62>0,VLOOKUP(T62,'$ alcantarillado'!$I$11:$L$28,4),"0") -> 0 | W62: 0 | Y62: =IF(T62>0,(VLOOKUP($W62,Relaciones!$A$3:$D$107,2)),"") ->  | AE62: 0 | AF62: 0 | AG62: 0 | AH62: 0 | AI62: 0 | AJ62: =IF(AI62>0,I62*VLOOKUP(T62,'$ alcantarillado'!$I$12:$K$28,3),0) -> 0 | AK62: 0 | AL62: 0 | AM62: 0 | AN62: =+AP43 -> 1405180.355
E63: 1 | F63: =+H23 -> 47.6 | G63: 4 | H63: =+H58-$B$4 -> 47.3 | I63: =+I58 -> 28 | J63: =+(F63-H63)/I63 -> 0.01071428571 | K63: =+K58 -> 4071 | L63: =0.033*K63 -> 134.343 | M63: =+L63/1000 -> 0.134343 | N63: 0.3036119274 | O63: 11.95322549 | P63: 12 | Q63: =IF(O63>0,VLOOKUP(P63,'$ alcantarillado'!$I$11:$L$28,4),"0") -> 0.284 | R63: 0.1124295327 | S63: 1.194908462 | T63: =+IF(S63>$B$13,VLOOKUP(P63,'$ alcantarillado'!$I$12:$N$28,5),P63) -> 14 | U63: =IF(O63>0,VLOOKUP(T63,'$ alcantarillado'!$I$11:$L$28,4),"0") -> 0.327 | V63: 0.1637415282 | W63: 0.8204577147 | X63: =IF(T63>0,4*V63/(PI()*(U63)^2),"") -> 1.949725414 | Y63: =IF(T63>0,(VLOOKUP($W63,Relaciones!$A$3:$D$107,2)),"") -> 0.99 | Z63: =IF(T63>0,Y63*X63,"") -> 1.93022816 | AA63: 0.8758928571 | AB63: =IF(T63>0,IF(W63<=$B$13,"OK","No Cumple"),"") -> OK | AC63: =IF(T63>0,IF(Z63>=$B$12,"OK","No Cumple"),"") -> OK | AD63: =IF(T63>0,IF(AA63>=$B$14,"OK","No Cumple"),"") -> OK | AE63: =+IF(AB63="OK",1,0) -> 1 | AF63: =+IF(AC63="OK",1,0) -> 1 | AG63: =+IF(AD63="OK",1,0) -> 1 | AH63: =SUM(AE63:AG63) -> 3 | AI63: =IF(AH63=3,2*$B$7+U63,0) -> 0.827 | AJ63: =IF(AI63>0,I63*VLOOKUP(T63,'$ alcantarillado'!$I$12:$K$28,3),0) -> 2280954.667 | AK63: 954698.724 | AL63: =IF(AI63>0,(($D$48-F63)+U63)*$C$10,0) -> 996018.887 | AM63: =IF(AJ63>0,AJ63+AK63+AL63,0) -> 4231672.278 | AN63: =IF(AP23>0,+AP23,0) -> 1879927.391 | AO63: =IF((AM63)>0,IF(AN63>0,AM63+AN63,""),"") -> 6111599.668 | AP63: =+MIN(AO63:AO67) -> 6111599.668
E64: 2 | F64: =+H28 -> 47.5 | G64: 4 | H64: =+H63 -> 47.3 | I64: =+I63 -> 28 | J64: 0.007142857143 | K64: =+K63 -> 4071 | L64: 134.343 | M64: =+L64/1000 -> 0.134343 | N64: 0.3275940007 | O64: 12.8974016 | P64: 14 | Q64: =IF(O64>0,VLOOKUP(P64,'$ alcantarillado'!$I$11:$L$28,4),"0") -> 0.327 | R64: 0.1336943979 | S64: 1.004851378 | T64: =+IF(S64>$B$13,VLOOKUP(P64,'$ alcantarillado'!$I$12:$N$28,5),P64) -> 16 | U64: =IF(O64>0,VLOOKUP(T64,'$ alcantarillado'!$I$11:$L$28,4),"0") -> 0.362 | V64: 0.1753377345 | W64: 0.7661955963 | X64: =IF(T64>0,4*V64/(PI()*(U64)^2),"") -> 1.703602891 | Y64: =IF(T64>0,(VLOOKUP($W64,Relaciones!$A$3:$D$107,2)),"") -> 0.969 | Z64: =IF(T64>0,Y64*X64,"") -> 1.650791201 | AA64: 0.6464285714 | AB64: =IF(T64>0,IF(W64<=$B$13,"OK","No Cumple"),"") -> OK | AC64: =IF(T64>0,IF(Z64>=$B$12,"OK","No Cumple"),"") -> OK | AD64: =IF(T64>0,IF(AA64>=$B$14,"OK","No Cumple"),"") -> OK | AE64: =+IF(AB64="OK",1,0) -> 1 | AF64: =+IF(AC64="OK",1,0) -> 1 | AG64: =+IF(AD64="OK",1,0) -> 1 | AH64: =SUM(AE64:AG64) -> 3 | AI64: =IF(AH64=3,2*$B$7+U64,0) -> 0.862 | AJ64: =IF(AI64>0,I64*VLOOKUP(T64,'$ alcantarillado'!$I$12:$K$28,3),0) -> 3229240 | AK64: 1061356.464 | AL64: 1090246.322 | AM64: 5380842.786 | AN64: =+AP28 -> 1587173.184 | AO64: 6968015.97
E65: 3 | F65: =+H33 -> 47.4 | G65: 4 | H65: =+H64 -> 47.3 | I65: 28 | J65: 0.003571428571 | K65: =+K64 -> 4071 | L65: 134.343 | M65: 0.134343 | N65: 0.3730603248 | O65: 14.68741436 | P65: 16 | Q65: =IF(O65>0,VLOOKUP(P65,'$ alcantarillado'!$I$11:$L$28,4),"0") -> 0.362 | R65: 0.123982501 | S65: 1.083564204 | T65: =IF(S65>$B$13,VLOOKUP(P65,'$ alcantarillado'!$I$12:$N$28,5),P65) -> 18 | U65: =IF(O65>0,VLOOKUP(T65,'$ alcantarillado'!$I$11:$L$28,4),"0") -> 0.407 | V65: 0.1694556145 | W65: 0.7927916722 | X65: 1.302498593 | Y65: =IF(T65>0,(VLOOKUP($W65,Relaciones!$A$3:$D$107,2)),"") -> 0.98 | Z65: 1.276448621 | AA65: 0.3633928571 | AB65: OK | AC65: OK | AD65: =IF(T65>0,IF(AA65>=$B$14,"OK","No Cumple"),"") -> OK | AE65: 1 | AF65: 1 | AG65: 1 | AH65: 3 | AI65: 0.907 | AJ65: =IF(AI65>0,I65*VLOOKUP(T65,'$ alcantarillado'!$I$12:$K$28,3),0) -> 4284947.333 | AK65: 1193332.644 | AL65: 1191453.567 | AM65: 6669733.544 | AN65: =+AP33 -> 1593716.184 | AO65: 8263449.728 | AQ65: 1 | AR65: 4
E66: 4 | F66: =+H38 -> 47.3 | G66: 4 | H66: =+H65 -> 47.3 | I66: 28 | J66: =+(F66-H66)/I66 -> 0 | K66: 4071 | L66: 134.343 | M66: 0.134343 | N66: 0 | O66: 0 | P66: 0 | Q66: =IF(O66>0,VLOOKUP(P66,'$ alcantarillado'!$I$11:$L$28,4),"0") -> 0 | S66: 0 | T66: =IF(S66>$B$13,VLOOKUP(P66,'$ alcantarillado'!$I$12:$N$28,5),P66) -> 0 | U66: =IF(O66>0,VLOOKUP(T66,'$ alcantarillado'!$I$11:$L$28,4),"0") -> 0 | W66: 0 | Y66: =IF(T66>0,(VLOOKUP($W66,Relaciones!$A$3:$D$107,2)),"") ->  | AE66: 0 | AF66: 0 | AG66: 0 | AH66: 0 | AI66: 0 | AJ66: =IF(AI66>0,I66*VLOOKUP(T66,'$ alcantarillado'!$I$12:$K$28,3),0) -> 0 | AK66: 0 | AL66: 0 | AM66: 0 | AN66: =+AP38 -> 1399042.355
E67: 5 | F67: =+H43 -> 47.2 | G67: 4 | H67: =+H66 -> 47.3 | I67: =+I66 -> 28 | J67: -0.003571428571 | K67: =+K66 -> 4071 | L67: 134.343 | M67: 0.134343 | N67: 0 | O67: 0 | P67: 0 | Q67: =IF(O67>0,VLOOKUP(P67,'$ alcantarillado'!$I$11:$L$28,4),"0") -> 0 | S67: 0 | T67: =IF(S67>$B$13,VLOOKUP(P67,'$ alcantarillado'!$I$12:$N$28,5),P67) -> 0 | U67: =IF(O67>0,VLOOKUP(T67,'$ alcantarillado'!$I$11:$L$28,4),"0") -> 0 | W67: 0 | Y67: =IF(T67>0,(VLOOKUP($W67,Relaciones!$A$3:$D$107,2)),"") ->  | AE67: 0 | AF67: 0 | AG67: 0 | AH67: 0 | AI67: 0 | AJ67: =IF(AI67>0,I67*VLOOKUP(T67,'$ alcantarillado'!$I$12:$K$28,3),0) -> 0 | AK67: 0 | AL67: 0 | AM67: 0 | AN67: =+AP43 -> 1405180.355
E68: 1 | F68: =+H23 -> 47.6 | G68: 5 | H68: =+H63-$B$4 -> 47.2 | I68: =+I63 -> 28 | J68: =+(F68-H68)/I68 -> 0.01428571429 | K68: =+K63 -> 4071 | L68: =0.033*K68 -> 134.343 | M68: =+L68/1000 -> 0.134343 | N68: 0.2876688357 | O68: 11.32554471 | P68: 12 | Q68: =IF(O68>0,VLOOKUP(P68,'$ alcantarillado'!$I$11:$L$28,4),"0") -> 0.284 | R68: 0.129822442 | S68: 1.034821083 | T68: =+IF(S68>$B$13,VLOOKUP(P68,'$ alcantarillado'!$I$12:$N$28,5),P68) -> 14 | U68: =IF(O68>0,VLOOKUP(T68,'$ alcantarillado'!$I$11:$L$28,4),"0") -> 0.327 | V68: 0.1890724307 | W68: 0.7105372236 | X68: =IF(T68>0,4*V68/(PI()*(U68)^2),"") -> 2.251348985 | Y68: =IF(T68>0,(VLOOKUP($W68,Relaciones!$A$3:$D$107,2)),"") -> 0.951 | Z68: =IF(T68>0,Y68*X68,"") -> 2.141032885 | AA68: 1.167857143 | AB68: =IF(T68>0,IF(W68<=$B$13,"OK","No Cumple"),"") -> OK | AC68: =IF(T68>0,IF(Z68>=$B$12,"OK","No Cumple"),"") -> OK | AD68: =IF(T68>0,IF(AA68>=$B$14,"OK","No Cumple"),"") -> OK | AE68: =+IF(AB68="OK",1,0) -> 1 | AF68: =+IF(AC68="OK",1,0) -> 1 | AG68: =+IF(AD68="OK",1,0) -> 1 | AH68: =SUM(AE68:AG68) -> 3 | AI68: =IF(AH68=3,2*$B$7+U68,0) -> 0.827 | AJ68: =IF(AI68>0,I68*VLOOKUP(T68,'$ alcantarillado'!$I$12:$K$28,3),0) -> 2280954.667 | AK68: 975539.124 | AL68: =IF(AI68>0,(($D$48-F68)+U68)*$C$10,0) -> 996018.887 | AM68: =IF(AJ68>0,AJ68+AK68+AL68,0) -> 4252512.678 | AN68: =IF(AP23>0,+AP23,0) -> 1879927.391 | AO68: =IF((AM68)>0,IF(AN68>0,AM68+AN68,""),"") -> 6132440.068 | AP68: =+MIN(AO68:AO72) -> 5951164.761
E69: 2 | F69: =+H28 -> 47.5 | G69: 5 | H69: =+H68 -> 47.2 | I69: =+I68 -> 28 | J69: 0.01071428571 | K69: =+K68 -> 4071 | L69: 134.343 | M69: =+L69/1000 -> 0.134343 | N69: 0.3036119274 | O69: 11.95322549 | P69: 12 | Q69: =IF(O69>0,VLOOKUP(P69,'$ alcantarillado'!$I$11:$L$28,4),"0") -> 0.284 | R69: 0.1124295327 | S69: 1.194908462 | T69: =+IF(S69>$B$13,VLOOKUP(P69,'$ alcantarillado'!$I$12:$N$28,5),P69) -> 14 | U69: =IF(O69>0,VLOOKUP(T69,'$ alcantarillado'!$I$11:$L$28,4),"0") -> 0.327 | V69: 0.1637415282 | W69: 0.8204577147 | X69: =IF(T69>0,4*V69/(PI()*(U69)^2),"") -> 1.949725414 | Y69: =IF(T69>0,(VLOOKUP($W69,Relaciones!$A$3:$D$107,2)),"") -> 0.99 | Z69: =IF(T69>0,Y69*X69,"") -> 1.93022816 | AA69: 0.8758928571 | AB69: =IF(T69>0,IF(W69<=$B$13,"OK","No Cumple"),"") -> OK | AC69: =IF(T69>0,IF(Z69>=$B$12,"OK","No Cumple"),"") -> OK | AD69: =IF(T69>0,IF(AA69>=$B$14,"OK","No Cumple"),"") -> OK | AE69: =+IF(AB69="OK",1,0) -> 1 | AF69: =+IF(AC69="OK",1,0) -> 1 | AG69: =+IF(AD69="OK",1,0) -> 1 | AH69: =SUM(AE69:AG69) -> 3 | AI69: =IF(AH69=3,2*$B$7+U69,0) -> 0.827 | AJ69: =IF(AI69>0,I69*VLOOKUP(T69,'$ alcantarillado'!$I$12:$K$28,3),0) -> 2280954.667 | AK69: 1017219.924 | AL69: 1065816.987 | AM69: 4363991.578 | AN69: =+AP28 -> 1587173.184 | AO69: 5951164.761
E70: 3 | F70: =+H33 -> 47.4 | G70: 5 | H70: =+H69 -> 47.2 | I70: 28 | J70: 0.007142857143 | K70: =+K69 -> 4071 | L70: 134.343 | M70: 0.134343 | N70: 0.3275940007 | O70: 12.8974016 | P70: 14 | Q70: =IF(O70>0,VLOOKUP(P70,'$ alcantarillado'!$I$11:$L$28,4),"0") -> 0.327 | R70: 0.1336943979 | S70: 1.004851378 | T70: =IF(S70>$B$13,VLOOKUP(P70,'$ alcantarillado'!$I$12:$N$28,5),P70) -> 16 | U70: =IF(O70>0,VLOOKUP(T70,'$ alcantarillado'!$I$11:$L$28,4),"0") -> 0.362 | V70: 0.1753377345 | W70: 0.7661955963 | X70: 1.703602891 | Y70: =IF(T70>0,(VLOOKUP($W70,Relaciones!$A$3:$D$107,2)),"") -> 0.969 | Z70: 1.650791201 | AA70: 0.6464285714 | AB70: OK | AC70: OK | AD70: =IF(T70>0,IF(AA70>=$B$14,"OK","No Cumple"),"") -> OK | AE70: 1 | AF70: 1 | AG70: 1 | AH70: 3 | AI70: 0.862 | AJ70: =IF(AI70>0,I70*VLOOKUP(T70,'$ alcantarillado'!$I$12:$K$28,3),0) -> 3229240 | AK70: 1126523.664 | AL70: 1160044.422 | AM70: 5515808.086 | AN70: =+AP33 -> 1593716.184 | AO70: 7109524.27 | AQ70: 2 | AR70: 5
E71: 4 | F71: =+H38 -> 47.3 | G71: 5 | H71: =+H70 -> 47.2 | I71: 28 | J71: =+(F71-H71)/I71 -> 0.003571428571 | K71: 4071 | L71: 134.343 | M71: 0.134343 | N71: 0.3730603248 | O71: 14.68741436 | P71: 16 | Q71: =IF(O71>0,VLOOKUP(P71,'$ alcantarillado'!$I$11:$L$28,4),"0") -> 0.362 | R71: 0.123982501 | S71: 1.083564204 | T71: =IF(S71>$B$13,VLOOKUP(P71,'$ alcantarillado'!$I$12:$N$28,5),P71) -> 18 | U71: =IF(O71>0,VLOOKUP(T71,'$ alcantarillado'!$I$11:$L$28,4),"0") -> 0.407 | V71: 0.1694556145 | W71: 0.7927916722 | X71: 1.302498593 | Y71: =IF(T71>0,(VLOOKUP($W71,Relaciones!$A$3:$D$107,2)),"") -> 0.98 | Z71: 1.276448621 | AA71: 0.3633928571 | AB71: OK | AC71: OK | AD71: OK | AE71: 1 | AF71: 1 | AG71: 1 | AH71: 3 | AI71: 0.907 | AJ71: =IF(AI71>0,I71*VLOOKUP(T71,'$ alcantarillado'!$I$12:$K$28,3),0) -> 4284947.333 | AK71: 1261901.844 | AL71: 1261251.667 | AM71: 6808100.844 | AN71: =+AP38 -> 1399042.355 | AO71: 8207143.2
E72: 5 | F72: =+H43 -> 47.2 | G72: 5 | H72: =+H71 -> 47.2 | I72: =+I71 -> 28 | J72: 0 | K72: =+K71 -> 4071 | L72: 134.343 | M72: 0.134343 | N72: 0 | O72: 0 | P72: 0 | Q72: =IF(O72>0,VLOOKUP(P72,'$ alcantarillado'!$I$11:$L$28,4),"0") -> 0 | S72: 0 | T72: =IF(S72>$B$13,VLOOKUP(P72,'$ alcantarillado'!$I$12:$N$28,5),P72) -> 0 | U72: =IF(O72>0,VLOOKUP(T72,'$ alcantarillado'!$I$11:$L$28,4),"0") -> 0 | W72: 0 | Y72: =IF(T72>0,(VLOOKUP($W72,Relaciones!$A$3:$D$107,2)),"") ->  | AE72: 0 | AF72: 0 | AG72: 0 | AH72: 0 | AI72: 0 | AJ72: =IF(AI72>0,I72*VLOOKUP(T72,'$ alcantarillado'!$I$12:$K$28,3),0) -> 0 | AK72: 0 | AL72: 0 | AM72: 0 | AN72: =+AP43 -> 1405180.355
A73: 3 | B73: 3 | C73: 4 | D73: 48.7 | E73: 1 | F73: =+H48 -> 47.6 | G73: 1 | H73: =+$D$98-$B$5-$B$4 -> 47.6 | I73: 27 | J73: =+(F73-H73)/I73 -> 0 | K73: =+K48+2150 -> 6221 | L73: =0.033*K73 -> 205.293 | M73: =+L73/1000 -> 0.205293 | N73: 0 | O73: 0 | P73: 0 | Q73: =IF(O73>0,VLOOKUP(P73,'$ alcantarillado'!$I$11:$L$28,4),"0") -> 0 | S73: 0 | T73: =+IF(S73>$B$13,VLOOKUP(P73,'$ alcantarillado'!$I$12:$N$28,5),P73) -> 0 | U73: =IF(O73>0,VLOOKUP(T73,'$ alcantarillado'!$I$11:$L$28,4),"0") -> 0 | W73: 0 | X73: =IF(T73>0,4*V73/(PI()*(U73)^2),"") ->  | Y73: =IF(T73>0,(VLOOKUP($W73,Relaciones!$A$3:$D$107,2)),"") ->  | Z73: =IF(T73>0,Y73*X73,"") ->  | AB73: =IF(T73>0,IF(W73<=$B$13,"OK","No Cumple"),"") ->  | AC73: =IF(T73>0,IF(Z73>=$B$12,"OK","No Cumple"),"") ->  | AD73: =IF(T73>0,IF(AA73>=$B$14,"OK","No Cumple"),"") ->  | AE73: =+IF(AB73="OK",1,0) -> 0 | AF73: =+IF(AC73="OK",1,0) -> 0 | AG73: =+IF(AD73="OK",1,0) -> 0 | AH73: =SUM(AE73:AG73) -> 0 | AI73: =IF(AH73=3,2*$B$7+U73,0) -> 0 | AJ73: =IF(AI73>0,I73*VLOOKUP(T73,'$ alcantarillado'!$I$12:$K$28,3),0) -> 0 | AK73: =IF(N73>0,((($D$73-F73)+(U73))+(($D$98-H73)+(U73))/2)*AI73*I73*$C$9,0) -> 0 | AL73: =IF(AI73>0,(($D$73-F73)+U73)*$C$10,0) -> 0 | AM73: =IF(AJ73>0,AJ73+AK73+AL73,0) -> 0 | AN73: =+AP48 -> 0 | AO73: =IF((AM73)>0,IF(AN73>0,AM73+AN73,""),"") ->  | AP73: =+MIN(AO73:AO77) -> 0
E74: 2 | F74: =+H53 -> 47.5 | G74: 1 | H74: =+H73 -> 47.6 | I74: =+I73 -> 27 | J74: -0.003703703704 | K74: =+K73 -> 6221 | L74: 205.293 | M74: =+L74/1000 -> 0.205293 | N74: 0 | O74: 0 | P74: 0 | Q74: =IF(O74>0,VLOOKUP(P74,'$ alcantarillado'!$I$11:$L$28,4),"0") -> 0 | S74: 0 | T74: =+IF(S74>$B$13,VLOOKUP(P74,'$ alcantarillado'!$I$12:$N$28,5),P74) -> 0 | U74: =IF(O74>0,VLOOKUP(T74,'$ alcantarillado'!$I$11:$L$28,4),"0") -> 0 | W74: 0 | X74: =IF(T74>0,4*V74/(PI()*(U74)^2),"") ->  | Y74: =IF(T74>0,(VLOOKUP($W74,Relaciones!$A$3:$D$107,2)),"") ->  | Z74: =IF(T74>0,Y74*X74,"") ->  | AB74: =IF(T74>0,IF(W74<=$B$13,"OK","No Cumple"),"") ->  | AC74: =IF(T74>0,IF(Z74>=$B$12,"OK","No Cumple"),"") ->  | AD74: =IF(T74>0,IF(AA74>=$B$14,"OK","No Cumple"),"") ->  | AE74: =+IF(AB74="OK",1,0) -> 0 | AF74: =+IF(AC74="OK",1,0) -> 0 | AG74: =+IF(AD74="OK",1,0) -> 0 | AH74: =SUM(AE74:AG74) -> 0 | AI74: =IF(AH74=3,2*$B$7+U74,0) -> 0 | AJ74: =IF(AI74>0,I74*VLOOKUP(T74,'$ alcantarillado'!$I$12:$K$28,3),0) -> 0 | AK74: =IF(N74>0,((($D$73-F74)+(U74))+(($D$98-H74)+(U74))/2)*AI74*I74*$C$9,0) -> 0 | AL74: =IF(AI74>0,(($D$73-F74)+U74)*$C$10,0) -> 0 | AM74: 0 | AN74: =+AP53 -> 8272926.335
E75: 3 | F75: =+H58 -> 47.4 | G75: 1 | H75: =+H74 -> 47.6 | I75: =+I74 -> 27 | J75: -0.007407407407 | K75: =+K74 -> 6221 | L75: 205.293 | M75: 0.205293 | N75: 0 | O75: 0 | P75: 0 | Q75: =IF(O75>0,VLOOKUP(P75,'$ alcantarillado'!$I$11:$L$28,4),"0") -> 0 | S75: 0 | T75: =IF(S75>$B$13,VLOOKUP(P75,'$ alcantarillado'!$I$12:$N$28,5),P75) -> 0 | U75: =IF(O75>0,VLOOKUP(T75,'$ alcantarillado'!$I$11:$L$28,4),"0") -> 0 | W75: 0 | Y75: =IF(T75>0,(VLOOKUP($W75,Relaciones!$A$3:$D$107,2)),"") ->  | AD75: =IF(T75>0,IF(AA75>=$B$14,"OK","No Cumple"),"") ->  | AE75: 0 | AF75: 0 | AG75: 0 | AH75: 0 | AI75: 0 | AJ75: =IF(AI75>0,I75*VLOOKUP(T75,'$ alcantarillado'!$I$12:$K$28,3),0) -> 0 | AK75: 0 | AL75: 0 | AM75: 0 | AN75: =+AP58 -> 7125804.877
E76: 4 | F76: =+H63 -> 47.3 | G76: 1 | H76: =+H75 -> 47.6 | I76: =+I75 -> 27 | J76: =+(F76-H76)/I76 -> -0.01111111111 | K76: =+K75 -> 6221 | L76: 205.293 | M76: 0.205293 | N76: 0 | O76: 0 | P76: 0 | Q76: =IF(O76>0,VLOOKUP(P76,'$ alcantarillado'!$I$11:$L$28,4),"0") -> 0 | S76: 0 | T76: =IF(S76>$B$13,VLOOKUP(P76,'$ alcantarillado'!$I$12:$N$28,5),P76) -> 0 | U76: =IF(O76>0,VLOOKUP(T76,'$ alcantarillado'!$I$11:$L$28,4),"0") -> 0 | W76: 0 | Y76: =IF(T76>0,(VLOOKUP($W76,Relaciones!$A$3:$D$107,2)),"") ->  | AE76: 0 | AF76: 0 | AG76: 0 | AH76: 0 | AI76: 0 | AJ76: =IF(AI76>0,I76*VLOOKUP(T76,'$ alcantarillado'!$I$12:$K$28,3),0) -> 0 | AK76: 0 | AL76: 0 | AM76: 0 | AN76: =+AP63 -> 6111599.668
E77: 5 | F77: =+H68 -> 47.2 | G77: 1 | H77: =+H76 -> 47.6 | I77: =+I76 -> 27 | J77: -0.01481481481 | K77: =+K76 -> 6221 | L77: 205.293 | M77: 0.205293 | N77: 0 | O77: 0 | P77: 0 | Q77: =IF(O77>0,VLOOKUP(P77,'$ alcantarillado'!$I$11:$L$28,4),"0") -> 0 | S77: 0 | T77: =IF(S77>$B$13,VLOOKUP(P77,'$ alcantarillado'!$I$12:$N$28,5),P77) -> 0 | U77: =IF(O77>0,VLOOKUP(T77,'$ alcantarillado'!$I$11:$L$28,4),"0") -> 0 | W77: 0 | Y77: =IF(T77>0,(VLOOKUP($W77,Relaciones!$A$3:$D$107,2)),"") ->  | AE77: 0 | AF77: 0 | AG77: 0 | AH77: 0 | AI77: 0 | AJ77: =IF(AI77>0,I77*VLOOKUP(T77,'$ alcantarillado'!$I$12:$K$28,3),0) -> 0 | AK77: 0 | AL77: 0 | AM77: 0 | AN77: =+AP68 -> 5951164.761
E78: 1 | F78: =+H48 -> 47.6 | G78: 2 | H78: =+H73-$B$4 -> 47.5 | I78: =+I77 -> 27 | J78: =+(F78-H78)/I78 -> 0.003703703704 | K78: =+K77 -> 6221 | L78: =0.033*K78 -> 205.293 | M78: =+L78/1000 -> 0.205293 | N78: 0.4343874816 | O78: 17.10186935 | P78: 18 | Q78: =IF(O78>0,VLOOKUP(P78,'$ alcantarillado'!$I$11:$L$28,4),"0") -> 0.407 | R78: 0.1725651512 | S78: 1.189655029 | T78: =+IF(S78>$B$13,VLOOKUP(P78,'$ alcantarillado'!$I$12:$N$28,5),P78) -> 20 | U78: =IF(O78>0,VLOOKUP(T78,'$ alcantarillado'!$I$11:$L$28,4),"0") -> 0.452 | V78: 0.2282463447 | W78: 0.8994360906 | X78: =IF(T78>0,4*V78/(PI()*(U78)^2),"") -> 1.422450231 | Y78: =IF(T78>0,(VLOOKUP($W78,Relaciones!$A$3:$D$107,2)),"") -> 1.015 | Z78: =IF(T78>0,Y78*X78,"") -> 1.443786985 | AA78: 0.4185185185 | AB78: =IF(T78>0,IF(W78<=$B$13,"OK","No Cumple"),"") -> OK | AC78: =IF(T78>0,IF(Z78>=$B$12,"OK","No Cumple"),"") -> OK | AD78: =IF(T78>0,IF(AA78>=$B$14,"OK","No Cumple"),"") -> OK | AE78: =+IF(AB78="OK",1,0) -> 1 | AF78: =+IF(AC78="OK",1,0) -> 1 | AG78: =+IF(AD78="OK",1,0) -> 1 | AH78: =SUM(AE78:AG78) -> 3 | AI78: =IF(AH78=3,2*$B$7+U78,0) -> 0.952 | AJ78: =IF(AI78>0,I78*VLOOKUP(T78,'$ alcantarillado'!$I$12:$K$28,3),0) -> 5174059.5 | AK78: 1100234.016 | AL78: =IF(AI78>0,(($D$73-F78)+U78)*$C$10,0) -> 1083266.512 | AM78: =IF(AJ78>0,AJ78+AK78+AL78,0) -> 7357560.028 | AN78: =IF(AP48>0,+AP48,0) -> 0 | AO78: =IF((AM78)>0,IF(AN78>0,AM78+AN78,""),"") ->  | AP78: =+MIN(AO78:AO82) -> 0
E79: 2 | F79: =+H53 -> 47.5 | G79: 2 | H79: =+H78 -> 47.5 | I79: =+I78 -> 27 | J79: 0 | K79: =+K78 -> 6221 | L79: 205.293 | M79: =+L79/1000 -> 0.205293 | N79: 0 | O79: 0 | P79: 0 | Q79: =IF(O79>0,VLOOKUP(P79,'$ alcantarillado'!$I$11:$L$28,4),"0") -> 0 | S79: 0 | T79: =+IF(S79>$B$13,VLOOKUP(P79,'$ alcantarillado'!$I$12:$N$28,5),P79) -> 0 | U79: =IF(O79>0,VLOOKUP(T79,'$ alcantarillado'!$I$11:$L$28,4),"0") -> 0 | W79: 0 | X79: =IF(T79>0,4*V79/(PI()*(U79)^2),"") ->  | Y79: =IF(T79>0,(VLOOKUP($W79,Relaciones!$A$3:$D$107,2)),"") ->  | Z79: =IF(T79>0,Y79*X79,"") ->  | AB79: =IF(T79>0,IF(W79<=$B$13,"OK","No Cumple"),"") ->  | AC79: =IF(T79>0,IF(Z79>=$B$12,"OK","No Cumple"),"") ->  | AD79: =IF(T79>0,IF(AA79>=$B$14,"OK","No Cumple"),"") ->  | AE79: =+IF(AB79="OK",1,0) -> 0 | AF79: =+IF(AC79="OK",1,0) -> 0 | AG79: =+IF(AD79="OK",1,0) -> 0 | AH79: =SUM(AE79:AG79) -> 0 | AI79: =IF(AH79=3,2*$B$7+U79,0) -> 0 | AJ79: =IF(AI79>0,I79*VLOOKUP(T79,'$ alcantarillado'!$I$12:$K$28,3),0) -> 0 | AK79: 0 | AL79: 0 | AM79: 0 | AN79: =+AP53 -> 8272926.335
E80: 3 | F80: =+H58 -> 47.4 | G80: 2 | H80: =+H79 -> 47.5 | I80: =+I79 -> 27 | J80: -0.003703703704 | K80: =+K79 -> 6221 | L80: 205.293 | M80: 0.205293 | N80: 0 | O80: 0 | P80: 0 | Q80: =IF(O80>0,VLOOKUP(P80,'$ alcantarillado'!$I$11:$L$28,4),"0") -> 0 | S80: 0 | T80: =IF(S80>$B$13,VLOOKUP(P80,'$ alcantarillado'!$I$12:$N$28,5),P80) -> 0 | U80: =IF(O80>0,VLOOKUP(T80,'$ alcantarillado'!$I$11:$L$28,4),"0") -> 0 | W80: 0 | Y80: =IF(T80>0,(VLOOKUP($W80,Relaciones!$A$3:$D$107,2)),"") ->  | AD80: =IF(T80>0,IF(AA80>=$B$14,"OK","No Cumple"),"") ->  | AE80: 0 | AF80: 0 | AG80: 0 | AH80: 0 | AI80: 0 | AJ80: =IF(AI80>0,I80*VLOOKUP(T80,'$ alcantarillado'!$I$12:$K$28,3),0) -> 0 | AK80: 0 | AL80: 0 | AM80: 0 | AN80: =+AP58 -> 7125804.877
E81: 4 | F81: =+H63 -> 47.3 | G81: 2 | H81: =+H80 -> 47.5 | I81: =+I80 -> 27 | J81: =+(F81-H81)/I81 -> -0.007407407407 | K81: 6221 | L81: 205.293 | M81: 0.205293 | N81: 0 | O81: 0 | P81: 0 | Q81: =IF(O81>0,VLOOKUP(P81,'$ alcantarillado'!$I$11:$L$28,4),"0") -> 0 | S81: 0 | T81: =IF(S81>$B$13,VLOOKUP(P81,'$ alcantarillado'!$I$12:$N$28,5),P81) -> 0 | U81: =IF(O81>0,VLOOKUP(T81,'$ alcantarillado'!$I$11:$L$28,4),"0") -> 0 | W81: 0 | Y81: =IF(T81>0,(VLOOKUP($W81,Relaciones!$A$3:$D$107,2)),"") ->  | AE81: 0 | AF81: 0 | AG81: 0 | AH81: 0 | AI81: 0 | AJ81: =IF(AI81>0,I81*VLOOKUP(T81,'$ alcantarillado'!$I$12:$K$28,3),0) -> 0 | AK81: 0 | AL81: 0 | AM81: 0 | AN81: =+AP63 -> 6111599.668
E82: 5 | F82: =+H68 -> 47.2 | G82: 2 | H82: =+H81 -> 47.5 | I82: =+I81 -> 27 | J82: -0.01111111111 | K82: =+K81 -> 6221 | L82: 205.293 | M82: 0.205293 | N82: 0 | O82: 0 | P82: 0 | Q82: =IF(O82>0,VLOOKUP(P82,'$ alcantarillado'!$I$11:$L$28,4),"0") -> 0 | S82: 0 | T82: =IF(S82>$B$13,VLOOKUP(P82,'$ alcantarillado'!$I$12:$N$28,5),P82) -> 0 | U82: =IF(O82>0,VLOOKUP(T82,'$ alcantarillado'!$I$11:$L$28,4),"0") -> 0 | W82: 0 | Y82: =IF(T82>0,(VLOOKUP($W82,Relaciones!$A$3:$D$107,2)),"") ->  | AE82: 0 | AF82: 0 | AG82: 0 | AH82: 0 | AI82: 0 | AJ82: =IF(AI82>0,I82*VLOOKUP(T82,'$ alcantarillado'!$I$12:$K$28,3),0) -> 0 | AK82: 0 | AL82: 0 | AM82: 0 | AN82: =+AP68 -> 5951164.761
E83: 1 | F83: =+H48 -> 47.6 | G83: 3 | H83: =+H78-$B$4 -> 47.4 | I83: =+I82 -> 27 | J83: =+(F83-H83)/I83 -> 0.007407407407 | K83: =+K82 -> 6221 | L83: =0.033*K83 -> 205.293 | M83: =+L83/1000 -> 0.205293 | N83: 0.3814469765 | O83: 15.0175975 | P83: 16 | Q83: =IF(O83>0,VLOOKUP(P83,'$ alcantarillado'!$I$11:$L$28,4),"0") -> 0.362 | R83: 0.178555209 | S83: 1.149745231 | T83: =+IF(S83>$B$13,VLOOKUP(P83,'$ alcantarillado'!$I$12:$N$28,5),P83) -> 18 | U83: =IF(O83>0,VLOOKUP(T83,'$ alcantarillado'!$I$11:$L$28,4),"0") -> 0.407 | V83: 0.2440439772 | W83: 0.8412131384 | X83: =IF(T83>0,4*V83/(PI()*(U83)^2),"") -> 1.875812365 | Y83: =IF(T83>0,(VLOOKUP($W83,Relaciones!$A$3:$D$107,2)),"") -> 0.997 | Z83: =IF(T83>0,Y83*X83,"") -> 1.870184928 | AA83: 0.7537037037 | AB83: =IF(T83>0,IF(W83<=$B$13,"OK","No Cumple"),"") -> OK | AC83: =IF(T83>0,IF(Z83>=$B$12,"OK","No Cumple"),"") -> OK | AD83: =IF(T83>0,IF(AA83>=$B$14,"OK","No Cumple"),"") -> OK | AE83: =+IF(AB83="OK",1,0) -> 1 | AF83: =+IF(AC83="OK",1,0) -> 1 | AG83: =+IF(AD83="OK",1,0) -> 1 | AH83: =SUM(AE83:AG83) -> 3 | AI83: =IF(AH83=3,2*$B$7+U83,0) -> 0.907 | AJ83: =IF(AI83>0,I83*VLOOKUP(T83,'$ alcantarillado'!$I$12:$K$28,3),0) -> 4131913.5 | AK83: 1040513.121 | AL83: =IF(AI83>0,(($D$73-F83)+U83)*$C$10,0) -> 1051857.367 | AM83: =IF(AJ83>0,AJ83+AK83+AL83,0) -> 6224283.988 | AN83: =IF(AP48>0,+AP48,0) -> 0 | AO83: =IF((AM83)>0,IF(AN83>0,AM83+AN83,""),"") ->  | AP83: =+MIN(AO83:AO87) -> 15769685.26
E84: 2 | F84: =+H53 -> 47.5 | G84: 3 | H84: =+H83 -> 47.4 | I84: =+I83 -> 27 | J84: 0.003703703704 | K84: =+K83 -> 6221 | L84: 205.293 | M84: =+L84/1000 -> 0.205293 | N84: 0.4343874816 | O84: 17.10186935 | P84: 18 | Q84: =IF(O84>0,VLOOKUP(P84,'$ alcantarillado'!$I$11:$L$28,4),"0") -> 0.407 | R84: 0.1725651512 | S84: 1.189655029 | T84: =+IF(S84>$B$13,VLOOKUP(P84,'$ alcantarillado'!$I$12:$N$28,5),P84) -> 20 | U84: =IF(O84>0,VLOOKUP(T84,'$ alcantarillado'!$I$11:$L$28,4),"0") -> 0.452 | V84: 0.2282463447 | W84: 0.8994360906 | X84: =IF(T84>0,4*V84/(PI()*(U84)^2),"") -> 1.422450231 | Y84: =IF(T84>0,(VLOOKUP($W84,Relaciones!$A$3:$D$107,2)),"") -> 1.015 | Z84: =IF(T84>0,Y84*X84,"") -> 1.443786985 | AA84: 0.4185185185 | AB84: =IF(T84>0,IF(W84<=$B$13,"OK","No Cumple"),"") -> OK | AC84: =IF(T84>0,IF(Z84>=$B$12,"OK","No Cumple"),"") -> OK | AD84: =IF(T84>0,IF(AA84>=$B$14,"OK","No Cumple"),"") -> OK | AE84: =+IF(AB84="OK",1,0) -> 1 | AF84: =+IF(AC84="OK",1,0) -> 1 | AG84: =+IF(AD84="OK",1,0) -> 1 | AH84: =SUM(AE84:AG84) -> 3 | AI84: =IF(AH84=3,2*$B$7+U84,0) -> 0.952 | AJ84: =IF(AI84>0,I84*VLOOKUP(T84,'$ alcantarillado'!$I$12:$K$28,3),0) -> 5174059.5 | AK84: 1169634.816 | AL84: 1153064.612 | AM84: 7496758.928 | AN84: =+AP53 -> 8272926.335 | AO84: 15769685.26
E85: 3 | F85: =+H58 -> 47.4 | G85: 3 | H85: =+H84 -> 47.4 | I85: =+I84 -> 27 | J85: 0 | K85: =+K84 -> 6221 | L85: 205.293 | M85: 0.205293 | N85: 0 | O85: 0 | P85: 0 | Q85: =IF(O85>0,VLOOKUP(P85,'$ alcantarillado'!$I$11:$L$28,4),"0") -> 0 | S85: 0 | T85: =IF(S85>$B$13,VLOOKUP(P85,'$ alcantarillado'!$I$12:$N$28,5),P85) -> 0 | U85: =IF(O85>0,VLOOKUP(T85,'$ alcantarillado'!$I$11:$L$28,4),"0") -> 0 | W85: 0 | Y85: =IF(T85>0,(VLOOKUP($W85,Relaciones!$A$3:$D$107,2)),"") ->  | AD85: =IF(T85>0,IF(AA85>=$B$14,"OK","No Cumple"),"") ->  | AE85: 0 | AF85: 0 | AG85: 0 | AH85: 0 | AI85: 0 | AJ85: =IF(AI85>0,I85*VLOOKUP(T85,'$ alcantarillado'!$I$12:$K$28,3),0) -> 0 | AK85: 0 | AL85: 0 | AM85: 0 | AN85: =+AP58 -> 7125804.877
E86: 4 | F86: =+H63 -> 47.3 | G86: 3 | H86: =+H85 -> 47.4 | I86: =+I85 -> 27 | J86: =+(F86-H86)/I86 -> -0.003703703704 | K86: 6221 | L86: 205.293 | M86: 0.205293 | N86: 0 | O86: 0 | P86: 0 | Q86: =IF(O86>0,VLOOKUP(P86,'$ alcantarillado'!$I$11:$L$28,4),"0") -> 0 | S86: 0 | T86: =IF(S86>$B$13,VLOOKUP(P86,'$ alcantarillado'!$I$12:$N$28,5),P86) -> 0 | U86: =IF(O86>0,VLOOKUP(T86,'$ alcantarillado'!$I$11:$L$28,4),"0") -> 0 | W86: 0 | Y86: =IF(T86>0,(VLOOKUP($W86,Relaciones!$A$3:$D$107,2)),"") ->  | AE86: 0 | AF86: 0 | AG86: 0 | AH86: 0 | AI86: 0 | AJ86: =IF(AI86>0,I86*VLOOKUP(T86,'$ alcantarillado'!$I$12:$K$28,3),0) -> 0 | AK86: 0 | AL86: 0 | AM86: 0 | AN86: =+AP63 -> 6111599.668 | AQ86: 2 | AR86: 3
E87: 5 | F87: =+H68 -> 47.2 | G87: 3 | H87: =+H86 -> 47.4 | I87: =+I86 -> 27 | J87: -0.007407407407 | K87: =+K86 -> 6221 | L87: 205.293 | M87: 0.205293 | N87: 0 | O87: =+N87*(100/2.54) -> 0 | P87: =IF(O87<0.1,0,IF(O87<4,6,EVEN(O87))) -> 0 | Q87: =IF(O87>0,VLOOKUP(P87,'$ alcantarillado'!$I$11:$L$28,4),"0") -> 0 | R87: =IF(P87>0,PI()*((Q87)^(8/3))*((J87)^0.5)/($B$2*4^(5/3)),"") ->  | S87: =IF(P87>0,+M87/R87,0) -> 0 | T87: =IF(S87>$B$13,VLOOKUP(P87,'$ alcantarillado'!$I$12:$N$28,5),P87) -> 0 | U87: =IF(O87>0,VLOOKUP(T87,'$ alcantarillado'!$I$11:$L$28,4),"0") -> 0 | W87: 0 | Y87: =IF(T87>0,(VLOOKUP($W87,Relaciones!$A$3:$D$107,2)),"") ->  | AE87: 0 | AF87: 0 | AG87: 0 | AH87: 0 | AI87: 0 | AJ87: =IF(AI87>0,I87*VLOOKUP(T87,'$ alcantarillado'!$I$12:$K$28,3),0) -> 0 | AK87: 0 | AL87: 0 | AM87: 0 | AN87: =+AP68 -> 5951164.761
E88: 1 | F88: =+H48 -> 47.6 | G88: 4 | H88: =+H83-$B$4 -> 47.3 | I88: =+I83 -> 27 | J88: =+(F88-H88)/I88 -> 0.01111111111 | K88: =+K83 -> 6221 | L88: =0.033*K88 -> 205.293 | M88: =+L88/1000 -> 0.205293 | N88: 0.3535225049 | O88: 13.91820885 | P88: 14 | Q88: =IF(O88>0,VLOOKUP(P88,'$ alcantarillado'!$I$11:$L$28,4),"0") -> 0.327 | R88: 0.1667462105 | S88: 1.231170408 | T88: =+IF(S88>$B$13,VLOOKUP(P88,'$ alcantarillado'!$I$12:$N$28,5),P88) -> 16 | U88: =IF(O88>0,VLOOKUP(T88,'$ alcantarillado'!$I$11:$L$28,4),"0") -> 0.362 | V88: 0.2186845764 | W88: 0.9387630502 | X88: =IF(T88>0,4*V88/(PI()*(U88)^2),"") -> 2.124766113 | Y88: =IF(T88>0,(VLOOKUP($W88,Relaciones!$A$3:$D$107,2)),"") -> 1.027 | Z88: =IF(T88>0,Y88*X88,"") -> 2.182134798 | AA88: 1.005555556 | AB88: =IF(T88>0,IF(W88<=$B$13,"OK","No Cumple"),"") -> OK | AC88: =IF(T88>0,IF(Z88>=$B$12,"OK","No Cumple"),"") -> OK | AD88: =IF(T88>0,IF(AA88>=$B$14,"OK","No Cumple"),"") -> OK | AE88: =+IF(AB88="OK",1,0) -> 1 | AF88: =+IF(AC88="OK",1,0) -> 1 | AG88: =+IF(AD88="OK",1,0) -> 1 | AH88: =SUM(AE88:AG88) -> 3 | AI88: =IF(AH88=3,2*$B$7+U88,0) -> 0.862 | AJ88: =IF(AI88>0,I88*VLOOKUP(T88,'$ alcantarillado'!$I$12:$K$28,3),0) -> 3113910 | AK88: 981557.676 | AL88: =IF(AI88>0,(($D$73-F88)+U88)*$C$10,0) -> 1020448.222 | AM88: =IF(AJ88>0,AJ88+AK88+AL88,0) -> 5115915.898 | AN88: =IF(AP48>0,+AP48,0) -> 0 | AO88: =IF((AM88)>0,IF(AN88>0,AM88+AN88,""),"") ->  | AP88: =+MIN(AO88:AO92) -> 14633128.72
E89: 2 | F89: =+H53 -> 47.5 | G89: 4 | H89: =+H88 -> 47.3 | I89: =+I88 -> 27 | J89: =+(F89-H89)/I89 -> 0.007407407407 | K89: =+K88 -> 6221 | L89: =0.033*K89 -> 205.293 | M89: =+L89/1000 -> 0.205293 | N89: 0.3814469765 | O89: 15.0175975 | P89: 16 | Q89: =IF(O89>0,VLOOKUP(P89,'$ alcantarillado'!$I$11:$L$28,4),"0") -> 0.362 | R89: 0.178555209 | S89: 1.149745231 | T89: =+IF(S89>$B$13,VLOOKUP(P89,'$ alcantarillado'!$I$12:$N$28,5),P89) -> 18 | U89: =IF(O89>0,VLOOKUP(T89,'$ alcantarillado'!$I$11:$L$28,4),"0") -> 0.407 | V89: 0.2440439772 | W89: 0.8412131384 | X89: =IF(T89>0,4*V89/(PI()*(U89)^2),"") -> 1.875812365 | Y89: =IF(T89>0,(VLOOKUP($W89,Relaciones!$A$3:$D$107,2)),"") -> 0.997 | Z89: =IF(T89>0,Y89*X89,"") -> 1.870184928 | AA89: 0.7537037037 | AB89: =IF(T89>0,IF(W89<=$B$13,"OK","No Cumple"),"") -> OK | AC89: =IF(T89>0,IF(Z89>=$B$12,"OK","No Cumple"),"") -> OK | AD89: =IF(T89>0,IF(AA89>=$B$14,"OK","No Cumple"),"") -> OK | AE89: =+IF(AB89="OK",1,0) -> 1 | AF89: =+IF(AC89="OK",1,0) -> 1 | AG89: =+IF(AD89="OK",1,0) -> 1 | AH89: =SUM(AE89:AG89) -> 3 | AI89: =IF(AH89=3,2*$B$7+U89,0) -> 0.907 | AJ89: =IF(AI89>0,I89*VLOOKUP(T89,'$ alcantarillado'!$I$12:$K$28,3),0) -> 4131913.5 | AK89: 1106633.421 | AL89: 1121655.467 | AM89: =IF(AJ89>0,AJ89+AK89+AL89,0) -> 6360202.388 | AN89: =+AP53 -> 8272926.335 | AO89: 14633128.72
E90: 3 | F90: =+H58 -> 47.4 | G90: 4 | H90: =+H89 -> 47.3 | I90: =+I89 -> 27 | J90: 0.003703703704 | K90: =+K89 -> 6221 | L90: 205.293 | M90: 0.205293 | N90: 0.4343874816 | O90: 17.10186935 | P90: 18 | Q90: =IF(O90>0,VLOOKUP(P90,'$ alcantarillado'!$I$11:$L$28,4),"0") -> 0.407 | R90: 0.1725651512 | S90: 1.189655029 | T90: =IF(S90>$B$13,VLOOKUP(P90,'$ alcantarillado'!$I$12:$N$28,5),P90) -> 20 | U90: =IF(O90>0,VLOOKUP(T90,'$ alcantarillado'!$I$11:$L$28,4),"0") -> 0.452 | V90: 0.2282463447 | W90: 0.8994360906 | X90: 1.422450231 | Y90: =IF(T90>0,(VLOOKUP($W90,Relaciones!$A$3:$D$107,2)),"") -> 1.015 | Z90: 1.443786985 | AA90: 0.4185185185 | AB90: OK | AC90: OK | AD90: =IF(T90>0,IF(AA90>=$B$14,"OK","No Cumple"),"") -> OK | AE90: 1 | AF90: 1 | AG90: 1 | AH90: 3 | AI90: 0.952 | AJ90: =IF(AI90>0,I90*VLOOKUP(T90,'$ alcantarillado'!$I$12:$K$28,3),0) -> 5174059.5 | AK90: 1239035.616 | AL90: 1222862.712 | AM90: 7635957.828 | AN90: =+AP58 -> 7125804.877 | AO90: 14761762.7 | AQ90: 2 | AR90: 4
E91: 4 | F91: =+H63 -> 47.3 | G91: 4 | H91: =+H90 -> 47.3 | I91: =+I90 -> 27 | J91: =+(F91-H91)/I91 -> 0 | K91: 6221 | L91: 205.293 | M91: 0.205293 | N91: 0 | O91: 0 | P91: 0 | Q91: =IF(O91>0,VLOOKUP(P91,'$ alcantarillado'!$I$11:$L$28,4),"0") -> 0 | S91: 0 | T91: =IF(S91>$B$13,VLOOKUP(P91,'$ alcantarillado'!$I$12:$N$28,5),P91) -> 0 | U91: =IF(O91>0,VLOOKUP(T91,'$ alcantarillado'!$I$11:$L$28,4),"0") -> 0 | W91: 0 | Y91: =IF(T91>0,(VLOOKUP($W91,Relaciones!$A$3:$D$107,2)),"") ->  | AE91: 0 | AF91: 0 | AG91: 0 | AH91: 0 | AI91: 0 | AJ91: =IF(AI91>0,I91*VLOOKUP(T91,'$ alcantarillado'!$I$12:$K$28,3),0) -> 0 | AK91: 0 | AL91: 0 | AM91: 0 | AN91: =+AP63 -> 6111599.668
E92: 5 | F92: =+H68 -> 47.2 | G92: 4 | H92: =+H91 -> 47.3 | I92: =+I91 -> 27 | J92: -0.003703703704 | K92: =+K91 -> 6221 | L92: 205.293 | M92: 0.205293 | N92: 0 | O92: 0 | P92: 0 | Q92: =IF(O92>0,VLOOKUP(P92,'$ alcantarillado'!$I$11:$L$28,4),"0") -> 0 | S92: 0 | T92: =IF(S92>$B$13,VLOOKUP(P92,'$ alcantarillado'!$I$12:$N$28,5),P92) -> 0 | U92: =IF(O92>0,VLOOKUP(T92,'$ alcantarillado'!$I$11:$L$28,4),"0") -> 0 | V92: =IF(T92>0,PI()*((U92)^(8/3))*((J92)^0.5)/($B$2*4^(5/3)),"") ->  | W92: =IF(P92>0,M92/V92,0) -> 0 | Y92: =IF(T92>0,(VLOOKUP($W92,Relaciones!$A$3:$D$107,2)),"") ->  | AA92: =IF(T92>0,250*U92*J92,"") ->  | AE92: 0 | AF92: 0 | AG92: 0 | AH92: 0 | AI92: 0 | AJ92: =IF(AI92>0,I92*VLOOKUP(T92,'$ alcantarillado'!$I$12:$K$28,3),0) -> 0 | AK92: 0 | AL92: 0 | AM92: 0 | AN92: =+AP68 -> 5951164.761
E93: 1 | F93: =+H48 -> 47.6 | G93: 5 | H93: =+H88-$B$4 -> 47.2 | I93: =+I88 -> 27 | J93: =+(F93-H93)/I93 -> 0.01481481481 | K93: =+K88 -> 6221 | L93: =0.033*K93 -> 205.293 | M93: =+L93/1000 -> 0.205293 | N93: 0.3349585383 | O93: 13.18734403 | P93: 14 | Q93: =IF(O93>0,VLOOKUP(P93,'$ alcantarillado'!$I$11:$L$28,4),"0") -> 0.327 | R93: 0.192541939 | S93: 1.06622485 | T93: =+IF(S93>$B$13,VLOOKUP(P93,'$ alcantarillado'!$I$12:$N$28,5),P93) -> 16 | U93: =IF(O93>0,VLOOKUP(T93,'$ alcantarillado'!$I$11:$L$28,4),"0") -> 0.362 | V93: 0.2525151981 | W93: 0.8129926496 | X93: =IF(T93>0,4*V93/(PI()*(U93)^2),"") -> 2.453468575 | Y93: =IF(T93>0,(VLOOKUP($W93,Relaciones!$A$3:$D$107,2)),"") -> 0.987 | Z93: =IF(T93>0,Y93*X93,"") -> 2.421573483 | AA93: 1.340740741 | AB93: =IF(T93>0,IF(W93<=$B$13,"OK","No Cumple"),"") -> OK | AC93: =IF(T93>0,IF(Z93>=$B$12,"OK","No Cumple"),"") -> OK | AD93: =IF(T93>0,IF(AA93>=$B$14,"OK","No Cumple"),"") -> OK | AE93: =+IF(AB93="OK",1,0) -> 1 | AF93: =+IF(AC93="OK",1,0) -> 1 | AG93: =+IF(AD93="OK",1,0) -> 1 | AH93: =SUM(AE93:AG93) -> 3 | AI93: =IF(AH93=3,2*$B$7+U93,0) -> 0.862 | AJ93: =IF(AI93>0,I93*VLOOKUP(T93,'$ alcantarillado'!$I$12:$K$28,3),0) -> 3113910 | AK93: 1002504.276 | AL93: =IF(AI93>0,(($D$73-F93)+U93)*$C$10,0) -> 1020448.222 | AM93: =IF(AJ93>0,AJ93+AK93+AL93,0) -> 5136862.498 | AN93: =IF(AP48>0,+AP48,0) -> 0 | AO93: =IF((AM93)>0,IF(AN93>0,AM93+AN93,""),"") ->  | AP93: =+MIN(AO93:AO97) -> 13521480.13
E94: 2 | F94: =+H53 -> 47.5 | G94: 5 | H94: =+H93 -> 47.2 | I94: =+I93 -> 27 | J94: 0.01111111111 | K94: =+K93 -> 6221 | L94: 205.293 | M94: =+L94/1000 -> 0.205293 | N94: 0.3535225049 | O94: 13.91820885 | P94: 14 | Q94: =IF(O94>0,VLOOKUP(P94,'$ alcantarillado'!$I$11:$L$28,4),"0") -> 0.327 | R94: 0.1667462105 | S94: 1.231170408 | T94: =+IF(S94>$B$13,VLOOKUP(P94,'$ alcantarillado'!$I$12:$N$28,5),P94) -> 16 | U94: =IF(O94>0,VLOOKUP(T94,'$ alcantarillado'!$I$11:$L$28,4),"0") -> 0.362 | V94: 0.2186845764 | W94: 0.9387630502 | X94: =IF(T94>0,4*V94/(PI()*(U94)^2),"") -> 2.124766113 | Y94: =IF(T94>0,(VLOOKUP($W94,Relaciones!$A$3:$D$107,2)),"") -> 1.027 | Z94: =IF(T94>0,Y94*X94,"") -> 2.182134798 | AA94: 1.005555556 | AB94: =IF(T94>0,IF(W94<=$B$13,"OK","No Cumple"),"") -> OK | AC94: =IF(T94>0,IF(Z94>=$B$12,"OK","No Cumple"),"") -> OK | AD94: =IF(T94>0,IF(AA94>=$B$14,"OK","No Cumple"),"") -> OK | AE94: =+IF(AB94="OK",1,0) -> 1 | AF94: =+IF(AC94="OK",1,0) -> 1 | AG94: =+IF(AD94="OK",1,0) -> 1 | AH94: =SUM(AE94:AG94) -> 3 | AI94: =IF(AH94=3,2*$B$7+U94,0) -> 0.862 | AJ94: =IF(AI94>0,I94*VLOOKUP(T94,'$ alcantarillado'!$I$12:$K$28,3),0) -> 3113910 | AK94: 1044397.476 | AL94: 1090246.322 | AM94: 5248553.798 | AN94: =+AP53 -> 8272926.335 | AO94: 13521480.13
E95: 3 | F95: =+H58 -> 47.4 | G95: 5 | H95: =+H94 -> 47.2 | I95: =+I94 -> 27 | J95: 0.007407407407 | K95: =+K94 -> 6221 | L95: 205.293 | M95: 0.205293 | N95: 0.3814469765 | O95: 15.0175975 | P95: 16 | Q95: =IF(O95>0,VLOOKUP(P95,'$ alcantarillado'!$I$11:$L$28,4),"0") -> 0.362 | R95: 0.178555209 | S95: 1.149745231 | T95: =IF(S95>$B$13,VLOOKUP(P95,'$ alcantarillado'!$I$12:$N$28,5),P95) -> 18 | U95: =IF(O95>0,VLOOKUP(T95,'$ alcantarillado'!$I$11:$L$28,4),"0") -> 0.407 | V95: 0.2440439772 | W95: 0.8412131384 | X95: 1.875812365 | Y95: =IF(T95>0,(VLOOKUP($W95,Relaciones!$A$3:$D$107,2)),"") -> 0.997 | Z95: 1.870184928 | AA95: 0.7537037037 | AB95: OK | AC95: OK | AD95: =IF(T95>0,IF(AA95>=$B$14,"OK","No Cumple"),"") -> OK | AE95: 1 | AF95: 1 | AG95: 1 | AH95: 3 | AI95: 0.907 | AJ95: =IF(AI95>0,I95*VLOOKUP(T95,'$ alcantarillado'!$I$12:$K$28,3),0) -> 4131913.5 | AK95: 1172753.721 | AL95: 1191453.567 | AM95: 6496120.788 | AN95: =+AP58 -> 7125804.877 | AO95: 13621925.66 | AQ95: 2 | AR95: 5
E96: 4 | F96: =+H63 -> 47.3 | G96: 5 | H96: =+H95 -> 47.2 | I96: =+I95 -> 27 | J96: =+(F96-H96)/I96 -> 0.003703703704 | K96: 6221 | L96: 205.293 | M96: 0.205293 | N96: 0.4343874816 | O96: 17.10186935 | P96: 18 | Q96: =IF(O96>0,VLOOKUP(P96,'$ alcantarillado'!$I$11:$L$28,4),"0") -> 0.407 | R96: 0.1725651512 | S96: 1.189655029 | T96: =IF(S96>$B$13,VLOOKUP(P96,'$ alcantarillado'!$I$12:$N$28,5),P96) -> 20 | U96: =IF(O96>0,VLOOKUP(T96,'$ alcantarillado'!$I$11:$L$28,4),"0") -> 0.452 | V96: 0.2282463447 | W96: 0.8994360906 | X96: 1.422450231 | Y96: =IF(T96>0,(VLOOKUP($W96,Relaciones!$A$3:$D$107,2)),"") -> 1.015 | Z96: 1.443786985 | AA96: 0.4185185185 | AB96: OK | AC96: OK | AD96: OK | AE96: 1 | AF96: 1 | AG96: 1 | AH96: 3 | AI96: 0.952 | AJ96: =IF(AI96>0,I96*VLOOKUP(T96,'$ alcantarillado'!$I$12:$K$28,3),0) -> 5174059.5 | AK96: 1308436.416 | AL96: 1292660.812 | AM96: 7775156.728 | AN96: =+AP63 -> 6111599.668 | AO96: 13886756.4
E97: 5 | F97: =+H68 -> 47.2 | G97: 5 | H97: =+H96 -> 47.2 | I97: =+I96 -> 27 | J97: 0 | K97: =+K96 -> 6221 | L97: 205.293 | M97: 0.205293 | N97: 0 | O97: 0 | P97: 0 | Q97: =IF(O97>0,VLOOKUP(P97,'$ alcantarillado'!$I$11:$L$28,4),"0") -> 0 | S97: 0 | T97: =IF(S97>$B$13,VLOOKUP(P97,'$ alcantarillado'!$I$12:$N$28,5),P97) -> 0 | U97: =IF(O97>0,VLOOKUP(T97,'$ alcantarillado'!$I$11:$L$28,4),"0") -> 0 | W97: 0 | Y97: =IF(T97>0,(VLOOKUP($W97,Relaciones!$A$3:$D$107,2)),"") ->  | AE97: 0 | AF97: 0 | AG97: 0 | AH97: 0 | AI97: 0 | AJ97: =IF(AI97>0,I97*VLOOKUP(T97,'$ alcantarillado'!$I$12:$K$28,3),0) -> 0 | AK97: 0 | AL97: 0 | AM97: 0 | AN97: =+AP68 -> 5951164.761
A98: 4 | B98: =+C73 -> 4 | C98: 5 | D98: 48.7 | E98: 1 | F98: =+H73 -> 47.6 | G98: 1 | H98: =+$D$123-$B$5-$B$4 -> 47.6 | I98: 27 | J98: =+(F98-H98)/I98 -> 0 | K98: =+K73+2150 -> 8371 | L98: =0.033*K98 -> 276.243 | M98: =+L98/1000 -> 0.276243 | N98: 0 | O98: 0 | P98: 0 | Q98: =IF(O98>0,VLOOKUP(P98,'$ alcantarillado'!$I$11:$L$28,4),"0") -> 0 | S98: 0 | T98: =+IF(S98>$B$13,VLOOKUP(P98,'$ alcantarillado'!$I$12:$N$28,5),P98) -> 0 | U98: =IF(O98>0,VLOOKUP(T98,'$ alcantarillado'!$I$11:$L$28,4),"0") -> 0 | W98: 0 | X98: =IF(T98>0,4*V98/(PI()*(U98)^2),"") ->  | Y98: =IF(T98>0,(VLOOKUP($W98,Relaciones!$A$3:$D$107,2)),"") ->  | Z98: =IF(T98>0,Y98*X98,"") ->  | AB98: =IF(T98>0,IF(W98<=$B$13,"OK","No Cumple"),"") ->  | AC98: =IF(T98>0,IF(Z98>=$B$12,"OK","No Cumple"),"") ->  | AD98: =IF(T98>0,IF(AA98>=$B$14,"OK","No Cumple"),"") ->  | AE98: =+IF(AB98="OK",1,0) -> 0 | AF98: =+IF(AC98="OK",1,0) -> 0 | AG98: =+IF(AD98="OK",1,0) -> 0 | AH98: =SUM(AE98:AG98) -> 0 | AI98: =IF(AH98=3,2*$B$7+U98,0) -> 0 | AJ98: =IF(AI98>0,I98*VLOOKUP(T98,'$ alcantarillado'!$I$12:$K$28,3),0) -> 0 | AK98: =IF(N98>0,((($D$98-F98)+(U98))+(($D$123-H98)+(U98))/2)*AI98*I98*$C$9,0) -> 0 | AL98: =IF(AI98>0,(($D$98-F98)+U98)*$C$10,0) -> 0 | AM98: =IF(AJ98>0,AJ98+AK98+AL98,0) -> 0 | AN98: =IF(AP73>0,+AP73,0) -> 0 | AO98: =IF((AM98)>0,IF(AN98>0,AM98+AN98,""),"") ->  | AP98: =+MIN(AO98:AO102) -> 0
E99: 2 | F99: =+H78 -> 47.5 | G99: 1 | H99: =+H98 -> 47.6 | I99: =+I98 -> 27 | J99: =+(F99-H99)/I99 -> -0.003703703704 | K99: =+K98 -> 8371 | L99: =0.033*K99 -> 276.243 | M99: =+L99/1000 -> 0.276243 | N99: 0 | O99: 0 | P99: 0 | Q99: =IF(O99>0,VLOOKUP(P99,'$ alcantarillado'!$I$11:$L$28,4),"0") -> 0 | S99: 0 | T99: =+IF(S99>$B$13,VLOOKUP(P99,'$ alcantarillado'!$I$12:$N$28,5),P99) -> 0 | U99: =IF(O99>0,VLOOKUP(T99,'$ alcantarillado'!$I$11:$L$28,4),"0") -> 0 | W99: 0 | X99: =IF(T99>0,4*V99/(PI()*(U99)^2),"") ->  | Y99: =IF(T99>0,(VLOOKUP($W99,Relaciones!$A$3:$D$107,2)),"") ->  | Z99: =IF(T99>0,Y99*X99,"") ->  | AB99: =IF(T99>0,IF(W99<=$B$13,"OK","No Cumple"),"") ->  | AC99: =IF(T99>0,IF(Z99>=$B$12,"OK","No Cumple"),"") ->  | AD99: =IF(T99>0,IF(AA99>=$B$14,"OK","No Cumple"),"") ->  | AE99: =+IF(AB99="OK",1,0) -> 0 | AF99: =+IF(AC99="OK",1,0) -> 0 | AG99: =+IF(AD99="OK",1,0) -> 0 | AH99: =SUM(AE99:AG99) -> 0 | AI99: =IF(AH99=3,2*$B$7+U99,0) -> 0 | AJ99: =IF(AI99>0,I99*VLOOKUP(T99,'$ alcantarillado'!$I$12:$K$28,3),0) -> 0 | AK99: =IF(N99>0,((($D$98-F99)+(U99))+(($D$123-H99)+(U99))/2)*AI99*I99*$C$9,0) -> 0 | AL99: =IF(AI99>0,(($D$98-F99)+U99)*$C$10,0) -> 0 | AM99: =IF(AJ99>0,AJ99+AK99+AL99,0) -> 0 | AN99: =+AP78 -> 0
E100: 3 | F100: =+H83 -> 47.4 | G100: 1 | H100: =+H99 -> 47.6 | I100: =+I99 -> 27 | J100: -0.007407407407 | K100: =+K99 -> 8371 | L100: 276.243 | M100: 0.276243 | N100: 0 | O100: 0 | P100: 0 | Q100: =IF(O100>0,VLOOKUP(P100,'$ alcantarillado'!$I$11:$L$28,4),"0") -> 0 | S100: 0 | T100: =IF(S100>$B$13,VLOOKUP(P100,'$ alcantarillado'!$I$12:$N$28,5),P100) -> 0 | U100: =IF(O100>0,VLOOKUP(T100,'$ alcantarillado'!$I$11:$L$28,4),"0") -> 0 | W100: 0 | Y100: =IF(T100>0,(VLOOKUP($W100,Relaciones!$A$3:$D$107,2)),"") ->  | AD100: =IF(T100>0,IF(AA100>=$B$14,"OK","No Cumple"),"") ->  | AE100: 0 | AF100: 0 | AG100: 0 | AH100: 0 | AI100: 0 | AJ100: =IF(AI100>0,I100*VLOOKUP(T100,'$ alcantarillado'!$I$12:$K$28,3),0) -> 0 | AK100: 0 | AL100: 0 | AM100: 0 | AN100: =+AP83 -> 15769685.26
E101: 4 | F101: =+H88 -> 47.3 | G101: 1 | H101: 47.6 | I101: =+I100 -> 27 | J101: =+(F101-H101)/I101 -> -0.01111111111 | K101: =+K100 -> 8371 | L101: 276.243 | M101: 0.276243 | N101: 0 | O101: 0 | P101: 0 | Q101: =IF(O101>0,VLOOKUP(P101,'$ alcantarillado'!$I$11:$L$28,4),"0") -> 0 | S101: 0 | T101: =IF(S101>$B$13,VLOOKUP(P101,'$ alcantarillado'!$I$12:$N$28,5),P101) -> 0 | U101: =IF(O101>0,VLOOKUP(T101,'$ alcantarillado'!$I$11:$L$28,4),"0") -> 0 | W101: 0 | Y101: =IF(T101>0,(VLOOKUP($W101,Relaciones!$A$3:$D$107,2)),"") ->  | AE101: 0 | AF101: 0 | AG101: 0 | AH101: 0 | AI101: 0 | AJ101: =IF(AI101>0,I101*VLOOKUP(T101,'$ alcantarillado'!$I$12:$K$28,3),0) -> 0 | AK101: 0 | AL101: 0 | AM101: 0 | AN101: =+AP88 -> 14633128.72
E102: 5 | F102: =+H93 -> 47.2 | G102: 1 | H102: 47.6 | I102: =+I101 -> 27 | J102: -0.01481481481 | K102: =+K101 -> 8371 | L102: 276.243 | M102: 0.276243 | N102: 0 | O102: 0 | P102: 0 | Q102: =IF(O102>0,VLOOKUP(P102,'$ alcantarillado'!$I$11:$L$28,4),"0") -> 0 | S102: 0 | T102: =IF(S102>$B$13,VLOOKUP(P102,'$ alcantarillado'!$I$12:$N$28,5),P102) -> 0 | U102: =IF(O102>0,VLOOKUP(T102,'$ alcantarillado'!$I$11:$L$28,4),"0") -> 0 | W102: 0 | Y102: =IF(T102>0,(VLOOKUP($W102,Relaciones!$A$3:$D$107,2)),"") ->  | AE102: 0 | AF102: 0 | AG102: 0 | AH102: 0 | AI102: 0 | AJ102: =IF(AI102>0,I102*VLOOKUP(T102,'$ alcantarillado'!$I$12:$K$28,3),0) -> 0 | AK102: 0 | AL102: 0 | AM102: 0 | AN102: =+AP93 -> 13521480.13
E103: 1 | F103: =+H73 -> 47.6 | G103: 2 | H103: =+H98-$B$4 -> 47.5 | I103: =+I102 -> 27 | J103: =+(F103-H103)/I103 -> 0.003703703704 | K103: =+K102 -> 8371 | L103: =0.033*K103 -> 276.243 | M103: =+L103/1000 -> 0.276243 | N103: 0.4855357682 | O103: 19.11558142 | P103: 20 | Q103: =IF(O103>0,VLOOKUP(P103,'$ alcantarillado'!$I$11:$L$28,4),"0") -> 0.452 | R103: 0.2282463447 | S103: 1.210284442 | T103: =+IF(S103>$B$13,VLOOKUP(P103,'$ alcantarillado'!$I$12:$N$28,5),P103) -> 24 | U103: =IF(O103>0,VLOOKUP(T103,'$ alcantarillado'!$I$11:$L$28,4),"0") -> 0.595 | V103: 0.4750579391 | W103: 0.5814932817 | X103: =IF(T103>0,4*V103/(PI()*(U103)^2),"") -> 1.708530624 | Y103: =IF(T103>0,(VLOOKUP($W103,Relaciones!$A$3:$D$107,2)),"") -> 0.89 | Z103: =IF(T103>0,Y103*X103,"") -> 1.520592255 | AA103: 0.5509259259 | AB103: =IF(T103>0,IF(W103<=$B$13,"OK","No Cumple"),"") -> OK | AC103: =IF(T103>0,IF(Z103>=$B$12,"OK","No Cumple"),"") -> OK | AD103: =IF(T103>0,IF(AA103>=$B$14,"OK","No Cumple"),"") -> OK | AE103: =+IF(AB103="OK",1,0) -> 1 | AF103: =+IF(AC103="OK",1,0) -> 1 | AG103: =+IF(AD103="OK",1,0) -> 1 | AH103: =SUM(AE103:AG103) -> 3 | AI103: =IF(AH103=3,2*$B$7+U103,0) -> 1.095 | AJ103: =IF(AI103>0,I103*VLOOKUP(T103,'$ alcantarillado'!$I$12:$K$28,3),0) -> 7106034.462 | AK103: 1379650.725 | AL103: 1183077.795 | AM103: =IF(AJ103>0,AJ103+AK103+AL103,0) -> 9668762.982 | AN103: =IF(AP73>0,+AP73,0) -> 0 | AO103: =IF((AM103)>0,IF(AN103>0,AM103+AN103,""),"") ->  | AP103: =+MIN(AO103:AO107) -> 0
E104: 2 | F104: =+H78 -> 47.5 | G104: 2 | H104: =+H103 -> 47.5 | I104: =+I103 -> 27 | J104: 0 | K104: =+K103 -> 8371 | L104: 276.243 | M104: =+L104/1000 -> 0.276243 | N104: 0 | O104: 0 | P104: 0 | Q104: =IF(O104>0,VLOOKUP(P104,'$ alcantarillado'!$I$11:$L$28,4),"0") -> 0 | S104: 0 | T104: =+IF(S104>$B$13,VLOOKUP(P104,'$ alcantarillado'!$I$12:$N$28,5),P104) -> 0 | U104: =IF(O104>0,VLOOKUP(T104,'$ alcantarillado'!$I$11:$L$28,4),"0") -> 0 | W104: 0 | X104: =IF(T104>0,4*V104/(PI()*(U104)^2),"") ->  | Y104: =IF(T104>0,(VLOOKUP($W104,Relaciones!$A$3:$D$107,2)),"") ->  | Z104: =IF(T104>0,Y104*X104,"") ->  | AB104: =IF(T104>0,IF(W104<=$B$13,"OK","No Cumple"),"") ->  | AC104: =IF(T104>0,IF(Z104>=$B$12,"OK","No Cumple"),"") ->  | AD104: =IF(T104>0,IF(AA104>=$B$14,"OK","No Cumple"),"") ->  | AE104: =+IF(AB104="OK",1,0) -> 0 | AF104: =+IF(AC104="OK",1,0) -> 0 | AG104: =+IF(AD104="OK",1,0) -> 0 | AH104: =SUM(AE104:AG104) -> 0 | AI104: =IF(AH104=3,2*$B$7+U104,0) -> 0 | AJ104: =IF(AI104>0,I104*VLOOKUP(T104,'$ alcantarillado'!$I$12:$K$28,3),0) -> 0 | AK104: 0 | AL104: 0 | AM104: 0 | AN104: =+AP78 -> 0
E105: 3 | F105: =+H83 -> 47.4 | G105: 2 | H105: =+H104 -> 47.5 | I105: =+I104 -> 27 | J105: -0.003703703704 | K105: =+K104 -> 8371 | L105: 276.243 | M105: 0.276243 | N105: 0 | O105: 0 | P105: 0 | Q105: =IF(O105>0,VLOOKUP(P105,'$ alcantarillado'!$I$11:$L$28,4),"0") -> 0 | S105: 0 | T105: =IF(S105>$B$13,VLOOKUP(P105,'$ alcantarillado'!$I$12:$N$28,5),P105) -> 0 | U105: =IF(O105>0,VLOOKUP(T105,'$ alcantarillado'!$I$11:$L$28,4),"0") -> 0 | W105: 0 | Y105: =IF(T105>0,(VLOOKUP($W105,Relaciones!$A$3:$D$107,2)),"") ->  | AD105: =IF(T105>0,IF(AA105>=$B$14,"OK","No Cumple"),"") ->  | AE105: 0 | AF105: 0 | AG105: 0 | AH105: 0 | AI105: 0 | AJ105: =IF(AI105>0,I105*VLOOKUP(T105,'$ alcantarillado'!$I$12:$K$28,3),0) -> 0 | AK105: 0 | AL105: 0 | AM105: 0 | AN105: =+AP83 -> 15769685.26
E106: 4 | F106: =+H88 -> 47.3 | G106: 2 | H106: 47.5 | I106: =+I105 -> 27 | J106: =+(F106-H106)/I106 -> -0.007407407407 | K106: 8371 | L106: 276.243 | M106: 0.276243 | N106: 0 | O106: 0 | P106: 0 | Q106: =IF(O106>0,VLOOKUP(P106,'$ alcantarillado'!$I$11:$L$28,4),"0") -> 0 | S106: 0 | T106: =IF(S106>$B$13,VLOOKUP(P106,'$ alcantarillado'!$I$12:$N$28,5),P106) -> 0 | U106: =IF(O106>0,VLOOKUP(T106,'$ alcantarillado'!$I$11:$L$28,4),"0") -> 0 | W106: 0 | Y106: =IF(T106>0,(VLOOKUP($W106,Relaciones!$A$3:$D$107,2)),"") ->  | AE106: 0 | AF106: 0 | AG106: 0 | AH106: 0 | AI106: 0 | AJ106: =IF(AI106>0,I106*VLOOKUP(T106,'$ alcantarillado'!$I$12:$K$28,3),0) -> 0 | AK106: 0 | AL106: 0 | AM106: 0 | AN106: =+AP88 -> 14633128.72
E107: 5 | F107: =+H93 -> 47.2 | G107: 2 | H107: =+H106 -> 47.5 | I107: =+I106 -> 27 | J107: -0.01111111111 | K107: =+K106 -> 8371 | L107: 276.243 | M107: 0.276243 | N107: 0 | O107: 0 | P107: 0 | Q107: =IF(O107>0,VLOOKUP(P107,'$ alcantarillado'!$I$11:$L$28,4),"0") -> 0 | S107: 0 | T107: =IF(S107>$B$13,VLOOKUP(P107,'$ alcantarillado'!$I$12:$N$28,5),P107) -> 0 | U107: =IF(O107>0,VLOOKUP(T107,'$ alcantarillado'!$I$11:$L$28,4),"0") -> 0 | W107: 0 | Y107: =IF(T107>0,(VLOOKUP($W107,Relaciones!$A$3:$D$107,2)),"") ->  | AE107: 0 | AF107: 0 | AG107: 0 | AH107: 0 | AI107: 0 | AJ107: =IF(AI107>0,I107*VLOOKUP(T107,'$ alcantarillado'!$I$12:$K$28,3),0) -> 0 | AK107: 0 | AL107: 0 | AM107: 0 | AN107: =+AP93 -> 13521480.13
E108: 1 | F108: =+H73 -> 47.6 | G108: 3 | H108: =+H103-$B$4 -> 47.4 | I108: =+I107 -> 27 | J108: =+(F108-H108)/I108 -> 0.007407407407 | K108: =+K107 -> 8371 | L108: =0.033*K108 -> 276.243 | M108: =+L108/1000 -> 0.276243 | N108: 0.4263616209 | O108: 16.78589059 | P108: 18 | Q108: =IF(O108>0,VLOOKUP(P108,'$ alcantarillado'!$I$11:$L$28,4),"0") -> 0.407 | R108: 0.2440439772 | S108: 1.131939428 | T108: =+IF(S108>$B$13,VLOOKUP(P108,'$ alcantarillado'!$I$12:$N$28,5),P108) -> 20 | U108: =IF(O108>0,VLOOKUP(T108,'$ alcantarillado'!$I$11:$L$28,4),"0") -> 0.452 | V108: 0.3227890763 | W108: 0.8558003362 | X108: =IF(T108>0,4*V108/(PI()*(U108)^2),"") -> 2.011648409 | Y108: =IF(T108>0,(VLOOKUP($W108,Relaciones!$A$3:$D$107,2)),"") -> 1.001 | Z108: =IF(T108>0,Y108*X108,"") -> 2.013660057 | AA108: 0.837037037 | AB108: =IF(T108>0,IF(W108<=$B$13,"OK","No Cumple"),"") -> OK | AC108: =IF(T108>0,IF(Z108>=$B$12,"OK","No Cumple"),"") -> OK | AD108: =IF(T108>0,IF(AA108>=$B$14,"OK","No Cumple"),"") -> OK | AE108: =+IF(AB108="OK",1,0) -> 1 | AF108: =+IF(AC108="OK",1,0) -> 1 | AG108: =+IF(AD108="OK",1,0) -> 1 | AH108: =SUM(AE108:AG108) -> 3 | AI108: =IF(AH108=3,2*$B$7+U108,0) -> 0.952 | AJ108: =IF(AI108>0,I108*VLOOKUP(T108,'$ alcantarillado'!$I$12:$K$28,3),0) -> 5174059.5 | AK108: 1123367.616 | AL108: 1083266.512 | AM108: =IF(AJ108>0,AJ108+AK108+AL108,0) -> 7380693.628 | AN108: =IF(AP73>0,+AP73,0) -> 0 | AO108: =IF((AM108)>0,IF(AN108>0,AM108+AN108,""),"") ->  | AP108: =+MIN(AO108:AO112) -> 0
E109: 2 | F109: =+H78 -> 47.5 | G109: 3 | H109: =+H108 -> 47.4 | I109: =+I108 -> 27 | J109: 0.003703703704 | K109: =+K108 -> 8371 | L109: 276.243 | M109: =+L109/1000 -> 0.276243 | N109: 0.4855357682 | O109: 19.11558142 | P109: 20 | Q109: =IF(O109>0,VLOOKUP(P109,'$ alcantarillado'!$I$11:$L$28,4),"0") -> 0.452 | R109: 0.2282463447 | S109: 1.210284442 | T109: =+IF(S109>$B$13,VLOOKUP(P109,'$ alcantarillado'!$I$12:$N$28,5),P109) -> 24 | U109: =IF(O109>0,VLOOKUP(T109,'$ alcantarillado'!$I$11:$L$28,4),"0") -> 0.595 | V109: 0.4750579391 | W109: 0.5814932817 | X109: =IF(T109>0,4*V109/(PI()*(U109)^2),"") -> 1.708530624 | Y109: =IF(T109>0,(VLOOKUP($W109,Relaciones!$A$3:$D$107,2)),"") -> 0.89 | Z109: =IF(T109>0,Y109*X109,"") -> 1.520592255 | AA109: 0.5509259259 | AB109: =IF(T109>0,IF(W109<=$B$13,"OK","No Cumple"),"") -> OK | AC109: =IF(T109>0,IF(Z109>=$B$12,"OK","No Cumple"),"") -> OK | AD109: =IF(T109>0,IF(AA109>=$B$14,"OK","No Cumple"),"") -> OK | AE109: =+IF(AB109="OK",1,0) -> 1 | AF109: =+IF(AC109="OK",1,0) -> 1 | AG109: =+IF(AD109="OK",1,0) -> 1 | AH109: =SUM(AE109:AG109) -> 3 | AI109: =IF(AH109=3,2*$B$7+U109,0) -> 1.095 | AJ109: =IF(AI109>0,I109*VLOOKUP(T109,'$ alcantarillado'!$I$12:$K$28,3),0) -> 7106034.462 | AK109: 1459476.225 | AL109: 1252875.895 | AM109: 9818386.582 | AN109: =+AP78 -> 0
E110: 3 | F110: =+H83 -> 47.4 | G110: 3 | H110: =+H109 -> 47.4 | I110: =+I109 -> 27 | J110: 0 | K110: =+K109 -> 8371 | L110: 276.243 | M110: 0.276243 | N110: 0 | O110: 0 | P110: 0 | Q110: =IF(O110>0,VLOOKUP(P110,'$ alcantarillado'!$I$11:$L$28,4),"0") -> 0 | S110: 0 | T110: =IF(S110>$B$13,VLOOKUP(P110,'$ alcantarillado'!$I$12:$N$28,5),P110) -> 0 | U110: =IF(O110>0,VLOOKUP(T110,'$ alcantarillado'!$I$11:$L$28,4),"0") -> 0 | W110: 0 | Y110: =IF(T110>0,(VLOOKUP($W110,Relaciones!$A$3:$D$107,2)),"") ->  | AD110: =IF(T110>0,IF(AA110>=$B$14,"OK","No Cumple"),"") ->  | AE110: 0 | AF110: 0 | AG110: 0 | AH110: 0 | AI110: 0 | AJ110: =IF(AI110>0,I110*VLOOKUP(T110,'$ alcantarillado'!$I$12:$K$28,3),0) -> 0 | AK110: 0 | AL110: 0 | AM110: 0 | AN110: =+AP83 -> 15769685.26
E111: 4 | F111: =+H88 -> 47.3 | G111: 3 | H111: 47.4 | I111: =+I110 -> 27 | J111: =+(F111-H111)/I111 -> -0.003703703704 | K111: 8371 | L111: 276.243 | M111: 0.276243 | N111: 0 | O111: 0 | P111: 0 | Q111: =IF(O111>0,VLOOKUP(P111,'$ alcantarillado'!$I$11:$L$28,4),"0") -> 0 | S111: 0 | T111: =IF(S111>$B$13,VLOOKUP(P111,'$ alcantarillado'!$I$12:$N$28,5),P111) -> 0 | U111: =IF(O111>0,VLOOKUP(T111,'$ alcantarillado'!$I$11:$L$28,4),"0") -> 0 | W111: 0 | Y111: =IF(T111>0,(VLOOKUP($W111,Relaciones!$A$3:$D$107,2)),"") ->  | AE111: 0 | AF111: 0 | AG111: 0 | AH111: 0 | AI111: 0 | AJ111: =IF(AI111>0,I111*VLOOKUP(T111,'$ alcantarillado'!$I$12:$K$28,3),0) -> 0 | AK111: 0 | AL111: 0 | AM111: 0 | AN111: =+AP88 -> 14633128.72
E112: 5 | F112: =+H93 -> 47.2 | G112: 3 | H112: =+H111 -> 47.4 | I112: =+I111 -> 27 | J112: -0.007407407407 | K112: =+K111 -> 8371 | L112: 276.243 | M112: 0.276243 | N112: 0 | O112: 0 | P112: 0 | Q112: =IF(O112>0,VLOOKUP(P112,'$ alcantarillado'!$I$11:$L$28,4),"0") -> 0 | S112: 0 | T112: =IF(S112>$B$13,VLOOKUP(P112,'$ alcantarillado'!$I$12:$N$28,5),P112) -> 0 | U112: =IF(O112>0,VLOOKUP(T112,'$ alcantarillado'!$I$11:$L$28,4),"0") -> 0 | W112: 0 | Y112: =IF(T112>0,(VLOOKUP($W112,Relaciones!$A$3:$D$107,2)),"") ->  | AE112: 0 | AF112: 0 | AG112: 0 | AH112: 0 | AI112: 0 | AJ112: =IF(AI112>0,I112*VLOOKUP(T112,'$ alcantarillado'!$I$12:$K$28,3),0) -> 0 | AK112: 0 | AL112: 0 | AM112: 0 | AN112: =+AP93 -> 13521480.13
E113: 1 | F113: =+H73 -> 47.6 | G113: 4 | H113: =+H108-$B$4 -> 47.3 | I113: =+I108 -> 27 | J113: =+(F113-H113)/I113 -> 0.01111111111 | K113: =+K108 -> 8371 | L113: =0.033*K113 -> 276.243 | M113: =+L113/1000 -> 0.276243 | N113: 0.3951490967 | O113: 15.55705105 | P113: 16 | Q113: =IF(O113>0,VLOOKUP(P113,'$ alcantarillado'!$I$11:$L$28,4),"0") -> 0.362 | R113: 0.2186845764 | S113: 1.26320294 | T113: =+IF(S113>$B$13,VLOOKUP(P113,'$ alcantarillado'!$I$12:$N$28,5),P113) -> 18 | U113: =IF(O113>0,VLOOKUP(T113,'$ alcantarillado'!$I$11:$L$28,4),"0") -> 0.407 | V113: 0.2988916095 | W113: 0.9242246728 | X113: =IF(T113>0,4*V113/(PI()*(U113)^2),"") -> 2.297391574 | Y113: =IF(T113>0,(VLOOKUP($W113,Relaciones!$A$3:$D$107,2)),"") -> 1.024 | Z113: =IF(T113>0,Y113*X113,"") -> 2.352528972 | AA113: 1.130555556 | AB113: =IF(T113>0,IF(W113<=$B$13,"OK","No Cumple"),"") -> OK | AC113: =IF(T113>0,IF(Z113>=$B$12,"OK","No Cumple"),"") -> OK | AD113: =IF(T113>0,IF(AA113>=$B$14,"OK","No Cumple"),"") -> OK | AE113: =+IF(AB113="OK",1,0) -> 1 | AF113: =+IF(AC113="OK",1,0) -> 1 | AG113: =+IF(AD113="OK",1,0) -> 1 | AH113: =SUM(AE113:AG113) -> 3 | AI113: =IF(AH113=3,2*$B$7+U113,0) -> 0.907 | AJ113: =IF(AI113>0,I113*VLOOKUP(T113,'$ alcantarillado'!$I$12:$K$28,3),0) -> 4131913.5 | AK113: 1062553.221 | AL113: 1051857.367 | AM113: =IF(AJ113>0,AJ113+AK113+AL113,0) -> 6246324.088 | AN113: =IF(AP73>0,+AP73,0) -> 0 | AO113: =IF((AM113)>0,IF(AN113>0,AM113+AN113,""),"") ->  | AP113: =+MIN(AO113:AO117) -> 25737695.44
E114: 2 | F114: =+H78 -> 47.5 | G114: 4 | H114: =+H113 -> 47.3 | I114: =+I113 -> 27 | J114: 0.007407407407 | K114: =+K113 -> 8371 | L114: 276.243 | M114: =+L114/1000 -> 0.276243 | N114: 0.4263616209 | O114: 16.78589059 | P114: 18 | Q114: =IF(O114>0,VLOOKUP(P114,'$ alcantarillado'!$I$11:$L$28,4),"0") -> 0.407 | R114: 0.2440439772 | S114: 1.131939428 | T114: =+IF(S114>$B$13,VLOOKUP(P114,'$ alcantarillado'!$I$12:$N$28,5),P114) -> 20 | U114: =IF(O114>0,VLOOKUP(T114,'$ alcantarillado'!$I$11:$L$28,4),"0") -> 0.452 | V114: 0.3227890763 | W114: 0.8558003362 | X114: =IF(T114>0,4*V114/(PI()*(U114)^2),"") -> 2.011648409 | Y114: =IF(T114>0,(VLOOKUP($W114,Relaciones!$A$3:$D$107,2)),"") -> 1.001 | Z114: =IF(T114>0,Y114*X114,"") -> 2.013660057 | AA114: 0.837037037 | AB114: =IF(T114>0,IF(W114<=$B$13,"OK","No Cumple"),"") -> OK | AC114: =IF(T114>0,IF(Z114>=$B$12,"OK","No Cumple"),"") -> OK | AD114: =IF(T114>0,IF(AA114>=$B$14,"OK","No Cumple"),"") -> OK | AE114: =+IF(AB114="OK",1,0) -> 1 | AF114: =+IF(AC114="OK",1,0) -> 1 | AG114: =+IF(AD114="OK",1,0) -> 1 | AH114: =SUM(AE114:AG114) -> 3 | AI114: =IF(AH114=3,2*$B$7+U114,0) -> 0.952 | AJ114: =IF(AI114>0,I114*VLOOKUP(T114,'$ alcantarillado'!$I$12:$K$28,3),0) -> 5174059.5 | AK114: 1192768.416 | AL114: 1153064.612 | AM114: 7519892.528 | AN114: =+AP78 -> 0
E115: 3 | F115: =+H83 -> 47.4 | G115: 4 | H115: =+H114 -> 47.3 | I115: =+I114 -> 27 | J115: 0.003703703704 | K115: =+K114 -> 8371 | L115: 276.243 | M115: 0.276243 | N115: 0.4855357682 | O115: 19.11558142 | P115: 20 | Q115: =IF(O115>0,VLOOKUP(P115,'$ alcantarillado'!$I$11:$L$28,4),"0") -> 0.452 | R115: 0.2282463447 | S115: 1.210284442 | T115: =IF(S115>$B$13,VLOOKUP(P115,'$ alcantarillado'!$I$12:$N$28,5),P115) -> 24 | U115: =IF(O115>0,VLOOKUP(T115,'$ alcantarillado'!$I$11:$L$28,4),"0") -> 0.595 | V115: 0.4750579391 | W115: 0.5814932817 | X115: 1.708530624 | Y115: =IF(T115>0,(VLOOKUP($W115,Relaciones!$A$3:$D$107,2)),"") -> 0.89 | Z115: 1.520592255 | AA115: 0.5509259259 | AB115: OK | AC115: OK | AD115: =IF(T115>0,IF(AA115>=$B$14,"OK","No Cumple"),"") -> OK | AE115: 1 | AF115: 1 | AG115: 1 | AH115: 3 | AI115: 1.095 | AJ115: =IF(AI115>0,I115*VLOOKUP(T115,'$ alcantarillado'!$I$12:$K$28,3),0) -> 7106034.462 | AK115: 1539301.725 | AL115: 1322673.995 | AM115: 9968010.182 | AN115: =+AP83 -> 15769685.26 | AO115: =IF((AM115)>0,IF(AN115>0,AM115+AN115,""),"") -> 25737695.44 | AQ115: 3 | AR115: 4
E116: 4 | F116: =+H88 -> 47.3 | G116: 4 | H116: 47.3 | I116: =+I115 -> 27 | J116: =+(F116-H116)/I116 -> 0 | K116: 8371 | L116: 276.243 | M116: 0.276243 | N116: 0 | O116: 0 | P116: 0 | Q116: =IF(O116>0,VLOOKUP(P116,'$ alcantarillado'!$I$11:$L$28,4),"0") -> 0 | S116: 0 | T116: =IF(S116>$B$13,VLOOKUP(P116,'$ alcantarillado'!$I$12:$N$28,5),P116) -> 0 | U116: =IF(O116>0,VLOOKUP(T116,'$ alcantarillado'!$I$11:$L$28,4),"0") -> 0 | W116: 0 | Y116: =IF(T116>0,(VLOOKUP($W116,Relaciones!$A$3:$D$107,2)),"") ->  | AE116: 0 | AF116: 0 | AG116: 0 | AH116: 0 | AI116: 0 | AJ116: =IF(AI116>0,I116*VLOOKUP(T116,'$ alcantarillado'!$I$12:$K$28,3),0) -> 0 | AK116: 0 | AL116: 0 | AM116: 0 | AN116: =+AP88 -> 14633128.72
E117: 5 | F117: =+H93 -> 47.2 | G117: 4 | H117: =+H116 -> 47.3 | I117: =+I116 -> 27 | J117: -0.003703703704 | K117: =+K116 -> 8371 | L117: 276.243 | M117: 0.276243 | N117: =+IF(J117>0,((M117*$B$2*(4^(5/3))/((J117^0.5)*PI()*$B$6))^(3/8)),0) -> 0 | O117: 0 | P117: 0 | Q117: =IF(O117>0,VLOOKUP(P117,'$ alcantarillado'!$I$11:$L$28,4),"0") -> 0 | S117: 0 | T117: =IF(S117>$B$13,VLOOKUP(P117,'$ alcantarillado'!$I$12:$N$28,5),P117) -> 0 | U117: =IF(O117>0,VLOOKUP(T117,'$ alcantarillado'!$I$11:$L$28,4),"0") -> 0 | W117: 0 | Y117: =IF(T117>0,(VLOOKUP($W117,Relaciones!$A$3:$D$107,2)),"") ->  | AE117: 0 | AF117: 0 | AG117: 0 | AH117: 0 | AI117: 0 | AJ117: =IF(AI117>0,I117*VLOOKUP(T117,'$ alcantarillado'!$I$12:$K$28,3),0) -> 0 | AK117: 0 | AL117: 0 | AM117: 0 | AN117: =+AP93 -> 13521480.13
E118: 1 | F118: =+H73 -> 47.6 | G118: 5 | H118: =+H113-$B$4 -> 47.2 | I118: =+I113 -> 27 | J118: =+(F118-H118)/I118 -> 0.01481481481 | K118: =+K113 -> 8371 | L118: =0.033*K118 -> 276.243 | M118: =+L118/1000 -> 0.276243 | N118: 0.3743992589 | O118: 14.7401283 | P118: 16 | Q118: =IF(O118>0,VLOOKUP(P118,'$ alcantarillado'!$I$11:$L$28,4),"0") -> 0.362 | R118: 0.2525151981 | S118: 1.093965837 | T118: =+IF(S118>$B$13,VLOOKUP(P118,'$ alcantarillado'!$I$12:$N$28,5),P118) -> 18 | U118: =IF(O118>0,VLOOKUP(T118,'$ alcantarillado'!$I$11:$L$28,4),"0") -> 0.407 | V118: 0.3451303024 | W118: 0.8004020454 | X118: =IF(T118>0,4*V118/(PI()*(U118)^2),"") -> 2.652799287 | Y118: =IF(T118>0,(VLOOKUP($W118,Relaciones!$A$3:$D$107,2)),"") -> 0.984 | Z118: =IF(T118>0,Y118*X118,"") -> 2.610354499 | AA118: 1.507407407 | AB118: =IF(T118>0,IF(W118<=$B$13,"OK","No Cumple"),"") -> OK | AC118: =IF(T118>0,IF(Z118>=$B$12,"OK","No Cumple"),"") -> OK | AD118: =IF(T118>0,IF(AA118>=$B$14,"OK","No Cumple"),"") -> OK | AE118: =+IF(AB118="OK",1,0) -> 1 | AF118: =+IF(AC118="OK",1,0) -> 1 | AG118: =+IF(AD118="OK",1,0) -> 1 | AH118: =SUM(AE118:AG118) -> 3 | AI118: =IF(AH118=3,2*$B$7+U118,0) -> 0.907 | AJ118: =IF(AI118>0,I118*VLOOKUP(T118,'$ alcantarillado'!$I$12:$K$28,3),0) -> 4131913.5 | AK118: 1084593.321 | AL118: 1051857.367 | AM118: =IF(AJ118>0,AJ118+AK118+AL118,0) -> 6268364.188 | AN118: =IF(AP73>0,+AP73,0) -> 0 | AO118: =IF((AM118)>0,IF(AN118>0,AM118+AN118,""),"") ->  | AP118: =+MIN(AO118:AO122) -> 23428776.69
E119: 2 | F119: =+H78 -> 47.5 | G119: 5 | H119: =+H118 -> 47.2 | I119: =+I118 -> 27 | J119: 0.01111111111 | K119: =+K118 -> 8371 | L119: 276.243 | M119: =+L119/1000 -> 0.276243 | N119: 0.3951490967 | O119: =+N119*(100/2.54) -> 15.55705105 | P119: 16 | Q119: =IF(O119>0,VLOOKUP(P119,'$ alcantarillado'!$I$11:$L$28,4),"0") -> 0.362 | R119: =IF(P119>0,PI()*((Q119)^(8/3))*((J119)^0.5)/($B$2*4^(5/3)),"") -> 0.2186845764 | S119: =IF(P119>0,+M119/R119,0) -> 1.26320294 | T119: =+IF(S119>$B$13,VLOOKUP(P119,'$ alcantarillado'!$I$12:$N$28,5),P119) -> 18 | U119: =IF(O119>0,VLOOKUP(T119,'$ alcantarillado'!$I$11:$L$28,4),"0") -> 0.407 | V119: 0.2988916095 | W119: 0.9242246728 | X119: =IF(T119>0,4*V119/(PI()*(U119)^2),"") -> 2.297391574 | Y119: =IF(T119>0,(VLOOKUP($W119,Relaciones!$A$3:$D$107,2)),"") -> 1.024 | Z119: =IF(T119>0,Y119*X119,"") -> 2.352528972 | AA119: 1.130555556 | AB119: =IF(T119>0,IF(W119<=$B$13,"OK","No Cumple"),"") -> OK | AC119: =IF(T119>0,IF(Z119>=$B$12,"OK","No Cumple"),"") -> OK | AD119: =IF(T119>0,IF(AA119>=$B$14,"OK","No Cumple"),"") -> OK | AE119: =+IF(AB119="OK",1,0) -> 1 | AF119: =+IF(AC119="OK",1,0) -> 1 | AG119: =+IF(AD119="OK",1,0) -> 1 | AH119: =SUM(AE119:AG119) -> 3 | AI119: =IF(AH119=3,2*$B$7+U119,0) -> 0.907 | AJ119: =IF(AI119>0,I119*VLOOKUP(T119,'$ alcantarillado'!$I$12:$K$28,3),0) -> 4131913.5 | AK119: 1128673.521 | AL119: 1121655.467 | AM119: 6382242.488 | AN119: =+AP78 -> 0 | AO119: =IF((AM119)>0,IF(AN119>0,AM119+AN119,""),"") -> 
E120: 3 | F120: =+H83 -> 47.4 | G120: 5 | H120: =+H119 -> 47.2 | I120: =+I119 -> 27 | J120: 0.007407407407 | K120: =+K119 -> 8371 | L120: 276.243 | M120: 0.276243 | N120: 0.4263616209 | O120: 16.78589059 | P120: =IF(O120<0.1,0,IF(O120<4,6,EVEN(O120))) -> 18 | Q120: =IF(O120>0,VLOOKUP(P120,'$ alcantarillado'!$I$11:$L$28,4),"0") -> 0.407 | R120: 0.2440439772 | S120: 1.131939428 | T120: =IF(S120>$B$13,VLOOKUP(P120,'$ alcantarillado'!$I$12:$N$28,5),P120) -> 20 | U120: =IF(O120>0,VLOOKUP(T120,'$ alcantarillado'!$I$11:$L$28,4),"0") -> 0.452 | V120: 0.3227890763 | W120: 0.8558003362 | X120: 2.011648409 | Y120: =IF(T120>0,(VLOOKUP($W120,Relaciones!$A$3:$D$107,2)),"") -> 1.001 | Z120: 2.013660057 | AA120: 0.837037037 | AB120: OK | AC120: OK | AD120: =IF(T120>0,IF(AA120>=$B$14,"OK","No Cumple"),"") -> OK | AE120: 1 | AF120: 1 | AG120: 1 | AH120: 3 | AI120: 0.952 | AJ120: =IF(AI120>0,I120*VLOOKUP(T120,'$ alcantarillado'!$I$12:$K$28,3),0) -> 5174059.5 | AK120: 1262169.216 | AL120: 1222862.712 | AM120: 7659091.428 | AN120: =+AP83 -> 15769685.26 | AO120: 23428776.69 | AQ120: 3 | AR120: 5
E121: 4 | F121: =+H88 -> 47.3 | G121: 5 | H121: 47.2 | I121: =+I120 -> 27 | J121: =+(F121-H121)/I121 -> 0.003703703704 | K121: 8371 | L121: 276.243 | M121: 0.276243 | N121: 0.4855357682 | O121: 19.11558142 | P121: 20 | Q121: =IF(O121>0,VLOOKUP(P121,'$ alcantarillado'!$I$11:$L$28,4),"0") -> 0.452 | R121: 0.2282463447 | S121: 1.210284442 | T121: =IF(S121>$B$13,VLOOKUP(P121,'$ alcantarillado'!$I$12:$N$28,5),P121) -> 24 | U121: =IF(O121>0,VLOOKUP(T121,'$ alcantarillado'!$I$11:$L$28,4),"0") -> 0.595 | V121: 0.4750579391 | W121: 0.5814932817 | X121: 1.708530624 | Y121: =IF(T121>0,(VLOOKUP($W121,Relaciones!$A$3:$D$107,2)),"") -> 0.89 | Z121: 1.520592255 | AA121: 0.5509259259 | AB121: OK | AC121: OK | AD121: OK | AE121: 1 | AF121: 1 | AG121: 1 | AH121: 3 | AI121: 1.095 | AJ121: =IF(AI121>0,I121*VLOOKUP(T121,'$ alcantarillado'!$I$12:$K$28,3),0) -> 7106034.462 | AK121: 1619127.225 | AL121: 1392472.095 | AM121: 10117633.78 | AN121: =+AP88 -> 14633128.72 | AO121: 24750762.5
E122: 5 | F122: =+H93 -> 47.2 | G122: 5 | H122: =+H121 -> 47.2 | I122: =+I121 -> 27 | J122: 0 | K122: =+K121 -> 8371 | L122: 276.243 | M122: 0.276243 | N122: 0 | O122: 0 | P122: 0 | Q122: =IF(O122>0,VLOOKUP(P122,'$ alcantarillado'!$I$11:$L$28,4),"0") -> 0 | S122: 0 | T122: =IF(S122>$B$13,VLOOKUP(P122,'$ alcantarillado'!$I$12:$N$28,5),P122) -> 0 | U122: =IF(O122>0,VLOOKUP(T122,'$ alcantarillado'!$I$11:$L$28,4),"0") -> 0 | W122: 0 | Y122: =IF(T122>0,(VLOOKUP($W122,Relaciones!$A$3:$D$107,2)),"") ->  | AE122: 0 | AF122: 0 | AG122: 0 | AH122: 0 | AI122: 0 | AJ122: =IF(AI122>0,I122*VLOOKUP(T122,'$ alcantarillado'!$I$12:$K$28,3),0) -> 0 | AK122: 0 | AL122: 0 | AM122: 0 | AN122: =+AP93 -> 13521480.13
A123: 5 | B123: =+C98 -> 5 | C123: 6 | D123: 48.7 | E123: 1 | F123: =+H98 -> 47.6 | G123: 1 | H123: =+$D$148-$B$5-$B$4 -> 47.6 | I123: 28 | J123: =+(F123-H123)/I123 -> 0 | K123: =+K98+2150 -> 10521 | L123: =0.033*K123 -> 347.193 | M123: =+L123/1000 -> 0.347193 | N123: 0 | O123: 0 | P123: 0 | Q123: =IF(O123>0,VLOOKUP(P123,'$ alcantarillado'!$I$11:$L$28,4),"0") -> 0 | S123: 0 | T123: =+IF(S123>$B$13,VLOOKUP(P123,'$ alcantarillado'!$I$12:$N$28,5),P123) -> 0 | U123: =IF(O123>0,VLOOKUP(T123,'$ alcantarillado'!$I$11:$L$28,4),"0") -> 0 | W123: 0 | X123: =IF(T123>0,4*V123/(PI()*(U123)^2),"") ->  | Y123: =IF(T123>0,(VLOOKUP($W123,Relaciones!$A$3:$D$107,2)),"") ->  | Z123: =IF(T123>0,Y123*X123,"") ->  | AB123: =IF(T123>0,IF(W123<=$B$13,"OK","No Cumple"),"") ->  | AC123: =IF(T123>0,IF(Z123>=$B$12,"OK","No Cumple"),"") ->  | AD123: =IF(T123>0,IF(AA123>=$B$14,"OK","No Cumple"),"") ->  | AE123: =+IF(AB123="OK",1,0) -> 0 | AF123: =+IF(AC123="OK",1,0) -> 0 | AG123: =+IF(AD123="OK",1,0) -> 0 | AH123: =SUM(AE123:AG123) -> 0 | AI123: =IF(AH123=3,2*$B$7+U123,0) -> 0 | AJ123: =IF(AI123>0,I123*VLOOKUP(T123,'$ alcantarillado'!$I$12:$K$28,3),0) -> 0 | AK123: =IF(N123>0,((($D$123-F123)+(U123))+(($D$148-H123)+(U123))/2)*AI123*I123*$C$9,0) -> 0 | AL123: =IF(AI123>0,(($D$123-F123)+U123)*$C$10,0) -> 0 | AM123: =IF(AJ123>0,AJ123+AK123+AL123,0) -> 0 | AN123: =IF(AP98>0,+AP98,0) -> 0 | AO123: =IF((AM123)>0,IF(AN123>0,AM123+AN123,""),"") ->  | AP123: =+MIN(AO123:AO127) -> 0
E124: 2 | F124: =+H103 -> 47.5 | G124: 1 | H124: =+H123 -> 47.6 | I124: =+I123 -> 28 | J124: =+(F124-H124)/I124 -> -0.003571428571 | K124: =+K123 -> 10521 | L124: =0.033*K124 -> 347.193 | M124: =+L124/1000 -> 0.347193 | N124: 0 | O124: 0 | P124: 0 | Q124: =IF(O124>0,VLOOKUP(P124,'$ alcantarillado'!$I$11:$L$28,4),"0") -> 0 | S124: 0 | T124: =+IF(S124>$B$13,VLOOKUP(P124,'$ alcantarillado'!$I$12:$N$28,5),P124) -> 0 | U124: =IF(O124>0,VLOOKUP(T124,'$ alcantarillado'!$I$11:$L$28,4),"0") -> 0 | W124: 0 | X124: =IF(T124>0,4*V124/(PI()*(U124)^2),"") ->  | Y124: =IF(T124>0,(VLOOKUP($W124,Relaciones!$A$3:$D$107,2)),"") ->  | Z124: =IF(T124>0,Y124*X124,"") ->  | AB124: =IF(T124>0,IF(W124<=$B$13,"OK","No Cumple"),"") ->  | AC124: =IF(T124>0,IF(Z124>=$B$12,"OK","No Cumple"),"") ->  | AD124: =IF(T124>0,IF(AA124>=$B$14,"OK","No Cumple"),"") ->  | AE124: =+IF(AB124="OK",1,0) -> 0 | AF124: =+IF(AC124="OK",1,0) -> 0 | AG124: =+IF(AD124="OK",1,0) -> 0 | AH124: =SUM(AE124:AG124) -> 0 | AI124: =IF(AH124=3,2*$B$7+U124,0) -> 0 | AJ124: =IF(AI124>0,I124*VLOOKUP(T124,'$ alcantarillado'!$I$12:$K$28,3),0) -> 0 | AK124: =IF(N124>0,((($D$123-F124)+(U124))+(($D$148-H124)+(U124))/2)*AI124*I124*$C$9,0) -> 0 | AL124: =IF(AI124>0,(($D$123-F124)+U124)*$C$10,0) -> 0 | AM124: =IF(AJ124>0,AJ124+AK124+AL124,0) -> 0 | AN124: =+AP103 -> 0 | AO124: =IF((AM124)>0,IF(AN124>0,AM124+AN124,""),"") -> 
E125: 3 | F125: =+H108 -> 47.4 | G125: 1 | H125: =+H124 -> 47.6 | I125: =+I124 -> 28 | J125: -0.007142857143 | K125: =+K124 -> 10521 | L125: 347.193 | M125: 0.347193 | N125: 0 | O125: 0 | P125: 0 | Q125: =IF(O125>0,VLOOKUP(P125,'$ alcantarillado'!$I$11:$L$28,4),"0") -> 0 | S125: 0 | T125: =IF(S125>$B$13,VLOOKUP(P125,'$ alcantarillado'!$I$12:$N$28,5),P125) -> 0 | U125: =IF(O125>0,VLOOKUP(T125,'$ alcantarillado'!$I$11:$L$28,4),"0") -> 0 | W125: 0 | Y125: =IF(T125>0,(VLOOKUP($W125,Relaciones!$A$3:$D$107,2)),"") ->  | AD125: =IF(T125>0,IF(AA125>=$B$14,"OK","No Cumple"),"") ->  | AE125: 0 | AF125: 0 | AG125: 0 | AH125: 0 | AI125: 0 | AJ125: =IF(AI125>0,I125*VLOOKUP(T125,'$ alcantarillado'!$I$12:$K$28,3),0) -> 0 | AK125: 0 | AL125: 0 | AM125: 0 | AN125: =+AP108 -> 0
E126: 4 | F126: =+H113 -> 47.3 | G126: 1 | H126: 47.6 | I126: =+I125 -> 28 | J126: =+(F126-H126)/I126 -> -0.01071428571 | K126: =+K125 -> 10521 | L126: 347.193 | M126: 0.347193 | N126: 0 | O126: 0 | P126: 0 | Q126: =IF(O126>0,VLOOKUP(P126,'$ alcantarillado'!$I$11:$L$28,4),"0") -> 0 | S126: 0 | T126: =IF(S126>$B$13,VLOOKUP(P126,'$ alcantarillado'!$I$12:$N$28,5),P126) -> 0 | U126: =IF(O126>0,VLOOKUP(T126,'$ alcantarillado'!$I$11:$L$28,4),"0") -> 0 | W126: 0 | Y126: =IF(T126>0,(VLOOKUP($W126,Relaciones!$A$3:$D$107,2)),"") ->  | AE126: 0 | AF126: 0 | AG126: 0 | AH126: 0 | AI126: 0 | AJ126: =IF(AI126>0,I126*VLOOKUP(T126,'$ alcantarillado'!$I$12:$K$28,3),0) -> 0 | AK126: 0 | AL126: 0 | AM126: 0 | AN126: =+AP113 -> 25737695.44
E127: 5 | F127: =+H118 -> 47.2 | G127: 1 | H127: 47.6 | I127: =+I126 -> 28 | J127: -0.01428571429 | K127: =+K126 -> 10521 | L127: 347.193 | M127: 0.347193 | N127: 0 | O127: 0 | P127: 0 | Q127: =IF(O127>0,VLOOKUP(P127,'$ alcantarillado'!$I$11:$L$28,4),"0") -> 0 | S127: 0 | T127: =IF(S127>$B$13,VLOOKUP(P127,'$ alcantarillado'!$I$12:$N$28,5),P127) -> 0 | U127: =IF(O127>0,VLOOKUP(T127,'$ alcantarillado'!$I$11:$L$28,4),"0") -> 0 | W127: 0 | Y127: =IF(T127>0,(VLOOKUP($W127,Relaciones!$A$3:$D$107,2)),"") ->  | AE127: 0 | AF127: 0 | AG127: 0 | AH127: 0 | AI127: 0 | AJ127: =IF(AI127>0,I127*VLOOKUP(T127,'$ alcantarillado'!$I$12:$K$28,3),0) -> 0 | AK127: 0 | AL127: 0 | AM127: 0 | AN127: =+AP118 -> 23428776.69
E128: 1 | F128: =+H98 -> 47.6 | G128: 2 | H128: =+H123-$B$4 -> 47.5 | I128: =+I127 -> 28 | J128: =+(F128-H128)/I128 -> 0.003571428571 | K128: =+K127 -> 10521 | L128: =0.033*K128 -> 347.193 | M128: =+L128/1000 -> 0.347193 | N128: 0.5326139454 | O128: 20.96905297 | P128: 22 | Q128: =IF(O128>0,VLOOKUP(P128,'$ alcantarillado'!$I$11:$L$28,4),"0") -> 0.452 | R128: 0.2241334611 | S128: 1.549045815 | T128: =+IF(S128>$B$13,VLOOKUP(P128,'$ alcantarillado'!$I$12:$N$28,5),P128) -> 24 | U128: =IF(O128>0,VLOOKUP(T128,'$ alcantarillado'!$I$11:$L$28,4),"0") -> 0.595 | V128: 0.4664976354 | W128: 0.7442545763 | X128: =IF(T128>0,4*V128/(PI()*(U128)^2),"") -> 1.677743767 | Y128: =IF(T128>0,(VLOOKUP($W128,Relaciones!$A$3:$D$107,2)),"") -> 0.961 | Z128: =IF(T128>0,Y128*X128,"") -> 1.61231176 | AA128: 0.53125 | AB128: =IF(T128>0,IF(W128<=$B$13,"OK","No Cumple"),"") -> OK | AC128: =IF(T128>0,IF(Z128>=$B$12,"OK","No Cumple"),"") -> OK | AD128: =IF(T128>0,IF(AA128>=$B$14,"OK","No Cumple"),"") -> OK | AE128: =+IF(AB128="OK",1,0) -> 1 | AF128: =+IF(AC128="OK",1,0) -> 1 | AG128: =+IF(AD128="OK",1,0) -> 1 | AH128: =SUM(AE128:AG128) -> 3 | AI128: =IF(AH128=3,2*$B$7+U128,0) -> 1.095 | AJ128: =IF(AI128>0,I128*VLOOKUP(T128,'$ alcantarillado'!$I$12:$K$28,3),0) -> 7369220.923 | AK128: 1430748.9 | AL128: 1183077.795 | AM128: =IF(AJ128>0,AJ128+AK128+AL128,0) -> 9983047.618 | AN128: =IF(AP98>0,+AP98,0) -> 0 | AO128: =IF((AM128)>0,IF(AN128>0,AM128+AN128,""),"") ->  | AP128: =+MIN(AO128:AO132) -> 0
E129: 2 | F129: =+H103 -> 47.5 | G129: 2 | H129: =+H128 -> 47.5 | I129: =+I128 -> 28 | J129: 0 | K129: =+K128 -> 10521 | L129: 347.193 | M129: =+L129/1000 -> 0.347193 | N129: 0 | O129: 0 | P129: 0 | Q129: =IF(O129>0,VLOOKUP(P129,'$ alcantarillado'!$I$11:$L$28,4),"0") -> 0 | S129: 0 | T129: =+IF(S129>$B$13,VLOOKUP(P129,'$ alcantarillado'!$I$12:$N$28,5),P129) -> 0 | U129: =IF(O129>0,VLOOKUP(T129,'$ alcantarillado'!$I$11:$L$28,4),"0") -> 0 | W129: 0 | X129: =IF(T129>0,4*V129/(PI()*(U129)^2),"") ->  | Y129: =IF(T129>0,(VLOOKUP($W129,Relaciones!$A$3:$D$107,2)),"") ->  | Z129: =IF(T129>0,Y129*X129,"") ->  | AB129: =IF(T129>0,IF(W129<=$B$13,"OK","No Cumple"),"") ->  | AC129: =IF(T129>0,IF(Z129>=$B$12,"OK","No Cumple"),"") ->  | AD129: =IF(T129>0,IF(AA129>=$B$14,"OK","No Cumple"),"") ->  | AE129: =+IF(AB129="OK",1,0) -> 0 | AF129: =+IF(AC129="OK",1,0) -> 0 | AG129: =+IF(AD129="OK",1,0) -> 0 | AH129: =SUM(AE129:AG129) -> 0 | AI129: =IF(AH129=3,2*$B$7+U129,0) -> 0 | AJ129: =IF(AI129>0,I129*VLOOKUP(T129,'$ alcantarillado'!$I$12:$K$28,3),0) -> 0 | AK129: 0 | AL129: 0 | AM129: 0 | AN129: =+AP103 -> 0 | AO129: =IF((AM129)>0,IF(AN129>0,AM129+AN129,""),"") -> 
E130: 3 | F130: =+H108 -> 47.4 | G130: 2 | H130: =+H129 -> 47.5 | I130: =+I129 -> 28 | J130: -0.003571428571 | K130: =+K129 -> 10521 | L130: 347.193 | M130: 0.347193 | N130: 0 | O130: 0 | P130: 0 | Q130: =IF(O130>0,VLOOKUP(P130,'$ alcantarillado'!$I$11:$L$28,4),"0") -> 0 | S130: 0 | T130: =IF(S130>$B$13,VLOOKUP(P130,'$ alcantarillado'!$I$12:$N$28,5),P130) -> 0 | U130: =IF(O130>0,VLOOKUP(T130,'$ alcantarillado'!$I$11:$L$28,4),"0") -> 0 | W130: 0 | Y130: =IF(T130>0,(VLOOKUP($W130,Relaciones!$A$3:$D$107,2)),"") ->  | AD130: =IF(T130>0,IF(AA130>=$B$14,"OK","No Cumple"),"") ->  | AE130: 0 | AF130: 0 | AG130: 0 | AH130: 0 | AI130: 0 | AJ130: =IF(AI130>0,I130*VLOOKUP(T130,'$ alcantarillado'!$I$12:$K$28,3),0) -> 0 | AK130: 0 | AL130: 0 | AM130: 0 | AN130: =+AP108 -> 0
E131: 4 | F131: =+H113 -> 47.3 | G131: 2 | H131: 47.5 | I131: =+I130 -> 28 | J131: =+(F131-H131)/I131 -> -0.007142857143 | K131: 10521 | L131: 347.193 | M131: 0.347193 | N131: 0 | O131: 0 | P131: 0 | Q131: =IF(O131>0,VLOOKUP(P131,'$ alcantarillado'!$I$11:$L$28,4),"0") -> 0 | S131: 0 | T131: =IF(S131>$B$13,VLOOKUP(P131,'$ alcantarillado'!$I$12:$N$28,5),P131) -> 0 | U131: =IF(O131>0,VLOOKUP(T131,'$ alcantarillado'!$I$11:$L$28,4),"0") -> 0 | W131: 0 | Y131: =IF(T131>0,(VLOOKUP($W131,Relaciones!$A$3:$D$107,2)),"") ->  | AE131: 0 | AF131: 0 | AG131: 0 | AH131: 0 | AI131: 0 | AJ131: =IF(AI131>0,I131*VLOOKUP(T131,'$ alcantarillado'!$I$12:$K$28,3),0) -> 0 | AK131: 0 | AL131: 0 | AM131: 0 | AN131: =+AP113 -> 25737695.44
E132: 5 | F132: =+H118 -> 47.2 | G132: 2 | H132: =+H131 -> 47.5 | I132: =+I131 -> 28 | J132: -0.01071428571 | K132: =+K131 -> 10521 | L132: 347.193 | M132: 0.347193 | N132: 0 | O132: 0 | P132: 0 | Q132: =IF(O132>0,VLOOKUP(P132,'$ alcantarillado'!$I$11:$L$28,4),"0") -> 0 | S132: 0 | T132: =IF(S132>$B$13,VLOOKUP(P132,'$ alcantarillado'!$I$12:$N$28,5),P132) -> 0 | U132: =IF(O132>0,VLOOKUP(T132,'$ alcantarillado'!$I$11:$L$28,4),"0") -> 0 | W132: 0 | Y132: =IF(T132>0,(VLOOKUP($W132,Relaciones!$A$3:$D$107,2)),"") ->  | AE132: 0 | AF132: 0 | AG132: 0 | AH132: 0 | AI132: 0 | AJ132: =IF(AI132>0,I132*VLOOKUP(T132,'$ alcantarillado'!$I$12:$K$28,3),0) -> 0 | AK132: 0 | AL132: 0 | AM132: 0 | AN132: =+AP118 -> 23428776.69
E133: 1 | F133: =+H98 -> 47.6 | G133: 3 | H133: =+H128-$B$4 -> 47.4 | I133: =+I132 -> 28 | J133: =+(F133-H133)/I133 -> 0.007142857143 | K133: =+K132 -> 10521 | L133: =0.033*K133 -> 347.193 | M133: =+L133/1000 -> 0.347193 | N133: 0.4677021961 | O133: 18.41347229 | P133: 20 | Q133: =IF(O133>0,VLOOKUP(P133,'$ alcantarillado'!$I$11:$L$28,4),"0") -> 0.452 | R133: 0.3169725805 | S133: 1.0953408 | T133: =+IF(S133>$B$13,VLOOKUP(P133,'$ alcantarillado'!$I$12:$N$28,5),P133) -> 24 | U133: =IF(O133>0,VLOOKUP(T133,'$ alcantarillado'!$I$11:$L$28,4),"0") -> 0.595 | V133: 0.6597272828 | W133: 0.5262674578 | X133: =IF(T133>0,4*V133/(PI()*(U133)^2),"") -> 2.372687989 | Y133: =IF(T133>0,(VLOOKUP($W133,Relaciones!$A$3:$D$107,2)),"") -> 0.86 | Z133: =IF(T133>0,Y133*X133,"") -> 2.04051167 | AA133: 1.0625 | AB133: =IF(T133>0,IF(W133<=$B$13,"OK","No Cumple"),"") -> OK | AC133: =IF(T133>0,IF(Z133>=$B$12,"OK","No Cumple"),"") -> OK | AD133: =IF(T133>0,IF(AA133>=$B$14,"OK","No Cumple"),"") -> OK | AE133: =+IF(AB133="OK",1,0) -> 1 | AF133: =+IF(AC133="OK",1,0) -> 1 | AG133: =+IF(AD133="OK",1,0) -> 1 | AH133: =SUM(AE133:AG133) -> 3 | AI133: =IF(AH133=3,2*$B$7+U133,0) -> 1.095 | AJ133: =IF(AI133>0,I133*VLOOKUP(T133,'$ alcantarillado'!$I$12:$K$28,3),0) -> 7369220.923 | AK133: 1458342.9 | AL133: 1183077.795 | AM133: =IF(AJ133>0,AJ133+AK133+AL133,0) -> 10010641.62 | AN133: =IF(AP98>0,+AP98,0) -> 0 | AO133: =IF((AM133)>0,IF(AN133>0,AM133+AN133,""),"") ->  | AP133: =+MIN(AO133:AO137) -> 0
E134: 2 | F134: =+H103 -> 47.5 | G134: 3 | H134: =+H133 -> 47.4 | I134: =+I133 -> 28 | J134: 0.003571428571 | K134: =+K133 -> 10521 | L134: 347.193 | M134: =+L134/1000 -> 0.347193 | N134: 0.5326139454 | O134: 20.96905297 | P134: 22 | Q134: =IF(O134>0,VLOOKUP(P134,'$ alcantarillado'!$I$11:$L$28,4),"0") -> 0.452 | R134: 0.2241334611 | S134: 1.549045815 | T134: =+IF(S134>$B$13,VLOOKUP(P134,'$ alcantarillado'!$I$12:$N$28,5),P134) -> 24 | U134: =IF(O134>0,VLOOKUP(T134,'$ alcantarillado'!$I$11:$L$28,4),"0") -> 0.595 | V134: 0.4664976354 | W134: 0.7442545763 | X134: =IF(T134>0,4*V134/(PI()*(U134)^2),"") -> 1.677743767 | Y134: =IF(T134>0,(VLOOKUP($W134,Relaciones!$A$3:$D$107,2)),"") -> 0.961 | Z134: =IF(T134>0,Y134*X134,"") -> 1.61231176 | AA134: 0.53125 | AB134: =IF(T134>0,IF(W134<=$B$13,"OK","No Cumple"),"") -> OK | AC134: =IF(T134>0,IF(Z134>=$B$12,"OK","No Cumple"),"") -> OK | AD134: =IF(T134>0,IF(AA134>=$B$14,"OK","No Cumple"),"") -> OK | AE134: =+IF(AB134="OK",1,0) -> 1 | AF134: =+IF(AC134="OK",1,0) -> 1 | AG134: =+IF(AD134="OK",1,0) -> 1 | AH134: =SUM(AE134:AG134) -> 3 | AI134: =IF(AH134=3,2*$B$7+U134,0) -> 1.095 | AJ134: =IF(AI134>0,I134*VLOOKUP(T134,'$ alcantarillado'!$I$12:$K$28,3),0) -> 7369220.923 | AK134: 1513530.9 | AL134: 1252875.895 | AM134: 10135627.72 | AN134: =+AP103 -> 0 | AO134: =IF((AM134)>0,IF(AN134>0,AM134+AN134,""),"") -> 
E135: 3 | F135: =+H108 -> 47.4 | G135: 3 | H135: =+H134 -> 47.4 | I135: =+I134 -> 28 | J135: 0 | K135: =+K134 -> 10521 | L135: 347.193 | M135: 0.347193 | N135: 0 | O135: 0 | P135: 0 | Q135: =IF(O135>0,VLOOKUP(P135,'$ alcantarillado'!$I$11:$L$28,4),"0") -> 0 | S135: 0 | T135: =IF(S135>$B$13,VLOOKUP(P135,'$ alcantarillado'!$I$12:$N$28,5),P135) -> 0 | U135: =IF(O135>0,VLOOKUP(T135,'$ alcantarillado'!$I$11:$L$28,4),"0") -> 0 | W135: 0 | Y135: =IF(T135>0,(VLOOKUP($W135,Relaciones!$A$3:$D$107,2)),"") ->  | AD135: =IF(T135>0,IF(AA135>=$B$14,"OK","No Cumple"),"") ->  | AE135: 0 | AF135: 0 | AG135: 0 | AH135: 0 | AI135: 0 | AJ135: =IF(AI135>0,I135*VLOOKUP(T135,'$ alcantarillado'!$I$12:$K$28,3),0) -> 0 | AK135: 0 | AL135: 0 | AM135: 0 | AN135: =+AP108 -> 0
E136: 4 | F136: =+H113 -> 47.3 | G136: 3 | H136: 47.4 | I136: =+I135 -> 28 | J136: =+(F136-H136)/I136 -> -0.003571428571 | K136: 10521 | L136: 347.193 | M136: 0.347193 | N136: 0 | O136: 0 | P136: 0 | Q136: =IF(O136>0,VLOOKUP(P136,'$ alcantarillado'!$I$11:$L$28,4),"0") -> 0 | S136: 0 | T136: =IF(S136>$B$13,VLOOKUP(P136,'$ alcantarillado'!$I$12:$N$28,5),P136) -> 0 | U136: =IF(O136>0,VLOOKUP(T136,'$ alcantarillado'!$I$11:$L$28,4),"0") -> 0 | W136: 0 | Y136: =IF(T136>0,(VLOOKUP($W136,Relaciones!$A$3:$D$107,2)),"") ->  | AE136: 0 | AF136: 0 | AG136: 0 | AH136: 0 | AI136: 0 | AJ136: =IF(AI136>0,I136*VLOOKUP(T136,'$ alcantarillado'!$I$12:$K$28,3),0) -> 0 | AK136: 0 | AL136: 0 | AM136: 0 | AN136: =+AP113 -> 25737695.44
E137: 5 | F137: =+H118 -> 47.2 | G137: 3 | H137: =+H136 -> 47.4 | I137: =+I136 -> 28 | J137: -0.007142857143 | K137: =+K136 -> 10521 | L137: 347.193 | M137: 0.347193 | N137: 0 | O137: 0 | P137: 0 | Q137: =IF(O137>0,VLOOKUP(P137,'$ alcantarillado'!$I$11:$L$28,4),"0") -> 0 | S137: 0 | T137: =IF(S137>$B$13,VLOOKUP(P137,'$ alcantarillado'!$I$12:$N$28,5),P137) -> 0 | U137: =IF(O137>0,VLOOKUP(T137,'$ alcantarillado'!$I$11:$L$28,4),"0") -> 0 | W137: 0 | Y137: =IF(T137>0,(VLOOKUP($W137,Relaciones!$A$3:$D$107,2)),"") ->  | AE137: 0 | AF137: 0 | AG137: 0 | AH137: 0 | AI137: 0 | AJ137: =IF(AI137>0,I137*VLOOKUP(T137,'$ alcantarillado'!$I$12:$K$28,3),0) -> 0 | AK137: 0 | AL137: 0 | AM137: 0 | AN137: =+AP118 -> 23428776.69
E138: 1 | F138: =+H98 -> 47.6 | G138: 4 | H138: =+H133-$B$4 -> 47.3 | I138: =+I133 -> 28 | J138: =+(F138-H138)/I138 -> 0.01071428571 | K138: =+K133 -> 10521 | L138: =0.033*K138 -> 347.193 | M138: =+L138/1000 -> 0.347193 | N138: 0.4334632652 | O138: 17.06548288 | P138: 18 | Q138: =IF(O138>0,VLOOKUP(P138,'$ alcantarillado'!$I$11:$L$28,4),"0") -> 0.407 | R138: 0.293505734 | S138: 1.182917265 | T138: =+IF(S138>$B$13,VLOOKUP(P138,'$ alcantarillado'!$I$12:$N$28,5),P138) -> 20 | U138: =IF(O138>0,VLOOKUP(T138,'$ alcantarillado'!$I$11:$L$28,4),"0") -> 0.452 | V138: 0.3882105423 | W138: 0.8943420184 | X138: =IF(T138>0,4*V138/(PI()*(U138)^2),"") -> 2.419360434 | Y138: =IF(T138>0,(VLOOKUP($W138,Relaciones!$A$3:$D$107,2)),"") -> 1.015 | Z138: =IF(T138>0,Y138*X138,"") -> 2.455650841 | AA138: 1.210714286 | AB138: =IF(T138>0,IF(W138<=$B$13,"OK","No Cumple"),"") -> OK | AC138: =IF(T138>0,IF(Z138>=$B$12,"OK","No Cumple"),"") -> OK | AD138: =IF(T138>0,IF(AA138>=$B$14,"OK","No Cumple"),"") -> OK | AE138: =+IF(AB138="OK",1,0) -> 1 | AF138: =+IF(AC138="OK",1,0) -> 1 | AG138: =+IF(AD138="OK",1,0) -> 1 | AH138: =SUM(AE138:AG138) -> 3 | AI138: =IF(AH138=3,2*$B$7+U138,0) -> 0.952 | AJ138: =IF(AI138>0,I138*VLOOKUP(T138,'$ alcantarillado'!$I$12:$K$28,3),0) -> 5365691.333 | AK138: 1188964.224 | AL138: 1083266.512 | AM138: =IF(AJ138>0,AJ138+AK138+AL138,0) -> 7637922.069 | AN138: =IF(AP98>0,+AP98,0) -> 0 | AO138: =IF((AM138)>0,IF(AN138>0,AM138+AN138,""),"") ->  | AP138: =+MIN(AO138:AO142) -> 0
E139: 2 | F139: =+H103 -> 47.5 | G139: 4 | H139: =+H138 -> 47.3 | I139: =+I138 -> 28 | J139: 0.007142857143 | K139: =+K138 -> 10521 | L139: 347.193 | M139: =+L139/1000 -> 0.347193 | N139: 0.4677021961 | O139: 18.41347229 | P139: 20 | Q139: =IF(O139>0,VLOOKUP(P139,'$ alcantarillado'!$I$11:$L$28,4),"0") -> 0.452 | R139: 0.3169725805 | S139: 1.0953408 | T139: =+IF(S139>$B$13,VLOOKUP(P139,'$ alcantarillado'!$I$12:$N$28,5),P139) -> 24 | U139: =IF(O139>0,VLOOKUP(T139,'$ alcantarillado'!$I$11:$L$28,4),"0") -> 0.595 | V139: 0.6597272828 | W139: 0.5262674578 | X139: =IF(T139>0,4*V139/(PI()*(U139)^2),"") -> 2.372687989 | Y139: =IF(T139>0,(VLOOKUP($W139,Relaciones!$A$3:$D$107,2)),"") -> 0.86 | Z139: =IF(T139>0,Y139*X139,"") -> 2.04051167 | AA139: 1.0625 | AB139: =IF(T139>0,IF(W139<=$B$13,"OK","No Cumple"),"") -> OK | AC139: =IF(T139>0,IF(Z139>=$B$12,"OK","No Cumple"),"") -> OK | AD139: =IF(T139>0,IF(AA139>=$B$14,"OK","No Cumple"),"") -> OK | AE139: =+IF(AB139="OK",1,0) -> 1 | AF139: =+IF(AC139="OK",1,0) -> 1 | AG139: =+IF(AD139="OK",1,0) -> 1 | AH139: =SUM(AE139:AG139) -> 3 | AI139: =IF(AH139=3,2*$B$7+U139,0) -> 1.095 | AJ139: =IF(AI139>0,I139*VLOOKUP(T139,'$ alcantarillado'!$I$12:$K$28,3),0) -> 7369220.923 | AK139: 1541124.9 | AL139: 1252875.895 | AM139: 10163221.72 | AN139: =+AP103 -> 0 | AO139: =IF((AM139)>0,IF(AN139>0,AM139+AN139,""),"") -> 
E140: 3 | F140: =+H108 -> 47.4 | G140: 4 | H140: =+H139 -> 47.3 | I140: =+I139 -> 28 | J140: 0.003571428571 | K140: =+K139 -> 10521 | L140: 347.193 | M140: 0.347193 | N140: 0.5326139454 | O140: 20.96905297 | P140: 22 | Q140: =IF(O140>0,VLOOKUP(P140,'$ alcantarillado'!$I$11:$L$28,4),"0") -> 0.452 | R140: 0.2241334611 | S140: 1.549045815 | T140: =IF(S140>$B$13,VLOOKUP(P140,'$ alcantarillado'!$I$12:$N$28,5),P140) -> 24 | U140: =IF(O140>0,VLOOKUP(T140,'$ alcantarillado'!$I$11:$L$28,4),"0") -> 0.595 | V140: 0.4664976354 | W140: 0.7442545763 | X140: 1.677743767 | Y140: =IF(T140>0,(VLOOKUP($W140,Relaciones!$A$3:$D$107,2)),"") -> 0.961 | Z140: 1.61231176 | AA140: 0.53125 | AB140: OK | AC140: OK | AD140: =IF(T140>0,IF(AA140>=$B$14,"OK","No Cumple"),"") -> OK | AE140: 1 | AF140: 1 | AG140: 1 | AH140: 3 | AI140: 1.095 | AJ140: =IF(AI140>0,I140*VLOOKUP(T140,'$ alcantarillado'!$I$12:$K$28,3),0) -> 7369220.923 | AK140: 1596312.9 | AL140: 1322673.995 | AM140: 10288207.82 | AN140: =+AP108 -> 0
E141: 4 | F141: =+H113 -> 47.3 | G141: 4 | H141: 47.3 | I141: =+I140 -> 28 | J141: =+(F141-H141)/I141 -> 0 | K141: 10521 | L141: 347.193 | M141: 0.347193 | N141: 0 | O141: 0 | P141: 0 | Q141: =IF(O141>0,VLOOKUP(P141,'$ alcantarillado'!$I$11:$L$28,4),"0") -> 0 | S141: 0 | T141: =IF(S141>$B$13,VLOOKUP(P141,'$ alcantarillado'!$I$12:$N$28,5),P141) -> 0 | U141: =IF(O141>0,VLOOKUP(T141,'$ alcantarillado'!$I$11:$L$28,4),"0") -> 0 | W141: 0 | Y141: =IF(T141>0,(VLOOKUP($W141,Relaciones!$A$3:$D$107,2)),"") ->  | AE141: 0 | AF141: 0 | AG141: 0 | AH141: 0 | AI141: 0 | AJ141: =IF(AI141>0,I141*VLOOKUP(T141,'$ alcantarillado'!$I$12:$K$28,3),0) -> 0 | AK141: 0 | AL141: 0 | AM141: 0 | AN141: =+AP113 -> 25737695.44
E142: 5 | F142: =+H118 -> 47.2 | G142: 4 | H142: =+H141 -> 47.3 | I142: =+I141 -> 28 | J142: -0.003571428571 | K142: =+K141 -> 10521 | L142: 347.193 | M142: 0.347193 | N142: 0 | O142: 0 | P142: 0 | Q142: =IF(O142>0,VLOOKUP(P142,'$ alcantarillado'!$I$11:$L$28,4),"0") -> 0 | S142: 0 | T142: =IF(S142>$B$13,VLOOKUP(P142,'$ alcantarillado'!$I$12:$N$28,5),P142) -> 0 | U142: =IF(O142>0,VLOOKUP(T142,'$ alcantarillado'!$I$11:$L$28,4),"0") -> 0 | W142: 0 | Y142: =IF(T142>0,(VLOOKUP($W142,Relaciones!$A$3:$D$107,2)),"") ->  | AE142: 0 | AF142: 0 | AG142: 0 | AH142: 0 | AI142: 0 | AJ142: =IF(AI142>0,I142*VLOOKUP(T142,'$ alcantarillado'!$I$12:$K$28,3),0) -> 0 | AK142: 0 | AL142: 0 | AM142: 0 | AN142: =+AP118 -> 23428776.69
E143: 1 | F143: =+H98 -> 47.6 | G143: 5 | H143: =+H138-$B$4 -> 47.2 | I143: =+I138 -> 28 | J143: =+(F143-H143)/I143 -> 0.01428571429 | K143: =+K138 -> 10521 | L143: =0.033*K143 -> 347.193 | M143: =+L143/1000 -> 0.347193 | N143: 0.4107014962 | O143: 16.16935024 | P143: 18 | Q143: =IF(O143>0,VLOOKUP(P143,'$ alcantarillado'!$I$11:$L$28,4),"0") -> 0.407 | R143: 0.338911229 | S143: 1.024436402 | T143: =+IF(S143>$B$13,VLOOKUP(P143,'$ alcantarillado'!$I$12:$N$28,5),P143) -> 20 | U143: =IF(O143>0,VLOOKUP(T143,'$ alcantarillado'!$I$11:$L$28,4),"0") -> 0.452 | V143: 0.4482669222 | W143: 0.7745229076 | X143: =IF(T143>0,4*V143/(PI()*(U143)^2),"") -> 2.793636796 | Y143: =IF(T143>0,(VLOOKUP($W143,Relaciones!$A$3:$D$107,2)),"") -> 0.972 | Z143: =IF(T143>0,Y143*X143,"") -> 2.715414966 | AA143: 1.614285714 | AB143: =IF(T143>0,IF(W143<=$B$13,"OK","No Cumple"),"") -> OK | AC143: =IF(T143>0,IF(Z143>=$B$12,"OK","No Cumple"),"") -> OK | AD143: =IF(T143>0,IF(AA143>=$B$14,"OK","No Cumple"),"") -> OK | AE143: =+IF(AB143="OK",1,0) -> 1 | AF143: =+IF(AC143="OK",1,0) -> 1 | AG143: =+IF(AD143="OK",1,0) -> 1 | AH143: =SUM(AE143:AG143) -> 3 | AI143: =IF(AH143=3,2*$B$7+U143,0) -> 0.952 | AJ143: =IF(AI143>0,I143*VLOOKUP(T143,'$ alcantarillado'!$I$12:$K$28,3),0) -> 5365691.333 | AK143: 1212954.624 | AL143: 1083266.512 | AM143: =IF(AJ143>0,AJ143+AK143+AL143,0) -> 7661912.469 | AN143: =IF(AP98>0,+AP98,0) -> 0 | AO143: =IF((AM143)>0,IF(AN143>0,AM143+AN143,""),"") ->  | AP143: =+MIN(AO143:AO147) -> 36178483.36
E144: 2 | F144: =+H103 -> 47.5 | G144: 5 | H144: =+H143 -> 47.2 | I144: =+I143 -> 28 | J144: 0.01071428571 | K144: =+K143 -> 10521 | L144: 347.193 | M144: =+L144/1000 -> 0.347193 | N144: 0.4334632652 | O144: 17.06548288 | P144: 18 | Q144: =IF(O144>0,VLOOKUP(P144,'$ alcantarillado'!$I$11:$L$28,4),"0") -> 0.407 | R144: 0.293505734 | S144: 1.182917265 | T144: =+IF(S144>$B$13,VLOOKUP(P144,'$ alcantarillado'!$I$12:$N$28,5),P144) -> 20 | U144: =IF(O144>0,VLOOKUP(T144,'$ alcantarillado'!$I$11:$L$28,4),"0") -> 0.452 | V144: 0.3882105423 | W144: 0.8943420184 | X144: =IF(T144>0,4*V144/(PI()*(U144)^2),"") -> 2.419360434 | Y144: =IF(T144>0,(VLOOKUP($W144,Relaciones!$A$3:$D$107,2)),"") -> 1.015 | Z144: =IF(T144>0,Y144*X144,"") -> 2.455650841 | AA144: 1.210714286 | AB144: =IF(T144>0,IF(W144<=$B$13,"OK","No Cumple"),"") -> OK | AC144: =IF(T144>0,IF(Z144>=$B$12,"OK","No Cumple"),"") -> OK | AD144: =IF(T144>0,IF(AA144>=$B$14,"OK","No Cumple"),"") -> OK | AE144: =+IF(AB144="OK",1,0) -> 1 | AF144: =+IF(AC144="OK",1,0) -> 1 | AG144: =+IF(AD144="OK",1,0) -> 1 | AH144: =SUM(AE144:AG144) -> 3 | AI144: =IF(AH144=3,2*$B$7+U144,0) -> 0.952 | AJ144: =IF(AI144>0,I144*VLOOKUP(T144,'$ alcantarillado'!$I$12:$K$28,3),0) -> 5365691.333 | AK144: 1260935.424 | AL144: 1153064.612 | AM144: 7779691.369 | AN144: =+AP103 -> 0 | AO144: =IF((AM144)>0,IF(AN144>0,AM144+AN144,""),"") -> 
E145: 3 | F145: =+H108 -> 47.4 | G145: 5 | H145: =+H144 -> 47.2 | I145: =+I144 -> 28 | J145: 0.007142857143 | K145: =+K144 -> 10521 | L145: 347.193 | M145: 0.347193 | N145: 0.4677021961 | O145: 18.41347229 | P145: 20 | Q145: =IF(O145>0,VLOOKUP(P145,'$ alcantarillado'!$I$11:$L$28,4),"0") -> 0.452 | R145: 0.3169725805 | S145: 1.0953408 | T145: =IF(S145>$B$13,VLOOKUP(P145,'$ alcantarillado'!$I$12:$N$28,5),P145) -> 24 | U145: =IF(O145>0,VLOOKUP(T145,'$ alcantarillado'!$I$11:$L$28,4),"0") -> 0.595 | V145: 0.6597272828 | W145: 0.5262674578 | X145: 2.372687989 | Y145: =IF(T145>0,(VLOOKUP($W145,Relaciones!$A$3:$D$107,2)),"") -> 0.86 | Z145: 2.04051167 | AA145: 1.0625 | AB145: OK | AC145: OK | AD145: =IF(T145>0,IF(AA145>=$B$14,"OK","No Cumple"),"") -> OK | AE145: 1 | AF145: 1 | AG145: 1 | AH145: 3 | AI145: 1.095 | AJ145: =IF(AI145>0,I145*VLOOKUP(T145,'$ alcantarillado'!$I$12:$K$28,3),0) -> 7369220.923 | AK145: 1623906.9 | AL145: 1322673.995 | AM145: 10315801.82 | AN145: =+AP108 -> 0 | AQ145: 4 | AR145: 5
E146: 4 | F146: =+H113 -> 47.3 | G146: 5 | H146: 47.2 | I146: =+I145 -> 28 | J146: =+(F146-H146)/I146 -> 0.003571428571 | K146: 10521 | L146: 347.193 | M146: 0.347193 | N146: 0.5326139454 | O146: 20.96905297 | P146: 22 | Q146: =IF(O146>0,VLOOKUP(P146,'$ alcantarillado'!$I$11:$L$28,4),"0") -> 0.452 | R146: 0.2241334611 | S146: 1.549045815 | T146: =IF(S146>$B$13,VLOOKUP(P146,'$ alcantarillado'!$I$12:$N$28,5),P146) -> 24 | U146: =IF(O146>0,VLOOKUP(T146,'$ alcantarillado'!$I$11:$L$28,4),"0") -> 0.595 | V146: 0.4664976354 | W146: 0.7442545763 | X146: 1.677743767 | Y146: =IF(T146>0,(VLOOKUP($W146,Relaciones!$A$3:$D$107,2)),"") -> 0.961 | Z146: 1.61231176 | AA146: 0.53125 | AB146: OK | AC146: OK | AD146: OK | AE146: 1 | AF146: 1 | AG146: 1 | AH146: 3 | AI146: 1.095 | AJ146: =IF(AI146>0,I146*VLOOKUP(T146,'$ alcantarillado'!$I$12:$K$28,3),0) -> 7369220.923 | AK146: 1679094.9 | AL146: 1392472.095 | AM146: 10440787.92 | AN146: =+AP113 -> 25737695.44 | AO146: 36178483.36
E147: 5 | F147: =+H118 -> 47.2 | G147: 5 | H147: =+H146 -> 47.2 | I147: =+I146 -> 28 | J147: 0 | K147: =+K146 -> 10521 | L147: 347.193 | M147: 0.347193 | N147: 0 | O147: 0 | P147: 0 | Q147: =IF(O147>0,VLOOKUP(P147,'$ alcantarillado'!$I$11:$L$28,4),"0") -> 0 | S147: 0 | T147: =IF(S147>$B$13,VLOOKUP(P147,'$ alcantarillado'!$I$12:$N$28,5),P147) -> 0 | U147: =IF(O147>0,VLOOKUP(T147,'$ alcantarillado'!$I$11:$L$28,4),"0") -> 0 | W147: 0 | Y147: =IF(T147>0,(VLOOKUP($W147,Relaciones!$A$3:$D$107,2)),"") ->  | AE147: 0 | AF147: 0 | AG147: 0 | AH147: 0 | AI147: 0 | AJ147: =IF(AI147>0,I147*VLOOKUP(T147,'$ alcantarillado'!$I$12:$K$28,3),0) -> 0 | AK147: 0 | AL147: 0 | AM147: 0 | AN147: =+AP118 -> 23428776.69
A148: 5 | B148: =+C123 -> 6 | C148: 7 | D148: 48.7 | E148: 1 | F148: =+H123 -> 47.6 | G148: 1 | H148: =+$D$173-$B$5-$B$4 -> 47.4 | I148: 28 | J148: =+(F148-H148)/I148 -> 0.007142857143 | K148: =+K123+2150 -> 12671 | L148: =0.033*K148 -> 418.143 | M148: =+L148/1000 -> 0.418143 | N148: =+IF(J148>0,((M148*$B$2*(4^(5/3))/((J148^0.5)*PI()*$B$6))^(3/8)),0) -> 0.5014782603 | O148: =+N148*(100/2.54) -> 19.74323859 | P148: =IF(O148<0.1,0,IF(O148<4,6,EVEN(O148))) -> 20 | Q148: =IF(O148>0,VLOOKUP(P148,'$ alcantarillado'!$I$11:$L$28,4),"0") -> 0.452 | R148: =IF(P148>0,PI()*((Q148)^(8/3))*((J148)^0.5)/($B$2*4^(5/3)),"") -> 0.3169725805 | S148: =IF(P148>0,+M148/R148,0) -> 1.319177196 | T148: =+IF(S148>$B$13,VLOOKUP(P148,'$ alcantarillado'!$I$12:$N$28,5),P148) -> 24 | U148: =IF(O148>0,VLOOKUP(T148,'$ alcantarillado'!$I$11:$L$28,4),"0") -> 0.595 | V148: 0.6597272828 | W148: 0.633811896 | X148: =IF(T148>0,4*V148/(PI()*(U148)^2),"") -> 2.372687989 | Y148: =IF(T148>0,(VLOOKUP($W148,Relaciones!$A$3:$D$107,2)),"") -> 0.913 | Z148: =IF(T148>0,Y148*X148,"") -> 2.166264134 | AA148: 1.0625 | AB148: =IF(T148>0,IF(W148<=$B$13,"OK","No Cumple"),"") -> OK | AC148: =IF(T148>0,IF(Z148>=$B$12,"OK","No Cumple"),"") -> OK | AD148: =IF(T148>0,IF(AA148>=$B$14,"OK","No Cumple"),"") -> OK | AE148: =+IF(AB148="OK",1,0) -> 1 | AF148: =+IF(AC148="OK",1,0) -> 1 | AG148: =+IF(AD148="OK",1,0) -> 1 | AH148: =SUM(AE148:AG148) -> 3 | AI148: =IF(AH148=3,2*$B$7+U148,0) -> 1.095 | AJ148: =IF(AI148>0,I148*VLOOKUP(T148,'$ alcantarillado'!$I$12:$K$28,3),0) -> 7369220.923 | AK148: =IF(N148>0,((($D$148-F148)+(U148))+(($D$173-H148)+(U148))/2)*AI148*I148*$C$9,0) -> 1403154.9 | AL148: =IF(AI148>0,(($D$148-F148)+U148)*$C$10,0) -> 1183077.795 | AM148: =IF(AJ148>0,AJ148+AK148+AL148,0) -> 9955453.618 | AN148: =IF(AP123>0,+AP123,0) -> 0 | AO148: =IF((AM148)>0,IF(AN148>0,AM148+AN148,""),"") ->  | AP148: =+MIN(AO148:AO152) -> 0
E149: 2 | F149: =+H128 -> 47.5 | G149: 1 | H149: =+H148 -> 47.4 | I149: =+I148 -> 28 | J149: =+(F149-H149)/I149 -> 0.003571428571 | K149: =+K148 -> 12671 | L149: =0.033*K149 -> 418.143 | M149: =+L149/1000 -> 0.418143 | N149: 0.5710777434 | O149: 22.48337572 | P149: 24 | Q149: =IF(O149>0,VLOOKUP(P149,'$ alcantarillado'!$I$11:$L$28,4),"0") -> 0.595 | R149: 0.4664976354 | S149: 0.8963453794 | T149: =+IF(S149>$B$13,VLOOKUP(P149,'$ alcantarillado'!$I$12:$N$28,5),P149) -> 24 | U149: =IF(O149>0,VLOOKUP(T149,'$ alcantarillado'!$I$11:$L$28,4),"0") -> 0.595 | V149: 0.4664976354 | W149: 0.8963453794 | X149: =IF(T149>0,4*V149/(PI()*(U149)^2),"") -> 1.677743767 | Y149: =IF(T149>0,(VLOOKUP($W149,Relaciones!$A$3:$D$107,2)),"") -> 1.015 | Z149: =IF(T149>0,Y149*X149,"") -> 1.702909923 | AA149: 0.53125 | AB149: =IF(T149>0,IF(W149<=$B$13,"OK","No Cumple"),"") -> OK | AC149: =IF(T149>0,IF(Z149>=$B$12,"OK","No Cumple"),"") -> OK | AD149: =IF(T149>0,IF(AA149>=$B$14,"OK","No Cumple"),"") -> OK | AE149: =+IF(AB149="OK",1,0) -> 1 | AF149: =+IF(AC149="OK",1,0) -> 1 | AG149: =+IF(AD149="OK",1,0) -> 1 | AH149: =SUM(AE149:AG149) -> 3 | AI149: =IF(AH149=3,2*$B$7+U149,0) -> 1.095 | AJ149: =IF(AI149>0,I149*VLOOKUP(T149,'$ alcantarillado'!$I$12:$K$28,3),0) -> 7369220.923 | AK149: =IF(N149>0,((($D$148-F149)+(U149))+(($D$173-H149)+(U149))/2)*AI149*I149*$C$9,0) -> 1458342.9 | AL149: =IF(AI149>0,(($D$148-F149)+U149)*$C$10,0) -> 1252875.895 | AM149: =IF(AJ149>0,AJ149+AK149+AL149,0) -> 10080439.72 | AN149: =+AP128 -> 0 | AO149: =IF((AM149)>0,IF(AN149>0,AM149+AN149,""),"") -> 
E150: 3 | F150: =+H133 -> 47.4 | G150: 1 | H150: =+H149 -> 47.4 | I150: 28 | J150: 0 | K150: =+K149 -> 12671 | L150: 418.143 | M150: 0.418143 | N150: 0 | O150: 0 | P150: 0 | Q150: =IF(O150>0,VLOOKUP(P150,'$ alcantarillado'!$I$11:$L$28,4),"0") -> 0 | S150: 0 | T150: =IF(S150>$B$13,VLOOKUP(P150,'$ alcantarillado'!$I$12:$N$28,5),P150) -> 0 | U150: =IF(O150>0,VLOOKUP(T150,'$ alcantarillado'!$I$11:$L$28,4),"0") -> 0 | W150: 0 | Y150: =IF(T150>0,(VLOOKUP($W150,Relaciones!$A$3:$D$107,2)),"") ->  | AD150: =IF(T150>0,IF(AA150>=$B$14,"OK","No Cumple"),"") ->  | AE150: 0 | AF150: 0 | AG150: 0 | AH150: 0 | AI150: 0 | AJ150: =IF(AI150>0,I150*VLOOKUP(T150,'$ alcantarillado'!$I$12:$K$28,3),0) -> 0 | AK150: 0 | AL150: 0 | AM150: 0 | AN150: =+AP133 -> 0
E151: 4 | F151: =+H138 -> 47.3 | G151: 1 | H151: 47.4 | I151: 28 | J151: =+(F151-H151)/I151 -> -0.003571428571 | K151: 12671 | L151: 418.143 | M151: 0.418143 | N151: 0 | O151: 0 | P151: 0 | Q151: =IF(O151>0,VLOOKUP(P151,'$ alcantarillado'!$I$11:$L$28,4),"0") -> 0 | S151: 0 | T151: =IF(S151>$B$13,VLOOKUP(P151,'$ alcantarillado'!$I$12:$N$28,5),P151) -> 0 | U151: =IF(O151>0,VLOOKUP(T151,'$ alcantarillado'!$I$11:$L$28,4),"0") -> 0 | W151: 0 | Y151: =IF(T151>0,(VLOOKUP($W151,Relaciones!$A$3:$D$107,2)),"") ->  | AE151: 0 | AF151: 0 | AG151: 0 | AH151: 0 | AI151: 0 | AJ151: =IF(AI151>0,I151*VLOOKUP(T151,'$ alcantarillado'!$I$12:$K$28,3),0) -> 0 | AK151: 0 | AL151: 0 | AM151: 0 | AN151: =+AP138 -> 0
E152: 5 | F152: =+H143 -> 47.2 | G152: 1 | H152: 47.4 | I152: =+I151 -> 28 | J152: =+(F152-H152)/I152 -> -0.007142857143 | K152: =+K151 -> 12671 | L152: 418.143 | M152: 0.418143 | N152: 0 | O152: 0 | P152: 0 | Q152: =IF(O152>0,VLOOKUP(P152,'$ alcantarillado'!$I$11:$L$28,4),"0") -> 0 | S152: 0 | T152: =IF(S152>$B$13,VLOOKUP(P152,'$ alcantarillado'!$I$12:$N$28,5),P152) -> 0 | U152: =IF(O152>0,VLOOKUP(T152,'$ alcantarillado'!$I$11:$L$28,4),"0") -> 0 | W152: 0 | Y152: =IF(T152>0,(VLOOKUP($W152,Relaciones!$A$3:$D$107,2)),"") ->  | AE152: 0 | AF152: 0 | AG152: 0 | AH152: 0 | AI152: 0 | AJ152: =IF(AI152>0,I152*VLOOKUP(T152,'$ alcantarillado'!$I$12:$K$28,3),0) -> 0 | AK152: 0 | AL152: 0 | AM152: 0 | AN152: =+AP143 -> 36178483.36
E153: 1 | F153: =+H123 -> 47.6 | G153: 2 | H153: =+H148-$B$4 -> 47.3 | I153: =+I152 -> 28 | J153: =+(F153-H153)/I153 -> 0.01071428571 | K153: =+K152 -> 12671 | L153: =0.033*K153 -> 418.143 | M153: =+L153/1000 -> 0.418143 | N153: 0.4647666954 | O153: 18.29790139 | P153: 20 | Q153: =IF(O153>0,VLOOKUP(P153,'$ alcantarillado'!$I$11:$L$28,4),"0") -> 0.452 | R153: 0.3882105423 | S153: 1.07710367 | T153: =+IF(S153>$B$13,VLOOKUP(P153,'$ alcantarillado'!$I$12:$N$28,5),P153) -> 24 | U153: =IF(O153>0,VLOOKUP(T153,'$ alcantarillado'!$I$11:$L$28,4),"0") -> 0.595 | V153: 0.8079976062 | W153: 0.5175052461 | X153: =IF(T153>0,4*V153/(PI()*(U153)^2),"") -> 2.905937446 | Y153: =IF(T153>0,(VLOOKUP($W153,Relaciones!$A$3:$D$107,2)),"") -> 0.855 | Z153: =IF(T153>0,Y153*X153,"") -> 2.484576516 | AA153: 1.59375 | AB153: =IF(T153>0,IF(W153<=$B$13,"OK","No Cumple"),"") -> OK | AC153: =IF(T153>0,IF(Z153>=$B$12,"OK","No Cumple"),"") -> OK | AD153: =IF(T153>0,IF(AA153>=$B$14,"OK","No Cumple"),"") -> OK | AE153: =+IF(AB153="OK",1,0) -> 1 | AF153: =+IF(AC153="OK",1,0) -> 1 | AG153: =+IF(AD153="OK",1,0) -> 1 | AH153: =SUM(AE153:AG153) -> 3 | AI153: =IF(AH153=3,2*$B$7+U153,0) -> 1.095 | AJ153: =IF(AI153>0,I153*VLOOKUP(T153,'$ alcantarillado'!$I$12:$K$28,3),0) -> 7369220.923 | AK153: 1430748.9 | AL153: 1183077.795 | AM153: =IF(AJ153>0,AJ153+AK153+AL153,0) -> 9983047.618 | AN153: =IF(AP123>0,+AP123,0) -> 0 | AO153: =IF((AM153)>0,IF(AN153>0,AM153+AN153,""),"") ->  | AP153: =+MIN(AO153:AO157) -> 0
E154: 2 | F154: =+H128 -> 47.5 | G154: 2 | H154: =+H153 -> 47.3 | I154: =+I153 -> 28 | J154: =+(F154-H154)/I154 -> 0.007142857143 | K154: =+K153 -> 12671 | L154: 418.143 | M154: =+L154/1000 -> 0.418143 | N154: 0.5014782603 | O154: 19.74323859 | P154: 20 | Q154: =IF(O154>0,VLOOKUP(P154,'$ alcantarillado'!$I$11:$L$28,4),"0") -> 0.452 | R154: 0.3169725805 | S154: 1.319177196 | T154: =+IF(S154>$B$13,VLOOKUP(P154,'$ alcantarillado'!$I$12:$N$28,5),P154) -> 24 | U154: =IF(O154>0,VLOOKUP(T154,'$ alcantarillado'!$I$11:$L$28,4),"0") -> 0.595 | V154: 0.6597272828 | W154: 0.633811896 | X154: =IF(T154>0,4*V154/(PI()*(U154)^2),"") -> 2.372687989 | Y154: =IF(T154>0,(VLOOKUP($W154,Relaciones!$A$3:$D$107,2)),"") -> 0.913 | Z154: =IF(T154>0,Y154*X154,"") -> 2.166264134 | AA154: 1.0625 | AB154: =IF(T154>0,IF(W154<=$B$13,"OK","No Cumple"),"") -> OK | AC154: =IF(T154>0,IF(Z154>=$B$12,"OK","No Cumple"),"") -> OK | AD154: =IF(T154>0,IF(AA154>=$B$14,"OK","No Cumple"),"") -> OK | AE154: =+IF(AB154="OK",1,0) -> 1 | AF154: =+IF(AC154="OK",1,0) -> 1 | AG154: =+IF(AD154="OK",1,0) -> 1 | AH154: =SUM(AE154:AG154) -> 3 | AI154: =IF(AH154=3,2*$B$7+U154,0) -> 1.095 | AJ154: =IF(AI154>0,I154*VLOOKUP(T154,'$ alcantarillado'!$I$12:$K$28,3),0) -> 7369220.923 | AK154: 1485936.9 | AL154: 1252875.895 | AM154: =IF(AJ154>0,AJ154+AK154+AL154,0) -> 10108033.72 | AN154: =+AP128 -> 0 | AO154: =IF((AM154)>0,IF(AN154>0,AM154+AN154,""),"") -> 
E155: 3 | F155: =+H133 -> 47.4 | G155: 2 | H155: =+H154 -> 47.3 | I155: 28 | J155: 0.003571428571 | K155: =+K154 -> 12671 | L155: 418.143 | M155: 0.418143 | N155: 0.5710777434 | O155: 22.48337572 | P155: 24 | Q155: =IF(O155>0,VLOOKUP(P155,'$ alcantarillado'!$I$11:$L$28,4),"0") -> 0.595 | R155: 0.4664976354 | S155: 0.8963453794 | T155: =IF(S155>$B$13,VLOOKUP(P155,'$ alcantarillado'!$I$12:$N$28,5),P155) -> 24 | U155: =IF(O155>0,VLOOKUP(T155,'$ alcantarillado'!$I$11:$L$28,4),"0") -> 0.595 | V155: 0.4664976354 | W155: 0.8963453794 | X155: 1.677743767 | Y155: =IF(T155>0,(VLOOKUP($W155,Relaciones!$A$3:$D$107,2)),"") -> 1.015 | Z155: 1.702909923 | AA155: 0.53125 | AB155: OK | AC155: OK | AD155: =IF(T155>0,IF(AA155>=$B$14,"OK","No Cumple"),"") -> OK | AE155: 1 | AF155: 1 | AG155: 1 | AH155: 3 | AI155: 1.095 | AJ155: =IF(AI155>0,I155*VLOOKUP(T155,'$ alcantarillado'!$I$12:$K$28,3),0) -> 7369220.923 | AK155: 1541124.9 | AL155: 1322673.995 | AM155: 10233019.82 | AN155: =+AP133 -> 0
E156: 4 | F156: =+H138 -> 47.3 | G156: 2 | H156: 47.3 | I156: 28 | J156: =+(F156-H156)/I156 -> 0 | K156: 12671 | L156: 418.143 | M156: 0.418143 | N156: 0 | O156: 0 | P156: 0 | Q156: =IF(O156>0,VLOOKUP(P156,'$ alcantarillado'!$I$11:$L$28,4),"0") -> 0 | S156: 0 | T156: =IF(S156>$B$13,VLOOKUP(P156,'$ alcantarillado'!$I$12:$N$28,5),P156) -> 0 | U156: =IF(O156>0,VLOOKUP(T156,'$ alcantarillado'!$I$11:$L$28,4),"0") -> 0 | V156: =IF(T156>0,PI()*((U156)^(8/3))*((J156)^0.5)/($B$2*4^(5/3)),"") ->  | W156: =IF(P156>0,M156/V156,0) -> 0 | Y156: =IF(T156>0,(VLOOKUP($W156,Relaciones!$A$3:$D$107,2)),"") ->  | AA156: =IF(T156>0,250*U156*J156,"") ->  | AE156: 0 | AF156: 0 | AG156: 0 | AH156: 0 | AI156: 0 | AJ156: =IF(AI156>0,I156*VLOOKUP(T156,'$ alcantarillado'!$I$12:$K$28,3),0) -> 0 | AK156: 0 | AL156: 0 | AM156: 0 | AN156: =+AP138 -> 0
E157: 5 | F157: =+H143 -> 47.2 | G157: 2 | H157: =+H156 -> 47.3 | I157: =+I156 -> 28 | J157: =+(F157-H157)/I157 -> -0.003571428571 | K157: =+K156 -> 12671 | L157: 418.143 | M157: 0.418143 | N157: 0 | O157: 0 | P157: 0 | Q157: =IF(O157>0,VLOOKUP(P157,'$ alcantarillado'!$I$11:$L$28,4),"0") -> 0 | S157: 0 | T157: =IF(S157>$B$13,VLOOKUP(P157,'$ alcantarillado'!$I$12:$N$28,5),P157) -> 0 | U157: =IF(O157>0,VLOOKUP(T157,'$ alcantarillado'!$I$11:$L$28,4),"0") -> 0 | W157: 0 | Y157: =IF(T157>0,(VLOOKUP($W157,Relaciones!$A$3:$D$107,2)),"") ->  | AE157: 0 | AF157: 0 | AG157: 0 | AH157: 0 | AI157: 0 | AJ157: =IF(AI157>0,I157*VLOOKUP(T157,'$ alcantarillado'!$I$12:$K$28,3),0) -> 0 | AK157: 0 | AL157: 0 | AM157: 0 | AN157: =+AP143 -> 36178483.36
E158: 1 | F158: =+H123 -> 47.6 | G158: 3 | H158: =+H153-$B$4 -> 47.2 | I158: =+I157 -> 28 | J158: =+(F158-H158)/I158 -> 0.01428571429 | K158: =+K157 -> 12671 | L158: =0.033*K158 -> 418.143 | M158: =+L158/1000 -> 0.418143 | N158: 0.440361139 | O158: 17.33705272 | P158: 18 | Q158: =IF(O158>0,VLOOKUP(P158,'$ alcantarillado'!$I$11:$L$28,4),"0") -> 0.407 | R158: 0.338911229 | S158: 1.233783257 | T158: =+IF(S158>$B$13,VLOOKUP(P158,'$ alcantarillado'!$I$12:$N$28,5),P158) -> 20 | U158: =IF(O158>0,VLOOKUP(T158,'$ alcantarillado'!$I$11:$L$28,4),"0") -> 0.452 | V158: 0.4482669222 | W158: 0.932799141 | X158: =IF(T158>0,4*V158/(PI()*(U158)^2),"") -> 2.793636796 | Y158: =IF(T158>0,(VLOOKUP($W158,Relaciones!$A$3:$D$107,2)),"") -> 1.027 | Z158: =IF(T158>0,Y158*X158,"") -> 2.86906499 | AA158: 1.614285714 | AB158: =IF(T158>0,IF(W158<=$B$13,"OK","No Cumple"),"") -> OK | AC158: =IF(T158>0,IF(Z158>=$B$12,"OK","No Cumple"),"") -> OK | AD158: =IF(T158>0,IF(AA158>=$B$14,"OK","No Cumple"),"") -> OK | AE158: =+IF(AB158="OK",1,0) -> 1 | AF158: =+IF(AC158="OK",1,0) -> 1 | AG158: =+IF(AD158="OK",1,0) -> 1 | AH158: =SUM(AE158:AG158) -> 3 | AI158: =IF(AH158=3,2*$B$7+U158,0) -> 0.952 | AJ158: =IF(AI158>0,I158*VLOOKUP(T158,'$ alcantarillado'!$I$12:$K$28,3),0) -> 5365691.333 | AK158: 1164973.824 | AL158: 1083266.512 | AM158: =IF(AJ158>0,AJ158+AK158+AL158,0) -> 7613931.669 | AN158: =IF(AP123>0,+AP123,0) -> 0 | AO158: =IF((AM158)>0,IF(AN158>0,AM158+AN158,""),"") ->  | AP158: =+MIN(AO158:AO162) -> 0
E159: 2 | F159: =+H128 -> 47.5 | G159: 3 | H159: =+H158 -> 47.2 | I159: =+I158 -> 28 | J159: =+(F159-H159)/I159 -> 0.01071428571 | K159: =+K158 -> 12671 | L159: 418.143 | M159: =+L159/1000 -> 0.418143 | N159: 0.4647666954 | O159: 18.29790139 | P159: 20 | Q159: =IF(O159>0,VLOOKUP(P159,'$ alcantarillado'!$I$11:$L$28,4),"0") -> 0.452 | R159: 0.3882105423 | S159: 1.07710367 | T159: =+IF(S159>$B$13,VLOOKUP(P159,'$ alcantarillado'!$I$12:$N$28,5),P159) -> 24 | U159: =IF(O159>0,VLOOKUP(T159,'$ alcantarillado'!$I$11:$L$28,4),"0") -> 0.595 | V159: 0.8079976062 | W159: 0.5175052461 | X159: =IF(T159>0,4*V159/(PI()*(U159)^2),"") -> 2.905937446 | Y159: =IF(T159>0,(VLOOKUP($W159,Relaciones!$A$3:$D$107,2)),"") -> 0.855 | Z159: =IF(T159>0,Y159*X159,"") -> 2.484576516 | AA159: 1.59375 | AB159: =IF(T159>0,IF(W159<=$B$13,"OK","No Cumple"),"") -> OK | AC159: =IF(T159>0,IF(Z159>=$B$12,"OK","No Cumple"),"") -> OK | AD159: =IF(T159>0,IF(AA159>=$B$14,"OK","No Cumple"),"") -> OK | AE159: =+IF(AB159="OK",1,0) -> 1 | AF159: =+IF(AC159="OK",1,0) -> 1 | AG159: =+IF(AD159="OK",1,0) -> 1 | AH159: =SUM(AE159:AG159) -> 3 | AI159: =IF(AH159=3,2*$B$7+U159,0) -> 1.095 | AJ159: =IF(AI159>0,I159*VLOOKUP(T159,'$ alcantarillado'!$I$12:$K$28,3),0) -> 7369220.923 | AK159: 1513530.9 | AL159: 1252875.895 | AM159: =IF(AJ159>0,AJ159+AK159+AL159,0) -> 10135627.72 | AN159: =+AP128 -> 0 | AO159: =IF((AM159)>0,IF(AN159>0,AM159+AN159,""),"") -> 
E160: 3 | F160: =+H133 -> 47.4 | G160: 3 | H160: =+H159 -> 47.2 | I160: 28 | J160: 0.007142857143 | K160: =+K159 -> 12671 | L160: 418.143 | M160: 0.418143 | N160: 0.5014782603 | O160: 19.74323859 | P160: 20 | Q160: =IF(O160>0,VLOOKUP(P160,'$ alcantarillado'!$I$11:$L$28,4),"0") -> 0.452 | R160: 0.3169725805 | S160: 1.319177196 | T160: =IF(S160>$B$13,VLOOKUP(P160,'$ alcantarillado'!$I$12:$N$28,5),P160) -> 24 | U160: =IF(O160>0,VLOOKUP(T160,'$ alcantarillado'!$I$11:$L$28,4),"0") -> 0.595 | V160: 0.6597272828 | W160: 0.633811896 | X160: 2.372687989 | Y160: =IF(T160>0,(VLOOKUP($W160,Relaciones!$A$3:$D$107,2)),"") -> 0.913 | Z160: 2.166264134 | AA160: 1.0625 | AB160: OK | AC160: OK | AD160: =IF(T160>0,IF(AA160>=$B$14,"OK","No Cumple"),"") -> OK | AE160: 1 | AF160: 1 | AG160: 1 | AH160: 3 | AI160: 1.095 | AJ160: =IF(AI160>0,I160*VLOOKUP(T160,'$ alcantarillado'!$I$12:$K$28,3),0) -> 7369220.923 | AK160: 1568718.9 | AL160: 1322673.995 | AM160: 10260613.82 | AN160: =+AP133 -> 0
E161: 4 | F161: =+H138 -> 47.3 | G161: 3 | H161: 47.2 | I161: 28 | J161: =+(F161-H161)/I161 -> 0.003571428571 | K161: 12671 | L161: 418.143 | M161: 0.418143 | N161: 0.5710777434 | O161: 22.48337572 | P161: 24 | Q161: =IF(O161>0,VLOOKUP(P161,'$ alcantarillado'!$I$11:$L$28,4),"0") -> 0.595 | R161: 0.4664976354 | S161: 0.8963453794 | T161: =IF(S161>$B$13,VLOOKUP(P161,'$ alcantarillado'!$I$12:$N$28,5),P161) -> 24 | U161: =IF(O161>0,VLOOKUP(T161,'$ alcantarillado'!$I$11:$L$28,4),"0") -> 0.595 | V161: 0.4664976354 | W161: 0.8963453794 | X161: 1.677743767 | Y161: =IF(T161>0,(VLOOKUP($W161,Relaciones!$A$3:$D$107,2)),"") -> 1.015 | Z161: 1.702909923 | AA161: 0.53125 | AB161: OK | AC161: OK | AD161: OK | AE161: 1 | AF161: 1 | AG161: 1 | AH161: 3 | AI161: 1.095 | AJ161: =IF(AI161>0,I161*VLOOKUP(T161,'$ alcantarillado'!$I$12:$K$28,3),0) -> 7369220.923 | AK161: 1623906.9 | AL161: 1392472.095 | AM161: 10385599.92 | AN161: =+AP138 -> 0
E162: 5 | F162: =+H143 -> 47.2 | G162: 3 | H162: =+H161 -> 47.2 | I162: =+I161 -> 28 | J162: =+(F162-H162)/I162 -> 0 | K162: =+K161 -> 12671 | L162: 418.143 | M162: 0.418143 | N162: 0 | O162: 0 | P162: 0 | Q162: =IF(O162>0,VLOOKUP(P162,'$ alcantarillado'!$I$11:$L$28,4),"0") -> 0 | S162: 0 | T162: =IF(S162>$B$13,VLOOKUP(P162,'$ alcantarillado'!$I$12:$N$28,5),P162) -> 0 | U162: =IF(O162>0,VLOOKUP(T162,'$ alcantarillado'!$I$11:$L$28,4),"0") -> 0 | W162: 0 | Y162: =IF(T162>0,(VLOOKUP($W162,Relaciones!$A$3:$D$107,2)),"") ->  | AE162: 0 | AF162: 0 | AG162: 0 | AH162: 0 | AI162: 0 | AJ162: =IF(AI162>0,I162*VLOOKUP(T162,'$ alcantarillado'!$I$12:$K$28,3),0) -> 0 | AK162: 0 | AL162: 0 | AM162: 0 | AN162: =+AP143 -> 36178483.36
E163: 1 | F163: =+H123 -> 47.6 | G163: 4 | H163: =+H158-$B$4 -> 47.1 | I163: =+I158 -> 28 | J163: =+(F163-H163)/I163 -> 0.01785714286 | K163: =+K158 -> 12671 | L163: =0.033*K163 -> 418.143 | M163: =+L163/1000 -> 0.418143 | N163: 0.4223168007 | O163: 16.6266457 | P163: 18 | Q163: =IF(O163>0,VLOOKUP(P163,'$ alcantarillado'!$I$11:$L$28,4),"0") -> 0.407 | R163: 0.3789142732 | S163: 1.103529293 | T163: =+IF(S163>$B$13,VLOOKUP(P163,'$ alcantarillado'!$I$12:$N$28,5),P163) -> 20 | U163: =IF(O163>0,VLOOKUP(T163,'$ alcantarillado'!$I$11:$L$28,4),"0") -> 0.452 | V163: 0.5011776551 | W163: 0.8343209155 | X163: =IF(T163>0,4*V163/(PI()*(U163)^2),"") -> 3.12338089 | Y163: =IF(T163>0,(VLOOKUP($W163,Relaciones!$A$3:$D$107,2)),"") -> 0.993 | Z163: =IF(T163>0,Y163*X163,"") -> 3.101517224 | AA163: 2.017857143 | AB163: =IF(T163>0,IF(W163<=$B$13,"OK","No Cumple"),"") -> OK | AC163: =IF(T163>0,IF(Z163>=$B$12,"OK","No Cumple"),"") -> OK | AD163: =IF(T163>0,IF(AA163>=$B$14,"OK","No Cumple"),"") -> OK | AE163: =+IF(AB163="OK",1,0) -> 1 | AF163: =+IF(AC163="OK",1,0) -> 1 | AG163: =+IF(AD163="OK",1,0) -> 1 | AH163: =SUM(AE163:AG163) -> 3 | AI163: =IF(AH163=3,2*$B$7+U163,0) -> 0.952 | AJ163: =IF(AI163>0,I163*VLOOKUP(T163,'$ alcantarillado'!$I$12:$K$28,3),0) -> 5365691.333 | AK163: 1188964.224 | AL163: 1083266.512 | AM163: =IF(AJ163>0,AJ163+AK163+AL163,0) -> 7637922.069 | AN163: =IF(AP123>0,+AP123,0) -> 0 | AO163: =IF((AM163)>0,IF(AN163>0,AM163+AN163,""),"") ->  | AP163: =+MIN(AO163:AO167) -> 46716663.38
E164: 2 | F164: =+H128 -> 47.5 | G164: 4 | H164: =+H163 -> 47.1 | I164: =+I163 -> 28 | J164: =+(F164-H164)/I164 -> 0.01428571429 | K164: =+K163 -> 12671 | L164: 418.143 | M164: =+L164/1000 -> 0.418143 | N164: 0.440361139 | O164: 17.33705272 | P164: 18 | Q164: =IF(O164>0,VLOOKUP(P164,'$ alcantarillado'!$I$11:$L$28,4),"0") -> 0.407 | R164: 0.338911229 | S164: 1.233783257 | T164: =+IF(S164>$B$13,VLOOKUP(P164,'$ alcantarillado'!$I$12:$N$28,5),P164) -> 20 | U164: =IF(O164>0,VLOOKUP(T164,'$ alcantarillado'!$I$11:$L$28,4),"0") -> 0.452 | V164: 0.4482669222 | W164: 0.932799141 | X164: =IF(T164>0,4*V164/(PI()*(U164)^2),"") -> 2.793636796 | Y164: =IF(T164>0,(VLOOKUP($W164,Relaciones!$A$3:$D$107,2)),"") -> 1.027 | Z164: =IF(T164>0,Y164*X164,"") -> 2.86906499 | AA164: 1.614285714 | AB164: =IF(T164>0,IF(W164<=$B$13,"OK","No Cumple"),"") -> OK | AC164: =IF(T164>0,IF(Z164>=$B$12,"OK","No Cumple"),"") -> OK | AD164: =IF(T164>0,IF(AA164>=$B$14,"OK","No Cumple"),"") -> OK | AE164: =+IF(AB164="OK",1,0) -> 1 | AF164: =+IF(AC164="OK",1,0) -> 1 | AG164: =+IF(AD164="OK",1,0) -> 1 | AH164: =SUM(AE164:AG164) -> 3 | AI164: =IF(AH164=3,2*$B$7+U164,0) -> 0.952 | AJ164: =IF(AI164>0,I164*VLOOKUP(T164,'$ alcantarillado'!$I$12:$K$28,3),0) -> 5365691.333 | AK164: 1236945.024 | AL164: 1153064.612 | AM164: =IF(AJ164>0,AJ164+AK164+AL164,0) -> 7755700.969 | AN164: =+AP128 -> 0 | AO164: =IF((AM164)>0,IF(AN164>0,AM164+AN164,""),"") -> 
E165: 3 | F165: =+H133 -> 47.4 | G165: 4 | H165: =+H164 -> 47.1 | I165: 28 | J165: 0.01071428571 | K165: =+K164 -> 12671 | L165: 418.143 | M165: 0.418143 | N165: 0.4647666954 | O165: 18.29790139 | P165: 20 | Q165: =IF(O165>0,VLOOKUP(P165,'$ alcantarillado'!$I$11:$L$28,4),"0") -> 0.452 | R165: 0.3882105423 | S165: 1.07710367 | T165: =IF(S165>$B$13,VLOOKUP(P165,'$ alcantarillado'!$I$12:$N$28,5),P165) -> 24 | U165: =IF(O165>0,VLOOKUP(T165,'$ alcantarillado'!$I$11:$L$28,4),"0") -> 0.595 | V165: 0.8079976062 | W165: 0.5175052461 | X165: 2.905937446 | Y165: =IF(T165>0,(VLOOKUP($W165,Relaciones!$A$3:$D$107,2)),"") -> 0.855 | Z165: 2.484576516 | AA165: 1.59375 | AB165: OK | AC165: OK | AD165: =IF(T165>0,IF(AA165>=$B$14,"OK","No Cumple"),"") -> OK | AE165: 1 | AF165: 1 | AG165: 1 | AH165: 3 | AI165: 1.095 | AJ165: =IF(AI165>0,I165*VLOOKUP(T165,'$ alcantarillado'!$I$12:$K$28,3),0) -> 7369220.923 | AK165: 1596312.9 | AL165: 1322673.995 | AM165: 10288207.82 | AN165: =+AP133 -> 0 | AQ165: 5 | AR165: 4
E166: 4 | F166: =+H138 -> 47.3 | G166: 4 | H166: 47.1 | I166: 28 | J166: =+(F166-H166)/I166 -> 0.007142857143 | K166: 12671 | L166: 418.143 | M166: 0.418143 | N166: 0.5014782603 | O166: 19.74323859 | P166: 20 | Q166: =IF(O166>0,VLOOKUP(P166,'$ alcantarillado'!$I$11:$L$28,4),"0") -> 0.452 | R166: 0.3169725805 | S166: 1.319177196 | T166: =IF(S166>$B$13,VLOOKUP(P166,'$ alcantarillado'!$I$12:$N$28,5),P166) -> 24 | U166: =IF(O166>0,VLOOKUP(T166,'$ alcantarillado'!$I$11:$L$28,4),"0") -> 0.595 | V166: 0.6597272828 | W166: 0.633811896 | X166: 2.372687989 | Y166: =IF(T166>0,(VLOOKUP($W166,Relaciones!$A$3:$D$107,2)),"") -> 0.913 | Z166: 2.166264134 | AA166: 1.0625 | AB166: OK | AC166: OK | AD166: OK | AE166: 1 | AF166: 1 | AG166: 1 | AH166: 3 | AI166: 1.095 | AJ166: =IF(AI166>0,I166*VLOOKUP(T166,'$ alcantarillado'!$I$12:$K$28,3),0) -> 7369220.923 | AK166: 1651500.9 | AL166: 1392472.095 | AM166: 10413193.92 | AN166: =+AP138 -> 0
E167: 5 | F167: =+H143 -> 47.2 | G167: 4 | H167: =+H166 -> 47.1 | I167: =+I166 -> 28 | J167: =+(F167-H167)/I167 -> 0.003571428571 | K167: =+K166 -> 12671 | L167: 418.143 | M167: 0.418143 | N167: 0.5710777434 | O167: 22.48337572 | P167: 24 | Q167: =IF(O167>0,VLOOKUP(P167,'$ alcantarillado'!$I$11:$L$28,4),"0") -> 0.595 | R167: 0.4664976354 | S167: 0.8963453794 | T167: =IF(S167>$B$13,VLOOKUP(P167,'$ alcantarillado'!$I$12:$N$28,5),P167) -> 24 | U167: =IF(O167>0,VLOOKUP(T167,'$ alcantarillado'!$I$11:$L$28,4),"0") -> 0.595 | V167: 0.4664976354 | W167: 0.8963453794 | X167: 1.677743767 | Y167: =IF(T167>0,(VLOOKUP($W167,Relaciones!$A$3:$D$107,2)),"") -> 1.015 | Z167: 1.702909923 | AA167: 0.53125 | AB167: OK | AC167: OK | AD167: OK | AE167: 1 | AF167: 1 | AG167: 1 | AH167: 3 | AI167: 1.095 | AJ167: =IF(AI167>0,I167*VLOOKUP(T167,'$ alcantarillado'!$I$12:$K$28,3),0) -> 7369220.923 | AK167: 1706688.9 | AL167: 1462270.195 | AM167: 10538180.02 | AN167: =+AP143 -> 36178483.36 | AO167: 46716663.38
E168: 1 | F168: =+H123 -> 47.6 | G168: 5 | H168: =+H163-$B$4 -> 47 | I168: =+I163 -> 28 | J168: =+(F168-H168)/I168 -> 0.02142857143 | K168: =+K163 -> 12671 | L168: =0.033*K168 -> 418.143 | M168: =+L168/1000 -> 0.418143 | N168: 0.4081237564 | O168: 16.06786443 | P168: 18 | Q168: =IF(O168>0,VLOOKUP(P168,'$ alcantarillado'!$I$11:$L$28,4),"0") -> 0.407 | R168: 0.4150797896 | S168: 1.007379811 | T168: =+IF(S168>$B$13,VLOOKUP(P168,'$ alcantarillado'!$I$12:$N$28,5),P168) -> 20 | U168: =IF(O168>0,VLOOKUP(T168,'$ alcantarillado'!$I$11:$L$28,4),"0") -> 0.452 | V168: 0.549012614 | W168: 0.7616273093 | X168: =IF(T168>0,4*V168/(PI()*(U168)^2),"") -> 3.421492338 | Y168: =IF(T168>0,(VLOOKUP($W168,Relaciones!$A$3:$D$107,2)),"") -> 0.969 | Z168: =IF(T168>0,Y168*X168,"") -> 3.315426076 | AA168: 2.421428571 | AB168: =IF(T168>0,IF(W168<=$B$13,"OK","No Cumple"),"") -> OK | AC168: =IF(T168>0,IF(Z168>=$B$12,"OK","No Cumple"),"") -> OK | AD168: =IF(T168>0,IF(AA168>=$B$14,"OK","No Cumple"),"") -> OK | AE168: =+IF(AB168="OK",1,0) -> 1 | AF168: =+IF(AC168="OK",1,0) -> 1 | AG168: =+IF(AD168="OK",1,0) -> 1 | AH168: =SUM(AE168:AG168) -> 3 | AI168: =IF(AH168=3,2*$B$7+U168,0) -> 0.952 | AJ168: =IF(AI168>0,I168*VLOOKUP(T168,'$ alcantarillado'!$I$12:$K$28,3),0) -> 5365691.333 | AK168: 1212954.624 | AL168: 1083266.512 | AM168: =IF(AJ168>0,AJ168+AK168+AL168,0) -> 7661912.469 | AN168: =IF(AP123>0,+AP123,0) -> 0 | AO168: =IF((AM168)>0,IF(AN168>0,AM168+AN168,""),"") ->  | AP168: =+MIN(AO168:AO172) -> 46744257.38
E169: 2 | F169: =+H128 -> 47.5 | G169: 5 | H169: =+H168 -> 47 | I169: =+I168 -> 28 | J169: =+(F169-H169)/I169 -> 0.01785714286 | K169: =+K168 -> 12671 | L169: 418.143 | M169: =+L169/1000 -> 0.418143 | N169: 0.4223168007 | O169: 16.6266457 | P169: 18 | Q169: =IF(O169>0,VLOOKUP(P169,'$ alcantarillado'!$I$11:$L$28,4),"0") -> 0.407 | R169: 0.3789142732 | S169: 1.103529293 | T169: =+IF(S169>$B$13,VLOOKUP(P169,'$ alcantarillado'!$I$12:$N$28,5),P169) -> 20 | U169: =IF(O169>0,VLOOKUP(T169,'$ alcantarillado'!$I$11:$L$28,4),"0") -> 0.452 | V169: 0.5011776551 | W169: 0.8343209155 | X169: =IF(T169>0,4*V169/(PI()*(U169)^2),"") -> 3.12338089 | Y169: =IF(T169>0,(VLOOKUP($W169,Relaciones!$A$3:$D$107,2)),"") -> 0.993 | Z169: =IF(T169>0,Y169*X169,"") -> 3.101517224 | AA169: 2.017857143 | AB169: =IF(T169>0,IF(W169<=$B$13,"OK","No Cumple"),"") -> OK | AC169: =IF(T169>0,IF(Z169>=$B$12,"OK","No Cumple"),"") -> OK | AD169: =IF(T169>0,IF(AA169>=$B$14,"OK","No Cumple"),"") -> OK | AE169: =+IF(AB169="OK",1,0) -> 1 | AF169: =+IF(AC169="OK",1,0) -> 1 | AG169: =+IF(AD169="OK",1,0) -> 1 | AH169: =SUM(AE169:AG169) -> 3 | AI169: =IF(AH169=3,2*$B$7+U169,0) -> 0.952 | AJ169: =IF(AI169>0,I169*VLOOKUP(T169,'$ alcantarillado'!$I$12:$K$28,3),0) -> 5365691.333 | AK169: 1260935.424 | AL169: 1153064.612 | AM169: =IF(AJ169>0,AJ169+AK169+AL169,0) -> 7779691.369 | AN169: =+AP128 -> 0 | AO169: =IF((AM169)>0,IF(AN169>0,AM169+AN169,""),"") -> 
E170: 3 | F170: =+H133 -> 47.4 | G170: 5 | H170: =+H169 -> 47 | I170: 28 | J170: 0.01428571429 | K170: =+K169 -> 12671 | L170: 418.143 | M170: 0.418143 | N170: 0.440361139 | O170: 17.33705272 | P170: 18 | Q170: =IF(O170>0,VLOOKUP(P170,'$ alcantarillado'!$I$11:$L$28,4),"0") -> 0.407 | R170: 0.338911229 | S170: 1.233783257 | T170: =IF(S170>$B$13,VLOOKUP(P170,'$ alcantarillado'!$I$12:$N$28,5),P170) -> 20 | U170: =IF(O170>0,VLOOKUP(T170,'$ alcantarillado'!$I$11:$L$28,4),"0") -> 0.452 | V170: 0.4482669222 | W170: 0.932799141 | X170: 2.793636796 | Y170: =IF(T170>0,(VLOOKUP($W170,Relaciones!$A$3:$D$107,2)),"") -> 1.027 | Z170: 2.86906499 | AA170: 1.614285714 | AB170: OK | AC170: OK | AD170: =IF(T170>0,IF(AA170>=$B$14,"OK","No Cumple"),"") -> OK | AE170: 1 | AF170: 1 | AG170: 1 | AH170: 3 | AI170: 0.952 | AJ170: =IF(AI170>0,I170*VLOOKUP(T170,'$ alcantarillado'!$I$12:$K$28,3),0) -> 5365691.333 | AK170: 1308916.224 | AL170: 1222862.712 | AM170: 7897470.269 | AN170: =+AP133 -> 0 | AQ170: 5 | AR170: 5
E171: 4 | F171: =+H138 -> 47.3 | G171: 5 | H171: 47 | I171: 28 | J171: =+(F171-H171)/I171 -> 0.01071428571 | K171: 12671 | L171: 418.143 | M171: 0.418143 | N171: 0.4647666954 | O171: 18.29790139 | P171: 20 | Q171: =IF(O171>0,VLOOKUP(P171,'$ alcantarillado'!$I$11:$L$28,4),"0") -> 0.452 | R171: 0.3882105423 | S171: 1.07710367 | T171: =IF(S171>$B$13,VLOOKUP(P171,'$ alcantarillado'!$I$12:$N$28,5),P171) -> 24 | U171: =IF(O171>0,VLOOKUP(T171,'$ alcantarillado'!$I$11:$L$28,4),"0") -> 0.595 | V171: 0.8079976062 | W171: 0.5175052461 | X171: 2.905937446 | Y171: =IF(T171>0,(VLOOKUP($W171,Relaciones!$A$3:$D$107,2)),"") -> 0.855 | Z171: 2.484576516 | AA171: 1.59375 | AB171: OK | AC171: OK | AD171: OK | AE171: 1 | AF171: 1 | AG171: 1 | AH171: 3 | AI171: 1.095 | AJ171: =IF(AI171>0,I171*VLOOKUP(T171,'$ alcantarillado'!$I$12:$K$28,3),0) -> 7369220.923 | AK171: 1679094.9 | AL171: 1392472.095 | AM171: 10440787.92 | AN171: =+AP138 -> 0
E172: 5 | F172: =+H143 -> 47.2 | G172: 5 | H172: =+H171 -> 47 | I172: =+I171 -> 28 | J172: =+(F172-H172)/I172 -> 0.007142857143 | K172: =+K171 -> 12671 | L172: 418.143 | M172: 0.418143 | N172: 0.5014782603 | O172: 19.74323859 | P172: 20 | Q172: =IF(O172>0,VLOOKUP(P172,'$ alcantarillado'!$I$11:$L$28,4),"0") -> 0.452 | R172: 0.3169725805 | S172: 1.319177196 | T172: =IF(S172>$B$13,VLOOKUP(P172,'$ alcantarillado'!$I$12:$N$28,5),P172) -> 24 | U172: =IF(O172>0,VLOOKUP(T172,'$ alcantarillado'!$I$11:$L$28,4),"0") -> 0.595 | V172: 0.6597272828 | W172: 0.633811896 | X172: 2.372687989 | Y172: =IF(T172>0,(VLOOKUP($W172,Relaciones!$A$3:$D$107,2)),"") -> 0.913 | Z172: 2.166264134 | AA172: 1.0625 | AB172: OK | AC172: OK | AD172: OK | AE172: 1 | AF172: 1 | AG172: 1 | AH172: 3 | AI172: 1.095 | AJ172: =IF(AI172>0,I172*VLOOKUP(T172,'$ alcantarillado'!$I$12:$K$28,3),0) -> 7369220.923 | AK172: 1734282.9 | AL172: 1462270.195 | AM172: 10565774.02 | AN172: =+AP143 -> 36178483.36 | AO172: 46744257.38
D173: 48.5

Sheet LOGIKA ALL-2
A2: N | B2: 0.01
A3: ANCHO EXC | B3: =0.5+N23 -> 0.7642803698 | C3: m
A4: DS | B4: 0.1 | C4: m | G4: BODEGA TIPO | H4: 158
A5: RECUBRIMIENTO | B5: 1 | C5: m | G5: SERV. ELECTRICOS | H5: =10+4+2+1 -> 17 | AO5: =0.5/5 -> 0.1
A6: C0 | B6: 1 | G6: PORTERIA 2 INLCUYE OF ADMON | H6: =10+3*4+4*1 -> 26 | AL6: 0.5
A7: ANCHO COMPACTADOR | B7: 0.25 | C7: m | G7: SERVICIOS BOMBAS | H7: =1+30+3+(145) -> 179 | AK7: 80 | AL7: =+AL6/100 -> 0.005 | AM7: =+AK7*AL7 -> 0.4 | AN7: =+AK7-AM7 -> 79.6
B8: Costos | G8: PORTERIA 1 | H8: =1+10 -> 11
A9: EXCAVACIÓN | B9: $/m3 | C9: 18000
A10: POZO | B10: $/m | C10: 697981 | G10: BASURAS Y CONDUCTORES | H10: =5+70+7+20 -> 102
G11: MANTENIMIENTO | H11: 3 | L11: =48.7-47.62 -> 1.08
A12: VEL MIN | B12: 0.75 | G12: BLOQUE 1 CROS DOCKING | H12: =150+16+3+80 -> 249
A13: Q/Qo MIN | B13: 0.999 | G13: BLOQUE 2 CROS DOCKING | H13: =40+4+1+20 -> 65
A14: T | B14: 0.3
A15: DS | B15: =B4/4 -> 0.025
A16: CUADRO 9. PROGRAMACIÓN DINAMICA PARA EL CÁLCULO LA RED DE ALCANTARILLADO AGUAS LLUVIAS- ITERACIÓN 2
A18: 1 | B18: 2 | C18: 3 | D18: 4 | E18: 5 | F18: 6 | G18: 7 | H18: 8 | I18: 9 | J18: 10 | K18: 11 | L18: 12 | M18: 13 | N18: 14 | O18: 15 | P18: 16 | Q18: 17 | R18: 18 | S18: 19 | T18: 16 | U18: 17 | V18: 18 | W18: 19 | X18: 20 | Y18: 21 | Z18: 22 | AA18: 23 | AB18: 24 | AC18: 25 | AD18: 26 | AE18: 27 | AF18: 28 | AG18: 29 | AH18: 30 | AI18: 31 | AJ18: 32 | AK18: 33 | AL18: 34 | AM18: 35 | AN18: 36 | AO18: 37 | AP18: 38 | AQ18: 39 | AR18: 40
R19: Capacidad tubo lleno | S19: Relaciones Hidraulicas | Z19: Valores reales
A20: Etapa | B20: Pozo Aguas Arriba | C20: Pozo Aguas Abajo | D20: Cota del terreno | E20: Sub - etapa Aguas arriba | F20: clave | G20: Sub - etapa Aguas abajo | H20: clave | I20: Longitud receptor | J20: Pendiente | K20: Area de Drenaje (m2) | L20: Q Diseño | M20: Q Diseño | N20: Diámetro | O20: Diámetro | P20: Diámetro Comercial | Q20: Diámetro Comercial | R20: Qo | S20: Q/Qo | T20: Diámetro Comercial | U20: Diámetro Comercial | V20: Qo | W20: Q/Qo | X20: Vo | Y20: V/Vo | Z20: V | AA20: T | AB20: Rev. | AC20: Rev. | AD20: Rev. | AE20: ANALISIS CUMPLIMIENTO PARAMETROS ALCANTARILLADO | AI20: Ancho excavación | AJ20: COSTOS | AM20: Total | AN20: Aguas Arriba | AO20: Total | AP20: Mínimo | AQ20: Etapas optimas
R21: Lt/sg | V21: Lt/sg | X21: mt/sg | Z21: mt/sg | AA21: kg/m2 | AJ21: Tubería | AK21: Excavación | AL21: Aguas Arriba | AM21: r() | AN21: f() | AO21: f() | AP21: f() | AQ21: Aguas | AR21: Aguas
E22: K | F22: (m) | G22: K | H22: (m) | I22: (m) | J22: (m/m) | L22: (L/s) | M22: (m3/s) | N22: (m) | O22: (in) | P22: (in) | Q22: (m) | R22: (m3/s) | T22: (in) | U22: (m) | V22: (m3/s) | X22: m/s | Z22: m/s | AA22: kg/m2 | AB22: q/Q | AC22: V | AD22: T | AE22: q/Q | AF22: V | AG22: T | AH22: TOTAL | AI22: (m) | AJ22: ($) | AK22: ($) | AL22: ($) | AM22: ($) | AN22: ($) | AO22: ($) | AQ22: arriba | AR22: abajo
A23: 1 | B23: 1 | C23: 2 | D23: 48.7 | E23: 1 | F23: =+'LOGIKA ALL-1'!F23 -> 47.7 | G23: 1 | H23: =+H33+2*$B$15 -> 47.65 | I23: 10 | J23: =+(F23-H23)/I23 -> 0.005 | K23: 1921 | L23: =0.033*K23 -> 63.393 | M23: =+L23/1000 -> 0.063393 | N23: =+IF(J23>0,((M23*$B$2*(4^(5/3))/((J23^0.5)*PI()*$B$6))^(3/8)),0) -> 0.2642803698 | O23: =+N23*(100/2.54) -> 10.40473897 | P23: =IF(O23<0.1,0,IF(O23<4,6,EVEN(O23))) -> 12 | Q23: =IF(O23>0,VLOOKUP(P23,'$ alcantarillado'!$I$11:$L$28,4),"0") -> 0.284 | R23: =IF(P23>0,PI()*((Q23)^(8/3))*((J23)^0.5)/($B$2*4^(5/3)),"") -> 0.07680399242 | S23: =IF(P23>0,+M23/R23,0) -> 0.82538678 | T23: =+IF(S23>$B$13,VLOOKUP(P23,'$ alcantarillado'!$I$12:$N$28,5),P23) -> 12 | U23: =IF(O23>0,VLOOKUP(T23,'$ alcantarillado'!$I$11:$L$28,4),"0") -> 0.284 | V23: =IF(T23>0,PI()*((U23)^(8/3))*((J23)^0.5)/($B$2*4^(5/3)),"") -> 0.07680399242 | W23: =IF(P23>0,M23/V23,0) -> 0.82538678 | X23: =IF(T23>0,4*V23/(PI()*(U23)^2),"") -> 1.212431566 | Y23: =IF(T23>0,(VLOOKUP($W23,Relaciones!$A$3:$D$107,2)),"") -> 0.99 | Z23: =IF(T23>0,Y23*X23,"") -> 1.20030725 | AA23: =IF(T23>0,250*U23*J23,"") -> 0.355 | AB23: =IF(T23>0,IF(W23<=$B$13,"OK","No Cumple"),"") -> OK | AC23: =IF(T23>0,IF(Z23>=$B$12,"OK","No Cumple"),"") -> OK | AD23: =IF(T23>0,IF(AA23>=$B$14,"OK","No Cumple"),"") -> OK | AE23: =+IF(AB23="OK",1,0) -> 1 | AF23: =+IF(AC23="OK",1,0) -> 1 | AG23: =+IF(AD23="OK",1,0) -> 1 | AH23: =SUM(AE23:AG23) -> 3 | AI23: =IF(AH23=3,2*$B$7+U23,0) -> 0.784 | AJ23: =IF(AI23>0,I23*VLOOKUP(T23,'$ alcantarillado'!$I$12:$K$28,3),0) -> 704866.6667 | AK23: =IF(N23>0,((($D$23-F23)+(U23))+(($D$48-H23)+(U23))/2)*AI23*I23*$C$9,0) -> 275325.12 | AL23: =IF(AI23>0,(($D$23-F23)+U23)*$C$10,0) -> 896207.604 | AM23: =IF(AJ23>0,AJ23+AK23+AL23,0) -> 1876399.391 | AN23: 0 | AO23: =IF((AM23+AN23)>0,(AM23+AN23),"") -> 1876399.391 | AP23: =+MIN(AO23:AO27) -> 1876399.391
E24: 2 | F24: =+F23-$B$15 -> 47.675 | G24: 1 | H24: =+H23 -> 47.65 | I24: =+I23 -> 10 | J24: =+(F24-H24)/I24 -> 0.0025 | K24: =+K23 -> 1921 | L24: =0.033*K24 -> 63.393 | M24: =+L24/1000 -> 0.063393 | N24: =+IF(J24>0,((M24*$B$2*(4^(5/3))/((J24^0.5)*PI()*$B$6))^(3/8)),0) -> 0.3009594815 | O24: 11.84879848 | P24: =IF(O24<0.1,0,IF(O24<4,6,EVEN(O24))) -> 12 | Q24: =IF(O24>0,VLOOKUP(P24,'$ alcantarillado'!$I$11:$L$28,4),"0") -> 0.284 | R24: 0.05430862387 | S24: 1.167273179 | T24: =+IF(S24>$B$13,VLOOKUP(P24,'$ alcantarillado'!$I$12:$N$28,5),P24) -> 14 | U24: =IF(O24>0,VLOOKUP(T24,'$ alcantarillado'!$I$11:$L$28,4),"0") -> 0.327 | V24: 0.07909467246 | W24: 0.8014825529 | X24: =IF(T24>0,4*V24/(PI()*(U24)^2),"") -> 0.9418068508 | Y24: =IF(T24>0,(VLOOKUP($W24,Relaciones!$A$3:$D$107,2)),"") -> 0.984 | Z24: =IF(T24>0,Y24*X24,"") -> 0.9267379412 | AA24: 0.204375 | AB24: =IF(T24>0,IF(W24<=$B$13,"OK","No Cumple"),"") -> OK | AC24: =IF(T24>0,IF(Z24>=$B$12,"OK","No Cumple"),"") -> OK | AD24: =IF(T24>0,IF(AA24>=$B$14,"OK","No Cumple"),"") -> No Cumple | AE24: =+IF(AB24="OK",1,0) -> 1 | AF24: 1 | AG24: 0 | AH24: =SUM(AE24:AG24) -> 2 | AI24: =IF(AH24=3,2*$B$7+U24,0) -> 0 | AJ24: =IF(AI24>0,I24*VLOOKUP(T24,'$ alcantarillado'!$I$12:$K$28,3),0) -> 0 | AK24: =IF(N24>0,((($D$23-F24)+(U24))+(($D$48-H24)+(U24))/2)*AI24*I24*$C$9,0) -> 0 | AL24: =IF(AI24>0,(($D$23-F24)+U24)*$C$10,0) -> 0 | AM24: =IF(AJ24>0,AJ24+AK24+AL24,0) -> 0 | AN24: 0 | AQ24: 1 | AR24: 1
E25: 3 | F25: =+F24-$B$15 -> 47.65 | G25: 1 | H25: =+H24 -> 47.65 | I25: =+I24 -> 10 | J25: 7.105427358e-16 | K25: 1921 | L25: 63.393 | M25: 0.063393 | N25: =+IF(J25>0.00001,((M25*$B$2*(4^(5/3))/((J25^0.5)*PI()*$B$6))^(3/8)),0) -> 0 | O25: 0 | P25: 0 | Q25: =IF(O25>0,VLOOKUP(P25,'$ alcantarillado'!$I$11:$L$28,4),"0") -> 0 | S25: 0 | T25: =IF(S25>$B$13,VLOOKUP(P25,'$ alcantarillado'!$I$12:$N$28,5),P25) -> 0 | U25: =IF(O25>0,VLOOKUP(T25,'$ alcantarillado'!$I$11:$L$28,4),"0") -> 0 | W25: 0 | Y25: =IF(T25>0,(VLOOKUP($W25,Relaciones!$A$3:$D$107,2)),"") ->  | AD25: =IF(T25>0,IF(AA25>=$B$14,"OK","No Cumple"),"") ->  | AE25: 0 | AF25: 0 | AG25: 0 | AH25: 0 | AI25: 0 | AJ25: =IF(AI25>0,I25*VLOOKUP(T25,'$ alcantarillado'!$I$12:$K$28,3),0) -> 0 | AK25: 0 | AL25: 0 | AM25: 0 | AN25: 0
E26: 4 | F26: =+F25-$B$15 -> 47.625 | G26: 1 | H26: 47.65 | I26: 10 | J26: =+(F26-H26)/I26 -> -0.0025 | K26: 1921 | L26: 63.393 | M26: 0.063393 | N26: 0 | O26: 0 | P26: 0 | Q26: =IF(O26>0,VLOOKUP(P26,'$ alcantarillado'!$I$11:$L$28,4),"0") -> 0 | S26: 0 | T26: =IF(S26>$B$13,VLOOKUP(P26,'$ alcantarillado'!$I$12:$N$28,5),P26) -> 0 | U26: =IF(O26>0,VLOOKUP(T26,'$ alcantarillado'!$I$11:$L$28,4),"0") -> 0 | W26: 0 | Y26: =IF(T26>0,(VLOOKUP($W26,Relaciones!$A$3:$D$107,2)),"") ->  | AE26: 0 | AF26: 0 | AG26: 0 | AH26: 0 | AI26: 0 | AJ26: =IF(AI26>0,I26*VLOOKUP(T26,'$ alcantarillado'!$I$12:$K$28,3),0) -> 0 | AK26: 0 | AL26: 0 | AM26: 0 | AN26: 0
E27: 5 | F27: =+F26-$B$15 -> 47.6 | G27: 1 | H27: =+H26 -> 47.65 | I27: =+I26 -> 10 | J27: -0.005 | K27: =+K26 -> 1921 | L27: 63.393 | M27: 0.063393 | N27: 0 | O27: 0 | P27: 0 | Q27: =IF(O27>0,VLOOKUP(P27,'$ alcantarillado'!$I$11:$L$28,4),"0") -> 0 | S27: 0 | T27: =IF(S27>$B$13,VLOOKUP(P27,'$ alcantarillado'!$I$12:$N$28,5),P27) -> 0 | U27: =IF(O27>0,VLOOKUP(T27,'$ alcantarillado'!$I$11:$L$28,4),"0") -> 0 | W27: 0 | Y27: =IF(T27>0,(VLOOKUP($W27,Relaciones!$A$3:$D$107,2)),"") ->  | AE27: 0 | AF27: 0 | AG27: 0 | AH27: 0 | AI27: =IF(AH27=3,2*$B$7+U27,0) -> 0 | AJ27: =IF(AI27>0,I27*VLOOKUP(T27,'$ alcantarillado'!$I$12:$K$28,3),0) -> 0 | AK27: 0 | AL27: 0 | AM27: 0 | AN27: 0
E28: 1 | F28: =+F23 -> 47.7 | G28: 2 | H28: =+H33+$B$15 -> 47.625 | I28: =+I27 -> 10 | J28: =+(F28-H28)/I28 -> 0.0075 | K28: =+K27 -> 1921 | L28: =0.033*K28 -> 63.393 | M28: =+L28/1000 -> 0.063393 | N28: 0.2449332779 | O28: 9.643042439 | P28: 10 | Q28: =IF(O28>0,VLOOKUP(P28,'$ alcantarillado'!$I$11:$L$28,4),"0") -> 0.227 | R28: 0.05175863384 | S28: 1.224781168 | T28: =+IF(S28>$B$13,VLOOKUP(P28,'$ alcantarillado'!$I$12:$N$28,5),P28) -> 12 | U28: =IF(O28>0,VLOOKUP(T28,'$ alcantarillado'!$I$11:$L$28,4),"0") -> 0.284 | V28: 0.09406529582 | W28: 0.6739254838 | X28: =IF(T28>0,4*V28/(PI()*(U28)^2),"") -> 1.484919342 | Y28: =IF(T28>0,(VLOOKUP($W28,Relaciones!$A$3:$D$107,2)),"") -> 0.931 | Z28: =IF(T28>0,Y28*X28,"") -> 1.382459907 | AA28: 0.5325 | AB28: =IF(T28>0,IF(W28<=$B$13,"OK","No Cumple"),"") -> OK | AC28: =IF(T28>0,IF(Z28>=$B$12,"OK","No Cumple"),"") -> OK | AD28: =IF(T28>0,IF(AA28>=$B$14,"OK","No Cumple"),"") -> OK | AE28: =+IF(AB28="OK",1,0) -> 1 | AF28: =+IF(AC28="OK",1,0) -> 1 | AG28: =+IF(AD28="OK",1,0) -> 1 | AH28: =SUM(AE28:AG28) -> 3 | AI28: =IF(AH28=3,2*$B$7+U28,0) -> 0.784 | AJ28: =IF(AI28>0,I28*VLOOKUP(T28,'$ alcantarillado'!$I$12:$K$28,3),0) -> 704866.6667 | AK28: =IF(N28>0,((($D$23-F28)+(U28))+(($D$48-H28)+(U28))/2)*AI28*I28*$C$9,0) -> 277089.12 | AL28: =IF(AI28>0,(($D$23-F28)+U28)*$C$10,0) -> 896207.604 | AM28: =IF(AJ28>0,AJ28+AK28+AL28,0) -> 1878163.391 | AN28: 0 | AO28: 1878163.391 | AP28: =+MIN(AO28:AO32) -> 1878163.391
E29: 2 | F29: 47.675 | G29: 2 | H29: =+H28 -> 47.625 | I29: =+I28 -> 10 | J29: 0.005 | K29: =+K28 -> 1921 | L29: 63.393 | M29: 0.063393 | N29: 0.2642803698 | O29: 10.40473897 | P29: 12 | Q29: =IF(O29>0,VLOOKUP(P29,'$ alcantarillado'!$I$11:$L$28,4),"0") -> 0.284 | R29: 0.07680399242 | S29: 0.82538678 | T29: =+IF(S29>$B$13,VLOOKUP(P29,'$ alcantarillado'!$I$12:$N$28,5),P29) -> 12 | U29: =IF(O29>0,VLOOKUP(T29,'$ alcantarillado'!$I$11:$L$28,4),"0") -> 0.284 | V29: 0.07680399242 | W29: 0.82538678 | X29: =IF(T29>0,4*V29/(PI()*(U29)^2),"") -> 1.212431566 | Y29: =IF(T29>0,(VLOOKUP($W29,Relaciones!$A$3:$D$107,2)),"") -> 0.99 | Z29: =IF(T29>0,Y29*X29,"") -> 1.20030725 | AA29: 0.355 | AB29: =IF(T29>0,IF(W29<=$B$13,"OK","No Cumple"),"") -> OK | AC29: =IF(T29>0,IF(Z29>=$B$12,"OK","No Cumple"),"") -> OK | AD29: =IF(T29>0,IF(AA29>=$B$14,"OK","No Cumple"),"") -> OK | AE29: =+IF(AB29="OK",1,0) -> 1 | AF29: 1 | AG29: 1 | AH29: =SUM(AE29:AG29) -> 3 | AI29: =IF(AH29=3,2*$B$7+U29,0) -> 0.784 | AJ29: =IF(AI29>0,I29*VLOOKUP(T29,'$ alcantarillado'!$I$12:$K$28,3),0) -> 704866.6667 | AK29: 280617.12 | AL29: 913657.129 | AM29: 1899140.916 | AN29: 0 | AO29: 1899140.916 | AQ29: 1 | AR29: 2
E30: 3 | F30: 47.65 | G30: 2 | H30: =+H29 -> 47.625 | I30: =+I29 -> 10 | J30: 0.0025 | K30: =+K29 -> 1921 | L30: 63.393 | M30: 0.063393 | N30: 0.3009594815 | O30: 11.84879848 | P30: 12 | Q30: =IF(O30>0,VLOOKUP(P30,'$ alcantarillado'!$I$11:$L$28,4),"0") -> 0.284 | R30: 0.05430862387 | S30: 1.167273179 | T30: =IF(S30>$B$13,VLOOKUP(P30,'$ alcantarillado'!$I$12:$N$28,5),P30) -> 14 | U30: =IF(O30>0,VLOOKUP(T30,'$ alcantarillado'!$I$11:$L$28,4),"0") -> 0.327 | V30: 0.07909467246 | W30: 0.8014825529 | X30: 0.9418068508 | Y30: =IF(T30>0,(VLOOKUP($W30,Relaciones!$A$3:$D$107,2)),"") -> 0.984 | Z30: 0.9267379412 | AA30: 0.204375 | AB30: OK | AC30: OK | AD30: =IF(T30>0,IF(AA30>=$B$14,"OK","No Cumple"),"") -> No Cumple | AE30: 1 | AF30: 1 | AG30: 0 | AH30: 2 | AI30: 0 | AJ30: =IF(AI30>0,I30*VLOOKUP(T30,'$ alcantarillado'!$I$12:$K$28,3),0) -> 0 | AK30: 0 | AL30: 0 | AM30: 0 | AN30: 0
E31: 4 | F31: 47.625 | G31: 2 | H31: 47.625 | I31: 10 | J31: =+(F31-H31)/I31 -> 7.105427358e-16 | K31: 1921 | L31: 63.393 | M31: 0.063393 | N31: =+IF(J31>0.00001,((M31*$B$2*(4^(5/3))/((J31^0.5)*PI()*$B$6))^(3/8)),0) -> 0 | O31: 0 | P31: 0 | Q31: =IF(O31>0,VLOOKUP(P31,'$ alcantarillado'!$I$11:$L$28,4),"0") -> 0 | S31: 0 | T31: =IF(S31>$B$13,VLOOKUP(P31,'$ alcantarillado'!$I$12:$N$28,5),P31) -> 0 | U31: =IF(O31>0,VLOOKUP(T31,'$ alcantarillado'!$I$11:$L$28,4),"0") -> 0 | W31: 0 | Y31: =IF(T31>0,(VLOOKUP($W31,Relaciones!$A$3:$D$107,2)),"") ->  | AE31: 0 | AF31: 0 | AG31: 0 | AH31: 0 | AI31: 0 | AJ31: =IF(AI31>0,I31*VLOOKUP(T31,'$ alcantarillado'!$I$12:$K$28,3),0) -> 0 | AK31: 0 | AL31: 0 | AM31: 0 | AN31: 0
E32: 5 | F32: 47.6 | G32: 2 | H32: =+H31 -> 47.625 | I32: =+I31 -> 10 | J32: -0.0025 | K32: =+K31 -> 1921 | L32: 63.393 | M32: 0.063393 | N32: =+IF(J32>0.00001,((M32*$B$2*(4^(5/3))/((J32^0.5)*PI()*$B$6))^(3/8)),0) -> 0 | O32: 0 | P32: 0 | Q32: =IF(O32>0,VLOOKUP(P32,'$ alcantarillado'!$I$11:$L$28,4),"0") -> 0 | S32: 0 | T32: =IF(S32>$B$13,VLOOKUP(P32,'$ alcantarillado'!$I$12:$N$28,5),P32) -> 0 | U32: =IF(O32>0,VLOOKUP(T32,'$ alcantarillado'!$I$11:$L$28,4),"0") -> 0 | W32: 0 | Y32: =IF(T32>0,(VLOOKUP($W32,Relaciones!$A$3:$D$107,2)),"") ->  | AE32: 0 | AF32: 0 | AG32: 0 | AH32: 0 | AI32: 0 | AJ32: =IF(AI32>0,I32*VLOOKUP(T32,'$ alcantarillado'!$I$12:$K$28,3),0) -> 0 | AK32: 0 | AL32: 0 | AM32: 0 | AN32: 0
E33: 1 | F33: 47.7 | G33: 3 | H33: =+'LOGIKA ALL-1'!H23 -> 47.6 | I33: =+I32 -> 10 | J33: =+(F33-H33)/I33 -> 0.01 | K33: 1921 | L33: =0.033*K33 -> 63.393 | M33: =+L33/1000 -> 0.063393 | N33: 0.2320714852 | O33: 9.136672645 | P33: 10 | Q33: =IF(O33>0,VLOOKUP(P33,'$ alcantarillado'!$I$11:$L$28,4),"0") -> 0.227 | R33: 0.05976572236 | S33: 1.060691605 | T33: =+IF(S33>$B$13,VLOOKUP(P33,'$ alcantarillado'!$I$12:$N$28,5),P33) -> 12 | U33: =IF(O33>0,VLOOKUP(T33,'$ alcantarillado'!$I$11:$L$28,4),"0") -> 0.284 | V33: 0.1086172477 | W33: 0.5836365893 | X33: =IF(T33>0,4*V33/(PI()*(U33)^2),"") -> 1.714637163 | Y33: =IF(T33>0,(VLOOKUP($W33,Relaciones!$A$3:$D$107,2)),"") -> 0.89 | Z33: =IF(T33>0,Y33*X33,"") -> 1.526027075 | AA33: 0.71 | AB33: =IF(T33>0,IF(W33<=$B$13,"OK","No Cumple"),"") -> OK | AC33: =IF(T33>0,IF(Z33>=$B$12,"OK","No Cumple"),"") -> OK | AD33: =IF(T33>0,IF(AA33>=$B$14,"OK","No Cumple"),"") -> OK | AE33: =+IF(AB33="OK",1,0) -> 1 | AF33: =+IF(AC33="OK",1,0) -> 1 | AG33: =+IF(AD33="OK",1,0) -> 1 | AH33: =SUM(AE33:AG33) -> 3 | AI33: =IF(AH33=3,2*$B$7+U33,0) -> 0.784 | AJ33: =IF(AI33>0,I33*VLOOKUP(T33,'$ alcantarillado'!$I$12:$K$28,3),0) -> 704866.6667 | AK33: =IF(N33>0,((($D$23-F33)+(U33))+(($D$48-H33)+(U33))/2)*AI33*I33*$C$9,0) -> 278853.12 | AL33: =IF(AI33>0,(($D$23-F33)+U33)*$C$10,0) -> 896207.604 | AM33: =IF(AJ33>0,AJ33+AK33+AL33,0) -> 1879927.391 | AN33: 0 | AO33: 1879927.391 | AP33: =+MIN(AO33:AO37) -> 1879927.391
E34: 2 | F34: 47.675 | G34: 3 | H34: =+H33 -> 47.6 | I34: =+I33 -> 10 | J34: 0.0075 | K34: =+K33 -> 1921 | L34: 63.393 | M34: 0.063393 | N34: 0.2449332779 | O34: 9.643042439 | P34: 10 | Q34: =IF(O34>0,VLOOKUP(P34,'$ alcantarillado'!$I$11:$L$28,4),"0") -> 0.227 | R34: 0.05175863384 | S34: 1.224781168 | T34: =+IF(S34>$B$13,VLOOKUP(P34,'$ alcantarillado'!$I$12:$N$28,5),P34) -> 12 | U34: =IF(O34>0,VLOOKUP(T34,'$ alcantarillado'!$I$11:$L$28,4),"0") -> 0.284 | V34: 0.09406529582 | W34: 0.6739254838 | X34: =IF(T34>0,4*V34/(PI()*(U34)^2),"") -> 1.484919342 | Y34: =IF(T34>0,(VLOOKUP($W34,Relaciones!$A$3:$D$107,2)),"") -> 0.931 | Z34: =IF(T34>0,Y34*X34,"") -> 1.382459907 | AA34: 0.5325 | AB34: =IF(T34>0,IF(W34<=$B$13,"OK","No Cumple"),"") -> OK | AC34: =IF(T34>0,IF(Z34>=$B$12,"OK","No Cumple"),"") -> OK | AD34: =IF(T34>0,IF(AA34>=$B$14,"OK","No Cumple"),"") -> OK | AE34: =+IF(AB34="OK",1,0) -> 1 | AF34: 1 | AG34: 1 | AH34: =SUM(AE34:AG34) -> 3 | AI34: =IF(AH34=3,2*$B$7+U34,0) -> 0.784 | AJ34: =IF(AI34>0,I34*VLOOKUP(T34,'$ alcantarillado'!$I$12:$K$28,3),0) -> 704866.6667 | AK34: 282381.12 | AL34: 913657.129 | AM34: 1900904.916 | AN34: 0 | AO34: 1900904.916
E35: 3 | F35: 47.65 | G35: 3 | H35: =+H34 -> 47.6 | I35: =+I34 -> 10 | J35: 0.005 | K35: =+K34 -> 1921 | L35: 63.393 | M35: 0.063393 | N35: 0.2642803698 | O35: 10.40473897 | P35: 12 | Q35: =IF(O35>0,VLOOKUP(P35,'$ alcantarillado'!$I$11:$L$28,4),"0") -> 0.284 | R35: 0.07680399242 | S35: 0.82538678 | T35: =IF(S35>$B$13,VLOOKUP(P35,'$ alcantarillado'!$I$12:$N$28,5),P35) -> 12 | U35: =IF(O35>0,VLOOKUP(T35,'$ alcantarillado'!$I$11:$L$28,4),"0") -> 0.284 | V35: 0.07680399242 | W35: 0.82538678 | X35: 1.212431566 | Y35: =IF(T35>0,(VLOOKUP($W35,Relaciones!$A$3:$D$107,2)),"") -> 0.99 | Z35: 1.20030725 | AA35: 0.355 | AB35: OK | AC35: OK | AD35: =IF(T35>0,IF(AA35>=$B$14,"OK","No Cumple"),"") -> OK | AE35: 1 | AF35: 1 | AG35: 1 | AH35: 3 | AI35: 0.784 | AJ35: =IF(AI35>0,I35*VLOOKUP(T35,'$ alcantarillado'!$I$12:$K$28,3),0) -> 704866.6667 | AK35: 285909.12 | AL35: 931106.654 | AM35: 1921882.441 | AN35: 0 | AO35: 1921882.441
E36: 4 | F36: 47.625 | G36: 3 | H36: 47.6 | I36: 10 | J36: =+(F36-H36)/I36 -> 0.0025 | K36: 1921 | L36: 63.393 | M36: 0.063393 | N36: 0.3009594815 | O36: 11.84879848 | P36: 12 | Q36: =IF(O36>0,VLOOKUP(P36,'$ alcantarillado'!$I$11:$L$28,4),"0") -> 0.284 | R36: 0.05430862387 | S36: 1.167273179 | T36: =IF(S36>$B$13,VLOOKUP(P36,'$ alcantarillado'!$I$12:$N$28,5),P36) -> 14 | U36: =IF(O36>0,VLOOKUP(T36,'$ alcantarillado'!$I$11:$L$28,4),"0") -> 0.327 | V36: 0.07909467246 | W36: 0.8014825529 | X36: 0.9418068508 | Y36: =IF(T36>0,(VLOOKUP($W36,Relaciones!$A$3:$D$107,2)),"") -> 0.984 | Z36: 0.9267379412 | AA36: 0.204375 | AB36: OK | AC36: OK | AD36: No Cumple | AE36: 1 | AF36: 1 | AG36: 0 | AH36: 2 | AI36: 0 | AJ36: =IF(AI36>0,I36*VLOOKUP(T36,'$ alcantarillado'!$I$12:$K$28,3),0) -> 0 | AK36: 0 | AL36: 0 | AM36: 0 | AN36: 0 | AQ36: 1 | AR36: 3
E37: 5 | F37: 47.6 | G37: 3 | H37: =+H36 -> 47.6 | I37: =+I36 -> 10 | J37: 7.105427358e-16 | K37: =+K36 -> 1921 | L37: 63.393 | M37: 0.063393 | N37: =+IF(J37>0.00001,((M37*$B$2*(4^(5/3))/((J37^0.5)*PI()*$B$6))^(3/8)),0) -> 0 | O37: 0 | P37: 0 | Q37: =IF(O37>0,VLOOKUP(P37,'$ alcantarillado'!$I$11:$L$28,4),"0") -> 0 | S37: 0 | T37: =IF(S37>$B$13,VLOOKUP(P37,'$ alcantarillado'!$I$12:$N$28,5),P37) -> 0 | U37: =IF(O37>0,VLOOKUP(T37,'$ alcantarillado'!$I$11:$L$28,4),"0") -> 0 | W37: 0 | Y37: =IF(T37>0,(VLOOKUP($W37,Relaciones!$A$3:$D$107,2)),"") ->  | AE37: 0 | AF37: 0 | AG37: 0 | AH37: 0 | AI37: 0 | AJ37: =IF(AI37>0,I37*VLOOKUP(T37,'$ alcantarillado'!$I$12:$K$28,3),0) -> 0 | AK37: 0 | AL37: 0 | AM37: 0 | AN37: 0
E38: 1 | F38: 47.7 | G38: 4 | H38: =+H33-$B$15 -> 47.575 | I38: =+I33 -> 10 | J38: =+(F38-H38)/I38 -> 0.0125 | K38: =+K33 -> 1921 | L38: =0.033*K38 -> 63.393 | M38: =+L38/1000 -> 0.063393 | N38: 0.2225620711 | O38: 8.762286265 | P38: 10 | Q38: =IF(O38>0,VLOOKUP(P38,'$ alcantarillado'!$I$11:$L$28,4),"0") -> 0.227 | R38: 0.06682010896 | S38: 0.9487114131 | T38: =+IF(S38>$B$13,VLOOKUP(P38,'$ alcantarillado'!$I$12:$N$28,5),P38) -> 10 | U38: =IF(O38>0,VLOOKUP(T38,'$ alcantarillado'!$I$11:$L$28,4),"0") -> 0.227 | V38: 0.06682010896 | W38: 0.9487114131 | X38: =IF(T38>0,4*V38/(PI()*(U38)^2),"") -> 1.65107037 | Y38: =IF(T38>0,(VLOOKUP($W38,Relaciones!$A$3:$D$107,2)),"") -> 1.03 | Z38: =IF(T38>0,Y38*X38,"") -> 1.700602481 | AA38: 0.709375 | AB38: =IF(T38>0,IF(W38<=$B$13,"OK","No Cumple"),"") -> OK | AC38: =IF(T38>0,IF(Z38>=$B$12,"OK","No Cumple"),"") -> OK | AD38: =IF(T38>0,IF(AA38>=$B$14,"OK","No Cumple"),"") -> OK | AE38: =+IF(AB38="OK",1,0) -> 1 | AF38: =+IF(AC38="OK",1,0) -> 1 | AG38: =+IF(AD38="OK",1,0) -> 1 | AH38: =SUM(AE38:AG38) -> 3 | AI38: =IF(AH38=3,2*$B$7+U38,0) -> 0.727 | AJ38: =IF(AI38>0,I38*VLOOKUP(T38,'$ alcantarillado'!$I$12:$K$28,3),0) -> 476816.6667 | AK38: =IF(N38>0,((($D$23-F38)+(U38))+(($D$48-H38)+(U38))/2)*AI38*I38*$C$9,0) -> 249026.58 | AL38: =IF(AI38>0,(($D$23-F38)+U38)*$C$10,0) -> 856422.687 | AM38: =IF(AJ38>0,AJ38+AK38+AL38,0) -> 1582265.934 | AN38: 0 | AO38: 1582265.934 | AP38: =+MIN(AO38:AO42) -> 1582265.934
E39: 2 | F39: 47.675 | G39: 4 | H39: =+H38 -> 47.575 | I39: =+I38 -> 10 | J39: 0.01 | K39: =+K38 -> 1921 | L39: 63.393 | M39: 0.063393 | N39: 0.2320714852 | O39: 9.136672645 | P39: 10 | Q39: =IF(O39>0,VLOOKUP(P39,'$ alcantarillado'!$I$11:$L$28,4),"0") -> 0.227 | R39: 0.05976572236 | S39: 1.060691605 | T39: =+IF(S39>$B$13,VLOOKUP(P39,'$ alcantarillado'!$I$12:$N$28,5),P39) -> 12 | U39: =IF(O39>0,VLOOKUP(T39,'$ alcantarillado'!$I$11:$L$28,4),"0") -> 0.284 | V39: 0.1086172477 | W39: 0.5836365893 | X39: =IF(T39>0,4*V39/(PI()*(U39)^2),"") -> 1.714637163 | Y39: =IF(T39>0,(VLOOKUP($W39,Relaciones!$A$3:$D$107,2)),"") -> 0.89 | Z39: =IF(T39>0,Y39*X39,"") -> 1.526027075 | AA39: 0.71 | AB39: =IF(T39>0,IF(W39<=$B$13,"OK","No Cumple"),"") -> OK | AC39: =IF(T39>0,IF(Z39>=$B$12,"OK","No Cumple"),"") -> OK | AD39: =IF(T39>0,IF(AA39>=$B$14,"OK","No Cumple"),"") -> OK | AE39: =+IF(AB39="OK",1,0) -> 1 | AF39: 1 | AG39: 1 | AH39: =SUM(AE39:AG39) -> 3 | AI39: =IF(AH39=3,2*$B$7+U39,0) -> 0.784 | AJ39: =IF(AI39>0,I39*VLOOKUP(T39,'$ alcantarillado'!$I$12:$K$28,3),0) -> 704866.6667 | AK39: 284145.12 | AL39: 913657.129 | AM39: 1902668.916 | AN39: 0 | AO39: 1902668.916
E40: 3 | F40: 47.65 | G40: 4 | H40: =+H39 -> 47.575 | I40: =+I39 -> 10 | J40: 0.0075 | K40: =+K39 -> 1921 | L40: 63.393 | M40: 0.063393 | N40: 0.2449332779 | O40: 9.643042439 | P40: 10 | Q40: =IF(O40>0,VLOOKUP(P40,'$ alcantarillado'!$I$11:$L$28,4),"0") -> 0.227 | R40: 0.05175863384 | S40: 1.224781168 | T40: =IF(S40>$B$13,VLOOKUP(P40,'$ alcantarillado'!$I$12:$N$28,5),P40) -> 12 | U40: =IF(O40>0,VLOOKUP(T40,'$ alcantarillado'!$I$11:$L$28,4),"0") -> 0.284 | V40: 0.09406529582 | W40: 0.6739254838 | X40: 1.484919342 | Y40: =IF(T40>0,(VLOOKUP($W40,Relaciones!$A$3:$D$107,2)),"") -> 0.931 | Z40: 1.382459907 | AA40: 0.5325 | AB40: OK | AC40: OK | AD40: =IF(T40>0,IF(AA40>=$B$14,"OK","No Cumple"),"") -> OK | AE40: 1 | AF40: 1 | AG40: 1 | AH40: 3 | AI40: 0.784 | AJ40: =IF(AI40>0,I40*VLOOKUP(T40,'$ alcantarillado'!$I$12:$K$28,3),0) -> 704866.6667 | AK40: 287673.12 | AL40: 931106.654 | AM40: 1923646.441 | AN40: 0 | AO40: 1923646.441 | AQ40: 1 | AR40: 4
E41: 4 | F41: 47.625 | G41: 4 | H41: 47.575 | I41: 10 | J41: =+(F41-H41)/I41 -> 0.005 | K41: 1921 | L41: 63.393 | M41: 0.063393 | N41: 0.2642803698 | O41: 10.40473897 | P41: 12 | Q41: =IF(O41>0,VLOOKUP(P41,'$ alcantarillado'!$I$11:$L$28,4),"0") -> 0.284 | R41: 0.07680399242 | S41: 0.82538678 | T41: =IF(S41>$B$13,VLOOKUP(P41,'$ alcantarillado'!$I$12:$N$28,5),P41) -> 12 | U41: =IF(O41>0,VLOOKUP(T41,'$ alcantarillado'!$I$11:$L$28,4),"0") -> 0.284 | V41: 0.07680399242 | W41: 0.82538678 | X41: 1.212431566 | Y41: =IF(T41>0,(VLOOKUP($W41,Relaciones!$A$3:$D$107,2)),"") -> 0.99 | Z41: 1.20030725 | AA41: 0.355 | AB41: OK | AC41: OK | AD41: OK | AE41: 1 | AF41: 1 | AG41: 1 | AH41: 3 | AI41: 0.784 | AJ41: =IF(AI41>0,I41*VLOOKUP(T41,'$ alcantarillado'!$I$12:$K$28,3),0) -> 704866.6667 | AK41: 291201.12 | AL41: 948556.179 | AM41: 1944623.966 | AN41: 0 | AO41: 1944623.966
E42: 5 | F42: 47.6 | G42: 4 | H42: =+H41 -> 47.575 | I42: =+I41 -> 10 | J42: 0.0025 | K42: =+K41 -> 1921 | L42: 63.393 | M42: 0.063393 | N42: 0.3009594815 | O42: 11.84879848 | P42: 12 | Q42: =IF(O42>0,VLOOKUP(P42,'$ alcantarillado'!$I$11:$L$28,4),"0") -> 0.284 | R42: 0.05430862387 | S42: 1.167273179 | T42: =IF(S42>$B$13,VLOOKUP(P42,'$ alcantarillado'!$I$12:$N$28,5),P42) -> 14 | U42: =IF(O42>0,VLOOKUP(T42,'$ alcantarillado'!$I$11:$L$28,4),"0") -> 0.327 | V42: 0.07909467246 | W42: 0.8014825529 | X42: 0.9418068508 | Y42: =IF(T42>0,(VLOOKUP($W42,Relaciones!$A$3:$D$107,2)),"") -> 0.984 | Z42: 0.9267379412 | AA42: 0.204375 | AB42: OK | AC42: OK | AD42: No Cumple | AE42: 1 | AF42: 1 | AG42: 0 | AH42: 2 | AI42: 0 | AJ42: =IF(AI42>0,I42*VLOOKUP(T42,'$ alcantarillado'!$I$12:$K$28,3),0) -> 0 | AK42: 0 | AL42: 0 | AM42: 0 | AN42: 0
E43: 1 | F43: 47.7 | G43: 5 | H43: =+H33-2*$B$15 -> 47.55 | I43: =+I38 -> 10 | J43: =+(F43-H43)/I43 -> 0.015 | K43: =+K38 -> 1921 | L43: =0.033*K43 -> 63.393 | M43: =+L43/1000 -> 0.063393 | N43: 0.2150822993 | O43: 8.467807058 | P43: 10 | Q43: =IF(O43>0,VLOOKUP(P43,'$ alcantarillado'!$I$11:$L$28,4),"0") -> 0.227 | R43: 0.07319776195 | S43: 0.8660510692 | T43: =+IF(S43>$B$13,VLOOKUP(P43,'$ alcantarillado'!$I$12:$N$28,5),P43) -> 10 | U43: =IF(O43>0,VLOOKUP(T43,'$ alcantarillado'!$I$11:$L$28,4),"0") -> 0.227 | V43: 0.07319776195 | W43: 0.8660510692 | X43: =IF(T43>0,4*V43/(PI()*(U43)^2),"") -> 1.808656972 | Y43: =IF(T43>0,(VLOOKUP($W43,Relaciones!$A$3:$D$107,2)),"") -> 1.005 | Z43: =IF(T43>0,Y43*X43,"") -> 1.817700257 | AA43: 0.85125 | AB43: =IF(T43>0,IF(W43<=$B$13,"OK","No Cumple"),"") -> OK | AC43: =IF(T43>0,IF(Z43>=$B$12,"OK","No Cumple"),"") -> OK | AD43: =IF(T43>0,IF(AA43>=$B$14,"OK","No Cumple"),"") -> OK | AE43: =+IF(AB43="OK",1,0) -> 1 | AF43: =+IF(AC43="OK",1,0) -> 1 | AG43: =+IF(AD43="OK",1,0) -> 1 | AH43: =SUM(AE43:AG43) -> 3 | AI43: =IF(AH43=3,2*$B$7+U43,0) -> 0.727 | AJ43: =IF(AI43>0,I43*VLOOKUP(T43,'$ alcantarillado'!$I$12:$K$28,3),0) -> 476816.6667 | AK43: =IF(N43>0,((($D$23-F43)+(U43))+(($D$48-H43)+(U43))/2)*AI43*I43*$C$9,0) -> 250662.33 | AL43: =IF(AI43>0,(($D$23-F43)+U43)*$C$10,0) -> 856422.687 | AM43: =IF(AJ43>0,AJ43+AK43+AL43,0) -> 1583901.684 | AN43: 0 | AO43: 1583901.684 | AP43: =+MIN(AO43:AO47) -> 1583901.684
E44: 2 | F44: 47.675 | G44: 5 | H44: =+H43 -> 47.55 | I44: =+I43 -> 10 | J44: 0.0125 | K44: =+K43 -> 1921 | L44: 63.393 | M44: 0.063393 | N44: 0.2225620711 | O44: 8.762286265 | P44: 10 | Q44: =IF(O44>0,VLOOKUP(P44,'$ alcantarillado'!$I$11:$L$28,4),"0") -> 0.227 | R44: 0.06682010896 | S44: 0.9487114131 | T44: =+IF(S44>$B$13,VLOOKUP(P44,'$ alcantarillado'!$I$12:$N$28,5),P44) -> 10 | U44: =IF(O44>0,VLOOKUP(T44,'$ alcantarillado'!$I$11:$L$28,4),"0") -> 0.227 | V44: 0.06682010896 | W44: 0.9487114131 | X44: =IF(T44>0,4*V44/(PI()*(U44)^2),"") -> 1.65107037 | Y44: =IF(T44>0,(VLOOKUP($W44,Relaciones!$A$3:$D$107,2)),"") -> 1.03 | Z44: =IF(T44>0,Y44*X44,"") -> 1.700602481 | AA44: 0.709375 | AB44: =IF(T44>0,IF(W44<=$B$13,"OK","No Cumple"),"") -> OK | AC44: =IF(T44>0,IF(Z44>=$B$12,"OK","No Cumple"),"") -> OK | AD44: =IF(T44>0,IF(AA44>=$B$14,"OK","No Cumple"),"") -> OK | AE44: =+IF(AB44="OK",1,0) -> 1 | AF44: 1 | AG44: 1 | AH44: =SUM(AE44:AG44) -> 3 | AI44: =IF(AH44=3,2*$B$7+U44,0) -> 0.727 | AJ44: =IF(AI44>0,I44*VLOOKUP(T44,'$ alcantarillado'!$I$12:$K$28,3),0) -> 476816.6667 | AK44: 253933.83 | AL44: 873872.212 | AM44: 1604622.709 | AN44: 0 | AO44: 1604622.709
E45: 3 | F45: 47.65 | G45: 5 | H45: =+H44 -> 47.55 | I45: =+I44 -> 10 | J45: 0.01 | K45: =+K44 -> 1921 | L45: 63.393 | M45: 0.063393 | N45: 0.2320714852 | O45: 9.136672645 | P45: 10 | Q45: =IF(O45>0,VLOOKUP(P45,'$ alcantarillado'!$I$11:$L$28,4),"0") -> 0.227 | R45: 0.05976572236 | S45: 1.060691605 | T45: =IF(S45>$B$13,VLOOKUP(P45,'$ alcantarillado'!$I$12:$N$28,5),P45) -> 12 | U45: =IF(O45>0,VLOOKUP(T45,'$ alcantarillado'!$I$11:$L$28,4),"0") -> 0.284 | V45: 0.1086172477 | W45: 0.5836365893 | X45: 1.714637163 | Y45: =IF(T45>0,(VLOOKUP($W45,Relaciones!$A$3:$D$107,2)),"") -> 0.89 | Z45: 1.526027075 | AA45: 0.71 | AB45: OK | AC45: OK | AD45: =IF(T45>0,IF(AA45>=$B$14,"OK","No Cumple"),"") -> OK | AE45: 1 | AF45: 1 | AG45: 1 | AH45: 3 | AI45: 0.784 | AJ45: =IF(AI45>0,I45*VLOOKUP(T45,'$ alcantarillado'!$I$12:$K$28,3),0) -> 704866.6667 | AK45: 289437.12 | AL45: 931106.654 | AM45: 1925410.441 | AN45: 0 | AO45: 1925410.441 | AQ45: 1 | AR45: 5
E46: 4 | F46: 47.625 | G46: 5 | H46: 47.55 | I46: 10 | J46: =+(F46-H46)/I46 -> 0.0075 | K46: 1921 | L46: 63.393 | M46: 0.063393 | N46: 0.2449332779 | O46: 9.643042439 | P46: 10 | Q46: =IF(O46>0,VLOOKUP(P46,'$ alcantarillado'!$I$11:$L$28,4),"0") -> 0.227 | R46: 0.05175863384 | S46: 1.224781168 | T46: =IF(S46>$B$13,VLOOKUP(P46,'$ alcantarillado'!$I$12:$N$28,5),P46) -> 12 | U46: =IF(O46>0,VLOOKUP(T46,'$ alcantarillado'!$I$11:$L$28,4),"0") -> 0.284 | V46: 0.09406529582 | W46: 0.6739254838 | X46: 1.484919342 | Y46: =IF(T46>0,(VLOOKUP($W46,Relaciones!$A$3:$D$107,2)),"") -> 0.931 | Z46: 1.382459907 | AA46: 0.5325 | AB46: OK | AC46: OK | AD46: OK | AE46: 1 | AF46: 1 | AG46: 1 | AH46: 3 | AI46: 0.784 | AJ46: =IF(AI46>0,I46*VLOOKUP(T46,'$ alcantarillado'!$I$12:$K$28,3),0) -> 704866.6667 | AK46: 292965.12 | AL46: 948556.179 | AM46: 1946387.966 | AN46: 0 | AO46: 1946387.966
E47: 5 | F47: 47.6 | G47: 5 | H47: =+H46 -> 47.55 | I47: =+I46 -> 10 | J47: 0.005 | K47: =+K46 -> 1921 | L47: 63.393 | M47: 0.063393 | N47: 0.2642803698 | O47: 10.40473897 | P47: 12 | Q47: =IF(O47>0,VLOOKUP(P47,'$ alcantarillado'!$I$11:$L$28,4),"0") -> 0.284 | R47: 0.07680399242 | S47: 0.82538678 | T47: =IF(S47>$B$13,VLOOKUP(P47,'$ alcantarillado'!$I$12:$N$28,5),P47) -> 12 | U47: =IF(O47>0,VLOOKUP(T47,'$ alcantarillado'!$I$11:$L$28,4),"0") -> 0.284 | V47: 0.07680399242 | W47: 0.82538678 | X47: 1.212431566 | Y47: =IF(T47>0,(VLOOKUP($W47,Relaciones!$A$3:$D$107,2)),"") -> 0.99 | Z47: 1.20030725 | AA47: 0.355 | AB47: OK | AC47: OK | AD47: OK | AE47: 1 | AF47: 1 | AG47: 1 | AH47: 3 | AI47: 0.784 | AJ47: =IF(AI47>0,I47*VLOOKUP(T47,'$ alcantarillado'!$I$12:$K$28,3),0) -> 704866.6667 | AK47: 296493.12 | AL47: 966005.704 | AM47: 1967365.491 | AN47: 0 | AO47: 1967365.491
A48: 2 | B48: 2 | C48: 3 | D48: 48.7 | E48: 1 | F48: =+H23 -> 47.65 | G48: 1 | H48: =+H58+2*$B$15 -> 47.55 | I48: 28 | J48: =+(F48-H48)/I48 -> 0.003571428571 | K48: =+K23+2150 -> 4071 | L48: =0.033*K48 -> 134.343 | M48: =+L48/1000 -> 0.134343 | N48: 0.3730603248 | O48: 14.68741436 | P48: 16 | Q48: =IF(O48>0,VLOOKUP(P48,'$ alcantarillado'!$I$11:$L$28,4),"0") -> 0.362 | R48: 0.123982501 | S48: 1.083564204 | T48: =+IF(S48>$B$13,VLOOKUP(P48,'$ alcantarillado'!$I$12:$N$28,5),P48) -> 18 | U48: =IF(O48>0,VLOOKUP(T48,'$ alcantarillado'!$I$11:$L$28,4),"0") -> 0.407 | V48: 0.1694556145 | W48: 0.7927916722 | X48: =IF(T48>0,4*V48/(PI()*(U48)^2),"") -> 1.302498593 | Y48: =IF(T48>0,(VLOOKUP($W48,Relaciones!$A$3:$D$107,2)),"") -> 0.98 | Z48: =IF(T48>0,Y48*X48,"") -> 1.276448621 | AA48: 0.3633928571 | AB48: =IF(T48>0,IF(W48<=$B$13,"OK","No Cumple"),"") -> OK | AC48: =IF(T48>0,IF(Z48>=$B$12,"OK","No Cumple"),"") -> OK | AD48: =IF(T48>0,IF(AA48>=$B$14,"OK","No Cumple"),"") -> OK | AE48: =+IF(AB48="OK",1,0) -> 1 | AF48: =+IF(AC48="OK",1,0) -> 1 | AG48: =+IF(AD48="OK",1,0) -> 1 | AH48: =SUM(AE48:AG48) -> 3 | AI48: =IF(AH48=3,2*$B$7+U48,0) -> 0.907 | AJ48: =IF(AI48>0,I48*VLOOKUP(T48,'$ alcantarillado'!$I$12:$K$28,3),0) -> 4284947.333 | AK48: =IF(N48>0,((($D$48-F48)+(U48))+(($D$73-H48)+(U48))/2)*AI48*I48*$C$9,0) -> 1021909.644 | AL48: =IF(AI48>0,(($D$48-F48)+U48)*$C$10,0) -> 1016958.317 | AM48: =IF(AJ48>0,AJ48+AK48+AL48,0) -> 6323815.294 | AN48: =+AP23 -> 1876399.391 | AO48: =IF((AM48)>0,IF(AN48>0,AM48+AN48,""),"") -> 8200214.685 | AP48: =+MIN(AO48:AO52) -> 8200214.685
E49: 2 | F49: =+H28 -> 47.625 | G49: 1 | H49: =+H48 -> 47.55 | I49: =+I48 -> 28 | J49: 0.002678571429 | K49: =+K48 -> 4071 | L49: 134.343 | M49: =+L49/1000 -> 0.134343 | N49: 0.3937359567 | O49: 15.50141562 | P49: 16 | Q49: =IF(O49>0,VLOOKUP(P49,'$ alcantarillado'!$I$11:$L$28,4),"0") -> 0.362 | R49: 0.1073719955 | S49: 1.251192169 | T49: =+IF(S49>$B$13,VLOOKUP(P49,'$ alcantarillado'!$I$12:$N$28,5),P49) -> 18 | U49: =IF(O49>0,VLOOKUP(T49,'$ alcantarillado'!$I$11:$L$28,4),"0") -> 0.407 | V49: 0.146752867 | W49: 0.9154369707 | X49: =IF(T49>0,4*V49/(PI()*(U49)^2),"") -> 1.12799687 | Y49: =IF(T49>0,(VLOOKUP($W49,Relaciones!$A$3:$D$107,2)),"") -> 1.021 | Z49: =IF(T49>0,Y49*X49,"") -> 1.151684804 | AA49: 0.2725446429 | AB49: =IF(T49>0,IF(W49<=$B$13,"OK","No Cumple"),"") -> OK | AC49: =IF(T49>0,IF(Z49>=$B$12,"OK","No Cumple"),"") -> OK | AD49: =IF(T49>0,IF(AA49>=$B$14,"OK","No Cumple"),"") -> No Cumple | AE49: =+IF(AB49="OK",1,0) -> 1 | AF49: 1 | AG49: 0 | AH49: =SUM(AE49:AG49) -> 2 | AI49: =IF(AH49=3,2*$B$7+U49,0) -> 0 | AJ49: =IF(AI49>0,I49*VLOOKUP(T49,'$ alcantarillado'!$I$12:$K$28,3),0) -> 0 | AK49: =IF(N49>0,((($D$48-F49)+(U49))+(($D$73-H49)+(U49))/2)*AI49*I49*$C$9,0) -> 0 | AL49: =IF(AI49>0,(($D$48-F49)+U49)*$C$10,0) -> 0 | AM49: 0 | AN49: =+AP28 -> 1878163.391 | AO49: =IF((AM49)>0,IF(AN49>0,AM49+AN49,""),"") ->  | AQ49: 1 | AR49: 1
E50: 3 | F50: =+H33 -> 47.6 | G50: 1 | H50: =+H49 -> 47.55 | I50: =+I49 -> 28 | J50: 0.001785714286 | K50: =+K49 -> 4071 | L50: 134.343 | M50: 0.134343 | N50: 0.424836858 | O50: 16.72586055 | P50: 18 | Q50: =IF(O50>0,VLOOKUP(P50,'$ alcantarillado'!$I$11:$L$28,4),"0") -> 0.407 | R50: 0.1198232141 | S50: 1.121176735 | T50: =IF(S50>$B$13,VLOOKUP(P50,'$ alcantarillado'!$I$12:$N$28,5),P50) -> 20 | U50: =IF(O50>0,VLOOKUP(T50,'$ alcantarillado'!$I$11:$L$28,4),"0") -> 0.452 | V50: 0.1584862902 | W50: 0.8476632256 | X50: 0.9876997613 | Y50: =IF(T50>0,(VLOOKUP($W50,Relaciones!$A$3:$D$107,2)),"") -> 0.997 | Z50: 0.984736662 | AA50: 0.2017857143 | AB50: OK | AC50: OK | AD50: =IF(T50>0,IF(AA50>=$B$14,"OK","No Cumple"),"") -> No Cumple | AE50: 1 | AF50: 1 | AG50: 0 | AH50: 2 | AI50: 0 | AJ50: =IF(AI50>0,I50*VLOOKUP(T50,'$ alcantarillado'!$I$12:$K$28,3),0) -> 0 | AK50: 0 | AL50: 0 | AM50: 0 | AN50: =+AP33 -> 1879927.391
E51: 4 | F51: =+H38 -> 47.575 | G51: 1 | H51: 47.55 | I51: 28 | J51: =+(F51-H51)/I51 -> 0.0008928571429 | K51: 4071 | L51: 134.343 | M51: 0.134343 | N51: 0.4837993855 | O51: 19.0472199 | P51: 20 | Q51: =IF(O51>0,VLOOKUP(P51,'$ alcantarillado'!$I$11:$L$28,4),"0") -> 0.452 | R51: 0.1120667306 | S51: 1.19877683 | T51: =IF(S51>$B$13,VLOOKUP(P51,'$ alcantarillado'!$I$12:$N$28,5),P51) -> 24 | U51: =IF(O51>0,VLOOKUP(T51,'$ alcantarillado'!$I$11:$L$28,4),"0") -> 0.595 | V51: 0.2332488177 | W51: 0.5759643342 | X51: 0.8388718833 | Y51: =IF(T51>0,(VLOOKUP($W51,Relaciones!$A$3:$D$107,2)),"") -> 0.885 | Z51: 0.7424016167 | AA51: 0.1328125 | AB51: OK | AC51: No Cumple | AD51: No Cumple | AE51: 1 | AF51: 0 | AG51: 0 | AH51: 1 | AI51: 0 | AJ51: =IF(AI51>0,I51*VLOOKUP(T51,'$ alcantarillado'!$I$12:$K$28,3),0) -> 0 | AK51: 0 | AL51: 0 | AM51: 0 | AN51: =+AP38 -> 1582265.934
E52: 5 | F52: =+H43 -> 47.55 | G52: 1 | H52: =+H51 -> 47.55 | I52: =+I51 -> 28 | J52: 2.537652628e-16 | K52: =+K51 -> 4071 | L52: 134.343 | M52: 0.134343 | N52: =+IF(J52>0.00001,((M52*$B$2*(4^(5/3))/((J52^0.5)*PI()*$B$6))^(3/8)),0) -> 0 | O52: 0 | P52: 0 | Q52: =IF(O52>0,VLOOKUP(P52,'$ alcantarillado'!$I$11:$L$28,4),"0") -> 0 | S52: 0 | T52: =IF(S52>$B$13,VLOOKUP(P52,'$ alcantarillado'!$I$12:$N$28,5),P52) -> 0 | U52: =IF(O52>0,VLOOKUP(T52,'$ alcantarillado'!$I$11:$L$28,4),"0") -> 0 | W52: 0 | Y52: =IF(T52>0,(VLOOKUP($W52,Relaciones!$A$3:$D$107,2)),"") ->  | AE52: 0 | AF52: 0 | AG52: 0 | AH52: 0 | AI52: 0 | AJ52: =IF(AI52>0,I52*VLOOKUP(T52,'$ alcantarillado'!$I$12:$K$28,3),0) -> 0 | AK52: 0 | AL52: 0 | AM52: 0 | AN52: =+AP43 -> 1583901.684
E53: 1 | F53: =+H23 -> 47.65 | G53: 2 | H53: =+H58+$B$15 -> 47.525 | I53: =+I52 -> 28 | J53: =+(F53-H53)/I53 -> 0.004464285714 | K53: =+K52 -> 4071 | L53: =0.033*K53 -> 134.343 | M53: =+L53/1000 -> 0.134343 | N53: 0.35777372 | O53: 14.08557953 | P53: 16 | Q53: =IF(O53>0,VLOOKUP(P53,'$ alcantarillado'!$I$11:$L$28,4),"0") -> 0.362 | R53: 0.1386166502 | S53: 0.9691692869 | T53: =+IF(S53>$B$13,VLOOKUP(P53,'$ alcantarillado'!$I$12:$N$28,5),P53) -> 16 | U53: =IF(O53>0,VLOOKUP(T53,'$ alcantarillado'!$I$11:$L$28,4),"0") -> 0.362 | V53: 0.1386166502 | W53: 0.9691692869 | X53: =IF(T53>0,4*V53/(PI()*(U53)^2),"") -> 1.346816341 | Y53: =IF(T53>0,(VLOOKUP($W53,Relaciones!$A$3:$D$107,2)),"") -> 1.036 | Z53: =IF(T53>0,Y53*X53,"") -> 1.395301729 | AA53: 0.4040178571 | AB53: =IF(T53>0,IF(W53<=$B$13,"OK","No Cumple"),"") -> OK | AC53: =IF(T53>0,IF(Z53>=$B$12,"OK","No Cumple"),"") -> OK | AD53: =IF(T53>0,IF(AA53>=$B$14,"OK","No Cumple"),"") -> OK | AE53: =+IF(AB53="OK",1,0) -> 1 | AF53: =+IF(AC53="OK",1,0) -> 1 | AG53: =+IF(AD53="OK",1,0) -> 1 | AH53: =SUM(AE53:AG53) -> 3 | AI53: =IF(AH53=3,2*$B$7+U53,0) -> 0.862 | AJ53: =IF(AI53>0,I53*VLOOKUP(T53,'$ alcantarillado'!$I$12:$K$28,3),0) -> 3229240 | AK53: 947313.864 | AL53: =IF(AI53>0,(($D$48-F53)+U53)*$C$10,0) -> 985549.172 | AM53: =IF(AJ53>0,AJ53+AK53+AL53,0) -> 5162103.036 | AN53: =IF(AP23>0,+AP23,0) -> 1876399.391 | AO53: =IF((AM53)>0,IF(AN53>0,AM53+AN53,""),"") -> 7038502.427 | AP53: =+MIN(AO53:AO57) -> 7038502.427
E54: 2 | F54: =+H28 -> 47.625 | G54: 2 | H54: =+H53 -> 47.525 | I54: =+I53 -> 28 | J54: 0.003571428571 | K54: =+K53 -> 4071 | L54: 134.343 | M54: =+L54/1000 -> 0.134343 | N54: 0.3730603248 | O54: 14.68741436 | P54: 16 | Q54: =IF(O54>0,VLOOKUP(P54,'$ alcantarillado'!$I$11:$L$28,4),"0") -> 0.362 | R54: 0.123982501 | S54: 1.083564204 | T54: =+IF(S54>$B$13,VLOOKUP(P54,'$ alcantarillado'!$I$12:$N$28,5),P54) -> 18 | U54: =IF(O54>0,VLOOKUP(T54,'$ alcantarillado'!$I$11:$L$28,4),"0") -> 0.407 | V54: 0.1694556145 | W54: 0.7927916722 | X54: =IF(T54>0,4*V54/(PI()*(U54)^2),"") -> 1.302498593 | Y54: =IF(T54>0,(VLOOKUP($W54,Relaciones!$A$3:$D$107,2)),"") -> 0.98 | Z54: =IF(T54>0,Y54*X54,"") -> 1.276448621 | AA54: 0.3633928571 | AB54: =IF(T54>0,IF(W54<=$B$13,"OK","No Cumple"),"") -> OK | AC54: =IF(T54>0,IF(Z54>=$B$12,"OK","No Cumple"),"") -> OK | AD54: =IF(T54>0,IF(AA54>=$B$14,"OK","No Cumple"),"") -> OK | AE54: =+IF(AB54="OK",1,0) -> 1 | AF54: 1 | AG54: 1 | AH54: =SUM(AE54:AG54) -> 3 | AI54: =IF(AH54=3,2*$B$7+U54,0) -> 0.907 | AJ54: =IF(AI54>0,I54*VLOOKUP(T54,'$ alcantarillado'!$I$12:$K$28,3),0) -> 4284947.333 | AK54: 1039051.944 | AL54: 1034407.842 | AM54: 6358407.119 | AN54: =+AP28 -> 1878163.391 | AO54: 8236570.51 | AQ54: 1 | AR54: 2
E55: 3 | F55: =+H33 -> 47.6 | G55: 2 | H55: =+H54 -> 47.525 | I55: =+I54 -> 28 | J55: 0.002678571429 | K55: =+K54 -> 4071 | L55: 134.343 | M55: 0.134343 | N55: 0.3937359567 | O55: 15.50141562 | P55: 16 | Q55: =IF(O55>0,VLOOKUP(P55,'$ alcantarillado'!$I$11:$L$28,4),"0") -> 0.362 | R55: 0.1073719955 | S55: 1.251192169 | T55: =IF(S55>$B$13,VLOOKUP(P55,'$ alcantarillado'!$I$12:$N$28,5),P55) -> 18 | U55: =IF(O55>0,VLOOKUP(T55,'$ alcantarillado'!$I$11:$L$28,4),"0") -> 0.407 | V55: 0.146752867 | W55: 0.9154369707 | X55: 1.12799687 | Y55: =IF(T55>0,(VLOOKUP($W55,Relaciones!$A$3:$D$107,2)),"") -> 1.021 | Z55: 1.151684804 | AA55: 0.2725446429 | AB55: OK | AC55: OK | AD55: =IF(T55>0,IF(AA55>=$B$14,"OK","No Cumple"),"") -> No Cumple | AE55: 1 | AF55: 1 | AG55: 0 | AH55: 2 | AI55: 0 | AJ55: =IF(AI55>0,I55*VLOOKUP(T55,'$ alcantarillado'!$I$12:$K$28,3),0) -> 0 | AK55: 0 | AL55: 0 | AM55: 0 | AN55: =+AP33 -> 1879927.391
E56: 4 | F56: =+H38 -> 47.575 | G56: 2 | H56: 47.525 | I56: 28 | J56: =+(F56-H56)/I56 -> 0.001785714286 | K56: 4071 | L56: 134.343 | M56: 0.134343 | N56: 0.424836858 | O56: 16.72586055 | P56: 18 | Q56: =IF(O56>0,VLOOKUP(P56,'$ alcantarillado'!$I$11:$L$28,4),"0") -> 0.407 | R56: 0.1198232141 | S56: 1.121176735 | T56: =IF(S56>$B$13,VLOOKUP(P56,'$ alcantarillado'!$I$12:$N$28,5),P56) -> 20 | U56: =IF(O56>0,VLOOKUP(T56,'$ alcantarillado'!$I$11:$L$28,4),"0") -> 0.452 | V56: 0.1584862902 | W56: 0.8476632256 | X56: 0.9876997613 | Y56: =IF(T56>0,(VLOOKUP($W56,Relaciones!$A$3:$D$107,2)),"") -> 0.997 | Z56: 0.984736662 | AA56: 0.2017857143 | AB56: OK | AC56: OK | AD56: No Cumple | AE56: 1 | AF56: 1 | AG56: 0 | AH56: 2 | AI56: 0 | AJ56: =IF(AI56>0,I56*VLOOKUP(T56,'$ alcantarillado'!$I$12:$K$28,3),0) -> 0 | AK56: 0 | AL56: 0 | AM56: 0 | AN56: =+AP38 -> 1582265.934
E57: 5 | F57: =+H43 -> 47.55 | G57: 2 | H57: =+H56 -> 47.525 | I57: =+I56 -> 28 | J57: 0.0008928571429 | K57: =+K56 -> 4071 | L57: 134.343 | M57: 0.134343 | N57: 0.4837993855 | O57: 19.0472199 | P57: 20 | Q57: =IF(O57>0,VLOOKUP(P57,'$ alcantarillado'!$I$11:$L$28,4),"0") -> 0.452 | R57: 0.1120667306 | S57: 1.19877683 | T57: =IF(S57>$B$13,VLOOKUP(P57,'$ alcantarillado'!$I$12:$N$28,5),P57) -> 24 | U57: =IF(O57>0,VLOOKUP(T57,'$ alcantarillado'!$I$11:$L$28,4),"0") -> 0.595 | V57: 0.2332488177 | W57: 0.5759643342 | X57: 0.8388718833 | Y57: =IF(T57>0,(VLOOKUP($W57,Relaciones!$A$3:$D$107,2)),"") -> 0.885 | Z57: 0.7424016167 | AA57: 0.1328125 | AB57: OK | AC57: No Cumple | AD57: No Cumple | AE57: 1 | AF57: 0 | AG57: 0 | AH57: 1 | AI57: 0 | AJ57: =IF(AI57>0,I57*VLOOKUP(T57,'$ alcantarillado'!$I$12:$K$28,3),0) -> 0 | AK57: 0 | AL57: 0 | AM57: 0 | AN57: =+AP43 -> 1583901.684
E58: 1 | F58: =+H23 -> 47.65 | G58: 3 | H58: =+'LOGIKA ALL-1'!H53 -> 47.5 | I58: =+I57 -> 28 | J58: =+(F58-H58)/I58 -> 0.005357142857 | K58: =+K57 -> 4071 | L58: =0.033*K58 -> 134.343 | M58: =+L58/1000 -> 0.134343 | N58: 0.3457498123 | O58: 13.61219733 | P58: 14 | Q58: =IF(O58>0,VLOOKUP(P58,'$ alcantarillado'!$I$11:$L$28,4),"0") -> 0.327 | R58: 0.1157827449 | S58: 1.160302427 | T58: =+IF(S58>$B$13,VLOOKUP(P58,'$ alcantarillado'!$I$12:$N$28,5),P58) -> 16 | U58: =IF(O58>0,VLOOKUP(T58,'$ alcantarillado'!$I$11:$L$28,4),"0") -> 0.362 | V58: 0.1518469323 | W58: 0.8847264675 | X58: =IF(T58>0,4*V58/(PI()*(U58)^2),"") -> 1.475363381 | Y58: =IF(T58>0,(VLOOKUP($W58,Relaciones!$A$3:$D$107,2)),"") -> 1.011 | Z58: =IF(T58>0,Y58*X58,"") -> 1.491592378 | AA58: 0.4848214286 | AB58: =IF(T58>0,IF(W58<=$B$13,"OK","No Cumple"),"") -> OK | AC58: =IF(T58>0,IF(Z58>=$B$12,"OK","No Cumple"),"") -> OK | AD58: =IF(T58>0,IF(AA58>=$B$14,"OK","No Cumple"),"") -> OK | AE58: =+IF(AB58="OK",1,0) -> 1 | AF58: =+IF(AC58="OK",1,0) -> 1 | AG58: =+IF(AD58="OK",1,0) -> 1 | AH58: =SUM(AE58:AG58) -> 3 | AI58: =IF(AH58=3,2*$B$7+U58,0) -> 0.862 | AJ58: =IF(AI58>0,I58*VLOOKUP(T58,'$ alcantarillado'!$I$12:$K$28,3),0) -> 3229240 | AK58: 952744.464 | AL58: =IF(AI58>0,(($D$48-F58)+U58)*$C$10,0) -> 985549.172 | AM58: =IF(AJ58>0,AJ58+AK58+AL58,0) -> 5167533.636 | AN58: =IF(AP23>0,+AP23,0) -> 1876399.391 | AO58: =IF((AM58)>0,IF(AN58>0,AM58+AN58,""),"") -> 7043933.027 | AP58: =+MIN(AO58:AO62) -> 7043933.027
E59: 2 | F59: =+H28 -> 47.625 | G59: 3 | H59: =+H58 -> 47.5 | I59: =+I58 -> 28 | J59: 0.004464285714 | K59: =+K58 -> 4071 | L59: 134.343 | M59: =+L59/1000 -> 0.134343 | N59: 0.35777372 | O59: 14.08557953 | P59: 16 | Q59: =IF(O59>0,VLOOKUP(P59,'$ alcantarillado'!$I$11:$L$28,4),"0") -> 0.362 | R59: 0.1386166502 | S59: 0.9691692869 | T59: =+IF(S59>$B$13,VLOOKUP(P59,'$ alcantarillado'!$I$12:$N$28,5),P59) -> 16 | U59: =IF(O59>0,VLOOKUP(T59,'$ alcantarillado'!$I$11:$L$28,4),"0") -> 0.362 | V59: 0.1386166502 | W59: 0.9691692869 | X59: =IF(T59>0,4*V59/(PI()*(U59)^2),"") -> 1.346816341 | Y59: =IF(T59>0,(VLOOKUP($W59,Relaciones!$A$3:$D$107,2)),"") -> 1.036 | Z59: =IF(T59>0,Y59*X59,"") -> 1.395301729 | AA59: 0.4040178571 | AB59: =IF(T59>0,IF(W59<=$B$13,"OK","No Cumple"),"") -> OK | AC59: =IF(T59>0,IF(Z59>=$B$12,"OK","No Cumple"),"") -> OK | AD59: =IF(T59>0,IF(AA59>=$B$14,"OK","No Cumple"),"") -> OK | AE59: =+IF(AB59="OK",1,0) -> 1 | AF59: 1 | AG59: 1 | AH59: =SUM(AE59:AG59) -> 3 | AI59: =IF(AH59=3,2*$B$7+U59,0) -> 0.862 | AJ59: =IF(AI59>0,I59*VLOOKUP(T59,'$ alcantarillado'!$I$12:$K$28,3),0) -> 3229240 | AK59: 963605.664 | AL59: 1002998.697 | AM59: 5195844.361 | AN59: =+AP28 -> 1878163.391 | AO59: 7074007.752
E60: 3 | F60: =+H33 -> 47.6 | G60: 3 | H60: =+H59 -> 47.5 | I60: =+I59 -> 28 | J60: 0.003571428571 | K60: =+K59 -> 4071 | L60: 134.343 | M60: 0.134343 | N60: 0.3730603248 | O60: 14.68741436 | P60: 16 | Q60: =IF(O60>0,VLOOKUP(P60,'$ alcantarillado'!$I$11:$L$28,4),"0") -> 0.362 | R60: 0.123982501 | S60: 1.083564204 | T60: =IF(S60>$B$13,VLOOKUP(P60,'$ alcantarillado'!$I$12:$N$28,5),P60) -> 18 | U60: =IF(O60>0,VLOOKUP(T60,'$ alcantarillado'!$I$11:$L$28,4),"0") -> 0.407 | V60: 0.1694556145 | W60: 0.7927916722 | X60: 1.302498593 | Y60: =IF(T60>0,(VLOOKUP($W60,Relaciones!$A$3:$D$107,2)),"") -> 0.98 | Z60: 1.276448621 | AA60: 0.3633928571 | AB60: OK | AC60: OK | AD60: =IF(T60>0,IF(AA60>=$B$14,"OK","No Cumple"),"") -> OK | AE60: 1 | AF60: 1 | AG60: 1 | AH60: 3 | AI60: 0.907 | AJ60: =IF(AI60>0,I60*VLOOKUP(T60,'$ alcantarillado'!$I$12:$K$28,3),0) -> 4284947.333 | AK60: 1056194.244 | AL60: 1051857.367 | AM60: 6392998.944 | AN60: =+AP33 -> 1879927.391 | AO60: 8272926.335
E61: 4 | F61: =+H38 -> 47.575 | G61: 3 | H61: 47.5 | I61: 28 | J61: =+(F61-H61)/I61 -> 0.002678571429 | K61: 4071 | L61: 134.343 | M61: 0.134343 | N61: 0.3937359567 | O61: 15.50141562 | P61: 16 | Q61: =IF(O61>0,VLOOKUP(P61,'$ alcantarillado'!$I$11:$L$28,4),"0") -> 0.362 | R61: 0.1073719955 | S61: 1.251192169 | T61: =IF(S61>$B$13,VLOOKUP(P61,'$ alcantarillado'!$I$12:$N$28,5),P61) -> 18 | U61: =IF(O61>0,VLOOKUP(T61,'$ alcantarillado'!$I$11:$L$28,4),"0") -> 0.407 | V61: 0.146752867 | W61: 0.9154369707 | X61: 1.12799687 | Y61: =IF(T61>0,(VLOOKUP($W61,Relaciones!$A$3:$D$107,2)),"") -> 1.021 | Z61: 1.151684804 | AA61: 0.2725446429 | AB61: OK | AC61: OK | AD61: No Cumple | AE61: 1 | AF61: 1 | AG61: 0 | AH61: 2 | AI61: 0 | AJ61: =IF(AI61>0,I61*VLOOKUP(T61,'$ alcantarillado'!$I$12:$K$28,3),0) -> 0 | AK61: 0 | AL61: 0 | AM61: 0 | AN61: =+AP38 -> 1582265.934 | AQ61: 1 | AR61: 3
E62: 5 | F62: =+H43 -> 47.55 | G62: 3 | H62: =+H61 -> 47.5 | I62: =+I61 -> 28 | J62: 0.001785714286 | K62: =+K61 -> 4071 | L62: 134.343 | M62: 0.134343 | N62: 0.424836858 | O62: 16.72586055 | P62: 18 | Q62: =IF(O62>0,VLOOKUP(P62,'$ alcantarillado'!$I$11:$L$28,4),"0") -> 0.407 | R62: 0.1198232141 | S62: 1.121176735 | T62: =IF(S62>$B$13,VLOOKUP(P62,'$ alcantarillado'!$I$12:$N$28,5),P62) -> 20 | U62: =IF(O62>0,VLOOKUP(T62,'$ alcantarillado'!$I$11:$L$28,4),"0") -> 0.452 | V62: 0.1584862902 | W62: 0.8476632256 | X62: 0.9876997613 | Y62: =IF(T62>0,(VLOOKUP($W62,Relaciones!$A$3:$D$107,2)),"") -> 0.997 | Z62: 0.984736662 | AA62: 0.2017857143 | AB62: OK | AC62: OK | AD62: No Cumple | AE62: 1 | AF62: 1 | AG62: 0 | AH62: 2 | AI62: 0 | AJ62: =IF(AI62>0,I62*VLOOKUP(T62,'$ alcantarillado'!$I$12:$K$28,3),0) -> 0 | AK62: 0 | AL62: 0 | AM62: 0 | AN62: =+AP43 -> 1583901.684
E63: 1 | F63: =+H23 -> 47.65 | G63: 4 | H63: =+H58-$B$15 -> 47.475 | I63: =+I58 -> 28 | J63: =+(F63-H63)/I63 -> 0.00625 | K63: =+K58 -> 4071 | L63: =0.033*K63 -> 134.343 | M63: =+L63/1000 -> 0.134343 | N63: 0.3358995561 | O63: 13.22439197 | P63: 14 | Q63: =IF(O63>0,VLOOKUP(P63,'$ alcantarillado'!$I$11:$L$28,4),"0") -> 0.327 | R63: 0.1250596579 | S63: 1.074231309 | T63: =+IF(S63>$B$13,VLOOKUP(P63,'$ alcantarillado'!$I$12:$N$28,5),P63) -> 16 | U63: =IF(O63>0,VLOOKUP(T63,'$ alcantarillado'!$I$11:$L$28,4),"0") -> 0.362 | V63: 0.1640134323 | W63: 0.8190975464 | X63: =IF(T63>0,4*V63/(PI()*(U63)^2),"") -> 1.593574585 | Y63: =IF(T63>0,(VLOOKUP($W63,Relaciones!$A$3:$D$107,2)),"") -> 0.987 | Z63: =IF(T63>0,Y63*X63,"") -> 1.572858115 | AA63: 0.565625 | AB63: =IF(T63>0,IF(W63<=$B$13,"OK","No Cumple"),"") -> OK | AC63: =IF(T63>0,IF(Z63>=$B$12,"OK","No Cumple"),"") -> OK | AD63: =IF(T63>0,IF(AA63>=$B$14,"OK","No Cumple"),"") -> OK | AE63: =+IF(AB63="OK",1,0) -> 1 | AF63: =+IF(AC63="OK",1,0) -> 1 | AG63: =+IF(AD63="OK",1,0) -> 1 | AH63: =SUM(AE63:AG63) -> 3 | AI63: =IF(AH63=3,2*$B$7+U63,0) -> 0.862 | AJ63: =IF(AI63>0,I63*VLOOKUP(T63,'$ alcantarillado'!$I$12:$K$28,3),0) -> 3229240 | AK63: 958175.064 | AL63: =IF(AI63>0,(($D$48-F63)+U63)*$C$10,0) -> 985549.172 | AM63: =IF(AJ63>0,AJ63+AK63+AL63,0) -> 5172964.236 | AN63: =IF(AP23>0,+AP23,0) -> 1876399.391 | AO63: =IF((AM63)>0,IF(AN63>0,AM63+AN63,""),"") -> 7049363.627 | AP63: =+MIN(AO63:AO67) -> 7049363.627
E64: 2 | F64: =+H28 -> 47.625 | G64: 4 | H64: =+H63 -> 47.475 | I64: =+I63 -> 28 | J64: 0.005357142857 | K64: =+K63 -> 4071 | L64: 134.343 | M64: =+L64/1000 -> 0.134343 | N64: 0.3457498123 | O64: 13.61219733 | P64: 14 | Q64: =IF(O64>0,VLOOKUP(P64,'$ alcantarillado'!$I$11:$L$28,4),"0") -> 0.327 | R64: 0.1157827449 | S64: 1.160302427 | T64: =+IF(S64>$B$13,VLOOKUP(P64,'$ alcantarillado'!$I$12:$N$28,5),P64) -> 16 | U64: =IF(O64>0,VLOOKUP(T64,'$ alcantarillado'!$I$11:$L$28,4),"0") -> 0.362 | V64: 0.1518469323 | W64: 0.8847264675 | X64: =IF(T64>0,4*V64/(PI()*(U64)^2),"") -> 1.475363381 | Y64: =IF(T64>0,(VLOOKUP($W64,Relaciones!$A$3:$D$107,2)),"") -> 1.011 | Z64: =IF(T64>0,Y64*X64,"") -> 1.491592378 | AA64: 0.4848214286 | AB64: =IF(T64>0,IF(W64<=$B$13,"OK","No Cumple"),"") -> OK | AC64: =IF(T64>0,IF(Z64>=$B$12,"OK","No Cumple"),"") -> OK | AD64: =IF(T64>0,IF(AA64>=$B$14,"OK","No Cumple"),"") -> OK | AE64: =+IF(AB64="OK",1,0) -> 1 | AF64: 1 | AG64: 1 | AH64: =SUM(AE64:AG64) -> 3 | AI64: =IF(AH64=3,2*$B$7+U64,0) -> 0.862 | AJ64: =IF(AI64>0,I64*VLOOKUP(T64,'$ alcantarillado'!$I$12:$K$28,3),0) -> 3229240 | AK64: 969036.264 | AL64: 1002998.697 | AM64: 5201274.961 | AN64: =+AP28 -> 1878163.391 | AO64: 7079438.352
E65: 3 | F65: =+H33 -> 47.6 | G65: 4 | H65: =+H64 -> 47.475 | I65: =+I64 -> 28 | J65: 0.004464285714 | K65: =+K64 -> 4071 | L65: 134.343 | M65: 0.134343 | N65: 0.35777372 | O65: 14.08557953 | P65: 16 | Q65: =IF(O65>0,VLOOKUP(P65,'$ alcantarillado'!$I$11:$L$28,4),"0") -> 0.362 | R65: 0.1386166502 | S65: 0.9691692869 | T65: =IF(S65>$B$13,VLOOKUP(P65,'$ alcantarillado'!$I$12:$N$28,5),P65) -> 16 | U65: =IF(O65>0,VLOOKUP(T65,'$ alcantarillado'!$I$11:$L$28,4),"0") -> 0.362 | V65: 0.1386166502 | W65: 0.9691692869 | X65: 1.346816341 | Y65: =IF(T65>0,(VLOOKUP($W65,Relaciones!$A$3:$D$107,2)),"") -> 1.036 | Z65: 1.395301729 | AA65: 0.4040178571 | AB65: OK | AC65: OK | AD65: =IF(T65>0,IF(AA65>=$B$14,"OK","No Cumple"),"") -> OK | AE65: 1 | AF65: 1 | AG65: 1 | AH65: 3 | AI65: 0.862 | AJ65: =IF(AI65>0,I65*VLOOKUP(T65,'$ alcantarillado'!$I$12:$K$28,3),0) -> 3229240 | AK65: 979897.464 | AL65: 1020448.222 | AM65: 5229585.686 | AN65: =+AP33 -> 1879927.391 | AO65: 7109513.077 | AQ65: 1 | AR65: 4
E66: 4 | F66: =+H38 -> 47.575 | G66: 4 | H66: 47.475 | I66: 28 | J66: =+(F66-H66)/I66 -> 0.003571428571 | K66: 4071 | L66: 134.343 | M66: 0.134343 | N66: 0.3730603248 | O66: 14.68741436 | P66: 16 | Q66: =IF(O66>0,VLOOKUP(P66,'$ alcantarillado'!$I$11:$L$28,4),"0") -> 0.362 | R66: 0.123982501 | S66: 1.083564204 | T66: =IF(S66>$B$13,VLOOKUP(P66,'$ alcantarillado'!$I$12:$N$28,5),P66) -> 18 | U66: =IF(O66>0,VLOOKUP(T66,'$ alcantarillado'!$I$11:$L$28,4),"0") -> 0.407 | V66: 0.1694556145 | W66: 0.7927916722 | X66: 1.302498593 | Y66: =IF(T66>0,(VLOOKUP($W66,Relaciones!$A$3:$D$107,2)),"") -> 0.98 | Z66: 1.276448621 | AA66: 0.3633928571 | AB66: OK | AC66: OK | AD66: OK | AE66: 1 | AF66: 1 | AG66: 1 | AH66: 3 | AI66: 0.907 | AJ66: =IF(AI66>0,I66*VLOOKUP(T66,'$ alcantarillado'!$I$12:$K$28,3),0) -> 4284947.333 | AK66: 1073336.544 | AL66: 1069306.892 | AM66: 6427590.769 | AN66: =+AP38 -> 1582265.934 | AO66: 8009856.703
E67: 5 | F67: =+H43 -> 47.55 | G67: 4 | H67: =+H66 -> 47.475 | I67: =+I66 -> 28 | J67: 0.002678571429 | K67: =+K66 -> 4071 | L67: 134.343 | M67: 0.134343 | N67: 0.3937359567 | O67: 15.50141562 | P67: 16 | Q67: =IF(O67>0,VLOOKUP(P67,'$ alcantarillado'!$I$11:$L$28,4),"0") -> 0.362 | R67: 0.1073719955 | S67: 1.251192169 | T67: =IF(S67>$B$13,VLOOKUP(P67,'$ alcantarillado'!$I$12:$N$28,5),P67) -> 18 | U67: =IF(O67>0,VLOOKUP(T67,'$ alcantarillado'!$I$11:$L$28,4),"0") -> 0.407 | V67: 0.146752867 | W67: 0.9154369707 | X67: 1.12799687 | Y67: =IF(T67>0,(VLOOKUP($W67,Relaciones!$A$3:$D$107,2)),"") -> 1.021 | Z67: 1.151684804 | AA67: 0.2725446429 | AB67: OK | AC67: OK | AD67: No Cumple | AE67: 1 | AF67: 1 | AG67: 0 | AH67: 2 | AI67: 0 | AJ67: =IF(AI67>0,I67*VLOOKUP(T67,'$ alcantarillado'!$I$12:$K$28,3),0) -> 0 | AK67: 0 | AL67: 0 | AM67: 0 | AN67: =+AP43 -> 1583901.684
E68: 1 | F68: =+H23 -> 47.65 | G68: 5 | H68: =+H58-2*$B$15 -> 47.45 | I68: =+I63 -> 28 | J68: =+(F68-H68)/I68 -> 0.007142857143 | K68: =+K63 -> 4071 | L68: =0.033*K68 -> 134.343 | M68: =+L68/1000 -> 0.134343 | N68: 0.3275940007 | O68: 12.8974016 | P68: 14 | Q68: =IF(O68>0,VLOOKUP(P68,'$ alcantarillado'!$I$11:$L$28,4),"0") -> 0.327 | R68: 0.1336943979 | S68: 1.004851378 | T68: =+IF(S68>$B$13,VLOOKUP(P68,'$ alcantarillado'!$I$12:$N$28,5),P68) -> 16 | U68: =IF(O68>0,VLOOKUP(T68,'$ alcantarillado'!$I$11:$L$28,4),"0") -> 0.362 | V68: 0.1753377345 | W68: 0.7661955963 | X68: =IF(T68>0,4*V68/(PI()*(U68)^2),"") -> 1.703602891 | Y68: =IF(T68>0,(VLOOKUP($W68,Relaciones!$A$3:$D$107,2)),"") -> 0.969 | Z68: =IF(T68>0,Y68*X68,"") -> 1.650791201 | AA68: 0.6464285714 | AB68: =IF(T68>0,IF(W68<=$B$13,"OK","No Cumple"),"") -> OK | AC68: =IF(T68>0,IF(Z68>=$B$12,"OK","No Cumple"),"") -> OK | AD68: =IF(T68>0,IF(AA68>=$B$14,"OK","No Cumple"),"") -> OK | AE68: =+IF(AB68="OK",1,0) -> 1 | AF68: =+IF(AC68="OK",1,0) -> 1 | AG68: =+IF(AD68="OK",1,0) -> 1 | AH68: =SUM(AE68:AG68) -> 3 | AI68: =IF(AH68=3,2*$B$7+U68,0) -> 0.862 | AJ68: =IF(AI68>0,I68*VLOOKUP(T68,'$ alcantarillado'!$I$12:$K$28,3),0) -> 3229240 | AK68: 963605.664 | AL68: =IF(AI68>0,(($D$48-F68)+U68)*$C$10,0) -> 985549.172 | AM68: =IF(AJ68>0,AJ68+AK68+AL68,0) -> 5178394.836 | AN68: =IF(AP23>0,+AP23,0) -> 1876399.391 | AO68: =IF((AM68)>0,IF(AN68>0,AM68+AN68,""),"") -> 7054794.227 | AP68: =+MIN(AO68:AO72) -> 6845592.945
E69: 2 | F69: =+H28 -> 47.625 | G69: 5 | H69: =+H68 -> 47.45 | I69: =+I68 -> 28 | J69: 0.00625 | K69: =+K68 -> 4071 | L69: 134.343 | M69: =+L69/1000 -> 0.134343 | N69: 0.3358995561 | O69: 13.22439197 | P69: 14 | Q69: =IF(O69>0,VLOOKUP(P69,'$ alcantarillado'!$I$11:$L$28,4),"0") -> 0.327 | R69: 0.1250596579 | S69: 1.074231309 | T69: =+IF(S69>$B$13,VLOOKUP(P69,'$ alcantarillado'!$I$12:$N$28,5),P69) -> 16 | U69: =IF(O69>0,VLOOKUP(T69,'$ alcantarillado'!$I$11:$L$28,4),"0") -> 0.362 | V69: 0.1640134323 | W69: 0.8190975464 | X69: =IF(T69>0,4*V69/(PI()*(U69)^2),"") -> 1.593574585 | Y69: =IF(T69>0,(VLOOKUP($W69,Relaciones!$A$3:$D$107,2)),"") -> 0.987 | Z69: =IF(T69>0,Y69*X69,"") -> 1.572858115 | AA69: 0.565625 | AB69: =IF(T69>0,IF(W69<=$B$13,"OK","No Cumple"),"") -> OK | AC69: =IF(T69>0,IF(Z69>=$B$12,"OK","No Cumple"),"") -> OK | AD69: =IF(T69>0,IF(AA69>=$B$14,"OK","No Cumple"),"") -> OK | AE69: =+IF(AB69="OK",1,0) -> 1 | AF69: 1 | AG69: 1 | AH69: =SUM(AE69:AG69) -> 3 | AI69: =IF(AH69=3,2*$B$7+U69,0) -> 0.862 | AJ69: =IF(AI69>0,I69*VLOOKUP(T69,'$ alcantarillado'!$I$12:$K$28,3),0) -> 3229240 | AK69: 974466.864 | AL69: 1002998.697 | AM69: 5206705.561 | AN69: =+AP28 -> 1878163.391 | AO69: 7084868.952
E70: 3 | F70: =+H33 -> 47.6 | G70: 5 | H70: =+H69 -> 47.45 | I70: =+I69 -> 28 | J70: 0.005357142857 | K70: =+K69 -> 4071 | L70: 134.343 | M70: 0.134343 | N70: 0.3457498123 | O70: 13.61219733 | P70: 14 | Q70: =IF(O70>0,VLOOKUP(P70,'$ alcantarillado'!$I$11:$L$28,4),"0") -> 0.327 | R70: 0.1157827449 | S70: 1.160302427 | T70: =IF(S70>$B$13,VLOOKUP(P70,'$ alcantarillado'!$I$12:$N$28,5),P70) -> 16 | U70: =IF(O70>0,VLOOKUP(T70,'$ alcantarillado'!$I$11:$L$28,4),"0") -> 0.362 | V70: 0.1518469323 | W70: 0.8847264675 | X70: 1.475363381 | Y70: =IF(T70>0,(VLOOKUP($W70,Relaciones!$A$3:$D$107,2)),"") -> 1.011 | Z70: 1.491592378 | AA70: 0.4848214286 | AB70: OK | AC70: OK | AD70: =IF(T70>0,IF(AA70>=$B$14,"OK","No Cumple"),"") -> OK | AE70: 1 | AF70: 1 | AG70: 1 | AH70: 3 | AI70: 0.862 | AJ70: =IF(AI70>0,I70*VLOOKUP(T70,'$ alcantarillado'!$I$12:$K$28,3),0) -> 3229240 | AK70: 985328.064 | AL70: 1020448.222 | AM70: 5235016.286 | AN70: =+AP33 -> 1879927.391 | AO70: 7114943.677 | AQ70: 4 | AR70: 5
E71: 4 | F71: =+H38 -> 47.575 | G71: 5 | H71: 47.45 | I71: 28 | J71: =+(F71-H71)/I71 -> 0.004464285714 | K71: 4071 | L71: 134.343 | M71: 0.134343 | N71: 0.35777372 | O71: 14.08557953 | P71: 16 | Q71: =IF(O71>0,VLOOKUP(P71,'$ alcantarillado'!$I$11:$L$28,4),"0") -> 0.362 | R71: 0.1386166502 | S71: 0.9691692869 | T71: =IF(S71>$B$13,VLOOKUP(P71,'$ alcantarillado'!$I$12:$N$28,5),P71) -> 16 | U71: =IF(O71>0,VLOOKUP(T71,'$ alcantarillado'!$I$11:$L$28,4),"0") -> 0.362 | V71: 0.1386166502 | W71: 0.9691692869 | X71: 1.346816341 | Y71: =IF(T71>0,(VLOOKUP($W71,Relaciones!$A$3:$D$107,2)),"") -> 1.036 | Z71: 1.395301729 | AA71: 0.4040178571 | AB71: OK | AC71: OK | AD71: OK | AE71: 1 | AF71: 1 | AG71: 1 | AH71: 3 | AI71: 0.862 | AJ71: =IF(AI71>0,I71*VLOOKUP(T71,'$ alcantarillado'!$I$12:$K$28,3),0) -> 3229240 | AK71: 996189.264 | AL71: 1037897.747 | AM71: 5263327.011 | AN71: =+AP38 -> 1582265.934 | AO71: 6845592.945
E72: 5 | F72: =+H43 -> 47.55 | G72: 5 | H72: =+H71 -> 47.45 | I72: =+I71 -> 28 | J72: 0.003571428571 | K72: =+K71 -> 4071 | L72: 134.343 | M72: 0.134343 | N72: 0.3730603248 | O72: 14.68741436 | P72: 16 | Q72: =IF(O72>0,VLOOKUP(P72,'$ alcantarillado'!$I$11:$L$28,4),"0") -> 0.362 | R72: 0.123982501 | S72: 1.083564204 | T72: =IF(S72>$B$13,VLOOKUP(P72,'$ alcantarillado'!$I$12:$N$28,5),P72) -> 18 | U72: =IF(O72>0,VLOOKUP(T72,'$ alcantarillado'!$I$11:$L$28,4),"0") -> 0.407 | V72: 0.1694556145 | W72: 0.7927916722 | X72: 1.302498593 | Y72: =IF(T72>0,(VLOOKUP($W72,Relaciones!$A$3:$D$107,2)),"") -> 0.98 | Z72: 1.276448621 | AA72: 0.3633928571 | AB72: OK | AC72: OK | AD72: OK | AE72: 1 | AF72: 1 | AG72: 1 | AH72: 3 | AI72: 0.907 | AJ72: =IF(AI72>0,I72*VLOOKUP(T72,'$ alcantarillado'!$I$12:$K$28,3),0) -> 4284947.333 | AK72: 1090478.844 | AL72: 1086756.417 | AM72: 6462182.594 | AN72: =+AP43 -> 1583901.684 | AO72: 8046084.278
A73: 3 | B73: 3 | C73: 4 | D73: 48.7 | E73: 1 | F73: =+H48 -> 47.55 | G73: 1 | H73: =+H83+2*$B$15 -> 47.45 | I73: 27 | J73: =+(F73-H73)/I73 -> 0.003703703704 | K73: =+K48+2150 -> 6221 | L73: =0.033*K73 -> 205.293 | M73: =+L73/1000 -> 0.205293 | N73: 0.4343874816 | O73: 17.10186935 | P73: 18 | Q73: =IF(O73>0,VLOOKUP(P73,'$ alcantarillado'!$I$11:$L$28,4),"0") -> 0.407 | R73: 0.1725651512 | S73: 1.189655029 | T73: =+IF(S73>$B$13,VLOOKUP(P73,'$ alcantarillado'!$I$12:$N$28,5),P73) -> 20 | U73: =IF(O73>0,VLOOKUP(T73,'$ alcantarillado'!$I$11:$L$28,4),"0") -> 0.452 | V73: 0.2282463447 | W73: 0.8994360906 | X73: =IF(T73>0,4*V73/(PI()*(U73)^2),"") -> 1.422450231 | Y73: =IF(T73>0,(VLOOKUP($W73,Relaciones!$A$3:$D$107,2)),"") -> 1.015 | Z73: =IF(T73>0,Y73*X73,"") -> 1.443786985 | AA73: 0.4185185185 | AB73: =IF(T73>0,IF(W73<=$B$13,"OK","No Cumple"),"") -> OK | AC73: =IF(T73>0,IF(Z73>=$B$12,"OK","No Cumple"),"") -> OK | AD73: =IF(T73>0,IF(AA73>=$B$14,"OK","No Cumple"),"") -> OK | AE73: =+IF(AB73="OK",1,0) -> 1 | AF73: =+IF(AC73="OK",1,0) -> 1 | AG73: =+IF(AD73="OK",1,0) -> 1 | AH73: =SUM(AE73:AG73) -> 3 | AI73: =IF(AH73=3,2*$B$7+U73,0) -> 0.952 | AJ73: =IF(AI73>0,I73*VLOOKUP(T73,'$ alcantarillado'!$I$12:$K$28,3),0) -> 5174059.5 | AK73: =IF(N73>0,((($D$73-F73)+(U73))+(($D$98-H73)+(U73))/2)*AI73*I73*$C$9,0) -> 1134934.416 | AL73: =IF(AI73>0,(($D$73-F73)+U73)*$C$10,0) -> 1118165.562 | AM73: =IF(AJ73>0,AJ73+AK73+AL73,0) -> 7427159.478 | AN73: =+AP48 -> 8200214.685 | AO73: =IF((AM73)>0,IF(AN73>0,AM73+AN73,""),"") -> 15627374.16 | AP73: =+MIN(AO73:AO77) -> 15627374.16
E74: 2 | F74: =+H53 -> 47.525 | G74: 1 | H74: =+H73 -> 47.45 | I74: =+I73 -> 27 | J74: 0.002777777778 | K74: =+K73 -> 6221 | L74: 205.293 | M74: =+L74/1000 -> 0.205293 | N74: 0.4584619678 | O74: 18.04968377 | P74: 20 | Q74: =IF(O74>0,VLOOKUP(P74,'$ alcantarillado'!$I$11:$L$28,4),"0") -> 0.452 | R74: 0.1976671329 | S74: 1.038579338 | T74: =+IF(S74>$B$13,VLOOKUP(P74,'$ alcantarillado'!$I$12:$N$28,5),P74) -> 24 | U74: =IF(O74>0,VLOOKUP(T74,'$ alcantarillado'!$I$11:$L$28,4),"0") -> 0.595 | V74: 0.4114122435 | W74: 0.4989958448 | X74: =IF(T74>0,4*V74/(PI()*(U74)^2),"") -> 1.479630923 | Y74: =IF(T74>0,(VLOOKUP($W74,Relaciones!$A$3:$D$107,2)),"") -> 0.845 | Z74: =IF(T74>0,Y74*X74,"") -> 1.25028813 | AA74: 0.4131944444 | AB74: =IF(T74>0,IF(W74<=$B$13,"OK","No Cumple"),"") -> OK | AC74: =IF(T74>0,IF(Z74>=$B$12,"OK","No Cumple"),"") -> OK | AD74: =IF(T74>0,IF(AA74>=$B$14,"OK","No Cumple"),"") -> OK | AE74: =+IF(AB74="OK",1,0) -> 1 | AF74: 1 | AG74: 1 | AH74: =SUM(AE74:AG74) -> 3 | AI74: =IF(AH74=3,2*$B$7+U74,0) -> 1.095 | AJ74: =IF(AI74>0,I74*VLOOKUP(T74,'$ alcantarillado'!$I$12:$K$28,3),0) -> 7106034.462 | AK74: =IF(N74>0,((($D$73-F74)+(U74))+(($D$98-H74)+(U74))/2)*AI74*I74*$C$9,0) -> 1432867.725 | AL74: =IF(AI74>0,(($D$73-F74)+U74)*$C$10,0) -> 1235426.37 | AM74: 9774328.557 | AN74: =+AP53 -> 7038502.427 | AO74: 16812830.98 | AQ74: 1 | AR74: 1
E75: 3 | F75: =+H58 -> 47.5 | G75: 1 | H75: =+H74 -> 47.45 | I75: =+I74 -> 27 | J75: 0.001851851852 | K75: =+K74 -> 6221 | L75: 205.293 | M75: 0.205293 | N75: 0.4946755271 | O75: 19.47541445 | P75: 20 | Q75: =IF(O75>0,VLOOKUP(P75,'$ alcantarillado'!$I$11:$L$28,4),"0") -> 0.452 | R75: 0.1613945381 | S75: 1.271994718 | T75: =IF(S75>$B$13,VLOOKUP(P75,'$ alcantarillado'!$I$12:$N$28,5),P75) -> 24 | U75: =IF(O75>0,VLOOKUP(T75,'$ alcantarillado'!$I$11:$L$28,4),"0") -> 0.595 | V75: 0.3359166902 | W75: 0.6111426017 | X75: 1.20811359 | Y75: =IF(T75>0,(VLOOKUP($W75,Relaciones!$A$3:$D$107,2)),"") -> 0.903 | Z75: 1.090926572 | AA75: 0.275462963 | AB75: OK | AC75: OK | AD75: =IF(T75>0,IF(AA75>=$B$14,"OK","No Cumple"),"") -> No Cumple | AE75: 1 | AF75: 1 | AG75: 0 | AH75: 2 | AI75: 0 | AJ75: =IF(AI75>0,I75*VLOOKUP(T75,'$ alcantarillado'!$I$12:$K$28,3),0) -> 0 | AK75: 0 | AL75: 0 | AM75: 0 | AN75: =+AP58 -> 7043933.027
E76: 4 | F76: =+H63 -> 47.475 | G76: 1 | H76: 47.45 | I76: 27 | J76: =+(F76-H76)/I76 -> 0.0009259259259 | K76: 6221 | L76: 205.293 | M76: 0.205293 | N76: 0.5633308682 | O76: 22.17838064 | P76: 24 | Q76: =IF(O76>0,VLOOKUP(P76,'$ alcantarillado'!$I$11:$L$28,4),"0") -> 0.595 | R76: 0.2375289695 | S76: 0.8642861559 | T76: =IF(S76>$B$13,VLOOKUP(P76,'$ alcantarillado'!$I$12:$N$28,5),P76) -> 24 | U76: =IF(O76>0,VLOOKUP(T76,'$ alcantarillado'!$I$11:$L$28,4),"0") -> 0.595 | V76: 0.2375289695 | W76: 0.8642861559 | X76: 0.8542653119 | Y76: =IF(T76>0,(VLOOKUP($W76,Relaciones!$A$3:$D$107,2)),"") -> 1.005 | Z76: 0.8585366385 | AA76: 0.1377314815 | AB76: OK | AC76: OK | AD76: No Cumple | AE76: 1 | AF76: 1 | AG76: 0 | AH76: 2 | AI76: 0 | AJ76: =IF(AI76>0,I76*VLOOKUP(T76,'$ alcantarillado'!$I$12:$K$28,3),0) -> 0 | AK76: 0 | AL76: 0 | AM76: 0 | AN76: =+AP63 -> 7049363.627
E77: 5 | F77: =+H68 -> 47.45 | G77: 1 | H77: =+H76 -> 47.45 | I77: =+I76 -> 27 | J77: 2.631639762e-16 | K77: =+K76 -> 6221 | L77: 205.293 | M77: 0.205293 | N77: =+IF(J77>0.00001,((M77*$B$2*(4^(5/3))/((J77^0.5)*PI()*$B$6))^(3/8)),0) -> 0 | O77: 0 | P77: 0 | Q77: =IF(O77>0,VLOOKUP(P77,'$ alcantarillado'!$I$11:$L$28,4),"0") -> 0 | S77: 0 | T77: =IF(S77>$B$13,VLOOKUP(P77,'$ alcantarillado'!$I$12:$N$28,5),P77) -> 0 | U77: =IF(O77>0,VLOOKUP(T77,'$ alcantarillado'!$I$11:$L$28,4),"0") -> 0 | W77: 0 | Y77: =IF(T77>0,(VLOOKUP($W77,Relaciones!$A$3:$D$107,2)),"") ->  | AE77: 0 | AF77: 0 | AG77: 0 | AH77: 0 | AI77: 0 | AJ77: =IF(AI77>0,I77*VLOOKUP(T77,'$ alcantarillado'!$I$12:$K$28,3),0) -> 0 | AK77: 0 | AL77: 0 | AM77: 0 | AN77: =+AP68 -> 6845592.945
E78: 1 | F78: =+H48 -> 47.55 | G78: 2 | H78: =+H83+$B$15 -> 47.425 | I78: =+I77 -> 27 | J78: =+(F78-H78)/I78 -> 0.00462962963 | K78: =+K77 -> 6221 | L78: =0.033*K78 -> 205.293 | M78: =+L78/1000 -> 0.205293 | N78: 0.4165879212 | O78: 16.40109926 | P78: 18 | Q78: =IF(O78>0,VLOOKUP(P78,'$ alcantarillado'!$I$11:$L$28,4),"0") -> 0.407 | R78: 0.1929337043 | S78: 1.064059806 | T78: =+IF(S78>$B$13,VLOOKUP(P78,'$ alcantarillado'!$I$12:$N$28,5),P78) -> 20 | U78: =IF(O78>0,VLOOKUP(T78,'$ alcantarillado'!$I$11:$L$28,4),"0") -> 0.452 | V78: 0.2551871712 | W78: 0.804480096 | X78: =IF(T78>0,4*V78/(PI()*(U78)^2),"") -> 1.590347706 | Y78: =IF(T78>0,(VLOOKUP($W78,Relaciones!$A$3:$D$107,2)),"") -> 0.984 | Z78: =IF(T78>0,Y78*X78,"") -> 1.564902143 | AA78: 0.5231481481 | AB78: =IF(T78>0,IF(W78<=$B$13,"OK","No Cumple"),"") -> OK | AC78: =IF(T78>0,IF(Z78>=$B$12,"OK","No Cumple"),"") -> OK | AD78: =IF(T78>0,IF(AA78>=$B$14,"OK","No Cumple"),"") -> OK | AE78: =+IF(AB78="OK",1,0) -> 1 | AF78: =+IF(AC78="OK",1,0) -> 1 | AG78: =+IF(AD78="OK",1,0) -> 1 | AH78: =SUM(AE78:AG78) -> 3 | AI78: =IF(AH78=3,2*$B$7+U78,0) -> 0.952 | AJ78: =IF(AI78>0,I78*VLOOKUP(T78,'$ alcantarillado'!$I$12:$K$28,3),0) -> 5174059.5 | AK78: 1140717.816 | AL78: =IF(AI78>0,(($D$73-F78)+U78)*$C$10,0) -> 1118165.562 | AM78: =IF(AJ78>0,AJ78+AK78+AL78,0) -> 7432942.878 | AN78: =IF(AP48>0,+AP48,0) -> 8200214.685 | AO78: =IF((AM78)>0,IF(AN78>0,AM78+AN78,""),"") -> 15633157.56 | AP78: =+MIN(AO78:AO82) -> 14500461.63
E79: 2 | F79: =+H53 -> 47.525 | G79: 2 | H79: =+H78 -> 47.425 | I79: =+I78 -> 27 | J79: 0.003703703704 | K79: =+K78 -> 6221 | L79: 205.293 | M79: =+L79/1000 -> 0.205293 | N79: 0.4343874816 | O79: 17.10186935 | P79: 18 | Q79: =IF(O79>0,VLOOKUP(P79,'$ alcantarillado'!$I$11:$L$28,4),"0") -> 0.407 | R79: 0.1725651512 | S79: 1.189655029 | T79: =+IF(S79>$B$13,VLOOKUP(P79,'$ alcantarillado'!$I$12:$N$28,5),P79) -> 20 | U79: =IF(O79>0,VLOOKUP(T79,'$ alcantarillado'!$I$11:$L$28,4),"0") -> 0.452 | V79: 0.2282463447 | W79: 0.8994360906 | X79: =IF(T79>0,4*V79/(PI()*(U79)^2),"") -> 1.422450231 | Y79: =IF(T79>0,(VLOOKUP($W79,Relaciones!$A$3:$D$107,2)),"") -> 1.015 | Z79: =IF(T79>0,Y79*X79,"") -> 1.443786985 | AA79: 0.4185185185 | AB79: =IF(T79>0,IF(W79<=$B$13,"OK","No Cumple"),"") -> OK | AC79: =IF(T79>0,IF(Z79>=$B$12,"OK","No Cumple"),"") -> OK | AD79: =IF(T79>0,IF(AA79>=$B$14,"OK","No Cumple"),"") -> OK | AE79: =+IF(AB79="OK",1,0) -> 1 | AF79: 1 | AG79: 1 | AH79: =SUM(AE79:AG79) -> 3 | AI79: =IF(AH79=3,2*$B$7+U79,0) -> 0.952 | AJ79: =IF(AI79>0,I79*VLOOKUP(T79,'$ alcantarillado'!$I$12:$K$28,3),0) -> 5174059.5 | AK79: 1152284.616 | AL79: 1135615.087 | AM79: 7461959.203 | AN79: =+AP53 -> 7038502.427 | AO79: 14500461.63 | AQ79: 2 | AR79: 2
E80: 3 | F80: =+H58 -> 47.5 | G80: 2 | H80: =+H79 -> 47.425 | I80: =+I79 -> 27 | J80: 0.002777777778 | K80: =+K79 -> 6221 | L80: 205.293 | M80: 0.205293 | N80: 0.4584619678 | O80: 18.04968377 | P80: 20 | Q80: =IF(O80>0,VLOOKUP(P80,'$ alcantarillado'!$I$11:$L$28,4),"0") -> 0.452 | R80: 0.1976671329 | S80: 1.038579338 | T80: =IF(S80>$B$13,VLOOKUP(P80,'$ alcantarillado'!$I$12:$N$28,5),P80) -> 24 | U80: =IF(O80>0,VLOOKUP(T80,'$ alcantarillado'!$I$11:$L$28,4),"0") -> 0.595 | V80: 0.4114122435 | W80: 0.4989958448 | X80: 1.479630923 | Y80: =IF(T80>0,(VLOOKUP($W80,Relaciones!$A$3:$D$107,2)),"") -> 0.845 | Z80: 1.25028813 | AA80: 0.4131944444 | AB80: OK | AC80: OK | AD80: =IF(T80>0,IF(AA80>=$B$14,"OK","No Cumple"),"") -> OK | AE80: 1 | AF80: 1 | AG80: 1 | AH80: 3 | AI80: 1.095 | AJ80: =IF(AI80>0,I80*VLOOKUP(T80,'$ alcantarillado'!$I$12:$K$28,3),0) -> 7106034.462 | AK80: 1452824.1 | AL80: 1252875.895 | AM80: 9811734.457 | AN80: =+AP58 -> 7043933.027 | AO80: 16855667.48
E81: 4 | F81: =+H63 -> 47.475 | G81: 2 | H81: 47.425 | I81: 27 | J81: =+(F81-H81)/I81 -> 0.001851851852 | K81: 6221 | L81: 205.293 | M81: 0.205293 | N81: 0.4946755271 | O81: 19.47541445 | P81: 20 | Q81: =IF(O81>0,VLOOKUP(P81,'$ alcantarillado'!$I$11:$L$28,4),"0") -> 0.452 | R81: 0.1613945381 | S81: 1.271994718 | T81: =IF(S81>$B$13,VLOOKUP(P81,'$ alcantarillado'!$I$12:$N$28,5),P81) -> 24 | U81: =IF(O81>0,VLOOKUP(T81,'$ alcantarillado'!$I$11:$L$28,4),"0") -> 0.595 | V81: 0.3359166902 | W81: 0.6111426017 | X81: 1.20811359 | Y81: =IF(T81>0,(VLOOKUP($W81,Relaciones!$A$3:$D$107,2)),"") -> 0.903 | Z81: 1.090926572 | AA81: 0.275462963 | AB81: OK | AC81: OK | AD81: No Cumple | AE81: 1 | AF81: 1 | AG81: 0 | AH81: 2 | AI81: 0 | AJ81: =IF(AI81>0,I81*VLOOKUP(T81,'$ alcantarillado'!$I$12:$K$28,3),0) -> 0 | AK81: 0 | AL81: 0 | AM81: 0 | AN81: =+AP63 -> 7049363.627
E82: 5 | F82: =+H68 -> 47.45 | G82: 2 | H82: =+H81 -> 47.425 | I82: =+I81 -> 27 | J82: 0.0009259259259 | K82: =+K81 -> 6221 | L82: 205.293 | M82: 0.205293 | N82: 0.5633308682 | O82: 22.17838064 | P82: 24 | Q82: =IF(O82>0,VLOOKUP(P82,'$ alcantarillado'!$I$11:$L$28,4),"0") -> 0.595 | R82: 0.2375289695 | S82: 0.8642861559 | T82: =IF(S82>$B$13,VLOOKUP(P82,'$ alcantarillado'!$I$12:$N$28,5),P82) -> 24 | U82: =IF(O82>0,VLOOKUP(T82,'$ alcantarillado'!$I$11:$L$28,4),"0") -> 0.595 | V82: 0.2375289695 | W82: 0.8642861559 | X82: 0.8542653119 | Y82: =IF(T82>0,(VLOOKUP($W82,Relaciones!$A$3:$D$107,2)),"") -> 1.005 | Z82: 0.8585366385 | AA82: 0.1377314815 | AB82: OK | AC82: OK | AD82: No Cumple | AE82: 1 | AF82: 1 | AG82: 0 | AH82: 2 | AI82: 0 | AJ82: =IF(AI82>0,I82*VLOOKUP(T82,'$ alcantarillado'!$I$12:$K$28,3),0) -> 0 | AK82: 0 | AL82: 0 | AM82: 0 | AN82: =+AP68 -> 6845592.945
E83: 1 | F83: =+H48 -> 47.55 | G83: 3 | H83: =+'LOGIKA ALL-1'!H83 -> 47.4 | I83: =+I82 -> 27 | J83: =+(F83-H83)/I83 -> 0.005555555556 | K83: =+K82 -> 6221 | L83: =0.033*K83 -> 205.293 | M83: =+L83/1000 -> 0.205293 | N83: 0.4025874107 | O83: 15.84989806 | P83: 16 | Q83: =IF(O83>0,VLOOKUP(P83,'$ alcantarillado'!$I$11:$L$28,4),"0") -> 0.362 | R83: 0.1546333469 | S83: 1.327611437 | T83: =+IF(S83>$B$13,VLOOKUP(P83,'$ alcantarillado'!$I$12:$N$28,5),P83) -> 18 | U83: =IF(O83>0,VLOOKUP(T83,'$ alcantarillado'!$I$11:$L$28,4),"0") -> 0.407 | V83: 0.2113482839 | W83: 0.9713492638 | X83: =IF(T83>0,4*V83/(PI()*(U83)^2),"") -> 1.624501161 | Y83: =IF(T83>0,(VLOOKUP($W83,Relaciones!$A$3:$D$107,2)),"") -> 1.038 | Z83: =IF(T83>0,Y83*X83,"") -> 1.686232205 | AA83: 0.5652777778 | AB83: =IF(T83>0,IF(W83<=$B$13,"OK","No Cumple"),"") -> OK | AC83: =IF(T83>0,IF(Z83>=$B$12,"OK","No Cumple"),"") -> OK | AD83: =IF(T83>0,IF(AA83>=$B$14,"OK","No Cumple"),"") -> OK | AE83: =+IF(AB83="OK",1,0) -> 1 | AF83: =+IF(AC83="OK",1,0) -> 1 | AG83: =+IF(AD83="OK",1,0) -> 1 | AH83: =SUM(AE83:AG83) -> 3 | AI83: =IF(AH83=3,2*$B$7+U83,0) -> 0.907 | AJ83: =IF(AI83>0,I83*VLOOKUP(T83,'$ alcantarillado'!$I$12:$K$28,3),0) -> 4131913.5 | AK83: 1062553.221 | AL83: =IF(AI83>0,(($D$73-F83)+U83)*$C$10,0) -> 1086756.417 | AM83: =IF(AJ83>0,AJ83+AK83+AL83,0) -> 6281223.138 | AN83: =IF(AP48>0,+AP48,0) -> 8200214.685 | AO83: =IF((AM83)>0,IF(AN83>0,AM83+AN83,""),"") -> 14481437.82 | AP83: =+MIN(AO83:AO87) -> 14481437.82
E84: 2 | F84: =+H53 -> 47.525 | G84: 3 | H84: =+H83 -> 47.4 | I84: =+I83 -> 27 | J84: 0.00462962963 | K84: =+K83 -> 6221 | L84: 205.293 | M84: =+L84/1000 -> 0.205293 | N84: 0.4165879212 | O84: 16.40109926 | P84: 18 | Q84: =IF(O84>0,VLOOKUP(P84,'$ alcantarillado'!$I$11:$L$28,4),"0") -> 0.407 | R84: 0.1929337043 | S84: 1.064059806 | T84: =+IF(S84>$B$13,VLOOKUP(P84,'$ alcantarillado'!$I$12:$N$28,5),P84) -> 20 | U84: =IF(O84>0,VLOOKUP(T84,'$ alcantarillado'!$I$11:$L$28,4),"0") -> 0.452 | V84: 0.2551871712 | W84: 0.804480096 | X84: =IF(T84>0,4*V84/(PI()*(U84)^2),"") -> 1.590347706 | Y84: =IF(T84>0,(VLOOKUP($W84,Relaciones!$A$3:$D$107,2)),"") -> 0.984 | Z84: =IF(T84>0,Y84*X84,"") -> 1.564902143 | AA84: 0.5231481481 | AB84: =IF(T84>0,IF(W84<=$B$13,"OK","No Cumple"),"") -> OK | AC84: =IF(T84>0,IF(Z84>=$B$12,"OK","No Cumple"),"") -> OK | AD84: =IF(T84>0,IF(AA84>=$B$14,"OK","No Cumple"),"") -> OK | AE84: =+IF(AB84="OK",1,0) -> 1 | AF84: 1 | AG84: 1 | AH84: =SUM(AE84:AG84) -> 3 | AI84: =IF(AH84=3,2*$B$7+U84,0) -> 0.952 | AJ84: =IF(AI84>0,I84*VLOOKUP(T84,'$ alcantarillado'!$I$12:$K$28,3),0) -> 5174059.5 | AK84: 1158068.016 | AL84: 1135615.087 | AM84: 7467742.603 | AN84: =+AP53 -> 7038502.427 | AO84: 14506245.03
E85: 3 | F85: =+H58 -> 47.5 | G85: 3 | H85: =+H84 -> 47.4 | I85: =+I84 -> 27 | J85: 0.003703703704 | K85: =+K84 -> 6221 | L85: 205.293 | M85: 0.205293 | N85: 0.4343874816 | O85: 17.10186935 | P85: 18 | Q85: =IF(O85>0,VLOOKUP(P85,'$ alcantarillado'!$I$11:$L$28,4),"0") -> 0.407 | R85: 0.1725651512 | S85: 1.189655029 | T85: =IF(S85>$B$13,VLOOKUP(P85,'$ alcantarillado'!$I$12:$N$28,5),P85) -> 20 | U85: =IF(O85>0,VLOOKUP(T85,'$ alcantarillado'!$I$11:$L$28,4),"0") -> 0.452 | V85: 0.2282463447 | W85: 0.8994360906 | X85: 1.422450231 | Y85: =IF(T85>0,(VLOOKUP($W85,Relaciones!$A$3:$D$107,2)),"") -> 1.015 | Z85: 1.443786985 | AA85: 0.4185185185 | AB85: OK | AC85: OK | AD85: =IF(T85>0,IF(AA85>=$B$14,"OK","No Cumple"),"") -> OK | AE85: 1 | AF85: 1 | AG85: 1 | AH85: 3 | AI85: 0.952 | AJ85: =IF(AI85>0,I85*VLOOKUP(T85,'$ alcantarillado'!$I$12:$K$28,3),0) -> 5174059.5 | AK85: 1169634.816 | AL85: 1153064.612 | AM85: 7496758.928 | AN85: =+AP58 -> 7043933.027 | AO85: 14540691.95
E86: 4 | F86: =+H63 -> 47.475 | G86: 3 | H86: 47.4 | I86: 27 | J86: =+(F86-H86)/I86 -> 0.002777777778 | K86: 6221 | L86: 205.293 | M86: 0.205293 | N86: 0.4584619678 | O86: 18.04968377 | P86: 20 | Q86: =IF(O86>0,VLOOKUP(P86,'$ alcantarillado'!$I$11:$L$28,4),"0") -> 0.452 | R86: 0.1976671329 | S86: 1.038579338 | T86: =IF(S86>$B$13,VLOOKUP(P86,'$ alcantarillado'!$I$12:$N$28,5),P86) -> 24 | U86: =IF(O86>0,VLOOKUP(T86,'$ alcantarillado'!$I$11:$L$28,4),"0") -> 0.595 | V86: 0.4114122435 | W86: 0.4989958448 | X86: 1.479630923 | Y86: =IF(T86>0,(VLOOKUP($W86,Relaciones!$A$3:$D$107,2)),"") -> 0.845 | Z86: 1.25028813 | AA86: 0.4131944444 | AB86: OK | AC86: OK | AD86: OK | AE86: 1 | AF86: 1 | AG86: 1 | AH86: 3 | AI86: 1.095 | AJ86: =IF(AI86>0,I86*VLOOKUP(T86,'$ alcantarillado'!$I$12:$K$28,3),0) -> 7106034.462 | AK86: 1472780.475 | AL86: 1270325.42 | AM86: 9849140.357 | AN86: =+AP63 -> 7049363.627 | AO86: 16898503.98 | AQ86: 1 | AR86: 3
E87: 5 | F87: =+H68 -> 47.45 | G87: 3 | H87: =+H86 -> 47.4 | I87: =+I86 -> 27 | J87: 0.001851851852 | K87: =+K86 -> 6221 | L87: 205.293 | M87: 0.205293 | N87: =+IF(J87>0,((M87*$B$2*(4^(5/3))/((J87^0.5)*PI()*$B$6))^(3/8)),0) -> 0.4946755271 | O87: =+N87*(100/2.54) -> 19.47541445 | P87: 20 | Q87: =IF(O87>0,VLOOKUP(P87,'$ alcantarillado'!$I$11:$L$28,4),"0") -> 0.452 | R87: =IF(P87>0,PI()*((Q87)^(8/3))*((J87)^0.5)/($B$2*4^(5/3)),"") -> 0.1613945381 | S87: =IF(P87>0,+M87/R87,0) -> 1.271994718 | T87: =IF(S87>$B$13,VLOOKUP(P87,'$ alcantarillado'!$I$12:$N$28,5),P87) -> 24 | U87: =IF(O87>0,VLOOKUP(T87,'$ alcantarillado'!$I$11:$L$28,4),"0") -> 0.595 | V87: =IF(T87>0,PI()*((U87)^(8/3))*((J87)^0.5)/($B$2*4^(5/3)),"") -> 0.3359166902 | W87: =IF(P87>0,M87/V87,0) -> 0.6111426017 | X87: 1.20811359 | Y87: =IF(T87>0,(VLOOKUP($W87,Relaciones!$A$3:$D$107,2)),"") -> 0.903 | Z87: 1.090926572 | AA87: =IF(T87>0,250*U87*J87,"") -> 0.275462963 | AB87: OK | AC87: OK | AD87: No Cumple | AE87: 1 | AF87: 1 | AG87: 0 | AH87: 2 | AI87: 0 | AJ87: =IF(AI87>0,I87*VLOOKUP(T87,'$ alcantarillado'!$I$12:$K$28,3),0) -> 0 | AK87: 0 | AL87: 0 | AM87: 0 | AN87: =+AP68 -> 6845592.945
E88: 1 | F88: =+H48 -> 47.55 | G88: 4 | H88: =+H83-$B$15 -> 47.375 | I88: =+I83 -> 27 | J88: =+(F88-H88)/I88 -> 0.006481481481 | K88: =+K83 -> 6221 | L88: =0.033*K88 -> 205.293 | M88: =+L88/1000 -> 0.205293 | N88: 0.391117877 | O88: 15.39834162 | P88: =IF(O88<0.1,0,IF(O88<4,6,EVEN(O88))) -> 16 | Q88: =IF(O88>0,VLOOKUP(P88,'$ alcantarillado'!$I$11:$L$28,4),"0") -> 0.362 | R88: 0.1670231041 | S88: 1.229129353 | T88: =+IF(S88>$B$13,VLOOKUP(P88,'$ alcantarillado'!$I$12:$N$28,5),P88) -> 18 | U88: =IF(O88>0,VLOOKUP(T88,'$ alcantarillado'!$I$11:$L$28,4),"0") -> 0.407 | V88: 0.2282822375 | W88: 0.8992946723 | X88: =IF(T88>0,4*V88/(PI()*(U88)^2),"") -> 1.754661798 | Y88: =IF(T88>0,(VLOOKUP($W88,Relaciones!$A$3:$D$107,2)),"") -> 1.015 | Z88: =IF(T88>0,Y88*X88,"") -> 1.780981725 | AA88: 0.6594907407 | AB88: =IF(T88>0,IF(W88<=$B$13,"OK","No Cumple"),"") -> OK | AC88: =IF(T88>0,IF(Z88>=$B$12,"OK","No Cumple"),"") -> OK | AD88: =IF(T88>0,IF(AA88>=$B$14,"OK","No Cumple"),"") -> OK | AE88: =+IF(AB88="OK",1,0) -> 1 | AF88: =+IF(AC88="OK",1,0) -> 1 | AG88: =+IF(AD88="OK",1,0) -> 1 | AH88: =SUM(AE88:AG88) -> 3 | AI88: =IF(AH88=3,2*$B$7+U88,0) -> 0.907 | AJ88: =IF(AI88>0,I88*VLOOKUP(T88,'$ alcantarillado'!$I$12:$K$28,3),0) -> 4131913.5 | AK88: 1068063.246 | AL88: =IF(AI88>0,(($D$73-F88)+U88)*$C$10,0) -> 1086756.417 | AM88: =IF(AJ88>0,AJ88+AK88+AL88,0) -> 6286733.163 | AN88: =IF(AP48>0,+AP48,0) -> 8200214.685 | AO88: =IF((AM88)>0,IF(AN88>0,AM88+AN88,""),"") -> 14486947.85 | AP88: =+MIN(AO88:AO92) -> 13353705.16
E89: 2 | F89: =+H53 -> 47.525 | G89: 4 | H89: =+H88 -> 47.375 | I89: =+I88 -> 27 | J89: =+(F89-H89)/I89 -> 0.005555555556 | K89: =+K88 -> 6221 | L89: =0.033*K89 -> 205.293 | M89: =+L89/1000 -> 0.205293 | N89: 0.4025874107 | O89: 15.84989806 | P89: 16 | Q89: =IF(O89>0,VLOOKUP(P89,'$ alcantarillado'!$I$11:$L$28,4),"0") -> 0.362 | R89: 0.1546333469 | S89: 1.327611437 | T89: =+IF(S89>$B$13,VLOOKUP(P89,'$ alcantarillado'!$I$12:$N$28,5),P89) -> 18 | U89: =IF(O89>0,VLOOKUP(T89,'$ alcantarillado'!$I$11:$L$28,4),"0") -> 0.407 | V89: 0.2113482839 | W89: 0.9713492638 | X89: =IF(T89>0,4*V89/(PI()*(U89)^2),"") -> 1.624501161 | Y89: =IF(T89>0,(VLOOKUP($W89,Relaciones!$A$3:$D$107,2)),"") -> 1.038 | Z89: =IF(T89>0,Y89*X89,"") -> 1.686232205 | AA89: 0.5652777778 | AB89: =IF(T89>0,IF(W89<=$B$13,"OK","No Cumple"),"") -> OK | AC89: =IF(T89>0,IF(Z89>=$B$12,"OK","No Cumple"),"") -> OK | AD89: =IF(T89>0,IF(AA89>=$B$14,"OK","No Cumple"),"") -> OK | AE89: =+IF(AB89="OK",1,0) -> 1 | AF89: 1 | AG89: 1 | AH89: =SUM(AE89:AG89) -> 3 | AI89: =IF(AH89=3,2*$B$7+U89,0) -> 0.907 | AJ89: =IF(AI89>0,I89*VLOOKUP(T89,'$ alcantarillado'!$I$12:$K$28,3),0) -> 4131913.5 | AK89: 1079083.296 | AL89: 1104205.942 | AM89: =IF(AJ89>0,AJ89+AK89+AL89,0) -> 6315202.738 | AN89: =+AP53 -> 7038502.427 | AO89: 13353705.16
E90: 3 | F90: =+H58 -> 47.5 | G90: 4 | H90: =+H89 -> 47.375 | I90: =+I89 -> 27 | J90: 0.00462962963 | K90: =+K89 -> 6221 | L90: 205.293 | M90: 0.205293 | N90: 0.4165879212 | O90: 16.40109926 | P90: 18 | Q90: =IF(O90>0,VLOOKUP(P90,'$ alcantarillado'!$I$11:$L$28,4),"0") -> 0.407 | R90: 0.1929337043 | S90: 1.064059806 | T90: =IF(S90>$B$13,VLOOKUP(P90,'$ alcantarillado'!$I$12:$N$28,5),P90) -> 20 | U90: =IF(O90>0,VLOOKUP(T90,'$ alcantarillado'!$I$11:$L$28,4),"0") -> 0.452 | V90: 0.2551871712 | W90: 0.804480096 | X90: 1.590347706 | Y90: =IF(T90>0,(VLOOKUP($W90,Relaciones!$A$3:$D$107,2)),"") -> 0.984 | Z90: 1.564902143 | AA90: 0.5231481481 | AB90: OK | AC90: OK | AD90: =IF(T90>0,IF(AA90>=$B$14,"OK","No Cumple"),"") -> OK | AE90: 1 | AF90: 1 | AG90: 1 | AH90: 3 | AI90: 0.952 | AJ90: =IF(AI90>0,I90*VLOOKUP(T90,'$ alcantarillado'!$I$12:$K$28,3),0) -> 5174059.5 | AK90: 1175418.216 | AL90: 1153064.612 | AM90: 7502542.328 | AN90: =+AP58 -> 7043933.027 | AO90: 14546475.35 | AQ90: 1 | AR90: 4
E91: 4 | F91: =+H63 -> 47.475 | G91: 4 | H91: 47.375 | I91: 27 | J91: =+(F91-H91)/I91 -> 0.003703703704 | K91: 6221 | L91: 205.293 | M91: 0.205293 | N91: 0.4343874816 | O91: 17.10186935 | P91: 18 | Q91: =IF(O91>0,VLOOKUP(P91,'$ alcantarillado'!$I$11:$L$28,4),"0") -> 0.407 | R91: 0.1725651512 | S91: 1.189655029 | T91: =IF(S91>$B$13,VLOOKUP(P91,'$ alcantarillado'!$I$12:$N$28,5),P91) -> 20 | U91: =IF(O91>0,VLOOKUP(T91,'$ alcantarillado'!$I$11:$L$28,4),"0") -> 0.452 | V91: 0.2282463447 | W91: 0.8994360906 | X91: 1.422450231 | Y91: =IF(T91>0,(VLOOKUP($W91,Relaciones!$A$3:$D$107,2)),"") -> 1.015 | Z91: 1.443786985 | AA91: 0.4185185185 | AB91: OK | AC91: OK | AD91: OK | AE91: 1 | AF91: 1 | AG91: 1 | AH91: 3 | AI91: 0.952 | AJ91: =IF(AI91>0,I91*VLOOKUP(T91,'$ alcantarillado'!$I$12:$K$28,3),0) -> 5174059.5 | AK91: 1186985.016 | AL91: 1170514.137 | AM91: 7531558.653 | AN91: =+AP63 -> 7049363.627 | AO91: 14580922.28
E92: 5 | F92: =+H68 -> 47.45 | G92: 4 | H92: =+H91 -> 47.375 | I92: =+I91 -> 27 | J92: 0.002777777778 | K92: =+K91 -> 6221 | L92: 205.293 | M92: 0.205293 | N92: 0.4584619678 | O92: 18.04968377 | P92: 20 | Q92: =IF(O92>0,VLOOKUP(P92,'$ alcantarillado'!$I$11:$L$28,4),"0") -> 0.452 | R92: 0.1976671329 | S92: 1.038579338 | T92: =IF(S92>$B$13,VLOOKUP(P92,'$ alcantarillado'!$I$12:$N$28,5),P92) -> 24 | U92: =IF(O92>0,VLOOKUP(T92,'$ alcantarillado'!$I$11:$L$28,4),"0") -> 0.595 | V92: 0.4114122435 | W92: 0.4989958448 | X92: 1.479630923 | Y92: =IF(T92>0,(VLOOKUP($W92,Relaciones!$A$3:$D$107,2)),"") -> 0.845 | Z92: 1.25028813 | AA92: 0.4131944444 | AB92: OK | AC92: OK | AD92: OK | AE92: 1 | AF92: 1 | AG92: 1 | AH92: 3 | AI92: 1.095 | AJ92: =IF(AI92>0,I92*VLOOKUP(T92,'$ alcantarillado'!$I$12:$K$28,3),0) -> 7106034.462 | AK92: 1492736.85 | AL92: 1287774.945 | AM92: 9886546.257 | AN92: =+AP68 -> 6845592.945 | AO92: 16732139.2
E93: 1 | F93: =+H48 -> 47.55 | G93: 5 | H93: =+H83-2*$B$15 -> 47.35 | I93: =+I88 -> 27 | J93: =+(F93-H93)/I93 -> 0.007407407407 | K93: =+K88 -> 6221 | L93: =0.033*K93 -> 205.293 | M93: =+L93/1000 -> 0.205293 | N93: 0.3814469765 | O93: 15.0175975 | P93: 16 | Q93: =IF(O93>0,VLOOKUP(P93,'$ alcantarillado'!$I$11:$L$28,4),"0") -> 0.362 | R93: 0.178555209 | S93: 1.149745231 | T93: =+IF(S93>$B$13,VLOOKUP(P93,'$ alcantarillado'!$I$12:$N$28,5),P93) -> 18 | U93: =IF(O93>0,VLOOKUP(T93,'$ alcantarillado'!$I$11:$L$28,4),"0") -> 0.407 | V93: 0.2440439772 | W93: 0.8412131384 | X93: =IF(T93>0,4*V93/(PI()*(U93)^2),"") -> 1.875812365 | Y93: =IF(T93>0,(VLOOKUP($W93,Relaciones!$A$3:$D$107,2)),"") -> 0.997 | Z93: =IF(T93>0,Y93*X93,"") -> 1.870184928 | AA93: 0.7537037037 | AB93: =IF(T93>0,IF(W93<=$B$13,"OK","No Cumple"),"") -> OK | AC93: =IF(T93>0,IF(Z93>=$B$12,"OK","No Cumple"),"") -> OK | AD93: =IF(T93>0,IF(AA93>=$B$14,"OK","No Cumple"),"") -> OK | AE93: =+IF(AB93="OK",1,0) -> 1 | AF93: =+IF(AC93="OK",1,0) -> 1 | AG93: =+IF(AD93="OK",1,0) -> 1 | AH93: =SUM(AE93:AG93) -> 3 | AI93: =IF(AH93=3,2*$B$7+U93,0) -> 0.907 | AJ93: =IF(AI93>0,I93*VLOOKUP(T93,'$ alcantarillado'!$I$12:$K$28,3),0) -> 4131913.5 | AK93: 1073573.271 | AL93: =IF(AI93>0,(($D$73-F93)+U93)*$C$10,0) -> 1086756.417 | AM93: =IF(AJ93>0,AJ93+AK93+AL93,0) -> 6292243.188 | AN93: =IF(AP48>0,+AP48,0) -> 8200214.685 | AO93: =IF((AM93)>0,IF(AN93>0,AM93+AN93,""),"") -> 14492457.87 | AP93: =+MIN(AO93:AO97) -> 13359215.19
E94: 2 | F94: =+H53 -> 47.525 | G94: 5 | H94: =+H93 -> 47.35 | I94: =+I93 -> 27 | J94: 0.006481481481 | K94: =+K93 -> 6221 | L94: 205.293 | M94: =+L94/1000 -> 0.205293 | N94: 0.391117877 | O94: 15.39834162 | P94: 16 | Q94: =IF(O94>0,VLOOKUP(P94,'$ alcantarillado'!$I$11:$L$28,4),"0") -> 0.362 | R94: 0.1670231041 | S94: 1.229129353 | T94: =+IF(S94>$B$13,VLOOKUP(P94,'$ alcantarillado'!$I$12:$N$28,5),P94) -> 18 | U94: =IF(O94>0,VLOOKUP(T94,'$ alcantarillado'!$I$11:$L$28,4),"0") -> 0.407 | V94: 0.2282822375 | W94: 0.8992946723 | X94: =IF(T94>0,4*V94/(PI()*(U94)^2),"") -> 1.754661798 | Y94: =IF(T94>0,(VLOOKUP($W94,Relaciones!$A$3:$D$107,2)),"") -> 1.015 | Z94: =IF(T94>0,Y94*X94,"") -> 1.780981725 | AA94: 0.6594907407 | AB94: =IF(T94>0,IF(W94<=$B$13,"OK","No Cumple"),"") -> OK | AC94: =IF(T94>0,IF(Z94>=$B$12,"OK","No Cumple"),"") -> OK | AD94: =IF(T94>0,IF(AA94>=$B$14,"OK","No Cumple"),"") -> OK | AE94: =+IF(AB94="OK",1,0) -> 1 | AF94: 1 | AG94: 1 | AH94: =SUM(AE94:AG94) -> 3 | AI94: =IF(AH94=3,2*$B$7+U94,0) -> 0.907 | AJ94: =IF(AI94>0,I94*VLOOKUP(T94,'$ alcantarillado'!$I$12:$K$28,3),0) -> 4131913.5 | AK94: 1084593.321 | AL94: 1104205.942 | AM94: 6320712.763 | AN94: =+AP53 -> 7038502.427 | AO94: 13359215.19
E95: 3 | F95: =+H58 -> 47.5 | G95: 5 | H95: =+H94 -> 47.35 | I95: =+I94 -> 27 | J95: 0.005555555556 | K95: =+K94 -> 6221 | L95: 205.293 | M95: 0.205293 | N95: 0.4025874107 | O95: 15.84989806 | P95: 16 | Q95: =IF(O95>0,VLOOKUP(P95,'$ alcantarillado'!$I$11:$L$28,4),"0") -> 0.362 | R95: 0.1546333469 | S95: 1.327611437 | T95: =IF(S95>$B$13,VLOOKUP(P95,'$ alcantarillado'!$I$12:$N$28,5),P95) -> 18 | U95: =IF(O95>0,VLOOKUP(T95,'$ alcantarillado'!$I$11:$L$28,4),"0") -> 0.407 | V95: 0.2113482839 | W95: 0.9713492638 | X95: 1.624501161 | Y95: =IF(T95>0,(VLOOKUP($W95,Relaciones!$A$3:$D$107,2)),"") -> 1.038 | Z95: 1.686232205 | AA95: 0.5652777778 | AB95: OK | AC95: OK | AD95: =IF(T95>0,IF(AA95>=$B$14,"OK","No Cumple"),"") -> OK | AE95: 1 | AF95: 1 | AG95: 1 | AH95: 3 | AI95: 0.907 | AJ95: =IF(AI95>0,I95*VLOOKUP(T95,'$ alcantarillado'!$I$12:$K$28,3),0) -> 4131913.5 | AK95: 1095613.371 | AL95: 1121655.467 | AM95: 6349182.338 | AN95: =+AP58 -> 7043933.027 | AO95: 13393115.36 | AQ95: 2 | AR95: 5
E96: 4 | F96: =+H63 -> 47.475 | G96: 5 | H96: 47.35 | I96: 27 | J96: =+(F96-H96)/I96 -> 0.00462962963 | K96: 6221 | L96: 205.293 | M96: 0.205293 | N96: 0.4165879212 | O96: 16.40109926 | P96: 18 | Q96: =IF(O96>0,VLOOKUP(P96,'$ alcantarillado'!$I$11:$L$28,4),"0") -> 0.407 | R96: 0.1929337043 | S96: 1.064059806 | T96: =IF(S96>$B$13,VLOOKUP(P96,'$ alcantarillado'!$I$12:$N$28,5),P96) -> 20 | U96: =IF(O96>0,VLOOKUP(T96,'$ alcantarillado'!$I$11:$L$28,4),"0") -> 0.452 | V96: 0.2551871712 | W96: 0.804480096 | X96: 1.590347706 | Y96: =IF(T96>0,(VLOOKUP($W96,Relaciones!$A$3:$D$107,2)),"") -> 0.984 | Z96: 1.564902143 | AA96: 0.5231481481 | AB96: OK | AC96: OK | AD96: OK | AE96: 1 | AF96: 1 | AG96: 1 | AH96: 3 | AI96: 0.952 | AJ96: =IF(AI96>0,I96*VLOOKUP(T96,'$ alcantarillado'!$I$12:$K$28,3),0) -> 5174059.5 | AK96: 1192768.416 | AL96: 1170514.137 | AM96: 7537342.053 | AN96: =+AP63 -> 7049363.627 | AO96: 14586705.68
E97: 5 | F97: =+H68 -> 47.45 | G97: 5 | H97: =+H96 -> 47.35 | I97: =+I96 -> 27 | J97: 0.003703703704 | K97: =+K96 -> 6221 | L97: 205.293 | M97: 0.205293 | N97: 0.4343874816 | O97: 17.10186935 | P97: 18 | Q97: =IF(O97>0,VLOOKUP(P97,'$ alcantarillado'!$I$11:$L$28,4),"0") -> 0.407 | R97: 0.1725651512 | S97: 1.189655029 | T97: =IF(S97>$B$13,VLOOKUP(P97,'$ alcantarillado'!$I$12:$N$28,5),P97) -> 20 | U97: =IF(O97>0,VLOOKUP(T97,'$ alcantarillado'!$I$11:$L$28,4),"0") -> 0.452 | V97: 0.2282463447 | W97: 0.8994360906 | X97: 1.422450231 | Y97: =IF(T97>0,(VLOOKUP($W97,Relaciones!$A$3:$D$107,2)),"") -> 1.015 | Z97: 1.443786985 | AA97: 0.4185185185 | AB97: OK | AC97: OK | AD97: OK | AE97: 1 | AF97: 1 | AG97: 1 | AH97: 3 | AI97: 0.952 | AJ97: =IF(AI97>0,I97*VLOOKUP(T97,'$ alcantarillado'!$I$12:$K$28,3),0) -> 5174059.5 | AK97: 1204335.216 | AL97: 1187963.662 | AM97: 7566358.378 | AN97: =+AP68 -> 6845592.945 | AO97: 14411951.32
A98: 4 | B98: =+C73 -> 4 | C98: 5 | D98: 48.7 | E98: 1 | F98: =+H73 -> 47.45 | G98: 1 | H98: =+H108+2*$B$15 -> 47.35 | I98: 27 | J98: =+(F98-H98)/I98 -> 0.003703703704 | K98: =+K73+2150 -> 8371 | L98: =0.033*K98 -> 276.243 | M98: =+L98/1000 -> 0.276243 | N98: 0.4855357682 | O98: 19.11558142 | P98: 20 | Q98: =IF(O98>0,VLOOKUP(P98,'$ alcantarillado'!$I$11:$L$28,4),"0") -> 0.452 | R98: 0.2282463447 | S98: 1.210284442 | T98: =+IF(S98>$B$13,VLOOKUP(P98,'$ alcantarillado'!$I$12:$N$28,5),P98) -> 24 | U98: =IF(O98>0,VLOOKUP(T98,'$ alcantarillado'!$I$11:$L$28,4),"0") -> 0.595 | V98: 0.4750579391 | W98: 0.5814932817 | X98: =IF(T98>0,4*V98/(PI()*(U98)^2),"") -> 1.708530624 | Y98: =IF(T98>0,(VLOOKUP($W98,Relaciones!$A$3:$D$107,2)),"") -> 0.89 | Z98: =IF(T98>0,Y98*X98,"") -> 1.520592255 | AA98: 0.5509259259 | AB98: =IF(T98>0,IF(W98<=$B$13,"OK","No Cumple"),"") -> OK | AC98: =IF(T98>0,IF(Z98>=$B$12,"OK","No Cumple"),"") -> OK | AD98: =IF(T98>0,IF(AA98>=$B$14,"OK","No Cumple"),"") -> OK | AE98: =+IF(AB98="OK",1,0) -> 1 | AF98: =+IF(AC98="OK",1,0) -> 1 | AG98: =+IF(AD98="OK",1,0) -> 1 | AH98: =SUM(AE98:AG98) -> 3 | AI98: =IF(AH98=3,2*$B$7+U98,0) -> 1.095 | AJ98: =IF(AI98>0,I98*VLOOKUP(T98,'$ alcantarillado'!$I$12:$K$28,3),0) -> 7106034.462 | AK98: =IF(N98>0,((($D$98-F98)+(U98))+(($D$123-H98)+(U98))/2)*AI98*I98*$C$9,0) -> 1499388.975 | AL98: =IF(AI98>0,(($D$98-F98)+U98)*$C$10,0) -> 1287774.945 | AM98: =IF(AJ98>0,AJ98+AK98+AL98,0) -> 9893198.382 | AN98: =IF(AP73>0,+AP73,0) -> 15627374.16 | AO98: =IF((AM98)>0,IF(AN98>0,AM98+AN98,""),"") -> 25520572.54 | AP98: =+MIN(AO98:AO102) -> 24424413.79
E99: 2 | F99: =+H78 -> 47.425 | G99: 1 | H99: =+H98 -> 47.35 | I99: =+I98 -> 27 | J99: =+(F99-H99)/I99 -> 0.002777777778 | K99: =+K98 -> 8371 | L99: =0.033*K99 -> 276.243 | M99: =+L99/1000 -> 0.276243 | N99: 0.5124449786 | O99: 20.17499916 | P99: 22 | Q99: =IF(O99>0,VLOOKUP(P99,'$ alcantarillado'!$I$11:$L$28,4),"0") -> 0.452 | R99: 0.1976671329 | S99: 1.397516097 | T99: =+IF(S99>$B$13,VLOOKUP(P99,'$ alcantarillado'!$I$12:$N$28,5),P99) -> 24 | U99: =IF(O99>0,VLOOKUP(T99,'$ alcantarillado'!$I$11:$L$28,4),"0") -> 0.595 | V99: 0.4114122435 | W99: 0.6714506054 | X99: =IF(T99>0,4*V99/(PI()*(U99)^2),"") -> 1.479630923 | Y99: =IF(T99>0,(VLOOKUP($W99,Relaciones!$A$3:$D$107,2)),"") -> 0.931 | Z99: =IF(T99>0,Y99*X99,"") -> 1.37753639 | AA99: 0.4131944444 | AB99: =IF(T99>0,IF(W99<=$B$13,"OK","No Cumple"),"") -> OK | AC99: =IF(T99>0,IF(Z99>=$B$12,"OK","No Cumple"),"") -> OK | AD99: =IF(T99>0,IF(AA99>=$B$14,"OK","No Cumple"),"") -> OK | AE99: =+IF(AB99="OK",1,0) -> 1 | AF99: 1 | AG99: 1 | AH99: =SUM(AE99:AG99) -> 3 | AI99: =IF(AH99=3,2*$B$7+U99,0) -> 1.095 | AJ99: =IF(AI99>0,I99*VLOOKUP(T99,'$ alcantarillado'!$I$12:$K$28,3),0) -> 7106034.462 | AK99: =IF(N99>0,((($D$98-F99)+(U99))+(($D$123-H99)+(U99))/2)*AI99*I99*$C$9,0) -> 1512693.225 | AL99: =IF(AI99>0,(($D$98-F99)+U99)*$C$10,0) -> 1305224.47 | AM99: =IF(AJ99>0,AJ99+AK99+AL99,0) -> 9923952.157 | AN99: =+AP78 -> 14500461.63 | AO99: 24424413.79 | AQ99: 2 | AR99: 1
E100: 3 | F100: =+H83 -> 47.4 | G100: 1 | H100: =+H99 -> 47.35 | I100: =+I99 -> 27 | J100: 0.001851851852 | K100: =+K99 -> 8371 | L100: 276.243 | M100: 0.276243 | N100: 0.5529226146 | O100: 21.76860687 | P100: 22 | Q100: =IF(O100>0,VLOOKUP(P100,'$ alcantarillado'!$I$11:$L$28,4),"0") -> 0.452 | R100: 0.1613945381 | S100: 1.711600672 | T100: =IF(S100>$B$13,VLOOKUP(P100,'$ alcantarillado'!$I$12:$N$28,5),P100) -> 24 | U100: =IF(O100>0,VLOOKUP(T100,'$ alcantarillado'!$I$11:$L$28,4),"0") -> 0.595 | V100: 0.3359166902 | W100: 0.8223556854 | X100: 1.20811359 | Y100: =IF(T100>0,(VLOOKUP($W100,Relaciones!$A$3:$D$107,2)),"") -> 0.99 | Z100: 1.196032454 | AA100: 0.275462963 | AB100: OK | AC100: OK | AD100: =IF(T100>0,IF(AA100>=$B$14,"OK","No Cumple"),"") -> No Cumple | AE100: 1 | AF100: 1 | AG100: 0 | AH100: 2 | AI100: 0 | AJ100: =IF(AI100>0,I100*VLOOKUP(T100,'$ alcantarillado'!$I$12:$K$28,3),0) -> 0 | AK100: 0 | AL100: 0 | AM100: 0 | AN100: =+AP83 -> 14481437.82
E101: 4 | F101: =+H88 -> 47.375 | G101: 1 | H101: 47.35 | I101: 27 | J101: =+(F101-H101)/I101 -> 0.0009259259259 | K101: 8371 | L101: 276.243 | M101: 0.276243 | N101: 0.6296619894 | O101: 24.7898421 | P101: 26 | Q101: =IF(O101>0,VLOOKUP(P101,'$ alcantarillado'!$I$11:$L$28,4),"0") -> 0.595 | R101: 0.2375289695 | S101: 1.162986563 | T101: =IF(S101>$B$13,VLOOKUP(P101,'$ alcantarillado'!$I$12:$N$28,5),P101) -> 27 | U101: =IF(O101>0,VLOOKUP(T101,'$ alcantarillado'!$I$11:$L$28,4),"0") -> 0.67 | V101: 0.3259899039 | W101: 0.8473974092 | X101: 0.924622938 | Y101: =IF(T101>0,(VLOOKUP($W101,Relaciones!$A$3:$D$107,2)),"") -> 0.997 | Z101: 0.9218490691 | AA101: 0.1550925926 | AB101: OK | AC101: OK | AD101: No Cumple | AE101: 1 | AF101: 1 | AG101: 0 | AH101: 2 | AI101: 0 | AJ101: =IF(AI101>0,I101*VLOOKUP(T101,'$ alcantarillado'!$I$12:$K$28,3),0) -> 0 | AK101: 0 | AL101: 0 | AM101: 0 | AN101: =+AP88 -> 13353705.16
E102: 5 | F102: =+H93 -> 47.35 | G102: 1 | H102: =+H101 -> 47.35 | I102: =+I101 -> 27 | J102: 2.631639762e-16 | K102: =+K101 -> 8371 | L102: 276.243 | M102: 0.276243 | N102: =+IF(J102>0.00001,((M102*$B$2*(4^(5/3))/((J102^0.5)*PI()*$B$6))^(3/8)),0) -> 0 | O102: 0 | P102: 0 | Q102: =IF(O102>0,VLOOKUP(P102,'$ alcantarillado'!$I$11:$L$28,4),"0") -> 0 | S102: 0 | T102: =IF(S102>$B$13,VLOOKUP(P102,'$ alcantarillado'!$I$12:$N$28,5),P102) -> 0 | U102: =IF(O102>0,VLOOKUP(T102,'$ alcantarillado'!$I$11:$L$28,4),"0") -> 0 | W102: 0 | Y102: =IF(T102>0,(VLOOKUP($W102,Relaciones!$A$3:$D$107,2)),"") ->  | AE102: 0 | AF102: 0 | AG102: 0 | AH102: 0 | AI102: 0 | AJ102: =IF(AI102>0,I102*VLOOKUP(T102,'$ alcantarillado'!$I$12:$K$28,3),0) -> 0 | AK102: 0 | AL102: 0 | AM102: 0 | AN102: =+AP93 -> 13359215.19
E103: 1 | F103: =+H73 -> 47.45 | G103: 2 | H103: =+H108+$B$15 -> 47.325 | I103: =+I102 -> 27 | J103: =+(F103-H103)/I103 -> 0.00462962963 | K103: =+K102 -> 8371 | L103: =0.033*K103 -> 276.243 | M103: =+L103/1000 -> 0.276243 | N103: 0.4656403439 | O103: 18.33229701 | P103: 20 | Q103: =IF(O103>0,VLOOKUP(P103,'$ alcantarillado'!$I$11:$L$28,4),"0") -> 0.452 | R103: 0.2551871712 | S103: 1.082511314 | T103: =+IF(S103>$B$13,VLOOKUP(P103,'$ alcantarillado'!$I$12:$N$28,5),P103) -> 24 | U103: =IF(O103>0,VLOOKUP(T103,'$ alcantarillado'!$I$11:$L$28,4),"0") -> 0.595 | V103: 0.5311309225 | W103: 0.5201034025 | X103: =IF(T103>0,4*V103/(PI()*(U103)^2),"") -> 1.910195308 | Y103: =IF(T103>0,(VLOOKUP($W103,Relaciones!$A$3:$D$107,2)),"") -> 0.86 | Z103: =IF(T103>0,Y103*X103,"") -> 1.642767965 | AA103: 0.6886574074 | AB103: =IF(T103>0,IF(W103<=$B$13,"OK","No Cumple"),"") -> OK | AC103: =IF(T103>0,IF(Z103>=$B$12,"OK","No Cumple"),"") -> OK | AD103: =IF(T103>0,IF(AA103>=$B$14,"OK","No Cumple"),"") -> OK | AE103: =+IF(AB103="OK",1,0) -> 1 | AF103: =+IF(AC103="OK",1,0) -> 1 | AG103: =+IF(AD103="OK",1,0) -> 1 | AH103: =SUM(AE103:AG103) -> 3 | AI103: =IF(AH103=3,2*$B$7+U103,0) -> 1.095 | AJ103: =IF(AI103>0,I103*VLOOKUP(T103,'$ alcantarillado'!$I$12:$K$28,3),0) -> 7106034.462 | AK103: 1506041.1 | AL103: 1287774.945 | AM103: =IF(AJ103>0,AJ103+AK103+AL103,0) -> 9899850.507 | AN103: =IF(AP73>0,+AP73,0) -> 15627374.16 | AO103: =IF((AM103)>0,IF(AN103>0,AM103+AN103,""),"") -> 25527224.67 | AP103: =+MIN(AO103:AO107) -> 24431065.91
E104: 2 | F104: =+H78 -> 47.425 | G104: 2 | H104: =+H103 -> 47.325 | I104: =+I103 -> 27 | J104: 0.003703703704 | K104: =+K103 -> 8371 | L104: 276.243 | M104: =+L104/1000 -> 0.276243 | N104: 0.4855357682 | O104: 19.11558142 | P104: 20 | Q104: =IF(O104>0,VLOOKUP(P104,'$ alcantarillado'!$I$11:$L$28,4),"0") -> 0.452 | R104: 0.2282463447 | S104: 1.210284442 | T104: =+IF(S104>$B$13,VLOOKUP(P104,'$ alcantarillado'!$I$12:$N$28,5),P104) -> 24 | U104: =IF(O104>0,VLOOKUP(T104,'$ alcantarillado'!$I$11:$L$28,4),"0") -> 0.595 | V104: 0.4750579391 | W104: 0.5814932817 | X104: =IF(T104>0,4*V104/(PI()*(U104)^2),"") -> 1.708530624 | Y104: =IF(T104>0,(VLOOKUP($W104,Relaciones!$A$3:$D$107,2)),"") -> 0.89 | Z104: =IF(T104>0,Y104*X104,"") -> 1.520592255 | AA104: 0.5509259259 | AB104: =IF(T104>0,IF(W104<=$B$13,"OK","No Cumple"),"") -> OK | AC104: =IF(T104>0,IF(Z104>=$B$12,"OK","No Cumple"),"") -> OK | AD104: =IF(T104>0,IF(AA104>=$B$14,"OK","No Cumple"),"") -> OK | AE104: =+IF(AB104="OK",1,0) -> 1 | AF104: 1 | AG104: 1 | AH104: =SUM(AE104:AG104) -> 3 | AI104: =IF(AH104=3,2*$B$7+U104,0) -> 1.095 | AJ104: =IF(AI104>0,I104*VLOOKUP(T104,'$ alcantarillado'!$I$12:$K$28,3),0) -> 7106034.462 | AK104: 1519345.35 | AL104: 1305224.47 | AM104: 9930604.282 | AN104: =+AP78 -> 14500461.63 | AO104: 24431065.91 | AQ104: 2 | AR104: 2
E105: 3 | F105: =+H83 -> 47.4 | G105: 2 | H105: =+H104 -> 47.325 | I105: =+I104 -> 27 | J105: 0.002777777778 | K105: =+K104 -> 8371 | L105: 276.243 | M105: 0.276243 | N105: 0.5124449786 | O105: 20.17499916 | P105: 22 | Q105: =IF(O105>0,VLOOKUP(P105,'$ alcantarillado'!$I$11:$L$28,4),"0") -> 0.452 | R105: 0.1976671329 | S105: 1.397516097 | T105: =IF(S105>$B$13,VLOOKUP(P105,'$ alcantarillado'!$I$12:$N$28,5),P105) -> 24 | U105: =IF(O105>0,VLOOKUP(T105,'$ alcantarillado'!$I$11:$L$28,4),"0") -> 0.595 | V105: 0.4114122435 | W105: 0.6714506054 | X105: 1.479630923 | Y105: =IF(T105>0,(VLOOKUP($W105,Relaciones!$A$3:$D$107,2)),"") -> 0.931 | Z105: 1.37753639 | AA105: 0.4131944444 | AB105: OK | AC105: OK | AD105: =IF(T105>0,IF(AA105>=$B$14,"OK","No Cumple"),"") -> OK | AE105: 1 | AF105: 1 | AG105: 1 | AH105: 3 | AI105: 1.095 | AJ105: =IF(AI105>0,I105*VLOOKUP(T105,'$ alcantarillado'!$I$12:$K$28,3),0) -> 7106034.462 | AK105: 1532649.6 | AL105: 1322673.995 | AM105: 9961358.057 | AN105: =+AP83 -> 14481437.82 | AO105: 24442795.88
E106: 4 | F106: =+H88 -> 47.375 | G106: 2 | H106: 47.325 | I106: 27 | J106: =+(F106-H106)/I106 -> 0.001851851852 | K106: 8371 | L106: 276.243 | M106: 0.276243 | N106: 0.5529226146 | O106: 21.76860687 | P106: 22 | Q106: =IF(O106>0,VLOOKUP(P106,'$ alcantarillado'!$I$11:$L$28,4),"0") -> 0.452 | R106: 0.1613945381 | S106: 1.711600672 | T106: =IF(S106>$B$13,VLOOKUP(P106,'$ alcantarillado'!$I$12:$N$28,5),P106) -> 24 | U106: =IF(O106>0,VLOOKUP(T106,'$ alcantarillado'!$I$11:$L$28,4),"0") -> 0.595 | V106: 0.3359166902 | W106: 0.8223556854 | X106: 1.20811359 | Y106: =IF(T106>0,(VLOOKUP($W106,Relaciones!$A$3:$D$107,2)),"") -> 0.99 | Z106: 1.196032454 | AA106: 0.275462963 | AB106: OK | AC106: OK | AD106: No Cumple | AE106: 1 | AF106: 1 | AG106: 0 | AH106: 2 | AI106: 0 | AJ106: =IF(AI106>0,I106*VLOOKUP(T106,'$ alcantarillado'!$I$12:$K$28,3),0) -> 0 | AK106: 0 | AL106: 0 | AM106: 0 | AN106: =+AP88 -> 13353705.16
E107: 5 | F107: =+H93 -> 47.35 | G107: 2 | H107: =+H106 -> 47.325 | I107: =+I106 -> 27 | J107: 0.0009259259259 | K107: =+K106 -> 8371 | L107: 276.243 | M107: 0.276243 | N107: 0.6296619894 | O107: 24.7898421 | P107: 26 | Q107: =IF(O107>0,VLOOKUP(P107,'$ alcantarillado'!$I$11:$L$28,4),"0") -> 0.595 | R107: 0.2375289695 | S107: 1.162986563 | T107: =IF(S107>$B$13,VLOOKUP(P107,'$ alcantarillado'!$I$12:$N$28,5),P107) -> 27 | U107: =IF(O107>0,VLOOKUP(T107,'$ alcantarillado'!$I$11:$L$28,4),"0") -> 0.67 | V107: 0.3259899039 | W107: 0.8473974092 | X107: 0.924622938 | Y107: =IF(T107>0,(VLOOKUP($W107,Relaciones!$A$3:$D$107,2)),"") -> 0.997 | Z107: 0.9218490691 | AA107: 0.1550925926 | AB107: OK | AC107: OK | AD107: No Cumple | AE107: 1 | AF107: 1 | AG107: 0 | AH107: 2 | AI107: 0 | AJ107: =IF(AI107>0,I107*VLOOKUP(T107,'$ alcantarillado'!$I$12:$K$28,3),0) -> 0 | AK107: 0 | AL107: 0 | AM107: 0 | AN107: =+AP93 -> 13359215.19
E108: 1 | F108: =+H73 -> 47.45 | G108: 3 | H108: =+'LOGIKA ALL-1'!H113 -> 47.3 | I108: =+I107 -> 27 | J108: =+(F108-H108)/I108 -> 0.005555555556 | K108: =+K107 -> 8371 | L108: =0.033*K108 -> 276.243 | M108: =+L108/1000 -> 0.276243 | N108: 0.4499913004 | O108: 17.71619293 | P108: 18 | Q108: =IF(O108>0,VLOOKUP(P108,'$ alcantarillado'!$I$11:$L$28,4),"0") -> 0.407 | R108: 0.2113482839 | S108: 1.307051067 | T108: =+IF(S108>$B$13,VLOOKUP(P108,'$ alcantarillado'!$I$12:$N$28,5),P108) -> 20 | U108: =IF(O108>0,VLOOKUP(T108,'$ alcantarillado'!$I$11:$L$28,4),"0") -> 0.452 | V108: 0.2795435401 | W108: 0.9881931089 | X108: =IF(T108>0,4*V108/(PI()*(U108)^2),"") -> 1.742138626 | Y108: =IF(T108>0,(VLOOKUP($W108,Relaciones!$A$3:$D$107,2)),"") -> 1.039 | Z108: =IF(T108>0,Y108*X108,"") -> 1.810082032 | AA108: 0.6277777778 | AB108: =IF(T108>0,IF(W108<=$B$13,"OK","No Cumple"),"") -> OK | AC108: =IF(T108>0,IF(Z108>=$B$12,"OK","No Cumple"),"") -> OK | AD108: =IF(T108>0,IF(AA108>=$B$14,"OK","No Cumple"),"") -> OK | AE108: =+IF(AB108="OK",1,0) -> 1 | AF108: =+IF(AC108="OK",1,0) -> 1 | AG108: =+IF(AD108="OK",1,0) -> 1 | AH108: =SUM(AE108:AG108) -> 3 | AI108: =IF(AH108=3,2*$B$7+U108,0) -> 0.952 | AJ108: =IF(AI108>0,I108*VLOOKUP(T108,'$ alcantarillado'!$I$12:$K$28,3),0) -> 5174059.5 | AK108: 1215902.016 | AL108: 1187963.662 | AM108: =IF(AJ108>0,AJ108+AK108+AL108,0) -> 7577925.178 | AN108: =IF(AP73>0,+AP73,0) -> 15627374.16 | AO108: =IF((AM108)>0,IF(AN108>0,AM108+AN108,""),"") -> 23205299.34 | AP108: =+MIN(AO108:AO112) -> 23205299.34
E109: 2 | F109: =+H78 -> 47.425 | G109: 3 | H109: =+H108 -> 47.3 | I109: =+I108 -> 27 | J109: 0.00462962963 | K109: =+K108 -> 8371 | L109: 276.243 | M109: =+L109/1000 -> 0.276243 | N109: 0.4656403439 | O109: 18.33229701 | P109: 20 | Q109: =IF(O109>0,VLOOKUP(P109,'$ alcantarillado'!$I$11:$L$28,4),"0") -> 0.452 | R109: 0.2551871712 | S109: 1.082511314 | T109: =+IF(S109>$B$13,VLOOKUP(P109,'$ alcantarillado'!$I$12:$N$28,5),P109) -> 24 | U109: =IF(O109>0,VLOOKUP(T109,'$ alcantarillado'!$I$11:$L$28,4),"0") -> 0.595 | V109: 0.5311309225 | W109: 0.5201034025 | X109: =IF(T109>0,4*V109/(PI()*(U109)^2),"") -> 1.910195308 | Y109: =IF(T109>0,(VLOOKUP($W109,Relaciones!$A$3:$D$107,2)),"") -> 0.86 | Z109: =IF(T109>0,Y109*X109,"") -> 1.642767965 | AA109: 0.6886574074 | AB109: =IF(T109>0,IF(W109<=$B$13,"OK","No Cumple"),"") -> OK | AC109: =IF(T109>0,IF(Z109>=$B$12,"OK","No Cumple"),"") -> OK | AD109: =IF(T109>0,IF(AA109>=$B$14,"OK","No Cumple"),"") -> OK | AE109: =+IF(AB109="OK",1,0) -> 1 | AF109: 1 | AG109: 1 | AH109: =SUM(AE109:AG109) -> 3 | AI109: =IF(AH109=3,2*$B$7+U109,0) -> 1.095 | AJ109: =IF(AI109>0,I109*VLOOKUP(T109,'$ alcantarillado'!$I$12:$K$28,3),0) -> 7106034.462 | AK109: 1525997.475 | AL109: 1305224.47 | AM109: 9937256.407 | AN109: =+AP78 -> 14500461.63 | AO109: 24437718.04
E110: 3 | F110: =+H83 -> 47.4 | G110: 3 | H110: =+H109 -> 47.3 | I110: =+I109 -> 27 | J110: 0.003703703704 | K110: =+K109 -> 8371 | L110: 276.243 | M110: 0.276243 | N110: 0.4855357682 | O110: 19.11558142 | P110: 20 | Q110: =IF(O110>0,VLOOKUP(P110,'$ alcantarillado'!$I$11:$L$28,4),"0") -> 0.452 | R110: 0.2282463447 | S110: 1.210284442 | T110: =IF(S110>$B$13,VLOOKUP(P110,'$ alcantarillado'!$I$12:$N$28,5),P110) -> 24 | U110: =IF(O110>0,VLOOKUP(T110,'$ alcantarillado'!$I$11:$L$28,4),"0") -> 0.595 | V110: 0.4750579391 | W110: 0.5814932817 | X110: 1.708530624 | Y110: =IF(T110>0,(VLOOKUP($W110,Relaciones!$A$3:$D$107,2)),"") -> 0.89 | Z110: 1.520592255 | AA110: 0.5509259259 | AB110: OK | AC110: OK | AD110: =IF(T110>0,IF(AA110>=$B$14,"OK","No Cumple"),"") -> OK | AE110: 1 | AF110: 1 | AG110: 1 | AH110: 3 | AI110: 1.095 | AJ110: =IF(AI110>0,I110*VLOOKUP(T110,'$ alcantarillado'!$I$12:$K$28,3),0) -> 7106034.462 | AK110: 1539301.725 | AL110: 1322673.995 | AM110: 9968010.182 | AN110: =+AP83 -> 14481437.82 | AO110: 24449448
E111: 4 | F111: =+H88 -> 47.375 | G111: 3 | H111: 47.3 | I111: 27 | J111: =+(F111-H111)/I111 -> 0.002777777778 | K111: 8371 | L111: 276.243 | M111: 0.276243 | N111: 0.5124449786 | O111: 20.17499916 | P111: 22 | Q111: =IF(O111>0,VLOOKUP(P111,'$ alcantarillado'!$I$11:$L$28,4),"0") -> 0.452 | R111: 0.1976671329 | S111: 1.397516097 | T111: =IF(S111>$B$13,VLOOKUP(P111,'$ alcantarillado'!$I$12:$N$28,5),P111) -> 24 | U111: =IF(O111>0,VLOOKUP(T111,'$ alcantarillado'!$I$11:$L$28,4),"0") -> 0.595 | V111: 0.4114122435 | W111: 0.6714506054 | X111: 1.479630923 | Y111: =IF(T111>0,(VLOOKUP($W111,Relaciones!$A$3:$D$107,2)),"") -> 0.931 | Z111: 1.37753639 | AA111: 0.4131944444 | AB111: OK | AC111: OK | AD111: OK | AE111: 1 | AF111: 1 | AG111: 1 | AH111: 3 | AI111: 1.095 | AJ111: =IF(AI111>0,I111*VLOOKUP(T111,'$ alcantarillado'!$I$12:$K$28,3),0) -> 7106034.462 | AK111: 1552605.975 | AL111: 1340123.52 | AM111: 9998763.957 | AN111: =+AP88 -> 13353705.16 | AO111: 23352469.12 | AQ111: 1 | AR111: 3
E112: 5 | F112: =+H93 -> 47.35 | G112: 3 | H112: =+H111 -> 47.3 | I112: =+I111 -> 27 | J112: 0.001851851852 | K112: =+K111 -> 8371 | L112: 276.243 | M112: 0.276243 | N112: 0.5529226146 | O112: 21.76860687 | P112: 22 | Q112: =IF(O112>0,VLOOKUP(P112,'$ alcantarillado'!$I$11:$L$28,4),"0") -> 0.452 | R112: 0.1613945381 | S112: 1.711600672 | T112: =IF(S112>$B$13,VLOOKUP(P112,'$ alcantarillado'!$I$12:$N$28,5),P112) -> 24 | U112: =IF(O112>0,VLOOKUP(T112,'$ alcantarillado'!$I$11:$L$28,4),"0") -> 0.595 | V112: 0.3359166902 | W112: 0.8223556854 | X112: 1.20811359 | Y112: =IF(T112>0,(VLOOKUP($W112,Relaciones!$A$3:$D$107,2)),"") -> 0.99 | Z112: 1.196032454 | AA112: 0.275462963 | AB112: OK | AC112: OK | AD112: No Cumple | AE112: 1 | AF112: 1 | AG112: 0 | AH112: 2 | AI112: 0 | AJ112: =IF(AI112>0,I112*VLOOKUP(T112,'$ alcantarillado'!$I$12:$K$28,3),0) -> 0 | AK112: 0 | AL112: 0 | AM112: 0 | AN112: =+AP93 -> 13359215.19
E113: 1 | F113: =+H73 -> 47.45 | G113: 4 | H113: =+H108-$B$15 -> 47.275 | I113: =+I108 -> 27 | J113: =+(F113-H113)/I113 -> 0.006481481481 | K113: =+K108 -> 8371 | L113: =0.033*K113 -> 276.243 | M113: =+L113/1000 -> 0.276243 | N113: 0.4371712513 | O113: 17.21146658 | P113: 18 | Q113: =IF(O113>0,VLOOKUP(P113,'$ alcantarillado'!$I$11:$L$28,4),"0") -> 0.407 | R113: 0.2282822375 | S113: 1.210094149 | T113: =+IF(S113>$B$13,VLOOKUP(P113,'$ alcantarillado'!$I$12:$N$28,5),P113) -> 20 | U113: =IF(O113>0,VLOOKUP(T113,'$ alcantarillado'!$I$11:$L$28,4),"0") -> 0.452 | V113: 0.3019415329 | W113: 0.9148890427 | X113: =IF(T113>0,4*V113/(PI()*(U113)^2),"") -> 1.881724782 | Y113: =IF(T113>0,(VLOOKUP($W113,Relaciones!$A$3:$D$107,2)),"") -> 1.021 | Z113: =IF(T113>0,Y113*X113,"") -> 1.921241003 | AA113: 0.7324074074 | AB113: =IF(T113>0,IF(W113<=$B$13,"OK","No Cumple"),"") -> OK | AC113: =IF(T113>0,IF(Z113>=$B$12,"OK","No Cumple"),"") -> OK | AD113: =IF(T113>0,IF(AA113>=$B$14,"OK","No Cumple"),"") -> OK | AE113: =+IF(AB113="OK",1,0) -> 1 | AF113: =+IF(AC113="OK",1,0) -> 1 | AG113: =+IF(AD113="OK",1,0) -> 1 | AH113: =SUM(AE113:AG113) -> 3 | AI113: =IF(AH113=3,2*$B$7+U113,0) -> 0.952 | AJ113: =IF(AI113>0,I113*VLOOKUP(T113,'$ alcantarillado'!$I$12:$K$28,3),0) -> 5174059.5 | AK113: 1221685.416 | AL113: 1187963.662 | AM113: =IF(AJ113>0,AJ113+AK113+AL113,0) -> 7583708.578 | AN113: =IF(AP73>0,+AP73,0) -> 15627374.16 | AO113: =IF((AM113)>0,IF(AN113>0,AM113+AN113,""),"") -> 23211082.74 | AP113: =+MIN(AO113:AO117) -> 22113186.53
E114: 2 | F114: =+H78 -> 47.425 | G114: 4 | H114: =+H113 -> 47.275 | I114: =+I113 -> 27 | J114: 0.005555555556 | K114: =+K113 -> 8371 | L114: 276.243 | M114: =+L114/1000 -> 0.276243 | N114: 0.4499913004 | O114: 17.71619293 | P114: 18 | Q114: =IF(O114>0,VLOOKUP(P114,'$ alcantarillado'!$I$11:$L$28,4),"0") -> 0.407 | R114: 0.2113482839 | S114: 1.307051067 | T114: =+IF(S114>$B$13,VLOOKUP(P114,'$ alcantarillado'!$I$12:$N$28,5),P114) -> 20 | U114: =IF(O114>0,VLOOKUP(T114,'$ alcantarillado'!$I$11:$L$28,4),"0") -> 0.452 | V114: 0.2795435401 | W114: 0.9881931089 | X114: =IF(T114>0,4*V114/(PI()*(U114)^2),"") -> 1.742138626 | Y114: =IF(T114>0,(VLOOKUP($W114,Relaciones!$A$3:$D$107,2)),"") -> 1.039 | Z114: =IF(T114>0,Y114*X114,"") -> 1.810082032 | AA114: 0.6277777778 | AB114: =IF(T114>0,IF(W114<=$B$13,"OK","No Cumple"),"") -> OK | AC114: =IF(T114>0,IF(Z114>=$B$12,"OK","No Cumple"),"") -> OK | AD114: =IF(T114>0,IF(AA114>=$B$14,"OK","No Cumple"),"") -> OK | AE114: =+IF(AB114="OK",1,0) -> 1 | AF114: 1 | AG114: 1 | AH114: =SUM(AE114:AG114) -> 3 | AI114: =IF(AH114=3,2*$B$7+U114,0) -> 0.952 | AJ114: =IF(AI114>0,I114*VLOOKUP(T114,'$ alcantarillado'!$I$12:$K$28,3),0) -> 5174059.5 | AK114: 1233252.216 | AL114: 1205413.187 | AM114: 7612724.903 | AN114: =+AP78 -> 14500461.63 | AO114: 22113186.53
E115: 3 | F115: =+H83 -> 47.4 | G115: 4 | H115: =+H114 -> 47.275 | I115: =+I114 -> 27 | J115: 0.00462962963 | K115: =+K114 -> 8371 | L115: 276.243 | M115: 0.276243 | N115: 0.4656403439 | O115: 18.33229701 | P115: 20 | Q115: =IF(O115>0,VLOOKUP(P115,'$ alcantarillado'!$I$11:$L$28,4),"0") -> 0.452 | R115: 0.2551871712 | S115: 1.082511314 | T115: =IF(S115>$B$13,VLOOKUP(P115,'$ alcantarillado'!$I$12:$N$28,5),P115) -> 24 | U115: =IF(O115>0,VLOOKUP(T115,'$ alcantarillado'!$I$11:$L$28,4),"0") -> 0.595 | V115: 0.5311309225 | W115: 0.5201034025 | X115: 1.910195308 | Y115: =IF(T115>0,(VLOOKUP($W115,Relaciones!$A$3:$D$107,2)),"") -> 0.86 | Z115: 1.642767965 | AA115: 0.6886574074 | AB115: OK | AC115: OK | AD115: =IF(T115>0,IF(AA115>=$B$14,"OK","No Cumple"),"") -> OK | AE115: 1 | AF115: 1 | AG115: 1 | AH115: 3 | AI115: 1.095 | AJ115: =IF(AI115>0,I115*VLOOKUP(T115,'$ alcantarillado'!$I$12:$K$28,3),0) -> 7106034.462 | AK115: 1545953.85 | AL115: 1322673.995 | AM115: 9974662.307 | AN115: =+AP83 -> 14481437.82 | AO115: =IF((AM115)>0,IF(AN115>0,AM115+AN115,""),"") -> 24456100.13 | AQ115: 1 | AR115: 4
E116: 4 | F116: =+H88 -> 47.375 | G116: 4 | H116: 47.275 | I116: 27 | J116: =+(F116-H116)/I116 -> 0.003703703704 | K116: 8371 | L116: 276.243 | M116: 0.276243 | N116: 0.4855357682 | O116: 19.11558142 | P116: 20 | Q116: =IF(O116>0,VLOOKUP(P116,'$ alcantarillado'!$I$11:$L$28,4),"0") -> 0.452 | R116: 0.2282463447 | S116: 1.210284442 | T116: =IF(S116>$B$13,VLOOKUP(P116,'$ alcantarillado'!$I$12:$N$28,5),P116) -> 24 | U116: =IF(O116>0,VLOOKUP(T116,'$ alcantarillado'!$I$11:$L$28,4),"0") -> 0.595 | V116: 0.4750579391 | W116: 0.5814932817 | X116: 1.708530624 | Y116: =IF(T116>0,(VLOOKUP($W116,Relaciones!$A$3:$D$107,2)),"") -> 0.89 | Z116: 1.520592255 | AA116: 0.5509259259 | AB116: OK | AC116: OK | AD116: OK | AE116: 1 | AF116: 1 | AG116: 1 | AH116: 3 | AI116: 1.095 | AJ116: =IF(AI116>0,I116*VLOOKUP(T116,'$ alcantarillado'!$I$12:$K$28,3),0) -> 7106034.462 | AK116: 1559258.1 | AL116: 1340123.52 | AM116: 10005416.08 | AN116: =+AP88 -> 13353705.16 | AO116: 23359121.25
E117: 5 | F117: =+H93 -> 47.35 | G117: 4 | H117: =+H116 -> 47.275 | I117: =+I116 -> 27 | J117: 0.002777777778 | K117: =+K116 -> 8371 | L117: 276.243 | M117: 0.276243 | N117: 0.5124449786 | O117: 20.17499916 | P117: 22 | Q117: =IF(O117>0,VLOOKUP(P117,'$ alcantarillado'!$I$11:$L$28,4),"0") -> 0.452 | R117: 0.1976671329 | S117: 1.397516097 | T117: =IF(S117>$B$13,VLOOKUP(P117,'$ alcantarillado'!$I$12:$N$28,5),P117) -> 24 | U117: =IF(O117>0,VLOOKUP(T117,'$ alcantarillado'!$I$11:$L$28,4),"0") -> 0.595 | V117: 0.4114122435 | W117: 0.6714506054 | X117: 1.479630923 | Y117: =IF(T117>0,(VLOOKUP($W117,Relaciones!$A$3:$D$107,2)),"") -> 0.931 | Z117: 1.37753639 | AA117: 0.4131944444 | AB117: OK | AC117: OK | AD117: OK | AE117: 1 | AF117: 1 | AG117: 1 | AH117: 3 | AI117: 1.095 | AJ117: =IF(AI117>0,I117*VLOOKUP(T117,'$ alcantarillado'!$I$12:$K$28,3),0) -> 7106034.462 | AK117: 1572562.35 | AL117: 1357573.045 | AM117: 10036169.86 | AN117: =+AP93 -> 13359215.19 | AO117: 23395385.05
E118: 1 | F118: =+H73 -> 47.45 | G118: 5 | H118: =+H108-2*$B$15 -> 47.25 | I118: =+I113 -> 27 | J118: =+(F118-H118)/I118 -> 0.007407407407 | K118: =+K113 -> 8371 | L118: =0.033*K118 -> 276.243 | M118: =+L118/1000 -> 0.276243 | N118: 0.4263616209 | O118: 16.78589059 | P118: 18 | Q118: =IF(O118>0,VLOOKUP(P118,'$ alcantarillado'!$I$11:$L$28,4),"0") -> 0.407 | R118: 0.2440439772 | S118: 1.131939428 | T118: =+IF(S118>$B$13,VLOOKUP(P118,'$ alcantarillado'!$I$12:$N$28,5),P118) -> 20 | U118: =IF(O118>0,VLOOKUP(T118,'$ alcantarillado'!$I$11:$L$28,4),"0") -> 0.452 | V118: 0.3227890763 | W118: 0.8558003362 | X118: =IF(T118>0,4*V118/(PI()*(U118)^2),"") -> 2.011648409 | Y118: =IF(T118>0,(VLOOKUP($W118,Relaciones!$A$3:$D$107,2)),"") -> 1.001 | Z118: =IF(T118>0,Y118*X118,"") -> 2.013660057 | AA118: 0.837037037 | AB118: =IF(T118>0,IF(W118<=$B$13,"OK","No Cumple"),"") -> OK | AC118: =IF(T118>0,IF(Z118>=$B$12,"OK","No Cumple"),"") -> OK | AD118: =IF(T118>0,IF(AA118>=$B$14,"OK","No Cumple"),"") -> OK | AE118: =+IF(AB118="OK",1,0) -> 1 | AF118: =+IF(AC118="OK",1,0) -> 1 | AG118: =+IF(AD118="OK",1,0) -> 1 | AH118: =SUM(AE118:AG118) -> 3 | AI118: =IF(AH118=3,2*$B$7+U118,0) -> 0.952 | AJ118: =IF(AI118>0,I118*VLOOKUP(T118,'$ alcantarillado'!$I$12:$K$28,3),0) -> 5174059.5 | AK118: 1227468.816 | AL118: 1187963.662 | AM118: =IF(AJ118>0,AJ118+AK118+AL118,0) -> 7589491.978 | AN118: =IF(AP73>0,+AP73,0) -> 15627374.16 | AO118: =IF((AM118)>0,IF(AN118>0,AM118+AN118,""),"") -> 23216866.14 | AP118: =+MIN(AO118:AO122) -> 22118969.93
E119: 2 | F119: =+H78 -> 47.425 | G119: 5 | H119: =+H118 -> 47.25 | I119: =+I118 -> 27 | J119: 0.006481481481 | K119: =+K118 -> 8371 | L119: 276.243 | M119: =+L119/1000 -> 0.276243 | N119: 0.4371712513 | O119: 17.21146658 | P119: 18 | Q119: =IF(O119>0,VLOOKUP(P119,'$ alcantarillado'!$I$11:$L$28,4),"0") -> 0.407 | R119: 0.2282822375 | S119: 1.210094149 | T119: =+IF(S119>$B$13,VLOOKUP(P119,'$ alcantarillado'!$I$12:$N$28,5),P119) -> 20 | U119: =IF(O119>0,VLOOKUP(T119,'$ alcantarillado'!$I$11:$L$28,4),"0") -> 0.452 | V119: 0.3019415329 | W119: 0.9148890427 | X119: =IF(T119>0,4*V119/(PI()*(U119)^2),"") -> 1.881724782 | Y119: =IF(T119>0,(VLOOKUP($W119,Relaciones!$A$3:$D$107,2)),"") -> 1.021 | Z119: =IF(T119>0,Y119*X119,"") -> 1.921241003 | AA119: 0.7324074074 | AB119: =IF(T119>0,IF(W119<=$B$13,"OK","No Cumple"),"") -> OK | AC119: =IF(T119>0,IF(Z119>=$B$12,"OK","No Cumple"),"") -> OK | AD119: =IF(T119>0,IF(AA119>=$B$14,"OK","No Cumple"),"") -> OK | AE119: =+IF(AB119="OK",1,0) -> 1 | AF119: 1 | AG119: 1 | AH119: =SUM(AE119:AG119) -> 3 | AI119: =IF(AH119=3,2*$B$7+U119,0) -> 0.952 | AJ119: =IF(AI119>0,I119*VLOOKUP(T119,'$ alcantarillado'!$I$12:$K$28,3),0) -> 5174059.5 | AK119: 1239035.616 | AL119: 1205413.187 | AM119: 7618508.303 | AN119: =+AP78 -> 14500461.63 | AO119: =IF((AM119)>0,IF(AN119>0,AM119+AN119,""),"") -> 22118969.93
E120: 3 | F120: =+H83 -> 47.4 | G120: 5 | H120: =+H119 -> 47.25 | I120: =+I119 -> 27 | J120: 0.005555555556 | K120: =+K119 -> 8371 | L120: 276.243 | M120: 0.276243 | N120: 0.4499913004 | O120: 17.71619293 | P120: =IF(O120<0.1,0,IF(O120<4,6,EVEN(O120))) -> 18 | Q120: =IF(O120>0,VLOOKUP(P120,'$ alcantarillado'!$I$11:$L$28,4),"0") -> 0.407 | R120: 0.2113482839 | S120: 1.307051067 | T120: =IF(S120>$B$13,VLOOKUP(P120,'$ alcantarillado'!$I$12:$N$28,5),P120) -> 20 | U120: =IF(O120>0,VLOOKUP(T120,'$ alcantarillado'!$I$11:$L$28,4),"0") -> 0.452 | V120: 0.2795435401 | W120: 0.9881931089 | X120: 1.742138626 | Y120: =IF(T120>0,(VLOOKUP($W120,Relaciones!$A$3:$D$107,2)),"") -> 1.039 | Z120: 1.810082032 | AA120: 0.6277777778 | AB120: OK | AC120: OK | AD120: =IF(T120>0,IF(AA120>=$B$14,"OK","No Cumple"),"") -> OK | AE120: 1 | AF120: 1 | AG120: 1 | AH120: 3 | AI120: 0.952 | AJ120: =IF(AI120>0,I120*VLOOKUP(T120,'$ alcantarillado'!$I$12:$K$28,3),0) -> 5174059.5 | AK120: 1250602.416 | AL120: 1222862.712 | AM120: 7647524.628 | AN120: =+AP83 -> 14481437.82 | AO120: 22128962.45 | AQ120: 2 | AR120: 5
E121: 4 | F121: =+H88 -> 47.375 | G121: 5 | H121: 47.25 | I121: 27 | J121: =+(F121-H121)/I121 -> 0.00462962963 | K121: 8371 | L121: 276.243 | M121: 0.276243 | N121: 0.4656403439 | O121: 18.33229701 | P121: 20 | Q121: =IF(O121>0,VLOOKUP(P121,'$ alcantarillado'!$I$11:$L$28,4),"0") -> 0.452 | R121: 0.2551871712 | S121: 1.082511314 | T121: =IF(S121>$B$13,VLOOKUP(P121,'$ alcantarillado'!$I$12:$N$28,5),P121) -> 24 | U121: =IF(O121>0,VLOOKUP(T121,'$ alcantarillado'!$I$11:$L$28,4),"0") -> 0.595 | V121: 0.5311309225 | W121: 0.5201034025 | X121: 1.910195308 | Y121: =IF(T121>0,(VLOOKUP($W121,Relaciones!$A$3:$D$107,2)),"") -> 0.86 | Z121: 1.642767965 | AA121: 0.6886574074 | AB121: OK | AC121: OK | AD121: OK | AE121: 1 | AF121: 1 | AG121: 1 | AH121: 3 | AI121: 1.095 | AJ121: =IF(AI121>0,I121*VLOOKUP(T121,'$ alcantarillado'!$I$12:$K$28,3),0) -> 7106034.462 | AK121: 1565910.225 | AL121: 1340123.52 | AM121: 10012068.21 | AN121: =+AP88 -> 13353705.16 | AO121: 23365773.37
E122: 5 | F122: =+H93 -> 47.35 | G122: 5 | H122: =+H121 -> 47.25 | I122: =+I121 -> 27 | J122: 0.003703703704 | K122: =+K121 -> 8371 | L122: 276.243 | M122: 0.276243 | N122: 0.4855357682 | O122: 19.11558142 | P122: 20 | Q122: =IF(O122>0,VLOOKUP(P122,'$ alcantarillado'!$I$11:$L$28,4),"0") -> 0.452 | R122: 0.2282463447 | S122: 1.210284442 | T122: =IF(S122>$B$13,VLOOKUP(P122,'$ alcantarillado'!$I$12:$N$28,5),P122) -> 24 | U122: =IF(O122>0,VLOOKUP(T122,'$ alcantarillado'!$I$11:$L$28,4),"0") -> 0.595 | V122: 0.4750579391 | W122: 0.5814932817 | X122: 1.708530624 | Y122: =IF(T122>0,(VLOOKUP($W122,Relaciones!$A$3:$D$107,2)),"") -> 0.89 | Z122: 1.520592255 | AA122: 0.5509259259 | AB122: OK | AC122: OK | AD122: OK | AE122: 1 | AF122: 1 | AG122: 1 | AH122: 3 | AI122: 1.095 | AJ122: =IF(AI122>0,I122*VLOOKUP(T122,'$ alcantarillado'!$I$12:$K$28,3),0) -> 7106034.462 | AK122: 1579214.475 | AL122: 1357573.045 | AM122: 10042821.98 | AN122: =+AP93 -> 13359215.19 | AO122: 23402037.17
A123: 5 | B123: =+C98 -> 5 | C123: 6 | D123: 48.7 | E123: 1 | F123: =+H98 -> 47.35 | G123: 1 | H123: =+H133+2*$B$15 -> 47.25 | I123: 28 | J123: =+(F123-H123)/I123 -> 0.003571428571 | K123: =+K98+2150 -> 10521 | L123: =0.033*K123 -> 347.193 | M123: =+L123/1000 -> 0.347193 | N123: 0.5326139454 | O123: 20.96905297 | P123: 22 | Q123: =IF(O123>0,VLOOKUP(P123,'$ alcantarillado'!$I$11:$L$28,4),"0") -> 0.452 | R123: 0.2241334611 | S123: 1.549045815 | T123: =+IF(S123>$B$13,VLOOKUP(P123,'$ alcantarillado'!$I$12:$N$28,5),P123) -> 24 | U123: =IF(O123>0,VLOOKUP(T123,'$ alcantarillado'!$I$11:$L$28,4),"0") -> 0.595 | V123: 0.4664976354 | W123: 0.7442545763 | X123: =IF(T123>0,4*V123/(PI()*(U123)^2),"") -> 1.677743767 | Y123: =IF(T123>0,(VLOOKUP($W123,Relaciones!$A$3:$D$107,2)),"") -> 0.961 | Z123: =IF(T123>0,Y123*X123,"") -> 1.61231176 | AA123: 0.53125 | AB123: =IF(T123>0,IF(W123<=$B$13,"OK","No Cumple"),"") -> OK | AC123: =IF(T123>0,IF(Z123>=$B$12,"OK","No Cumple"),"") -> OK | AD123: =IF(T123>0,IF(AA123>=$B$14,"OK","No Cumple"),"") -> OK | AE123: =+IF(AB123="OK",1,0) -> 1 | AF123: =+IF(AC123="OK",1,0) -> 1 | AG123: =+IF(AD123="OK",1,0) -> 1 | AH123: =SUM(AE123:AG123) -> 3 | AI123: =IF(AH123=3,2*$B$7+U123,0) -> 1.095 | AJ123: =IF(AI123>0,I123*VLOOKUP(T123,'$ alcantarillado'!$I$12:$K$28,3),0) -> 7369220.923 | AK123: =IF(N123>0,((($D$123-F123)+(U123))+(($D$148-H123)+(U123))/2)*AI123*I123*$C$9,0) -> 1637703.9 | AL123: =IF(AI123>0,(($D$123-F123)+U123)*$C$10,0) -> 1357573.045 | AM123: =IF(AJ123>0,AJ123+AK123+AL123,0) -> 10364497.87 | AN123: =IF(AP98>0,+AP98,0) -> 24424413.79 | AO123: =IF((AM123)>0,IF(AN123>0,AM123+AN123,""),"") -> 34788911.65 | AP123: =+MIN(AO123:AO127) -> 34788911.65
E124: 2 | F124: =+H103 -> 47.325 | G124: 1 | H124: =+H123 -> 47.25 | I124: =+I123 -> 28 | J124: =+(F124-H124)/I124 -> 0.002678571429 | K124: =+K123 -> 10521 | L124: =0.033*K124 -> 347.193 | M124: =+L124/1000 -> 0.347193 | N124: 0.5621323078 | O124: 22.13119322 | P124: 24 | Q124: =IF(O124>0,VLOOKUP(P124,'$ alcantarillado'!$I$11:$L$28,4),"0") -> 0.595 | R124: 0.4039988031 | S124: 0.8593911599 | T124: =+IF(S124>$B$13,VLOOKUP(P124,'$ alcantarillado'!$I$12:$N$28,5),P124) -> 24 | U124: =IF(O124>0,VLOOKUP(T124,'$ alcantarillado'!$I$11:$L$28,4),"0") -> 0.595 | V124: 0.4039988031 | W124: 0.8593911599 | X124: =IF(T124>0,4*V124/(PI()*(U124)^2),"") -> 1.452968723 | Y124: =IF(T124>0,(VLOOKUP($W124,Relaciones!$A$3:$D$107,2)),"") -> 1.001 | Z124: =IF(T124>0,Y124*X124,"") -> 1.454421692 | AA124: 0.3984375 | AB124: =IF(T124>0,IF(W124<=$B$13,"OK","No Cumple"),"") -> OK | AC124: =IF(T124>0,IF(Z124>=$B$12,"OK","No Cumple"),"") -> OK | AD124: =IF(T124>0,IF(AA124>=$B$14,"OK","No Cumple"),"") -> OK | AE124: =+IF(AB124="OK",1,0) -> 1 | AF124: 1 | AG124: 1 | AH124: =SUM(AE124:AG124) -> 3 | AI124: =IF(AH124=3,2*$B$7+U124,0) -> 1.095 | AJ124: =IF(AI124>0,I124*VLOOKUP(T124,'$ alcantarillado'!$I$12:$K$28,3),0) -> 7369220.923 | AK124: =IF(N124>0,((($D$123-F124)+(U124))+(($D$148-H124)+(U124))/2)*AI124*I124*$C$9,0) -> 1651500.9 | AL124: =IF(AI124>0,(($D$123-F124)+U124)*$C$10,0) -> 1375022.57 | AM124: =IF(AJ124>0,AJ124+AK124+AL124,0) -> 10395744.39 | AN124: =+AP103 -> 24431065.91 | AO124: =IF((AM124)>0,IF(AN124>0,AM124+AN124,""),"") -> 34826810.3 | AQ124: 1 | AR124: 1
E125: 3 | F125: =+H108 -> 47.3 | G125: 1 | H125: =+H124 -> 47.25 | I125: =+I124 -> 28 | J125: 0.001785714286 | K125: =+K124 -> 10521 | L125: 347.193 | M125: 0.347193 | N125: 0.6065347078 | O125: 23.8793192 | P125: 24 | Q125: =IF(O125>0,VLOOKUP(P125,'$ alcantarillado'!$I$11:$L$28,4),"0") -> 0.595 | R125: 0.3298636414 | S125: 1.052534916 | T125: =IF(S125>$B$13,VLOOKUP(P125,'$ alcantarillado'!$I$12:$N$28,5),P125) -> 27 | U125: =IF(O125>0,VLOOKUP(T125,'$ alcantarillado'!$I$11:$L$28,4),"0") -> 0.67 | V125: 0.4527120081 | W125: 0.766918027 | X125: 1.284051751 | Y125: =IF(T125>0,(VLOOKUP($W125,Relaciones!$A$3:$D$107,2)),"") -> 0.969 | Z125: 1.244246147 | AA125: 0.2991071429 | AB125: OK | AC125: OK | AD125: =IF(T125>0,IF(AA125>=$B$14,"OK","No Cumple"),"") -> No Cumple | AE125: 1 | AF125: 1 | AG125: 0 | AH125: 2 | AI125: 0 | AJ125: =IF(AI125>0,I125*VLOOKUP(T125,'$ alcantarillado'!$I$12:$K$28,3),0) -> 0 | AK125: 0 | AL125: 0 | AM125: 0 | AN125: =+AP108 -> 23205299.34
E126: 4 | F126: =+H113 -> 47.275 | G126: 1 | H126: 47.25 | I126: 28 | J126: =+(F126-H126)/I126 -> 0.0008928571429 | K126: 10521 | L126: 347.193 | M126: 0.347193 | N126: 0.6907148318 | O126: 27.19349731 | P126: 28 | Q126: =IF(O126>0,VLOOKUP(P126,'$ alcantarillado'!$I$11:$L$28,4),"0") -> 0.67 | R126: 0.3201157308 | S126: 1.084585875 | T126: =IF(S126>$B$13,VLOOKUP(P126,'$ alcantarillado'!$I$12:$N$28,5),P126) -> 30 | U126: =IF(O126>0,VLOOKUP(T126,'$ alcantarillado'!$I$11:$L$28,4),"0") -> 0.747 | V126: 0.4278542142 | W126: 0.8114750036 | X126: 0.976258277 | Y126: =IF(T126>0,(VLOOKUP($W126,Relaciones!$A$3:$D$107,2)),"") -> 0.987 | Z126: 0.9635669194 | AA126: 0.1667410714 | AB126: OK | AC126: OK | AD126: No Cumple | AE126: 1 | AF126: 1 | AG126: 0 | AH126: 2 | AI126: 0 | AJ126: =IF(AI126>0,I126*VLOOKUP(T126,'$ alcantarillado'!$I$12:$K$28,3),0) -> 0 | AK126: 0 | AL126: 0 | AM126: 0 | AN126: =+AP113 -> 22113186.53
E127: 5 | F127: =+H118 -> 47.25 | G127: 1 | H127: =+H126 -> 47.25 | I127: =+I126 -> 28 | J127: 2.537652628e-16 | K127: =+K126 -> 10521 | L127: 347.193 | M127: 0.347193 | N127: =+IF(J127>0.00001,((M127*$B$2*(4^(5/3))/((J127^0.5)*PI()*$B$6))^(3/8)),0) -> 0 | O127: 0 | P127: 0 | Q127: =IF(O127>0,VLOOKUP(P127,'$ alcantarillado'!$I$11:$L$28,4),"0") -> 0 | S127: 0 | T127: =IF(S127>$B$13,VLOOKUP(P127,'$ alcantarillado'!$I$12:$N$28,5),P127) -> 0 | U127: =IF(O127>0,VLOOKUP(T127,'$ alcantarillado'!$I$11:$L$28,4),"0") -> 0 | W127: 0 | Y127: =IF(T127>0,(VLOOKUP($W127,Relaciones!$A$3:$D$107,2)),"") ->  | AE127: 0 | AF127: 0 | AG127: 0 | AH127: 0 | AI127: 0 | AJ127: =IF(AI127>0,I127*VLOOKUP(T127,'$ alcantarillado'!$I$12:$K$28,3),0) -> 0 | AK127: 0 | AL127: 0 | AM127: 0 | AN127: =+AP118 -> 22118969.93
E128: 1 | F128: =+H98 -> 47.35 | G128: 2 | H128: =+H133+$B$15 -> 47.225 | I128: =+I127 -> 28 | J128: =+(F128-H128)/I128 -> 0.004464285714 | K128: =+K127 -> 10521 | L128: =0.033*K128 -> 347.193 | M128: =+L128/1000 -> 0.347193 | N128: 0.5107894351 | O128: 20.10982028 | P128: 22 | Q128: =IF(O128>0,VLOOKUP(P128,'$ alcantarillado'!$I$11:$L$28,4),"0") -> 0.452 | R128: 0.2505888275 | S128: 1.385508697 | T128: =+IF(S128>$B$13,VLOOKUP(P128,'$ alcantarillado'!$I$12:$N$28,5),P128) -> 24 | U128: =IF(O128>0,VLOOKUP(T128,'$ alcantarillado'!$I$11:$L$28,4),"0") -> 0.595 | V128: 0.5215602121 | W128: 0.6656815301 | X128: =IF(T128>0,4*V128/(PI()*(U128)^2),"") -> 1.875774555 | Y128: =IF(T128>0,(VLOOKUP($W128,Relaciones!$A$3:$D$107,2)),"") -> 0.927 | Z128: =IF(T128>0,Y128*X128,"") -> 1.738843013 | AA128: 0.6640625 | AB128: =IF(T128>0,IF(W128<=$B$13,"OK","No Cumple"),"") -> OK | AC128: =IF(T128>0,IF(Z128>=$B$12,"OK","No Cumple"),"") -> OK | AD128: =IF(T128>0,IF(AA128>=$B$14,"OK","No Cumple"),"") -> OK | AE128: =+IF(AB128="OK",1,0) -> 1 | AF128: =+IF(AC128="OK",1,0) -> 1 | AG128: =+IF(AD128="OK",1,0) -> 1 | AH128: =SUM(AE128:AG128) -> 3 | AI128: =IF(AH128=3,2*$B$7+U128,0) -> 1.095 | AJ128: =IF(AI128>0,I128*VLOOKUP(T128,'$ alcantarillado'!$I$12:$K$28,3),0) -> 7369220.923 | AK128: 1644602.4 | AL128: 1357573.045 | AM128: =IF(AJ128>0,AJ128+AK128+AL128,0) -> 10371396.37 | AN128: =IF(AP98>0,+AP98,0) -> 24424413.79 | AO128: =IF((AM128)>0,IF(AN128>0,AM128+AN128,""),"") -> 34795810.15 | AP128: =+MIN(AO128:AO132) -> 33639188.76
E129: 2 | F129: =+H103 -> 47.325 | G129: 2 | H129: =+H128 -> 47.225 | I129: =+I128 -> 28 | J129: 0.003571428571 | K129: =+K128 -> 10521 | L129: 347.193 | M129: =+L129/1000 -> 0.347193 | N129: 0.5326139454 | O129: 20.96905297 | P129: 22 | Q129: =IF(O129>0,VLOOKUP(P129,'$ alcantarillado'!$I$11:$L$28,4),"0") -> 0.452 | R129: 0.2241334611 | S129: 1.549045815 | T129: =+IF(S129>$B$13,VLOOKUP(P129,'$ alcantarillado'!$I$12:$N$28,5),P129) -> 24 | U129: =IF(O129>0,VLOOKUP(T129,'$ alcantarillado'!$I$11:$L$28,4),"0") -> 0.595 | V129: 0.4664976354 | W129: 0.7442545763 | X129: =IF(T129>0,4*V129/(PI()*(U129)^2),"") -> 1.677743767 | Y129: =IF(T129>0,(VLOOKUP($W129,Relaciones!$A$3:$D$107,2)),"") -> 0.961 | Z129: =IF(T129>0,Y129*X129,"") -> 1.61231176 | AA129: 0.53125 | AB129: =IF(T129>0,IF(W129<=$B$13,"OK","No Cumple"),"") -> OK | AC129: =IF(T129>0,IF(Z129>=$B$12,"OK","No Cumple"),"") -> OK | AD129: =IF(T129>0,IF(AA129>=$B$14,"OK","No Cumple"),"") -> OK | AE129: =+IF(AB129="OK",1,0) -> 1 | AF129: 1 | AG129: 1 | AH129: =SUM(AE129:AG129) -> 3 | AI129: =IF(AH129=3,2*$B$7+U129,0) -> 1.095 | AJ129: =IF(AI129>0,I129*VLOOKUP(T129,'$ alcantarillado'!$I$12:$K$28,3),0) -> 7369220.923 | AK129: 1658399.4 | AL129: 1375022.57 | AM129: 10402642.89 | AN129: =+AP103 -> 24431065.91 | AO129: =IF((AM129)>0,IF(AN129>0,AM129+AN129,""),"") -> 34833708.8 | AQ129: 3 | AR129: 2
E130: 3 | F130: =+H108 -> 47.3 | G130: 2 | H130: =+H129 -> 47.225 | I130: =+I129 -> 28 | J130: 0.002678571429 | K130: =+K129 -> 10521 | L130: 347.193 | M130: 0.347193 | N130: 0.5621323078 | O130: 22.13119322 | P130: 24 | Q130: =IF(O130>0,VLOOKUP(P130,'$ alcantarillado'!$I$11:$L$28,4),"0") -> 0.595 | R130: 0.4039988031 | S130: 0.8593911599 | T130: =IF(S130>$B$13,VLOOKUP(P130,'$ alcantarillado'!$I$12:$N$28,5),P130) -> 24 | U130: =IF(O130>0,VLOOKUP(T130,'$ alcantarillado'!$I$11:$L$28,4),"0") -> 0.595 | V130: 0.4039988031 | W130: 0.8593911599 | X130: 1.452968723 | Y130: =IF(T130>0,(VLOOKUP($W130,Relaciones!$A$3:$D$107,2)),"") -> 1.001 | Z130: 1.454421692 | AA130: 0.3984375 | AB130: OK | AC130: OK | AD130: =IF(T130>0,IF(AA130>=$B$14,"OK","No Cumple"),"") -> OK | AE130: 1 | AF130: 1 | AG130: 1 | AH130: 3 | AI130: 1.095 | AJ130: =IF(AI130>0,I130*VLOOKUP(T130,'$ alcantarillado'!$I$12:$K$28,3),0) -> 7369220.923 | AK130: 1672196.4 | AL130: 1392472.095 | AM130: 10433889.42 | AN130: =+AP108 -> 23205299.34 | AO130: 33639188.76
E131: 4 | F131: =+H113 -> 47.275 | G131: 2 | H131: 47.225 | I131: 28 | J131: =+(F131-H131)/I131 -> 0.001785714286 | K131: 10521 | L131: 347.193 | M131: 0.347193 | N131: 0.6065347078 | O131: 23.8793192 | P131: 24 | Q131: =IF(O131>0,VLOOKUP(P131,'$ alcantarillado'!$I$11:$L$28,4),"0") -> 0.595 | R131: 0.3298636414 | S131: 1.052534916 | T131: =IF(S131>$B$13,VLOOKUP(P131,'$ alcantarillado'!$I$12:$N$28,5),P131) -> 27 | U131: =IF(O131>0,VLOOKUP(T131,'$ alcantarillado'!$I$11:$L$28,4),"0") -> 0.67 | V131: 0.4527120081 | W131: 0.766918027 | X131: 1.284051751 | Y131: =IF(T131>0,(VLOOKUP($W131,Relaciones!$A$3:$D$107,2)),"") -> 0.969 | Z131: 1.244246147 | AA131: 0.2991071429 | AB131: OK | AC131: OK | AD131: No Cumple | AE131: 1 | AF131: 1 | AG131: 0 | AH131: 2 | AI131: 0 | AJ131: =IF(AI131>0,I131*VLOOKUP(T131,'$ alcantarillado'!$I$12:$K$28,3),0) -> 0 | AK131: 0 | AL131: 0 | AM131: 0 | AN131: =+AP113 -> 22113186.53
E132: 5 | F132: =+H118 -> 47.25 | G132: 2 | H132: =+H131 -> 47.225 | I132: =+I131 -> 28 | J132: 0.0008928571429 | K132: =+K131 -> 10521 | L132: 347.193 | M132: 0.347193 | N132: 0.6907148318 | O132: 27.19349731 | P132: 28 | Q132: =IF(O132>0,VLOOKUP(P132,'$ alcantarillado'!$I$11:$L$28,4),"0") -> 0.67 | R132: 0.3201157308 | S132: 1.084585875 | T132: =IF(S132>$B$13,VLOOKUP(P132,'$ alcantarillado'!$I$12:$N$28,5),P132) -> 30 | U132: =IF(O132>0,VLOOKUP(T132,'$ alcantarillado'!$I$11:$L$28,4),"0") -> 0.747 | V132: 0.4278542142 | W132: 0.8114750036 | X132: 0.976258277 | Y132: =IF(T132>0,(VLOOKUP($W132,Relaciones!$A$3:$D$107,2)),"") -> 0.987 | Z132: 0.9635669194 | AA132: 0.1667410714 | AB132: OK | AC132: OK | AD132: No Cumple | AE132: 1 | AF132: 1 | AG132: 0 | AH132: 2 | AI132: 0 | AJ132: =IF(AI132>0,I132*VLOOKUP(T132,'$ alcantarillado'!$I$12:$K$28,3),0) -> 0 | AK132: 0 | AL132: 0 | AM132: 0 | AN132: =+AP118 -> 22118969.93
E133: 1 | F133: =+H98 -> 47.35 | G133: 3 | H133: =+'LOGIKA ALL-1'!H143 -> 47.2 | I133: =+I132 -> 28 | J133: =+(F133-H133)/I133 -> 0.005357142857 | K133: =+K132 -> 10521 | L133: =0.033*K133 -> 347.193 | M133: =+L133/1000 -> 0.347193 | N133: 0.49362304 | O133: 19.43397795 | P133: 20 | Q133: =IF(O133>0,VLOOKUP(P133,'$ alcantarillado'!$I$11:$L$28,4),"0") -> 0.452 | R133: 0.274506307 | S133: 1.264790612 | T133: =+IF(S133>$B$13,VLOOKUP(P133,'$ alcantarillado'!$I$12:$N$28,5),P133) -> 24 | U133: =IF(O133>0,VLOOKUP(T133,'$ alcantarillado'!$I$11:$L$28,4),"0") -> 0.595 | V133: 0.5713405865 | W133: 0.6076813169 | X133: =IF(T133>0,4*V133/(PI()*(U133)^2),"") -> 2.054808074 | Y133: =IF(T133>0,(VLOOKUP($W133,Relaciones!$A$3:$D$107,2)),"") -> 0.9 | Z133: =IF(T133>0,Y133*X133,"") -> 1.849327266 | AA133: 0.796875 | AB133: =IF(T133>0,IF(W133<=$B$13,"OK","No Cumple"),"") -> OK | AC133: =IF(T133>0,IF(Z133>=$B$12,"OK","No Cumple"),"") -> OK | AD133: =IF(T133>0,IF(AA133>=$B$14,"OK","No Cumple"),"") -> OK | AE133: =+IF(AB133="OK",1,0) -> 1 | AF133: =+IF(AC133="OK",1,0) -> 1 | AG133: =+IF(AD133="OK",1,0) -> 1 | AH133: =SUM(AE133:AG133) -> 3 | AI133: =IF(AH133=3,2*$B$7+U133,0) -> 1.095 | AJ133: =IF(AI133>0,I133*VLOOKUP(T133,'$ alcantarillado'!$I$12:$K$28,3),0) -> 7369220.923 | AK133: 1651500.9 | AL133: 1357573.045 | AM133: =IF(AJ133>0,AJ133+AK133+AL133,0) -> 10378294.87 | AN133: =IF(AP98>0,+AP98,0) -> 24424413.79 | AO133: =IF((AM133)>0,IF(AN133>0,AM133+AN133,""),"") -> 34802708.65 | AP133: =+MIN(AO133:AO137) -> 32585220.98
E134: 2 | F134: =+H103 -> 47.325 | G134: 3 | H134: =+H133 -> 47.2 | I134: =+I133 -> 28 | J134: 0.004464285714 | K134: =+K133 -> 10521 | L134: 347.193 | M134: =+L134/1000 -> 0.347193 | N134: 0.5107894351 | O134: 20.10982028 | P134: 22 | Q134: =IF(O134>0,VLOOKUP(P134,'$ alcantarillado'!$I$11:$L$28,4),"0") -> 0.452 | R134: 0.2505888275 | S134: 1.385508697 | T134: =+IF(S134>$B$13,VLOOKUP(P134,'$ alcantarillado'!$I$12:$N$28,5),P134) -> 24 | U134: =IF(O134>0,VLOOKUP(T134,'$ alcantarillado'!$I$11:$L$28,4),"0") -> 0.595 | V134: 0.5215602121 | W134: 0.6656815301 | X134: =IF(T134>0,4*V134/(PI()*(U134)^2),"") -> 1.875774555 | Y134: =IF(T134>0,(VLOOKUP($W134,Relaciones!$A$3:$D$107,2)),"") -> 0.927 | Z134: =IF(T134>0,Y134*X134,"") -> 1.738843013 | AA134: 0.6640625 | AB134: =IF(T134>0,IF(W134<=$B$13,"OK","No Cumple"),"") -> OK | AC134: =IF(T134>0,IF(Z134>=$B$12,"OK","No Cumple"),"") -> OK | AD134: =IF(T134>0,IF(AA134>=$B$14,"OK","No Cumple"),"") -> OK | AE134: =+IF(AB134="OK",1,0) -> 1 | AF134: 1 | AG134: 1 | AH134: =SUM(AE134:AG134) -> 3 | AI134: =IF(AH134=3,2*$B$7+U134,0) -> 1.095 | AJ134: =IF(AI134>0,I134*VLOOKUP(T134,'$ alcantarillado'!$I$12:$K$28,3),0) -> 7369220.923 | AK134: 1665297.9 | AL134: 1375022.57 | AM134: 10409541.39 | AN134: =+AP103 -> 24431065.91 | AO134: =IF((AM134)>0,IF(AN134>0,AM134+AN134,""),"") -> 34840607.3
E135: 3 | F135: =+H108 -> 47.3 | G135: 3 | H135: =+H134 -> 47.2 | I135: =+I134 -> 28 | J135: 0.003571428571 | K135: =+K134 -> 10521 | L135: 347.193 | M135: 0.347193 | N135: 0.5326139454 | O135: 20.96905297 | P135: 22 | Q135: =IF(O135>0,VLOOKUP(P135,'$ alcantarillado'!$I$11:$L$28,4),"0") -> 0.452 | R135: 0.2241334611 | S135: 1.549045815 | T135: =IF(S135>$B$13,VLOOKUP(P135,'$ alcantarillado'!$I$12:$N$28,5),P135) -> 24 | U135: =IF(O135>0,VLOOKUP(T135,'$ alcantarillado'!$I$11:$L$28,4),"0") -> 0.595 | V135: 0.4664976354 | W135: 0.7442545763 | X135: 1.677743767 | Y135: =IF(T135>0,(VLOOKUP($W135,Relaciones!$A$3:$D$107,2)),"") -> 0.961 | Z135: 1.61231176 | AA135: 0.53125 | AB135: OK | AC135: OK | AD135: =IF(T135>0,IF(AA135>=$B$14,"OK","No Cumple"),"") -> OK | AE135: 1 | AF135: 1 | AG135: 1 | AH135: 3 | AI135: 1.095 | AJ135: =IF(AI135>0,I135*VLOOKUP(T135,'$ alcantarillado'!$I$12:$K$28,3),0) -> 7369220.923 | AK135: 1679094.9 | AL135: 1392472.095 | AM135: 10440787.92 | AN135: =+AP108 -> 23205299.34 | AO135: 33646087.26
E136: 4 | F136: =+H113 -> 47.275 | G136: 3 | H136: 47.2 | I136: 28 | J136: =+(F136-H136)/I136 -> 0.002678571429 | K136: 10521 | L136: 347.193 | M136: 0.347193 | N136: 0.5621323078 | O136: 22.13119322 | P136: 24 | Q136: =IF(O136>0,VLOOKUP(P136,'$ alcantarillado'!$I$11:$L$28,4),"0") -> 0.595 | R136: 0.4039988031 | S136: 0.8593911599 | T136: =IF(S136>$B$13,VLOOKUP(P136,'$ alcantarillado'!$I$12:$N$28,5),P136) -> 24 | U136: =IF(O136>0,VLOOKUP(T136,'$ alcantarillado'!$I$11:$L$28,4),"0") -> 0.595 | V136: 0.4039988031 | W136: 0.8593911599 | X136: 1.452968723 | Y136: =IF(T136>0,(VLOOKUP($W136,Relaciones!$A$3:$D$107,2)),"") -> 1.001 | Z136: 1.454421692 | AA136: 0.3984375 | AB136: OK | AC136: OK | AD136: OK | AE136: 1 | AF136: 1 | AG136: 1 | AH136: 3 | AI136: 1.095 | AJ136: =IF(AI136>0,I136*VLOOKUP(T136,'$ alcantarillado'!$I$12:$K$28,3),0) -> 7369220.923 | AK136: 1692891.9 | AL136: 1409921.62 | AM136: 10472034.44 | AN136: =+AP113 -> 22113186.53 | AO136: 32585220.98 | AQ136: 4 | AR136: 3
E137: 5 | F137: =+H118 -> 47.25 | G137: 3 | H137: =+H136 -> 47.2 | I137: =+I136 -> 28 | J137: 0.001785714286 | K137: =+K136 -> 10521 | L137: 347.193 | M137: 0.347193 | N137: 0.6065347078 | O137: 23.8793192 | P137: 24 | Q137: =IF(O137>0,VLOOKUP(P137,'$ alcantarillado'!$I$11:$L$28,4),"0") -> 0.595 | R137: 0.3298636414 | S137: 1.052534916 | T137: =IF(S137>$B$13,VLOOKUP(P137,'$ alcantarillado'!$I$12:$N$28,5),P137) -> 27 | U137: =IF(O137>0,VLOOKUP(T137,'$ alcantarillado'!$I$11:$L$28,4),"0") -> 0.67 | V137: 0.4527120081 | W137: 0.766918027 | X137: 1.284051751 | Y137: =IF(T137>0,(VLOOKUP($W137,Relaciones!$A$3:$D$107,2)),"") -> 0.969 | Z137: 1.244246147 | AA137: 0.2991071429 | AB137: OK | AC137: OK | AD137: No Cumple | AE137: 1 | AF137: 1 | AG137: 0 | AH137: 2 | AI137: 0 | AJ137: =IF(AI137>0,I137*VLOOKUP(T137,'$ alcantarillado'!$I$12:$K$28,3),0) -> 0 | AK137: 0 | AL137: 0 | AM137: 0 | AN137: =+AP118 -> 22118969.93
E138: 1 | F138: =+H98 -> 47.35 | G138: 4 | H138: =+H133-$B$15 -> 47.175 | I138: =+I133 -> 28 | J138: =+(F138-H138)/I138 -> 0.00625 | K138: =+K133 -> 10521 | L138: =0.033*K138 -> 347.193 | M138: =+L138/1000 -> 0.347193 | N138: 0.4795599423 | O138: 18.88031269 | P138: 20 | Q138: =IF(O138>0,VLOOKUP(P138,'$ alcantarillado'!$I$11:$L$28,4),"0") -> 0.452 | R138: 0.2965006993 | S138: 1.17096857 | T138: =+IF(S138>$B$13,VLOOKUP(P138,'$ alcantarillado'!$I$12:$N$28,5),P138) -> 24 | U138: =IF(O138>0,VLOOKUP(T138,'$ alcantarillado'!$I$11:$L$28,4),"0") -> 0.595 | V138: 0.6171183653 | W138: 0.5626035774 | X138: =IF(T138>0,4*V138/(PI()*(U138)^2),"") -> 2.219446385 | Y138: =IF(T138>0,(VLOOKUP($W138,Relaciones!$A$3:$D$107,2)),"") -> 0.88 | Z138: =IF(T138>0,Y138*X138,"") -> 1.953112819 | AA138: 0.9296875 | AB138: =IF(T138>0,IF(W138<=$B$13,"OK","No Cumple"),"") -> OK | AC138: =IF(T138>0,IF(Z138>=$B$12,"OK","No Cumple"),"") -> OK | AD138: =IF(T138>0,IF(AA138>=$B$14,"OK","No Cumple"),"") -> OK | AE138: =+IF(AB138="OK",1,0) -> 1 | AF138: =+IF(AC138="OK",1,0) -> 1 | AG138: =+IF(AD138="OK",1,0) -> 1 | AH138: =SUM(AE138:AG138) -> 3 | AI138: =IF(AH138=3,2*$B$7+U138,0) -> 1.095 | AJ138: =IF(AI138>0,I138*VLOOKUP(T138,'$ alcantarillado'!$I$12:$K$28,3),0) -> 7369220.923 | AK138: 1658399.4 | AL138: 1357573.045 | AM138: =IF(AJ138>0,AJ138+AK138+AL138,0) -> 10385193.37 | AN138: =IF(AP98>0,+AP98,0) -> 24424413.79 | AO138: =IF((AM138)>0,IF(AN138>0,AM138+AN138,""),"") -> 34809607.15 | AP138: =+MIN(AO138:AO142) -> 32592119.48
E139: 2 | F139: =+H103 -> 47.325 | G139: 4 | H139: =+H138 -> 47.175 | I139: =+I138 -> 28 | J139: 0.005357142857 | K139: =+K138 -> 10521 | L139: 347.193 | M139: =+L139/1000 -> 0.347193 | N139: 0.49362304 | O139: 19.43397795 | P139: 20 | Q139: =IF(O139>0,VLOOKUP(P139,'$ alcantarillado'!$I$11:$L$28,4),"0") -> 0.452 | R139: 0.274506307 | S139: 1.264790612 | T139: =+IF(S139>$B$13,VLOOKUP(P139,'$ alcantarillado'!$I$12:$N$28,5),P139) -> 24 | U139: =IF(O139>0,VLOOKUP(T139,'$ alcantarillado'!$I$11:$L$28,4),"0") -> 0.595 | V139: 0.5713405865 | W139: 0.6076813169 | X139: =IF(T139>0,4*V139/(PI()*(U139)^2),"") -> 2.054808074 | Y139: =IF(T139>0,(VLOOKUP($W139,Relaciones!$A$3:$D$107,2)),"") -> 0.9 | Z139: =IF(T139>0,Y139*X139,"") -> 1.849327266 | AA139: 0.796875 | AB139: =IF(T139>0,IF(W139<=$B$13,"OK","No Cumple"),"") -> OK | AC139: =IF(T139>0,IF(Z139>=$B$12,"OK","No Cumple"),"") -> OK | AD139: =IF(T139>0,IF(AA139>=$B$14,"OK","No Cumple"),"") -> OK | AE139: =+IF(AB139="OK",1,0) -> 1 | AF139: 1 | AG139: 1 | AH139: =SUM(AE139:AG139) -> 3 | AI139: =IF(AH139=3,2*$B$7+U139,0) -> 1.095 | AJ139: =IF(AI139>0,I139*VLOOKUP(T139,'$ alcantarillado'!$I$12:$K$28,3),0) -> 7369220.923 | AK139: 1672196.4 | AL139: 1375022.57 | AM139: 10416439.89 | AN139: =+AP103 -> 24431065.91 | AO139: =IF((AM139)>0,IF(AN139>0,AM139+AN139,""),"") -> 34847505.8
E140: 3 | F140: =+H108 -> 47.3 | G140: 4 | H140: =+H139 -> 47.175 | I140: =+I139 -> 28 | J140: 0.004464285714 | K140: =+K139 -> 10521 | L140: 347.193 | M140: 0.347193 | N140: 0.5107894351 | O140: 20.10982028 | P140: 22 | Q140: =IF(O140>0,VLOOKUP(P140,'$ alcantarillado'!$I$11:$L$28,4),"0") -> 0.452 | R140: 0.2505888275 | S140: 1.385508697 | T140: =IF(S140>$B$13,VLOOKUP(P140,'$ alcantarillado'!$I$12:$N$28,5),P140) -> 24 | U140: =IF(O140>0,VLOOKUP(T140,'$ alcantarillado'!$I$11:$L$28,4),"0") -> 0.595 | V140: 0.5215602121 | W140: 0.6656815301 | X140: 1.875774555 | Y140: =IF(T140>0,(VLOOKUP($W140,Relaciones!$A$3:$D$107,2)),"") -> 0.927 | Z140: 1.738843013 | AA140: 0.6640625 | AB140: OK | AC140: OK | AD140: =IF(T140>0,IF(AA140>=$B$14,"OK","No Cumple"),"") -> OK | AE140: 1 | AF140: 1 | AG140: 1 | AH140: 3 | AI140: 1.095 | AJ140: =IF(AI140>0,I140*VLOOKUP(T140,'$ alcantarillado'!$I$12:$K$28,3),0) -> 7369220.923 | AK140: 1685993.4 | AL140: 1392472.095 | AM140: 10447686.42 | AN140: =+AP108 -> 23205299.34 | AO140: 33652985.76 | AQ140: 4 | AR140: 4
E141: 4 | F141: =+H113 -> 47.275 | G141: 4 | H141: 47.175 | I141: 28 | J141: =+(F141-H141)/I141 -> 0.003571428571 | K141: 10521 | L141: 347.193 | M141: 0.347193 | N141: 0.5326139454 | O141: 20.96905297 | P141: 22 | Q141: =IF(O141>0,VLOOKUP(P141,'$ alcantarillado'!$I$11:$L$28,4),"0") -> 0.452 | R141: 0.2241334611 | S141: 1.549045815 | T141: =IF(S141>$B$13,VLOOKUP(P141,'$ alcantarillado'!$I$12:$N$28,5),P141) -> 24 | U141: =IF(O141>0,VLOOKUP(T141,'$ alcantarillado'!$I$11:$L$28,4),"0") -> 0.595 | V141: 0.4664976354 | W141: 0.7442545763 | X141: 1.677743767 | Y141: =IF(T141>0,(VLOOKUP($W141,Relaciones!$A$3:$D$107,2)),"") -> 0.961 | Z141: 1.61231176 | AA141: 0.53125 | AB141: OK | AC141: OK | AD141: OK | AE141: 1 | AF141: 1 | AG141: 1 | AH141: 3 | AI141: 1.095 | AJ141: =IF(AI141>0,I141*VLOOKUP(T141,'$ alcantarillado'!$I$12:$K$28,3),0) -> 7369220.923 | AK141: 1699790.4 | AL141: 1409921.62 | AM141: 10478932.94 | AN141: =+AP113 -> 22113186.53 | AO141: 32592119.48
E142: 5 | F142: =+H118 -> 47.25 | G142: 4 | H142: =+H141 -> 47.175 | I142: =+I141 -> 28 | J142: 0.002678571429 | K142: =+K141 -> 10521 | L142: 347.193 | M142: 0.347193 | N142: 0.5621323078 | O142: 22.13119322 | P142: 24 | Q142: =IF(O142>0,VLOOKUP(P142,'$ alcantarillado'!$I$11:$L$28,4),"0") -> 0.595 | R142: 0.4039988031 | S142: 0.8593911599 | T142: =IF(S142>$B$13,VLOOKUP(P142,'$ alcantarillado'!$I$12:$N$28,5),P142) -> 24 | U142: =IF(O142>0,VLOOKUP(T142,'$ alcantarillado'!$I$11:$L$28,4),"0") -> 0.595 | V142: 0.4039988031 | W142: 0.8593911599 | X142: 1.452968723 | Y142: =IF(T142>0,(VLOOKUP($W142,Relaciones!$A$3:$D$107,2)),"") -> 1.001 | Z142: 1.454421692 | AA142: 0.3984375 | AB142: OK | AC142: OK | AD142: OK | AE142: 1 | AF142: 1 | AG142: 1 | AH142: 3 | AI142: 1.095 | AJ142: =IF(AI142>0,I142*VLOOKUP(T142,'$ alcantarillado'!$I$12:$K$28,3),0) -> 7369220.923 | AK142: 1713587.4 | AL142: 1427371.145 | AM142: 10510179.47 | AN142: =+AP118 -> 22118969.93 | AO142: 32629149.4
E143: 1 | F143: =+H98 -> 47.35 | G143: 5 | H143: =+H133-2*$B$15 -> 47.15 | I143: =+I138 -> 28 | J143: =+(F143-H143)/I143 -> 0.007142857143 | K143: =+K138 -> 10521 | L143: =0.033*K143 -> 347.193 | M143: =+L143/1000 -> 0.347193 | N143: 0.4677021961 | O143: 18.41347229 | P143: 20 | Q143: =IF(O143>0,VLOOKUP(P143,'$ alcantarillado'!$I$11:$L$28,4),"0") -> 0.452 | R143: 0.3169725805 | S143: 1.0953408 | T143: =+IF(S143>$B$13,VLOOKUP(P143,'$ alcantarillado'!$I$12:$N$28,5),P143) -> 24 | U143: =IF(O143>0,VLOOKUP(T143,'$ alcantarillado'!$I$11:$L$28,4),"0") -> 0.595 | V143: 0.6597272828 | W143: 0.5262674578 | X143: =IF(T143>0,4*V143/(PI()*(U143)^2),"") -> 2.372687989 | Y143: =IF(T143>0,(VLOOKUP($W143,Relaciones!$A$3:$D$107,2)),"") -> 0.86 | Z143: =IF(T143>0,Y143*X143,"") -> 2.04051167 | AA143: 1.0625 | AB143: =IF(T143>0,IF(W143<=$B$13,"OK","No Cumple"),"") -> OK | AC143: =IF(T143>0,IF(Z143>=$B$12,"OK","No Cumple"),"") -> OK | AD143: =IF(T143>0,IF(AA143>=$B$14,"OK","No Cumple"),"") -> OK | AE143: =+IF(AB143="OK",1,0) -> 1 | AF143: =+IF(AC143="OK",1,0) -> 1 | AG143: =+IF(AD143="OK",1,0) -> 1 | AH143: =SUM(AE143:AG143) -> 3 | AI143: =IF(AH143=3,2*$B$7+U143,0) -> 1.095 | AJ143: =IF(AI143>0,I143*VLOOKUP(T143,'$ alcantarillado'!$I$12:$K$28,3),0) -> 7369220.923 | AK143: 1665297.9 | AL143: 1357573.045 | AM143: =IF(AJ143>0,AJ143+AK143+AL143,0) -> 10392091.87 | AN143: =IF(AP98>0,+AP98,0) -> 24424413.79 | AO143: =IF((AM143)>0,IF(AN143>0,AM143+AN143,""),"") -> 34816505.65 | AP143: =+MIN(AO143:AO147) -> 32599017.98
E144: 2 | F144: =+H103 -> 47.325 | G144: 5 | H144: =+H143 -> 47.15 | I144: =+I143 -> 28 | J144: 0.00625 | K144: =+K143 -> 10521 | L144: 347.193 | M144: =+L144/1000 -> 0.347193 | N144: 0.4795599423 | O144: 18.88031269 | P144: 20 | Q144: =IF(O144>0,VLOOKUP(P144,'$ alcantarillado'!$I$11:$L$28,4),"0") -> 0.452 | R144: 0.2965006993 | S144: 1.17096857 | T144: =+IF(S144>$B$13,VLOOKUP(P144,'$ alcantarillado'!$I$12:$N$28,5),P144) -> 24 | U144: =IF(O144>0,VLOOKUP(T144,'$ alcantarillado'!$I$11:$L$28,4),"0") -> 0.595 | V144: 0.6171183653 | W144: 0.5626035774 | X144: =IF(T144>0,4*V144/(PI()*(U144)^2),"") -> 2.219446385 | Y144: =IF(T144>0,(VLOOKUP($W144,Relaciones!$A$3:$D$107,2)),"") -> 0.88 | Z144: =IF(T144>0,Y144*X144,"") -> 1.953112819 | AA144: 0.9296875 | AB144: =IF(T144>0,IF(W144<=$B$13,"OK","No Cumple"),"") -> OK | AC144: =IF(T144>0,IF(Z144>=$B$12,"OK","No Cumple"),"") -> OK | AD144: =IF(T144>0,IF(AA144>=$B$14,"OK","No Cumple"),"") -> OK | AE144: =+IF(AB144="OK",1,0) -> 1 | AF144: 1 | AG144: 1 | AH144: =SUM(AE144:AG144) -> 3 | AI144: =IF(AH144=3,2*$B$7+U144,0) -> 1.095 | AJ144: =IF(AI144>0,I144*VLOOKUP(T144,'$ alcantarillado'!$I$12:$K$28,3),0) -> 7369220.923 | AK144: 1679094.9 | AL144: 1375022.57 | AM144: 10423338.39 | AN144: =+AP103 -> 24431065.91 | AO144: =IF((AM144)>0,IF(AN144>0,AM144+AN144,""),"") -> 34854404.3
E145: 3 | F145: =+H108 -> 47.3 | G145: 5 | H145: =+H144 -> 47.15 | I145: =+I144 -> 28 | J145: 0.005357142857 | K145: =+K144 -> 10521 | L145: 347.193 | M145: 0.347193 | N145: 0.49362304 | O145: 19.43397795 | P145: 20 | Q145: =IF(O145>0,VLOOKUP(P145,'$ alcantarillado'!$I$11:$L$28,4),"0") -> 0.452 | R145: 0.274506307 | S145: 1.264790612 | T145: =IF(S145>$B$13,VLOOKUP(P145,'$ alcantarillado'!$I$12:$N$28,5),P145) -> 24 | U145: =IF(O145>0,VLOOKUP(T145,'$ alcantarillado'!$I$11:$L$28,4),"0") -> 0.595 | V145: 0.5713405865 | W145: 0.6076813169 | X145: 2.054808074 | Y145: =IF(T145>0,(VLOOKUP($W145,Relaciones!$A$3:$D$107,2)),"") -> 0.9 | Z145: 1.849327266 | AA145: 0.796875 | AB145: OK | AC145: OK | AD145: =IF(T145>0,IF(AA145>=$B$14,"OK","No Cumple"),"") -> OK | AE145: 1 | AF145: 1 | AG145: 1 | AH145: 3 | AI145: 1.095 | AJ145: =IF(AI145>0,I145*VLOOKUP(T145,'$ alcantarillado'!$I$12:$K$28,3),0) -> 7369220.923 | AK145: 1692891.9 | AL145: 1392472.095 | AM145: 10454584.92 | AN145: =+AP108 -> 23205299.34 | AO145: 33659884.26 | AQ145: 4 | AR145: 5
E146: 4 | F146: =+H113 -> 47.275 | G146: 5 | H146: 47.15 | I146: 28 | J146: =+(F146-H146)/I146 -> 0.004464285714 | K146: 10521 | L146: 347.193 | M146: 0.347193 | N146: 0.5107894351 | O146: 20.10982028 | P146: 22 | Q146: =IF(O146>0,VLOOKUP(P146,'$ alcantarillado'!$I$11:$L$28,4),"0") -> 0.452 | R146: 0.2505888275 | S146: 1.385508697 | T146: =IF(S146>$B$13,VLOOKUP(P146,'$ alcantarillado'!$I$12:$N$28,5),P146) -> 24 | U146: =IF(O146>0,VLOOKUP(T146,'$ alcantarillado'!$I$11:$L$28,4),"0") -> 0.595 | V146: 0.5215602121 | W146: 0.6656815301 | X146: 1.875774555 | Y146: =IF(T146>0,(VLOOKUP($W146,Relaciones!$A$3:$D$107,2)),"") -> 0.927 | Z146: 1.738843013 | AA146: 0.6640625 | AB146: OK | AC146: OK | AD146: OK | AE146: 1 | AF146: 1 | AG146: 1 | AH146: 3 | AI146: 1.095 | AJ146: =IF(AI146>0,I146*VLOOKUP(T146,'$ alcantarillado'!$I$12:$K$28,3),0) -> 7369220.923 | AK146: 1706688.9 | AL146: 1409921.62 | AM146: 10485831.44 | AN146: =+AP113 -> 22113186.53 | AO146: 32599017.98
E147: 5 | F147: =+H118 -> 47.25 | G147: 5 | H147: =+H146 -> 47.15 | I147: =+I146 -> 28 | J147: 0.003571428571 | K147: =+K146 -> 10521 | L147: 347.193 | M147: 0.347193 | N147: 0.5326139454 | O147: 20.96905297 | P147: 22 | Q147: =IF(O147>0,VLOOKUP(P147,'$ alcantarillado'!$I$11:$L$28,4),"0") -> 0.452 | R147: 0.2241334611 | S147: 1.549045815 | T147: =IF(S147>$B$13,VLOOKUP(P147,'$ alcantarillado'!$I$12:$N$28,5),P147) -> 24 | U147: =IF(O147>0,VLOOKUP(T147,'$ alcantarillado'!$I$11:$L$28,4),"0") -> 0.595 | V147: 0.4664976354 | W147: 0.7442545763 | X147: 1.677743767 | Y147: =IF(T147>0,(VLOOKUP($W147,Relaciones!$A$3:$D$107,2)),"") -> 0.961 | Z147: 1.61231176 | AA147: 0.53125 | AB147: OK | AC147: OK | AD147: OK | AE147: 1 | AF147: 1 | AG147: 1 | AH147: 3 | AI147: 1.095 | AJ147: =IF(AI147>0,I147*VLOOKUP(T147,'$ alcantarillado'!$I$12:$K$28,3),0) -> 7369220.923 | AK147: 1720485.9 | AL147: 1427371.145 | AM147: 10517077.97 | AN147: =+AP118 -> 22118969.93 | AO147: 32636047.9
